Workbook

Sheet Instructivo
B2: Tablero de control de vacunas del Programa Ampliado de Inmunizaciones -PAI- Período 2020
B4: Acerca de la versión
B5: 1. CELDAS BLOQUEADAS: Todas las celdas están bloqueadas con excepción de las celdas donde se digitan las dosis aplicadas de cada mes, es decir, las columnas de la F a la Q. Es responsabilidad de la Coordinadora o Coordinador PAI de cada localidad la calidad y seguridad de la información allí registrada. Los datos de las dosis mensuales deben ser auditables y confiables.
B6: 2. PARA AGREGAR O RETITAR IPS: Debe reportar los datos por medio de correo electrónico a la SDS (sdspai@saludcapital.gov.co)
B7: 3. MEJORAS O MODIFICACIONES: Esta versión del tablero de control está totalmente estandarizada, por lo tanto no está autorizado a personalizar, adaptar, o modificar el Tablero de Control, en ningún aspecto, fórmulas, escenario, columnas, títulos, distribución, etc. Si requiere alguna adaptación o mejora para el tablero de control, escriba su sugerencia a la SDS (sdspai@saludcapital.gov.co)
B8: 4. VERSIÓN DE OFFICE: Este tablero fue creado con la versión Microsoft Office 2007.
B9: 5. FILTRO: Para hacer uso eficiente del tablero de control, en el filtro de las columnas: - "Localidad " realice la selección de su predilección. Ejemplo: en la columna "Localidad", en el filtro seleccionó "01-USAQUEN". Resultado: Despliega la información de las IPS públicas y privadas de la localidad de Usaquén. - "EAPB o ESE" realice la selección de su predilección. Ejemplo: en la columna "EAPB o ESE", en el filtro seleccionó "COMPENSAR". Resultado: Despliega la información de las IPS de esta aseguradora
B11: Acerca del diligenciamiento por biológico
B12: 1. BCG: Del informe mensual SIS 151 tome el total de dosis aplicadas por IPS y localidad, regístrelas y súmelas así: POS: BCG en niño o niña recién nacido (de 0 hasta 28 días)
B13: 2. HEPATITIS B: Del informe mensual SIS 151 tome el total de dosis aplicadas por IPS y localidad, regístrelas y súmelas así: POS: HB en niño o niña Recién nacido (hasta las primeras 12 horas) y Recién nacido (Entre 12 horas y 28 dias)
B14: 3. PENTA1: Del informe mensual tome el total de dosis aplicadas y súmelas, así: - POS: PENTAVALENTE (DPT - HB - Hib) - < DE 1 AÑO - primera dosis; DTP - < DE 1 AÑO - primera dosis; DTPa acelular pediatrica - < DE 1 AÑO - primera dosis; TOXOIDE TETANICO-DIFTERICO PEDIATRICO (TD) - < DE 1 AÑO - primera dosis - NO POS: PENTAVALENTE (DPTa -HiB-VPI) - < DE 1 AÑO - primera dosis; HEXAVALENTE (DPTa -HB-HiB-VIP) - < DE 1 AÑO primera dosis - TETRAVALENTE (DPTa - VPI) - < DE 1 AÑO primera dosis; DPTaceluar pediátrica (DPTa) - < DE 1 AÑO primera dosis y TOXOIDE TETÁNICO-DIFTERICO DE NIÑOS (TD) - MENOR DE 1 AÑO - primera dosis
B15: 4. PENTA2: Del informe mensual tome el total de dosis aplicadas y súmelas, así: - POS: PENTAVALENTE (DPT - HB - Hib) - < DE 1 AÑO - segunda dosis; DTP - < DE 1 AÑO - segunda dosis; DTPa acelular pediatrica - < DE 1 AÑO - segunda dosis; TOXOIDE TETANICO-DIFTERICO PEDIATRICO (TD) - < DE 1 AÑO - segunda dosis - NO POS: PENTAVALENTE (DPTa -HiB-VPI) - < DE 1 AÑO - segunda dosis; HEXAVALENTE (DPTa -HB-HiB-VIP) - < DE 1 AÑO segunda dosis - TETRAVALENTE (DPTa - VPI) - < DE 1 AÑO segunda dosis; DPTaceluar pediátrica (DPTa) - < DE 1 AÑO segunda dosis y TOXOIDE TETÁNICO-DIFTERICO DE NIÑOS (TD) - MENOR DE 1 AÑO - segunda dosis
B16: 5. PENTA3: Del informe mensual tome el total de dosis aplicadas y súmelas, así: - POS: PENTAVALENTE (DPT - HB - Hib) - < DE 1 AÑO - tercera dosis; DTP - < DE 1 AÑO - tercera dosis; DTPa acelular pediatrica - < DE 1 AÑO - tercera dosis; TOXOIDE TETANICO-DIFTERICO PEDIATRICO (TD) - < DE 1 AÑO - tercera dosis - NO POS: PENTAVALENTE (DPTa -HiB-VPI) - < DE 1 AÑO - tercera dosis; HEXAVALENTE (DPTa -HB-HiB-VIP) - < DE 1 AÑO tercera dosis - TETRAVALENTE (DPTa - VPI) - < DE 1 AÑO tercera dosis; DPTaceluar pediátrica (DPTa) - < DE 1 AÑO tercera dosis y TOXOIDE TETÁNICO-DIFTERICO DE NIÑOS (TD) - MENOR DE 1 AÑO - tercera dosis
B17: 6. ROTAVIRUS1: Del informe mensual tome el total de dosis aplicadas y súmelas, así: - POS: ROTAVIRUS - DE 2 MESES A 3 MESES y 21 DIAS - Primera dosis - NO POS: ROTAVIRUS - < DE 1 AÑO - Primera dosis
B18: 7. ROTAVIRUS2: Del informe mensual tome el total de dosis aplicadas y súmelas, así: - POS: ROTAVIRUS - DE 4 MESES A 11 MESES y 29 DIAS - Segundas dosis - NO POS: ROTAVIRUS - < DE 1 AÑO - Terceras dosis
B19: 8. NEUMOCOCO1: Del informe mensual tome el total de dosis aplicadas y súmelas, así: - POS: NEUMOCOCO CONJUGADA - DE 2 MESES A 11 MESES 29 DIAS - Primera dosis - NO POS: NEUMOCOCO CONJUGADA-DE 2 MESES A 11 MESES 29 DIAS - Primera dosis
B20: 9. NEUMOCOCO2: Del informe mensual tome el total de dosis aplicadas y súmelas, así: - POS: NEUMOCOCO CONJUGADA - DE 2 MESES A 11 MESES 29 DIAS - Segundas dosis - NO POS: NEUMOCOCO CONJUGADA-DE 2 MESES A 11 MESES 29 DIAS - Segundas dosis
B21: 10. TRIPLE VIRAL: Del informe mensual tome el total de dosis aplicadas y súmelas , así: - POS: SRP (TRIPLE VIRAL) - Primera dosis - De 1 año - NO POS: SRP (TRIPLE VIRAL) - Dosis única - Un año de edad; y TRIPLE VIRAL + VARICELA - Un año - Dosis única
B22: 11. VARICELA: Del informe mensual tome el total de dosis aplicadas y súmelas , así: - POS: VARICELA - DE 1 AÑO - Primera Dosis - NO POS: VARICELA - DE 1 AÑO - Primera Dosis; y TRIPLE VIRAL + VARICELA - Un año - Primera dosis
B23: 12. HEPATITIS A: Del informe mensual tome el total de dosis aplicadas y súmelas , así: - POS: HEPATITIS A - DOSIS ÚNICA - DE 1 AÑO - NO POS: HEPATITIS A - DE 1 AÑO - Primera Dosis
B24: 13. R. NEUMOCOCO CONJUGADA: Del informe mensual tome el total de dosis aplicadas y súmelas , así: - POS: NEUMOCOCO CONJUGADA - DE 12 MESES A 23 MESES - DE 1 AÑO - Refuerzo. - NO POS: NEUMOCOCO CONJUGADA - DE 12 MESES A 23 MESES - Refuerzo
B25: 14. R1 DPT: Del informe mensual tome el total de dosis aplicadas y súmelas , así: - POS: PENTAVALENTE DPT - HB - Hib (CUANDO EL MINISTERIO LA AUTORICE) - 1er REF; DPT - AL AÑO DE LA 3ra DOSIS (De 18 a 23 meses) - 1er REF; DTPa acelular pediátrica - AL AÑO DE LA 3ra DOSIS (De 18 a 23 meses) - 1er REF; TOXOIDE TETANICO-DIFTERICO PEDIATRICO (TD) - AL AÑO DE LA 3ra DOSIS (De 18 a 23 meses) - 1er REF. - NO POS: PENTAVALENTE (DPTa -HiB-VPI) - AL AÑO DE LA 3ra DOSIS (De 18 a 23 meses) - 1er REF; HEXAVALENTE (DPTa -HB-HiB-VIP) - AL AÑO DE LA 3ra DOSIS (De 18 a 23 meses) - 1er REF - TETRAVALENTE (DPTa - VPI) - AL AÑO DE LA 3ra DOSIS (De 18 a 23 meses) - 1er REF; DPTaceluar pediátrica (DPTa) - AL AÑO DE LA 3ra DOSIS (De 18 a 23 meses) - 1er REF.; TOXOIDE TETÁNICO-DIFTERICO DE NIÑOS (TD) - DE 1 A 4 AÑOS - REF. 1;
B26: 15. F.AMARILLA: Del informe mensual tome el total de dosis aplicadas y súmelas , así: - POS: FIEBRE AMARILLA - DE 1 AÑO - NO POS: FIEBRE AMARILLA - DE 1 AÑO
B27: 16. R2. TRIPLE VIRAL: Del informe mensual tome el total de dosis aplicadas y súmelas , así: - POS: SRP (TRIPLE VIRAL) - REFUERZO DE 5 AÑOS - NO POS: SRP (TRIPLE VIRAL) - REFUERZO DE 5 AÑOS; Y TRIPLE VIRAL + VARICELA - REFUERZO DE 5 AÑOS

Sheet METAS 2020
A1: Metas de población PAI por localidad. Año 2020
A2: Localidad | B2: Menor de un año | C2: Un año | D2: Cinco años
A3: 01-USAQUEN | B3: 8,126 | C3: 7,777 | D3: 7,262
A4: 02-CHAPINERO | B4: 6,147 | C4: 5,477 | D4: 4,846
A5: 03-SANTA FE | B5: 881 | C5: 993 | D5: 814
A6: 04-SAN CRISTOBAL | B6: 3,776 | C6: 3,865 | D6: 3,369
A7: 05-USME | B7: 4,928 | C7: 5,014 | D7: 4,698
A8: 06-TUNJUELITO | B8: 2,568 | C8: 2,618 | D8: 2,609
A9: 07-BOSA | B9: 8,949 | C9: 9,693 | D9: 9,047
A10: 08-KENNEDY | B10: 12,334 | C10: 12,690 | D10: 12,781
A11: 09-FONTIBON | B11: 4,076 | C11: 4,267 | D11: 4,026
A12: 10-ENGATIVA | B12: 6,290 | C12: 6,839 | D12: 6,800
A13: 11-SUBA | B13: 10,787 | C13: 10,905 | D13: 10,886
A14: 12-BARRIOS UNIDOS | B14: 3,230 | C14: 2,676 | D14: 2,354
A15: 13-TEUSAQUILLO | B15: 3,285 | C15: 3,025 | D15: 3,442
A16: 14-MARTIRES | B16: 769 | C16: 1,039 | D16: 689
A17: 15-ANTONIO NARIÑO | B17: 3,008 | C17: 3,016 | D17: 4,179
A18: 16-PUENTE ARANDA | B18: 5,153 | C18: 4,531 | D18: 4,718
A19: 17-CANDELARIA | B19: 154 | C19: 130 | D19: 179
A20: 18-RAFAEL URIBE URIBE | B20: 5,460 | C20: 5,653 | D20: 5,967
A21: 19-CIUDAD BOLIVAR | B21: 9,595 | C21: 9,172 | D21: 8,436
A22: 20-SUMAPAZ | B22: 34 | C22: 45 | D22: 37
A23: Bogotá | B23: =SUM(B3:B22) -> 99,552 | C23: =SUM(C3:C22) -> 99,424 | D23: =SUM(D3:D22) -> 97,140
A25: Metas de población PAI por Subred. Año 2020
A26: Localidad | B26: Menor de un año | C26: Un año | D26: Cinco años
A27: 01-USAQUEN | B27: =B3 -> 8,126 | C27: 7,777 | D27: 7,262
A28: 02-CHAPINERO | B28: 6,147 | C28: 5,477 | D28: 4,846
A29: 10-ENGATIVA | B29: =B12 -> 6,290 | C29: 6,839 | D29: 6,800
A30: 11-SUBA | B30: 10,787 | C30: 10,905 | D30: 10,886
A31: 12-BARRIOS UNIDOS | B31: 3,230 | C31: 2,676 | D31: 2,354
A32: 13-TEUSAQUILLO | B32: 3,285 | C32: 3,025 | D32: 3,442
A33: SUBRED NORTE | B33: =SUM(B27:B32) -> 37,866 | C33: =SUM(C27:C32) -> 36,699 | D33: =SUM(D27:D32) -> 35,591
A34: 03-SANTA FE | B34: =B5 -> 881 | C34: 993 | D34: 814
A35: 04-SAN CRISTOBAL | B35: 3,776 | C35: 3,865 | D35: 3,369
A36: 14-MARTIRES | B36: =B16 -> 769 | C36: 1,039 | D36: 689
A37: 15-ANTONIO NARIÑO | B37: 3,008 | C37: 3,016 | D37: 4,179
A38: 17-CANDELARIA | B38: =B19 -> 154 | C38: 130 | D38: 179
A39: 18-RAFAEL URIBE URIBE | B39: 5,460 | C39: 5,653 | D39: 5,967
A40: SUBRED CENTRO ORIENTE | B40: =SUM(B34:B39) -> 14,049 | C40: =SUM(C34:C39) -> 14,696 | D40: =SUM(D34:D39) -> 15,197
A41: 05-USME | B41: =B7 -> 4,928 | C41: 5,014 | D41: 4,698
A42: 06-TUNJUELITO | B42: 2,568 | C42: 2,618 | D42: 2,609
A43: 19-CIUDAD BOLIVAR | B43: =B21 -> 9,595 | C43: 9,172 | D43: 8,436
A44: 20-SUMAPAZ | B44: 34 | C44: 45 | D44: 37
A45: SUBRED SUR | B45: =SUM(B41:B44) -> 17,125 | C45: =SUM(C41:C44) -> 16,849 | D45: =SUM(D41:D44) -> 15,781
A46: 07-BOSA | B46: =B9 -> 8,949 | C46: 9,693 | D46: 9,047
A47: 08-KENNEDY | B47: 12,334 | C47: 12,690 | D47: 12,781
A48: 09-FONTIBON | B48: 4,076 | C48: 4,267 | D48: 4,026
A49: 16-PUENTE ARANDA | B49: =B18 -> 5,153 | C49: =C18 -> 4,531 | D49: =D18 -> 4,718
A50: SUBRED SUR OCCIDENTE | B50: =SUM(B46:B49) -> 30,512 | C50: =SUM(C46:C49) -> 31,181 | D50: =SUM(D46:D49) -> 30,571
A51: Bogotá | B51: =B33+B40+B45+B50 -> 99,552 | C51: =C33+C40+C45+C50 -> 99,424 | D51: =D33+D40+D45+D50 -> 97,140
A54: Metas de población PAI por aseguradora / subred. Año 2020
A55: Aeguradora/ subred | B55: Menor de un año | C55: Un año | D55: Cinco años
A56: Aliansalud | B56: 1,665 | C56: 2,013 | D56: 2,326
A57: Medimás | B57: 1,721 | C57: 1,991 | D57: 2,192
A58: Compensar | B58: 12,896 | C58: 14,515 | D58: 15,820
A59: Coomeva | B59: 814 | C59: 862 | D59: 923
A60: Famisanar | B60: 13,333 | C60: 14,847 | D60: 16,783
A61: Fuerzas Militares | B61: 974 | C61: 1,240 | D61: 1,629
A62: Policía Nacional | B62: 1,156 | C62: 1,037 | D62: 1,106
A63: Nueva EPS | B63: 3,722 | C63: 3,700 | D63: 4,105
A64: Sanitas | B64: 12,048 | C64: 13,636 | D64: 14,738
A65: Salud Total | B65: 8,782 | C65: 9,391 | D65: 10,369
A66: Sura | B66: 3,934 | C66: 4,406 | D66: 4,777
A67: Ecopetrol | B67: 87 | C67: 93 | D67: 180
A68: Magisterio | B68: 270 | C68: 302 | D68: 502
A69: SOS** | B69: 37 | C69: 38 | D69: 53
A70: Unisalud | B70: 16 | C70: 26 | D70: 56
A71: Ferrocarriles Nales | B71: 1 | C71: 5 | D71: 1
A72: Coosalud | B72: 60 | C72: 102 | D72: 135
A73: Unicajas | B73: 1,637 | C73: 1,670 | D73: 1,833
A74: Capital Salud | B74: 11,424 | C74: 12,234 | D74: 11,130
A75: Sub red Centro oriente | B75: 3,880 | C75: 2,544 | D75: 1,344
A76: Sub red Norte | B76: =8412-B72 -> 8,352 | C76: =6388-C72 -> 6,286 | D76: =3154-D72 -> 3,019
A77: Sub red Sur | B77: 5,057 | C77: 2,925 | D77: 1,409
A78: Sub red Sur occidente | B78: 7,686 | C78: 5,561 | D78: 2,710
A79: Bogotá | B79: =SUM(B56:B78) -> 99,552 | C79: =SUM(C56:C78) -> 99,424 | D79: =SUM(D56:D78) -> 97,140

Sheet BCG
A1: EPS O ESE | B1: IPS | C1: Localidad | D1: Meta Anual Menor de 1 Año | E1: Meta Mensual | F1: Enero | G1: Febrero | H1: Marzo | I1: Abril | J1: Mayo | K1: Junio | L1: Julio | M1: Agosto | N1: Septiembre | O1: Octubre | P1: Noviembre | Q1: Diciembre | R1: Total | S1: % Cobertura | T1: Deficit
A2: COMPENSAR | B2: CLINICA LOS COBOS | C2: 01-USAQUEN | D2: 0 | E2: 0 | F2: 87 | R2: =SUM(F2:Q2) -> 87 | S2: =IF(D2=0,0,+R2/D2) -> 0.0% | T2: =IF(COUNT(F2:Q2)*(D2/12)-R2<0,"",COUNT(F2:Q2)*(D2/12)-R2) -> 
A3: SANITAS | B3: CLINICA REINA SOFIA | C3: 01-USAQUEN | D3: 0 | E3: 0 | F3: 96 | R3: 96 | S3: 0.0%
A4: PARTICULAR | B4: FUNDACION SANTA FE | C4: 01-USAQUEN | D4: 0 | E4: 0 | F4: 107 | R4: 107 | S4: 0.0%
A5: 01-USAQUEN | B5: HOSPITAL SIMON BOLIVAR | C5: 01-USAQUEN | D5: 0 | E5: 0 | F5: 136 | R5: 136 | S5: 0.0%
A6: PARTICULAR | B6: CLINICA DE LA MUJER | C6: 02-CHAPINERO | D6: 0 | E6: 0 | F6: 169 | R6: 169 | S6: 0.0%
A7: PARTICULAR | B7: CLINICA DE MARLY S.A | C7: 02-CHAPINERO | D7: 0 | E7: 0 | F7: 55 | R7: 55 | S7: 0.0%
A8: PARTICULAR | B8: CLINICA DEL COUNTRY | C8: 02-CHAPINERO | D8: 0 | E8: 0 | F8: 218 | R8: 218 | S8: 0.0%
A9: MILITAR | B9: HOSPITAL MILITAR CENTRAL | C9: 02-CHAPINERO | D9: 0 | E9: 0 | F9: 50 | R9: 50 | S9: 0.0%
A10: PARTICULAR | B10: HOSPITAL SAN IGNACIO | C10: 02-CHAPINERO | D10: 0 | E10: 0 | F10: 89 | R10: 89 | S10: 0.0%
A11: UNICAJAS | B11: EXTRAMURAL SANTA FE | C11: 03-SANTA FE | D11: 0 | E11: 0 | F11: 0 | R11: =SUM(F11:Q11) -> 0 | S11: =IF(D11=0,0,+R11/D11) -> 0.0% | T11: =IF(COUNT(F11:Q11)*(D11/12)-R11<0,"",COUNT(F11:Q11)*(D11/12)-R11) -> 0.0
A12: 04-SAN CRISTOBAL | B12: CAMI ALTAMIRA | C12: 04-SAN CRISTOBAL | D12: 0 | E12: 0 | F12: 0 | R12: 0 | S12: 0.0% | T12: 0.0
A13: PARTICULAR | B13: CLINICA SAN RAFAEL | C13: 04-SAN CRISTOBAL | D13: 1216 | E13: 101 | F13: 449 | R13: 449 | S13: 36.9%
A14: 04-SAN CRISTOBAL | B14: HOSPITAL LA VICTORIA | C14: 04-SAN CRISTOBAL | D14: 1216 | E14: 101 | F14: 225 | R14: 225 | S14: 18.5%
A15: 04-SAN CRISTOBAL | B15: INSTITUTO MATERNO INFANTIL LA VICTORIA SEDE II | C15: 04-SAN CRISTOBAL | D15: 1216 | E15: 101 | F15: 359 | R15: 359 | S15: 29.5%
A16: 07-BOSA | B16: CAMI PABLO VI BOSA | C16: 07-BOSA | D16: 0 | E16: 0 | F16: 0 | R16: 0 | S16: 0.0% | T16: 0.0
A17: 07-BOSA | B17: HOSPITAL DE BOSA II NIVEL | C17: 07-BOSA | D17: 0 | E17: 0 | F17: 174 | R17: 174 | S17: 0.0%
A18: 08-KENNEDY | B18: CAFAM KENNEDY | C18: 08-KENNEDY | E18: 0 | F18: 0 | R18: 0 | S18: 0.0% | T18: 0.0
A19: 08-KENNEDY | B19: CAPS PATIO BONITO | C19: 08-KENNEDY | E19: 0 | F19: 0 | R19: 0 | S19: 0.0% | T19: 0.0
A20: 08-KENNEDY | B20: CLINICA COLSUBSIDIO ROMA | C20: 08-KENNEDY | E20: 0 | F20: 0 | R20: 0 | S20: 0.0% | T20: 0.0
A21: 08-KENNEDY | B21: CLINICA DEL OCCIDENTE LTDA | C21: 08-KENNEDY | D21: 0 | E21: 0 | F21: 92 | R21: 92 | S21: 0.0%
A22: 08-KENNEDY | B22: COMPENSAR KENNEDY | C22: 08-KENNEDY | D22: 0 | E22: 0 | F22: 0 | R22: 0 | S22: 0.0% | T22: 0.0
A23: 08-KENNEDY | B23: HOSPITAL OCCIDENTE DE KENNEDY | C23: 08-KENNEDY | D23: 0 | E23: 0 | F23: 406 | R23: 406 | S23: 0.0%
A24: 08-KENNEDY | B24: USS TINTAL PATIO BONITO | C24: 08-KENNEDY | F24: 0 | R24: 0 | S24: 0.0% | T24: 0.0
A25: 09-FONTIBON | B25: CAMI II CENTRO DE ESPECIALISTAS | C25: 09-FONTIBON | D25: 0 | E25: 0 | F25: 86 | R25: 86 | S25: 0.0%
A26: 09-FONTIBON | B26: CENTRO DIA | C26: 09-FONTIBON | F26: 0 | R26: 0 | S26: 0.0% | T26: 0.0
A27: 10-ENGATIVA | B27: HOSPITAL ENGATIVA II SEDE PRINCIPAL CALLE 80 | C27: 10-ENGATIVA | D27: 0 | E27: 0 | F27: 176 | R27: 176 | S27: 0.0%
A28: 11-SUBA | B28: CENTRO DE SERVICIOS ESPECIALIZADOS | C28: 11-SUBA | D28: 0 | E28: 0 | F28: 214 | R28: 214 | S28: 0.0%
A29: PARTICULAR | B29: CLINICA COLINA | C29: 11-SUBA | D29: 0 | E29: 0 | F29: 65 | R29: 65 | S29: 0.0%
A30: PARTICULAR | B30: FUNDACION CLINICA CORPAS | C30: 11-SUBA | D30: 0 | E30: 0 | F30: 350 | R30: 350 | S30: 0.0%
A31: PARTICULAR | B31: CLINICA COLSUBSIDIO CALLE 94 | C31: 12-BARRIOS UNIDOS | D31: 0 | E31: 0 | F31: 302 | R31: 302 | S31: 0.0%
A32: CRUZ BLANCA | B32: HOSPITAL UNIVERSITARIO INFANTIL SAN JOSE | C32: 12-BARRIOS UNIDOS | D32: 0 | E32: 0 | F32: 369 | R32: 369 | S32: 0.0%
A33: FAMI- CAFAM | B33: CLINICA CAFAM CALLE 51 | C33: 13-TEUSAQUILLO | D33: 0 | E33: 0 | F33: 472 | R33: 472 | S33: 0.0%
A34: PARTICULAR | B34: CLINICA EUSALUD | C34: 13-TEUSAQUILLO | D34: 0 | E34: 0 | F34: 383 | R34: 383 | S34: 0.0%
A35: PARTICULAR | B35: CLINICA FEDERMAN | C35: 13-TEUSAQUILLO | D35: 0 | E35: 0 | F35: 0 | R35: 0 | S35: 0.0% | T35: 0.0
A36: PARTICULAR | B36: CLINICA PALERMO | C36: 13-TEUSAQUILLO | D36: 0 | E36: 0 | F36: 533 | R36: 533 | S36: 0.0%
A37: SANITAS | B37: CLINICA UNIVERSITARIA COLOMBIA | C37: 13-TEUSAQUILLO | D37: 0 | E37: 0 | F37: 6 | R37: 6 | S37: 0.0%
A38: POLICIA | B38: HOSPITAL CENTRAL DE LA POLICIA | C38: 13-TEUSAQUILLO | D38: 0 | E38: 0 | F38: 86 | R38: 86 | S38: 0.0%
A39: PARTICULAR | B39: MEDICA MAGDALENA LTDA | C39: 13-TEUSAQUILLO | D39: 0 | E39: 0 | F39: 519 | R39: 519 | S39: 0.0%
A40: PARTICULAR | B40: HOSPITAL UNIVERSITARIO MAYOR | C40: 14-LOS MARTIRES | D40: 299 | E40: 25 | F40: 359 | R40: 359 | S40: 120.1%
A41: PARTICULAR | B41: SOCIEDAD DE CIRUGIA HOSPITAL SAN JOSE | C41: 14-LOS MARTIRES | D41: 299 | E41: 25 | F41: 268 | R41: 268 | S41: 89.6%
A42: 14-LOS MARTIRES | B42: USS SAMPER MENDOZA | C42: 14-LOS MARTIRES | D42: 0 | E42: 0 | F42: 0 | R42: 0 | S42: 0.0% | T42: 0.0
A43: COMPENSAR | B43: USS 1 DE MAYO | C43: 15-ANTONIO NARIÑO | D43: 0 | E43: 0 | F43: 0 | R43: 0 | S43: 0.0% | T43: 0.0
A44: FAMI- COLSB | B44: CENTRO MEDICO COLSUBSIDIO QUIROGA | C44: 18-RAFAEL URIBE URIBE | D44: 0 | E44: 0 | F44: 0 | R44: 0 | S44: 0.0% | T44: 0.0
A45: PARTICULAR | B45: CENTRO POLICLINICO DEL OLAYA | C45: 18-RAFAEL URIBE URIBE | D45: 5526 | E45: 461 | F45: 365 | R45: 365 | S45: 6.6% | T45: 95.5
A46: 19-CIUDAD BOLIVAR | B46: USS MEISSEN | C46: 19-CIUDAD BOLIVAR | D46: 0 | E46: =D46/12 -> 0 | F46: 553 | R46: 553 | S46: 0.0%
C57: Localidad | D57: Enero | E57: Febrero | F57: Marzo | G57: Abril | H57: Mayo | I57: Junio | J57: Julio | K57: Agosto | L57: Septiembre | M57: Octubre | N57: Noviembre | O57: Diciembre | P57: Total TC
C58: 01-USAQUEN | D58: =SUMIF($C$2:$C$49,$C58,F$2:F$49) -> 426 | E58: 0 | F58: 0 | G58: 0 | H58: 0 | I58: 0 | J58: 0 | K58: 0 | L58: 0 | M58: 0 | N58: 0 | O58: 0 | P58: =SUM(D58:O58) -> 426
C59: 02-CHAPINERO | D59: 581 | E59: 0 | F59: 0 | G59: 0 | H59: 0 | I59: 0 | J59: 0 | K59: 0 | L59: 0 | M59: 0 | N59: 0 | O59: 0 | P59: =SUM(D59:O59) -> 581
C60: 10-ENGATIVA | D60: 176 | E60: 0 | F60: 0 | G60: 0 | H60: 0 | I60: 0 | J60: 0 | K60: 0 | L60: 0 | M60: 0 | N60: 0 | O60: 0 | P60: 176
C61: 11-SUBA | D61: 629 | E61: 0 | F61: 0 | G61: 0 | H61: 0 | I61: 0 | J61: 0 | K61: 0 | L61: 0 | M61: 0 | N61: 0 | O61: 0 | P61: 629
C62: 12-BARRIOS UNIDOS | D62: 671 | E62: 0 | F62: 0 | G62: 0 | H62: 0 | I62: 0 | J62: 0 | K62: 0 | L62: 0 | M62: 0 | N62: 0 | O62: 0 | P62: 671
C63: 13-TEUSAQUILLO | D63: 1,999 | E63: 0 | F63: 0 | G63: 0 | H63: 0 | I63: 0 | J63: 0 | K63: 0 | L63: 0 | M63: 0 | N63: 0 | O63: 0 | P63: 1,999
C64: TOTAL TC SUBRED NORTE | D64: =SUM(D58:D63) -> 4,482 | E64: =SUM(E58:E63) -> 0 | F64: 0 | G64: 0 | H64: 0 | I64: 0 | J64: 0 | K64: 0 | L64: 0 | M64: 0 | N64: 0 | O64: 0 | P64: 4,482
C65: TOTAL INFORME SIS 151 SUBRED NORTE
C66: DIFERENCIA | D66: =+D64-D65 -> 4,482 | E66: =+E64-E65 -> 0 | F66: 0 | G66: 0 | H66: 0 | I66: 0 | J66: 0 | K66: 0 | L66: 0 | M66: 0 | N66: 0 | O66: 0 | P66: 4,482
C69: Localidad | D69: Enero | E69: Febrero | F69: Marzo | G69: Abril | H69: Mayo | I69: Junio | J69: Julio | K69: Agosto | L69: Septiembre | M69: Octubre | N69: Noviembre | O69: Diciembre | P69: Total TC
C70: 07-BOSA | D70: =SUMIF($C$2:$DC$49,$C70,F$2:F$49) -> 174 | E70: 0 | F70: 0 | G70: 0 | H70: 0 | I70: 0 | J70: 0 | K70: 0 | L70: 0 | M70: 0 | N70: 0 | O70: 0 | P70: 174
C71: 08-KENNEDY | D71: 498 | E71: 0 | F71: 0 | G71: 0 | H71: 0 | I71: 0 | J71: 0 | K71: 0 | L71: 0 | M71: 0 | N71: 0 | O71: 0 | P71: 498
C72: 09-FONTIBON | D72: 86 | E72: 0 | F72: 0 | G72: 0 | H72: 0 | I72: 0 | J72: 0 | K72: 0 | L72: 0 | M72: 0 | N72: 0 | O72: 0 | P72: 86
C73: 16-PUENTE ARANDA | D73: 0 | E73: 0 | F73: 0 | G73: 0 | H73: 0 | I73: 0 | J73: 0 | K73: 0 | L73: 0 | M73: 0 | N73: 0 | O73: 0 | P73: 0
C74: TOTAL TC SUBRED SUROCCIDENTE | D74: =SUM(D70:D73) -> 758 | E74: =SUM(E70:E73) -> 0 | F74: 0 | G74: 0 | H74: 0 | I74: 0 | J74: 0 | K74: 0 | L74: 0 | M74: 0 | N74: 0 | O74: 0 | P74: 758
C75: TOTAL INFORME SIS 151 SUBRED SUROCCIDENTE
C76: DIFERENCIA | D76: =+D74-D75 -> 758 | E76: =+E74-E75 -> 0 | F76: 0 | G76: 0 | H76: 0 | I76: 0 | J76: 0 | K76: 0 | L76: 0 | M76: 0 | N76: 0 | O76: 0 | P76: 758
C79: Localidad | D79: Enero | E79: Febrero | F79: Marzo | G79: Abril | H79: Mayo | I79: Junio | J79: Julio | K79: Agosto | L79: Septiembre | M79: Octubre | N79: Noviembre | O79: Diciembre | P79: Total TC
C80: 03-SANTA FE | D80: =SUMIF($C$2:$C$49,$C80,F$2:F$49) -> 0 | E80: 0 | F80: 0 | G80: 0 | H80: 0 | I80: 0 | J80: 0 | K80: 0 | L80: 0 | M80: 0 | N80: 0 | O80: 0 | P80: 0
C81: 04-SAN CRISTOBAL | D81: 1,033 | E81: 0 | F81: 0 | G81: 0 | H81: 0 | I81: 0 | J81: 0 | K81: 0 | L81: 0 | M81: 0 | N81: 0 | O81: 0 | P81: 1,033
C82: 14-LOS MARTIRES | D82: 627 | E82: 0 | F82: 0 | G82: 0 | H82: 0 | I82: 0 | J82: 0 | K82: 0 | L82: 0 | M82: 0 | N82: 0 | O82: 0 | P82: 627
C83: 15-ANTONIO NARIÑO | D83: 0 | E83: 0 | F83: 0 | G83: 0 | H83: 0 | I83: 0 | J83: 0 | K83: 0 | L83: 0 | M83: 0 | N83: 0 | O83: 0 | P83: 0
C84: 17-LA CANDELARIA | D84: 0 | E84: 0 | F84: 0 | G84: 0 | H84: 0 | I84: 0 | J84: 0 | K84: 0 | L84: 0 | M84: 0 | N84: 0 | O84: 0 | P84: 0
C85: 18-RAFAEL URIBE URIBE | D85: 365 | E85: 0 | F85: 0 | G85: 0 | H85: 0 | I85: 0 | J85: 0 | K85: 0 | L85: 0 | M85: 0 | N85: 0 | O85: 0 | P85: 365
C86: TOTAL TC SUBRED CENTRO ORIENTE | D86: =SUM(D80:D85) -> 2,025 | E86: =SUM(E80:E85) -> 0 | F86: 0 | G86: 0 | H86: 0 | I86: 0 | J86: 0 | K86: 0 | L86: 0 | M86: 0 | N86: 0 | O86: 0 | P86: 2,025
C87: TOTAL INFORME SIS 151 SUBRED CENTRO ORIENTE
C88: DIFERENCIA | D88: =+D86-D87 -> 2,025 | E88: =+E86-E87 -> 0 | F88: 0 | G88: 0 | H88: 0 | I88: 0 | J88: 0 | K88: 0 | L88: 0 | M88: 0 | N88: 0 | O88: 0 | P88: 2,025
C91: Localidad | D91: Enero | E91: Febrero | F91: Marzo | G91: Abril | H91: Mayo | I91: Junio | J91: Julio | K91: Agosto | L91: Septiembre | M91: Octubre | N91: Noviembre | O91: Diciembre | P91: Total TC
C92: 05-USME | D92: =SUMIF($C$2:$C$49,$C92,F$2:F$49) -> 0 | E92: 0 | F92: 0 | G92: 0 | H92: 0 | I92: 0 | J92: 0 | K92: 0 | L92: 0 | M92: 0 | N92: 0 | O92: 0 | P92: 0
C93: 06-TUNJUELITO | D93: 0 | E93: 0 | F93: 0 | G93: 0 | H93: 0 | I93: 0 | J93: 0 | K93: 0 | L93: 0 | M93: 0 | N93: 0 | O93: 0 | P93: 0
C94: 19-CIUDAD BOLIVAR | D94: 553 | E94: 0 | F94: 0 | G94: 0 | H94: 0 | I94: 0 | J94: 0 | K94: 0 | L94: 0 | M94: 0 | N94: 0 | O94: 0 | P94: 553
C95: 20-SUMAPAZ | D95: 0 | E95: 0 | F95: 0 | G95: 0 | H95: 0 | I95: 0 | J95: 0 | K95: 0 | L95: 0 | M95: 0 | N95: 0 | O95: 0 | P95: =SUM(D95:O95) -> 0
C96: TOTAL TC SUBRED SUR | D96: =SUM(D92:D95) -> 553 | E96: =SUM(E92:E95) -> 0 | F96: 0 | G96: 0 | H96: 0 | I96: 0 | J96: 0 | K96: 0 | L96: 0 | M96: 0 | N96: 0 | O96: 0 | P96: 553
C97: TOTAL INFORME SIS 151 SUBRED SUR
C98: DIFERENCIA | D98: =+D96-D97 -> 553 | E98: =+E96-E97 -> 0 | F98: 0 | G98: 0 | H98: 0 | I98: 0 | J98: 0 | K98: 0 | L98: 0 | M98: 0 | N98: 0 | O98: 0 | P98: 553
C102: TOTAL LOCALIDADES | D102: =+D64+D74+D86+D96 -> 7,818 | E102: 0 | F102: 0 | G102: 0 | H102: 0 | I102: 0 | J102: 0 | K102: 0 | L102: 0 | M102: 0 | N102: 0 | O102: 0 | P102: =SUM(P58:P101) -> 23,454
D104: =SUM(F2:F49) -> 7818 | E104: =SUM(G2:G49) -> 0 | F104: 0 | G104: 0 | H104: 0 | I104: 0 | J104: 0 | K104: 0 | L104: 0 | M104: 0 | N104: 0 | O104: 0

Sheet HEPATITIS_B
A1: EPS O ESE | B1: IPS | C1: Localidad | D1: Meta Anual Menor de 1 Año | E1: Meta Mensual | F1: Enero | G1: Febrero | H1: Marzo | I1: Abril | J1: Mayo | K1: Junio | L1: Julio | M1: Agosto | N1: Septiembre | O1: Octubre | P1: Noviembre | Q1: Diciembre | R1: Total | S1: % Cobertura | T1: Deficit
A2: COMPENSAR | B2: CLINICA LOS COBOS | C2: 01-USAQUEN | D2: 0 | E2: 0 | F2: 88 | R2: =SUM(F2:Q2) -> 88 | S2: =IF(D2=0,0,+R2/D2) -> 0.0% | T2: =IF(COUNT(F2:Q2)*(D2/12)-R2<0,"",COUNT(F2:Q2)*(D2/12)-R2) -> 
A3: SANITAS | B3: CLINICA REINA SOFIA | C3: 01-USAQUEN | D3: 0 | E3: 0 | F3: 96 | R3: 96 | S3: 0.0%
A4: PARTICULAR | B4: FUNDACION SANTA FE | C4: 01-USAQUEN | D4: 0 | E4: 0 | F4: 111 | R4: 111 | S4: 0.0%
A5: 01-USAQUEN | B5: HOSPITAL SIMON BOLIVAR | C5: 01-USAQUEN | D5: 0 | E5: 0 | F5: 142 | R5: 142 | S5: 0.0%
A6: PARTICULAR | B6: CLINICA DE LA MUJER | C6: 02-CHAPINERO | D6: 0 | E6: 0 | F6: 175 | R6: 175 | S6: 0.0%
A7: PARTICULAR | B7: CLINICA DE MARLY S.A | C7: 02-CHAPINERO | D7: 0 | E7: 0 | F7: 56 | R7: 56 | S7: 0.0%
A8: PARTICULAR | B8: CLINICA DEL COUNTRY | C8: 02-CHAPINERO | D8: 0 | E8: 0 | F8: 219 | R8: 219 | S8: 0.0%
A9: MILITAR | B9: HOSPITAL MILITAR CENTRAL | C9: 02-CHAPINERO | D9: 0 | E9: 0 | F9: 55 | R9: 55 | S9: 0.0%
A10: PARTICULAR | B10: HOSPITAL SAN IGNACIO | C10: 02-CHAPINERO | D10: 0 | E10: 0 | F10: 95 | R10: 95 | S10: 0.0%
A11: UNICAJAS | B11: EXTRAMURAL SANTA FE | C11: 03-SANTA FE | D11: 0 | E11: 0 | F11: 0 | R11: =SUM(F11:Q11) -> 0 | S11: =IF(D11=0,0,+R11/D11) -> 0.0% | T11: =IF(COUNT(F11:Q11)*(D11/12)-R11<0,"",COUNT(F11:Q11)*(D11/12)-R11) -> 0.0
A12: 04-SAN CRISTOBAL | B12: CAMI ALTAMIRA | C12: 04-SAN CRISTOBAL | D12: 1216 | E12: 101 | F12: 0 | R12: 0 | S12: 0.0% | T12: 101.3
A13: PARTICULAR | B13: CLINICA SAN RAFAEL | C13: 04-SAN CRISTOBAL | D13: 0 | E13: 0 | F13: 469 | R13: 469 | S13: 0.0%
A14: 04-SAN CRISTOBAL | B14: HOSPITAL LA VICTORIA | C14: 04-SAN CRISTOBAL | D14: 1216 | E14: 101 | F14: 238 | R14: 238 | S14: 19.6%
A15: 04-SAN CRISTOBAL | B15: INSTITUTO MATERNO INFANTIL LA VICTORIA SEDE II | C15: 04-SAN CRISTOBAL | D15: 1216 | E15: 101 | F15: 362 | R15: 362 | S15: 29.8%
A16: 07-BOSA | B16: CAMI PABLO VI BOSA | C16: 07-BOSA | D16: 0 | E16: 0 | F16: 0 | R16: 0 | S16: 0.0% | T16: 0.0
A17: 07-BOSA | B17: HOSPITAL DE BOSA II NIVEL | C17: 07-BOSA | D17: 0 | E17: 0 | F17: 174 | R17: 174 | S17: 0.0%
A18: 08-KENNEDY | B18: CAFAM KENNEDY | C18: 08-KENNEDY | D18: 0 | F18: 0 | R18: 0 | S18: 0.0% | T18: 0.0
A19: 08-KENNEDY | B19: CAPS PATIO BONITO | C19: 08-KENNEDY | D19: 0 | F19: 0 | R19: 0 | S19: 0.0% | T19: 0.0
A20: 08-KENNEDY | B20: CLINICA COLSUBSIDIO ROMA | C20: 08-KENNEDY | D20: 0 | F20: 0 | R20: 0 | S20: 0.0% | T20: 0.0
A21: 08-KENNEDY | B21: CLINICA DEL OCCIDENTE LTDA | C21: 08-KENNEDY | D21: 0 | E21: 0 | F21: 92 | R21: 92 | S21: 0.0%
A22: 08-KENNEDY | B22: COMPENSAR KENNEDY | C22: 08-KENNEDY | D22: 0 | F22: 0 | R22: 0 | S22: 0.0% | T22: 0.0
A23: 08-KENNEDY | B23: HOSPITAL OCCIDENTE DE KENNEDY | C23: 08-KENNEDY | D23: 0 | E23: 0 | F23: 419 | R23: 419 | S23: 0.0%
A24: 08-KENNEDY | B24: USS TINTAL PATIO BONITO | C24: 08-KENNEDY | D24: 0 | F24: 0 | R24: 0 | S24: 0.0% | T24: 0.0
A25: 09-FONTIBON | B25: CAMI II CENTRO DE ESPECIALISTAS | C25: 09-FONTIBON | D25: 0 | E25: 0 | F25: 86 | R25: 86 | S25: 0.0%
A26: 09-FONTIBON | B26: CENTRO DIA | C26: 09-FONTIBON | D26: 0 | F26: 0 | R26: 0 | S26: 0.0% | T26: 0.0
A27: 10-ENGATIVA | B27: HOSPITAL ENGATIVA II SEDE PRINCIPAL CALLE 80 | C27: 10-ENGATIVA | D27: 0 | E27: 0 | F27: 182 | R27: 182 | S27: 0.0%
A28: 11-SUBA | B28: CENTRO DE SERVICIOS ESPECIALIZADOS | C28: 11-SUBA | D28: 0 | E28: 0 | F28: 215 | R28: 215 | S28: 0.0%
A29: PARTICULAR | B29: CLINICA COLINA | C29: 11-SUBA | D29: 0 | E29: 0 | F29: 63 | R29: 63 | S29: 0.0%
A30: PARTICULAR | B30: FUNDACION CLINICA CORPAS | C30: 11-SUBA | D30: 0 | E30: 0 | F30: 367 | R30: 367 | S30: 0.0%
A31: PARTICULAR | B31: CLINICA COLSUBSIDIO CALLE 94 | C31: 12-BARRIOS UNIDOS | D31: 0 | E31: 0 | F31: 306 | R31: 306 | S31: 0.0%
A32: CRUZ BLANCA | B32: HOSPITAL UNIVERSITARIO INFANTIL SAN JOSE | C32: 12-BARRIOS UNIDOS | D32: 0 | E32: 0 | F32: 383 | R32: 383 | S32: 0.0%
A33: FAMI- CAFAM | B33: CLINICA CAFAM CALLE 51 | C33: 13-TEUSAQUILLO | D33: 0 | E33: 0 | F33: 481 | R33: 481 | S33: 0.0%
A34: PARTICULAR | B34: CLINICA EUSALUD | C34: 13-TEUSAQUILLO | D34: 0 | E34: 0 | F34: 394 | R34: 394 | S34: 0.0%
A35: PARTICULAR | B35: CLINICA FEDERMAN | C35: 13-TEUSAQUILLO | D35: 0 | E35: 0 | F35: 0 | R35: 0 | S35: 0.0% | T35: 0.0
A36: PARTICULAR | B36: CLINICA PALERMO | C36: 13-TEUSAQUILLO | D36: 0 | E36: 0 | F36: 546 | R36: 546 | S36: 0.0%
A37: SANITAS | B37: CLINICA UNIVERSITARIA COLOMBIA | C37: 13-TEUSAQUILLO | D37: 0 | E37: 0 | F37: 3 | R37: 3 | S37: 0.0%
A38: POLICIA | B38: HOSPITAL CENTRAL DE LA POLICIA | C38: 13-TEUSAQUILLO | D38: 0 | E38: 0 | F38: 89 | R38: 89 | S38: 0.0%
A39: PARTICULAR | B39: MEDICA MAGDALENA LTDA | C39: 13-TEUSAQUILLO | D39: 0 | E39: 0 | F39: 537 | R39: 537 | S39: 0.0%
A40: PARTICULAR | B40: HOSPITAL UNIVERSITARIO MAYOR | C40: 14-LOS MARTIRES | D40: 299 | E40: 25 | F40: 394 | R40: 394 | S40: 131.8%
A41: PARTICULAR | B41: SOCIEDAD DE CIRUGIA HOSPITAL SAN JOSE | C41: 14-LOS MARTIRES | D41: 0 | E41: 0 | F41: 279 | R41: 279 | S41: 0.0%
A42: 14-LOS MARTIRES | B42: USS SAMPER MENDOZA | C42: 14-LOS MARTIRES | D42: 299 | E42: 25 | F42: 0 | R42: 0 | S42: 0.0% | T42: 24.9
A43: COMPENSAR | B43: USS 1 DE MAYO | C43: 15-ANTONIO NARIÑO | D43: 0 | E43: 0 | F43: 0 | R43: 0 | S43: 0.0% | T43: 0.0
A44: FAMI- COLSB | B44: CENTRO MEDICO COLSUBSIDIO QUIROGA | C44: 18-RAFAEL URIBE URIBE | D44: 5526 | E44: 461 | F44: 0 | R44: 0 | S44: 0.0% | T44: 460.5
A45: PARTICULAR | B45: CENTRO POLICLINICO DEL OLAYA | C45: 18-RAFAEL URIBE URIBE | D45: 0 | E45: 0 | F45: 373 | R45: 373 | S45: 0.0%
A46: 19-CIUDAD BOLIVAR | B46: USS MEISSEN | C46: 19-CIUDAD BOLIVAR | D46: 0 | E46: =D46/12 -> 0 | F46: 556 | R46: 556 | S46: 0.0%
C57: Localidad | D57: Enero | E57: Febrero | F57: Marzo | G57: Abril | H57: Mayo | I57: Junio | J57: Julio | K57: Agosto | L57: Septiembre | M57: Octubre | N57: Noviembre | O57: Diciembre | P57: Total TC
C58: 01-USAQUEN | D58: =SUMIF($C$2:$C$49,$C58,F$2:F$49) -> 437 | E58: 0 | F58: 0 | G58: 0 | H58: 0 | I58: 0 | J58: 0 | K58: 0 | L58: 0 | M58: 0 | N58: 0 | O58: 0 | P58: =SUM(D58:O58) -> 437
C59: 02-CHAPINERO | D59: 600 | E59: 0 | F59: 0 | G59: 0 | H59: 0 | I59: 0 | J59: 0 | K59: 0 | L59: 0 | M59: 0 | N59: 0 | O59: 0 | P59: =SUM(D59:O59) -> 600
C60: 10-ENGATIVA | D60: 182 | E60: 0 | F60: 0 | G60: 0 | H60: 0 | I60: 0 | J60: 0 | K60: 0 | L60: 0 | M60: 0 | N60: 0 | O60: 0 | P60: 182
C61: 11-SUBA | D61: 645 | E61: 0 | F61: 0 | G61: 0 | H61: 0 | I61: 0 | J61: 0 | K61: 0 | L61: 0 | M61: 0 | N61: 0 | O61: 0 | P61: 645
C62: 12-BARRIOS UNIDOS | D62: 689 | E62: 0 | F62: 0 | G62: 0 | H62: 0 | I62: 0 | J62: 0 | K62: 0 | L62: 0 | M62: 0 | N62: 0 | O62: 0 | P62: 689
C63: 13-TEUSAQUILLO | D63: 2,050 | E63: 0 | F63: 0 | G63: 0 | H63: 0 | I63: 0 | J63: 0 | K63: 0 | L63: 0 | M63: 0 | N63: 0 | O63: 0 | P63: 2,050
C64: TOTAL TC SUBRED NORTE | D64: =SUM(D58:D63) -> 4,603 | E64: =SUM(E58:E63) -> 0 | F64: 0 | G64: 0 | H64: 0 | I64: 0 | J64: 0 | K64: 0 | L64: 0 | M64: 0 | N64: 0 | O64: 0 | P64: 4,603
C65: TOTAL INFORME SIS 151 SUBRED NORTE
C66: DIFERENCIA | D66: =+D64-D65 -> 4,603 | E66: =+E64-E65 -> 0 | F66: 0 | G66: 0 | H66: 0 | I66: 0 | J66: 0 | K66: 0 | L66: 0 | M66: 0 | N66: 0 | O66: 0 | P66: 4,603
C69: Localidad | D69: Enero | E69: Febrero | F69: Marzo | G69: Abril | H69: Mayo | I69: Junio | J69: Julio | K69: Agosto | L69: Septiembre | M69: Octubre | N69: Noviembre | O69: Diciembre | P69: Total TC
C70: 07-BOSA | D70: =SUMIF($C$2:$DC$49,$C70,F$2:F$49) -> 174 | E70: 0 | F70: 0 | G70: 0 | H70: 0 | I70: 0 | J70: 0 | K70: 0 | L70: 0 | M70: 0 | N70: 0 | O70: 0 | P70: 174
C71: 08-KENNEDY | D71: 511 | E71: 0 | F71: 0 | G71: 0 | H71: 0 | I71: 0 | J71: 0 | K71: 0 | L71: 0 | M71: 0 | N71: 0 | O71: 0 | P71: 511
C72: 09-FONTIBON | D72: 86 | E72: 0 | F72: 0 | G72: 0 | H72: 0 | I72: 0 | J72: 0 | K72: 0 | L72: 0 | M72: 0 | N72: 0 | O72: 0 | P72: 86
C73: 16-PUENTE ARANDA | D73: 0 | E73: 0 | F73: 0 | G73: 0 | H73: 0 | I73: 0 | J73: 0 | K73: 0 | L73: 0 | M73: 0 | N73: 0 | O73: 0 | P73: 0
C74: TOTAL TC SUBRED SUROCCIDENTE | D74: =SUM(D70:D73) -> 771 | E74: =SUM(E70:E73) -> 0 | F74: 0 | G74: 0 | H74: 0 | I74: 0 | J74: 0 | K74: 0 | L74: 0 | M74: 0 | N74: 0 | O74: 0 | P74: 771
C75: TOTAL INFORME SIS 151 SUBRED SUROCCIDENTE
C76: DIFERENCIA | D76: =+D74-D75 -> 771 | E76: =+E74-E75 -> 0 | F76: 0 | G76: 0 | H76: 0 | I76: 0 | J76: 0 | K76: 0 | L76: 0 | M76: 0 | N76: 0 | O76: 0 | P76: 771
C79: Localidad | D79: Enero | E79: Febrero | F79: Marzo | G79: Abril | H79: Mayo | I79: Junio | J79: Julio | K79: Agosto | L79: Septiembre | M79: Octubre | N79: Noviembre | O79: Diciembre | P79: Total TC
C80: 03-SANTA FE | D80: =SUMIF($C$2:$C$49,$C80,F$2:F$49) -> 0 | E80: 0 | F80: 0 | G80: 0 | H80: 0 | I80: 0 | J80: 0 | K80: 0 | L80: 0 | M80: 0 | N80: 0 | O80: 0 | P80: 0
C81: 04-SAN CRISTOBAL | D81: 1,069 | E81: 0 | F81: 0 | G81: 0 | H81: 0 | I81: 0 | J81: 0 | K81: 0 | L81: 0 | M81: 0 | N81: 0 | O81: 0 | P81: 1,069
C82: 14-LOS MARTIRES | D82: 673 | E82: 0 | F82: 0 | G82: 0 | H82: 0 | I82: 0 | J82: 0 | K82: 0 | L82: 0 | M82: 0 | N82: 0 | O82: 0 | P82: 673
C83: 15-ANTONIO NARIÑO | D83: 0 | E83: 0 | F83: 0 | G83: 0 | H83: 0 | I83: 0 | J83: 0 | K83: 0 | L83: 0 | M83: 0 | N83: 0 | O83: 0 | P83: 0
C84: 17-LA CANDELARIA | D84: 0 | E84: 0 | F84: 0 | G84: 0 | H84: 0 | I84: 0 | J84: 0 | K84: 0 | L84: 0 | M84: 0 | N84: 0 | O84: 0 | P84: 0
C85: 18-RAFAEL URIBE URIBE | D85: 373 | E85: 0 | F85: 0 | G85: 0 | H85: 0 | I85: 0 | J85: 0 | K85: 0 | L85: 0 | M85: 0 | N85: 0 | O85: 0 | P85: 373
C86: TOTAL TC SUBRED CENTRO ORIENTE | D86: =SUM(D80:D85) -> 2,115 | E86: =SUM(E80:E85) -> 0 | F86: 0 | G86: 0 | H86: 0 | I86: 0 | J86: 0 | K86: 0 | L86: 0 | M86: 0 | N86: 0 | O86: 0 | P86: 2,115
C87: TOTAL INFORME SIS 151 SUBRED CENTRO ORIENTE
C88: DIFERENCIA | D88: =+D86-D87 -> 2,115 | E88: =+E86-E87 -> 0 | F88: 0 | G88: 0 | H88: 0 | I88: 0 | J88: 0 | K88: 0 | L88: 0 | M88: 0 | N88: 0 | O88: 0 | P88: 2,115
C91: Localidad | D91: Enero | E91: Febrero | F91: Marzo | G91: Abril | H91: Mayo | I91: Junio | J91: Julio | K91: Agosto | L91: Septiembre | M91: Octubre | N91: Noviembre | O91: Diciembre | P91: Total TC
C92: 05-USME | D92: =SUMIF($C$2:$C$49,$C92,F$2:F$49) -> 0 | E92: 0 | F92: 0 | G92: 0 | H92: 0 | I92: 0 | J92: 0 | K92: 0 | L92: 0 | M92: 0 | N92: 0 | O92: 0 | P92: 0
C93: 06-TUNJUELITO | D93: 0 | E93: 0 | F93: 0 | G93: 0 | H93: 0 | I93: 0 | J93: 0 | K93: 0 | L93: 0 | M93: 0 | N93: 0 | O93: 0 | P93: 0
C94: 19-CIUDAD BOLIVAR | D94: 556 | E94: 0 | F94: 0 | G94: 0 | H94: 0 | I94: 0 | J94: 0 | K94: 0 | L94: 0 | M94: 0 | N94: 0 | O94: 0 | P94: 556
C95: 20-SUMAPAZ | D95: 0 | E95: 0 | F95: 0 | G95: 0 | H95: 0 | I95: 0 | J95: 0 | K95: 0 | L95: 0 | M95: 0 | N95: 0 | O95: 0 | P95: =SUM(D95:O95) -> 0
C96: TOTAL TC SUBRED SUR | D96: =SUM(D92:D95) -> 556 | E96: =SUM(E92:E95) -> 0 | F96: 0 | G96: 0 | H96: 0 | I96: 0 | J96: 0 | K96: 0 | L96: 0 | M96: 0 | N96: 0 | O96: 0 | P96: 556
C97: TOTAL INFORME SIS 151 SUBRED SUR
C98: DIFERENCIA | D98: =+D96-D97 -> 556 | E98: =+E96-E97 -> 0 | F98: 0 | G98: 0 | H98: 0 | I98: 0 | J98: 0 | K98: 0 | L98: 0 | M98: 0 | N98: 0 | O98: 0 | P98: 556
C102: TOTAL LOCALIDADES | D102: =+D64+D74+D86+D96 -> 8,045 | E102: 0 | F102: 0 | G102: 0 | H102: 0 | I102: 0 | J102: 0 | K102: 0 | L102: 0 | M102: 0 | N102: 0 | O102: 0 | P102: =SUM(P58:P101) -> 24,135
D104: =SUM(F2:F49) -> 8045 | E104: =SUM(G2:G49) -> 0 | F104: 0 | G104: 0 | H104: 0 | I104: 0 | J104: 0 | K104: 0 | L104: 0 | M104: 0 | N104: 0 | O104: 0

Sheet PENTA1
A1: EAPB | B1: EPS O ESE | C1: IPS | D1: Localidad | E1: Meta Anual Menor de 1 Año | F1: Meta Mensual | G1: Enero | H1: Febrero | I1: Marzo | J1: Abril | K1: Mayo | L1: Junio | M1: Julio | N1: Agosto | O1: Septiembre | P1: Octubre | Q1: Noviembre | R1: Diciembre | S1: Total | T1: % Cobertura | U1: Deficit
A2: CAPITAL SALUD | B2: CAPITAL SALUD | C2: UPA SAN CRISTOBAL | D2: 01-USAQUEN | E2: 124 | F2: =+E2/12 -> 10 | G2: 7 | S2: =SUM(G2:R2) -> 7 | T2: =IF(E2=0,0,+S2/E2) -> 5.6% | U2: =IF(COUNT(G2:R2)*(E2/12)-S2<0,"",COUNT(G2:R2)*(E2/12)-S2) -> 3
A3: CAPITAL SALUD | B3: CAPITAL SALUD | C3: UPA USAQUEN | D3: 01-USAQUEN | E3: 10 | F3: =+E3/12 -> 1 | G3: 0 | S3: =SUM(G3:R3) -> 0 | T3: 0.0% | U3: 1
A4: CAPITAL SALUD | B4: CAPITAL SALUD | C4: UPA ORQUIDEAS | D4: 01-USAQUEN | E4: 11 | F4: 1 | G4: 1 | S4: 1 | T4: 9.1%
A5: CAPITAL SALUD | B5: CAPITAL SALUD | C5: UPA CODITO | D5: 01-USAQUEN | E5: 107 | F5: 9 | G5: 7 | S5: 7 | T5: 6.5% | U5: 2
A6: CAPITAL SALUD | B6: CAPITAL SALUD | C6: CAMI VERBENAL | D6: 01-USAQUEN | E6: 87 | F6: 7 | G6: 10 | S6: 10 | T6: 11.5%
A7: CAPITAL SALUD | B7: CAPITAL SALUD | C7: HOSPITAL SIMON BOLIVAR | D7: 01-USAQUEN | E7: 36 | F7: 3 | G7: 22 | S7: 22 | T7: 61.1%
A8: 01-USAQUEN | B8: 01-USAQUEN | C8: EXTRAMURAL USAQUEN | D8: 01-USAQUEN | E8: 0 | F8: 0 | G8: 5 | S8: 5 | T8: 0.0%
A9: ALIANSALUD | B9: ALIANSALUD | C9: CENTRO MEDICO COLMEDICA SANTA BARBARA | D9: 01-USAQUEN | E9: 580 | F9: 48 | G9: 63 | S9: 63 | T9: 10.9%
A10: COMPENSAR | B10: COMPENSAR | C10: USS CALLE 134 | D10: 01-USAQUEN | E10: 372 | F10: 31 | G10: 17 | S10: 17 | T10: 4.6% | U10: 14
A11: COMPENSAR | B11: COMPENSAR | C11: USS CALLE 145 | D11: 01-USAQUEN | E11: 173 | F11: 14 | G11: 11 | S11: 11 | T11: 6.4% | U11: 3
A12: COMPENSAR | B12: COMPENSAR | C12: JAVESALUD TOBERIN | D12: 01-USAQUEN | E12: 372 | F12: 31 | G12: 6 | S12: 6 | T12: 1.6% | U12: 25
A13: COOMEVA | B13: COOMEVA | C13: SINERGIA UNIDAD INTEGRAL EN SALUD | D13: 01-USAQUEN | E13: 44 | F13: 4 | G13: 5 | S13: 5 | T13: 11.4%
A14: FAMISANAR | B14: FAMI- COLSB | C14: CENTRO MEDICO COLSUBSIDIO USAQUEN | D14: 01-USAQUEN | E14: 298 | F14: 25 | G14: 38 | S14: 38 | T14: 12.8%
A15: MILITAR | B15: MILITAR | C15: DISPENSARIO MEDICO CANTON NORTE | D15: 01-USAQUEN | E15: 205 | F15: 17 | G15: 8 | S15: 8 | T15: 3.9% | U15: 9
A16: NUEVA EPS | B16: NUEVA EPS | C16: IPS VIVA 1A SEDE TOBERIN | D16: 01-USAQUEN | E16: 147 | F16: 12 | G16: 9 | S16: 9 | T16: 6.1% | U16: 3
A17: NUEVA EPS | B17: NUEVA EPS | C17: CAFAM GRANADA HILLS | D17: 01-USAQUEN | E17: 44 | F17: 4 | G17: 2 | S17: 2 | T17: 4.5% | U17: 2
A18: SANITAS | B18: SANITAS | C18: UAP SANITAS TOBERIN | D18: 01-USAQUEN | E18: 511 | F18: 43 | G18: 26 | S18: 26 | T18: 5.1% | U18: 17
A19: SANITAS | B19: SANITAS | C19: MEDIKA IPS SANITAS UAP USAQUEN | D19: 01-USAQUEN | E19: 188 | F19: 16 | G19: 4 | S19: 4 | T19: 2.1% | U19: 12
A20: SANITAS | B20: SANITAS | C20: UAP SANTA BARBARA | D20: 01-USAQUEN | E20: 796 | F20: 66 | G20: 92 | S20: 92 | T20: 11.6%
A21: SANITAS | B21: SANITAS | C21: SANITAS BANCO DE LA REPUBLICA | D21: 01-USAQUEN | E21: 0 | F21: 0 | G21: 3 | S21: 3 | T21: 0.0%
A22: SALUD TOTAL | B22: SALUD TOTAL | C22: VIRREY SOLIS TOBERÍN | D22: 01-USAQUEN | E22: 384 | F22: 32 | G22: 24 | S22: 24 | T22: 6.3% | U22: 8
A23: SURA | B23: SURA | C23: IPS JAVESALUD SANTA BEATRIZ | D23: 01-USAQUEN | E23: 355 | F23: 30 | G23: 20 | S23: 20 | T23: 5.6% | U23: 10
A24: ECOPETROL | B24: ECOPETROL | C24: IPS CLINICOS PALATINO | D24: 01-USAQUEN | E24: 87 | F24: 7 | G24: 6 | S24: 6 | T24: 6.9% | U24: 1
A25: PARTICULAR | B25: PARTICULAR | C25: CLINICA PEDIATRICA COLSANITAS | D25: 01-USAQUEN | E25: 830 | F25: 69 | G25: 58 | S25: 58 | T25: 7.0% | U25: 11
A26: PARTICULAR | B26: PARTICULAR | C26: CENTRO MEDICO COLSANITAS LA CALLEJA | D26: 01-USAQUEN | E26: 120 | F26: 10 | G26: 5 | S26: 5 | T26: 4.2% | U26: 5
A27: PARTICULAR | B27: PARTICULAR | C27: CENTRO MEDICO COLSANITAS 108 | D27: 01-USAQUEN | E27: 40 | F27: 3 | G27: 5 | S27: 5 | T27: 12.5%
A28: PARTICULAR | B28: PARTICULAR | C28: CENTRO MEDICO COLSANITAS SANTA ANA | D28: 01-USAQUEN | E28: 4 | F28: 0 | G28: 1 | S28: 1 | T28: 25.0%
A29: PARTICULAR | B29: PARTICULAR | C29: FUNDACIÓN CARDIO INFANTIL | D29: 01-USAQUEN | E29: 0 | F29: 0 | G29: 7 | S29: 7 | T29: 0.0%
A30: PARTICULAR | B30: PARTICULAR | C30: ENFASO USAQUEN | D30: 01-USAQUEN | E30: 0 | F30: 0 | G30: 9 | S30: 9 | T30: 0.0%
A31: PARTICULAR | B31: PARTICULAR | C31: UNIDAD DE VACUNACIÓN INTERNACIONAL | D31: 01-USAQUEN | E31: 0 | F31: 0 | G31: 6 | S31: 6 | T31: 0.0%
A32: PARTICULAR | B32: PARTICULAR | C32: INMUNOLOGÍA Y DIAGNÓSTICO ESPECIALIZADO LTDA. | D32: 01-USAQUEN | E32: 0 | F32: 0 | G32: 2 | S32: 2 | T32: 0.0%
A33: PARTICULAR | B33: PARTICULAR | C33: PROTEGER HEALHT CARE | D33: 01-USAQUEN | E33: 0 | F33: 0 | G33: 2 | S33: 2 | T33: 0.0%
A34: PARTICULAR | B34: PARTICULAR | C34: FUNDACION SANTA FE DE BOGOTA | D34: 01-USAQUEN | E34: 0 | F34: 0 | G34: 4 | S34: 4 | T34: 0.0%
A35: PARTICULAR | B35: PARTICULAR | C35: IPS CRUZ ROJA SEDE UNICENTRO | D35: 01-USAQUEN | E35: 0 | F35: 0 | G35: 0 | S35: 0 | T35: 0.0% | U35: 0
A36: PARTICULAR | B36: PARTICULAR | C36: IPS CRUZ ROJA SAMU CALLE 145 | D36: 01-USAQUEN | E36: 0 | F36: 0 | G36: 0 | S36: 0 | T36: 0.0% | U36: 0
A37: PEDIATRAS | B37: PEDIATRAS | C37: DR. ALEJANDRO LÓPEZ | D37: 01-USAQUEN | E37: 0 | F37: 0 | G37: 0 | S37: 0 | T37: 0.0% | U37: 0
A38: PEDIATRAS | B38: PEDIATRAS | C38: DR. CARLOS NEFTALI TORRES | D38: 01-USAQUEN | E38: 0 | F38: 0 | G38: 0 | S38: 0 | T38: 0.0% | U38: 0
A39: PEDIATRAS | B39: PEDIATRAS | C39: DR. FRANCISCO NUÑEZ | D39: 01-USAQUEN | E39: 0 | F39: 0 | G39: 4 | S39: 4 | T39: 0.0%
A40: PEDIATRAS | B40: PEDIATRAS | C40: DR. FERNANDO GOMEZ | D40: 01-USAQUEN | E40: 0 | F40: 0 | G40: 0 | S40: 0 | T40: 0.0% | U40: 0
A41: PEDIATRAS | B41: PEDIATRAS | C41: DR. FERNANDO ZARATE MORENO | D41: 01-USAQUEN | E41: 0 | F41: 0 | G41: 1 | S41: 1 | T41: 0.0%
A42: PEDIATRAS | B42: PEDIATRAS | C42: DR. GONZALO GARCIA | D42: 01-USAQUEN | E42: 0 | F42: 0 | G42: 1 | S42: 1 | T42: 0.0%
A43: PEDIATRAS | B43: PEDIATRAS | C43: DR. GUSTAVO MORALES | D43: 01-USAQUEN | E43: 0 | F43: 0 | G43: 2 | S43: 2 | T43: 0.0%
A44: PEDIATRAS | B44: PEDIATRAS | C44: DR. JAIME OSPINA | D44: 01-USAQUEN | E44: 0 | F44: 0 | G44: 1 | S44: 1 | T44: 0.0%
A45: PEDIATRAS | B45: PEDIATRAS | C45: DR. JORGE URIBE | D45: 01-USAQUEN | E45: 0 | F45: 0 | G45: 0 | S45: 0 | T45: 0.0% | U45: 0
A46: PEDIATRAS | B46: PEDIATRAS | C46: DR. JUAN LUIS FIGUEROA | D46: 01-USAQUEN | E46: 0 | F46: 0 | G46: 2 | S46: 2 | T46: 0.0%
A47: PEDIATRAS | B47: PEDIATRAS | C47: DR. LUIS AUGUSTO PERNA | D47: 01-USAQUEN | E47: 0 | F47: 0 | G47: 4 | S47: 4 | T47: 0.0%
A48: PEDIATRAS | B48: PEDIATRAS | C48: DR. LIBARDO ELI TRIANA | D48: 01-USAQUEN | E48: 0 | F48: 0 | G48: 0 | S48: 0 | T48: 0.0% | U48: 0
A49: PEDIATRAS | B49: PEDIATRAS | C49: DR. OSWALDO MERCADO HOYOS | D49: 01-USAQUEN | E49: 0 | F49: 0 | G49: 2 | S49: 2 | T49: 0.0%
A50: PEDIATRAS | B50: PEDIATRAS | C50: DR. ROBERTO BENIRO | D50: 01-USAQUEN | E50: 0 | F50: 0 | G50: 0 | S50: 0 | T50: 0.0% | U50: 0
A51: PEDIATRAS | B51: PEDIATRAS | C51: DR. SERGIO ISAZA | D51: 01-USAQUEN | E51: 0 | F51: 0 | G51: 0 | S51: 0 | T51: 0.0% | U51: 0
A52: PEDIATRAS | B52: PEDIATRAS | C52: DR. SANTIAGO UCROS | D52: 01-USAQUEN | E52: 0 | F52: 0 | G52: 0 | S52: 0 | T52: 0.0% | U52: 0
A53: PEDIATRAS | B53: PEDIATRAS | C53: DR. GERMAN SILVA | D53: 01-USAQUEN | E53: 0 | F53: 0 | G53: 0 | S53: 0 | T53: 0.0% | U53: 0
A54: PEDIATRAS | B54: PEDIATRAS | C54: DR. DANIEL ABRIL | D54: 01-USAQUEN | E54: 0 | F54: 0 | G54: 0 | S54: 0 | T54: 0.0% | U54: 0
A55: PEDIATRAS | B55: PEDIATRAS | C55: DR. CARLOS EDUARDO OLMOS | D55: 01-USAQUEN | E55: 0 | F55: 0 | G55: 0 | S55: 0 | T55: 0.0% | U55: 0
A56: PEDIATRAS | B56: PEDIATRAS | C56: DR. EDGARDO CHATMAN | D56: 01-USAQUEN | E56: 0 | F56: 0 | G56: 0 | S56: 0 | T56: 0.0% | U56: 0
A57: PEDIATRAS | B57: PEDIATRAS | C57: DR. JORGE FLOREZ OTERO | D57: 01-USAQUEN | E57: 0 | F57: 0 | G57: 0 | S57: 0 | T57: 0.0% | U57: 0
A58: PEDIATRAS | B58: PEDIATRAS | C58: DRA. ALEJANDRA MARIA VALENCIA | D58: 01-USAQUEN | E58: 0 | F58: 0 | G58: 0 | S58: 0 | T58: 0.0% | U58: 0
A59: PEDIATRAS | B59: PEDIATRAS | C59: DRA. ANA MARIA GOYENECHE | D59: 01-USAQUEN | E59: 0 | F59: 0 | G59: 0 | S59: 0 | T59: 0.0% | U59: 0
A60: PEDIATRAS | B60: PEDIATRAS | C60: DRA. JIMENA VARELA | D60: 01-USAQUEN | E60: 0 | F60: 0 | G60: 0 | S60: 0 | T60: 0.0% | U60: 0
A61: PEDIATRAS | B61: PEDIATRAS | C61: DRA. LIA SAN MIGUEL | D61: 01-USAQUEN | E61: 0 | F61: 0 | G61: 0 | S61: 0 | T61: 0.0% | U61: 0
A62: PEDIATRAS | B62: PEDIATRAS | C62: DRA. LIBIA SEGURA | D62: 01-USAQUEN | E62: 0 | F62: 0 | G62: 2 | S62: 2 | T62: 0.0%
A63: PEDIATRAS | B63: PEDIATRAS | C63: DRA. MARÍA JOSÉ PEDRAZA | D63: 01-USAQUEN | E63: 0 | F63: 0 | G63: 0 | S63: 0 | T63: 0.0% | U63: 0
A64: PEDIATRAS | B64: PEDIATRAS | C64: DRA. MARTHA LUCIA SANCHEZ | D64: 01-USAQUEN | E64: 0 | F64: 0 | G64: 0 | S64: 0 | T64: 0.0% | U64: 0
A65: PEDIATRAS | B65: PEDIATRAS | C65: DRA. OLGA LUCÍA SÁNCHEZ | D65: 01-USAQUEN | E65: 0 | F65: 0 | G65: 0 | S65: 0 | T65: 0.0% | U65: 0
A66: PEDIATRAS | B66: PEDIATRAS | C66: DRA. SANDRA BELTRAN | D66: 01-USAQUEN | E66: 0 | F66: 0 | G66: 1 | S66: 1 | T66: =IF(E66=0,0,+S66/E66) -> 0.0% | U66: =IF(COUNT(G66:R66)*(E66/12)-S66<0,"",COUNT(G66:R66)*(E66/12)-S66) -> 
A67: PEDIATRAS | B67: PEDIATRAS | C67: DRA. IVANA CABRERA | D67: 01-USAQUEN | E67: 0 | F67: =+E67/12 -> 0 | G67: 0 | S67: =SUM(G67:R67) -> 0 | T67: 0.0% | U67: 0
A68: PEDIATRAS | B68: PEDIATRAS | C68: DRA. NAYITA ALARCON | D68: 01-USAQUEN | E68: 0 | F68: 0 | G68: 0 | S68: 0 | T68: 0.0% | U68: 0
A69: PEDIATRAS | B69: PEDIATRAS | C69: DRA. ELIZABETH GARCIA | D69: 01-USAQUEN | E69: 0 | F69: 0 | G69: 0 | S69: 0 | T69: 0.0% | U69: 0
A70: PEDIATRAS | B70: PEDIATRAS | C70: DRA. BERTHA CALDERON DE RAMOS | D70: 01-USAQUEN | E70: 0 | F70: 0 | G70: 0 | S70: 0 | T70: 0.0% | U70: 0
A71: PEDIATRAS | B71: PEDIATRAS | C71: DRA. MIRYAM CORREA | D71: 01-USAQUEN | E71: 0 | F71: 0 | G71: 0 | S71: 0 | T71: 0.0% | U71: 0
A72: 01-USAQUEN | B72: UNICAJAS | C72: UPA SAN CRISTOBAL | D72: 01-USAQUEN | E72: 6 | F72: 1 | G72: 1 | S72: 1 | T72: 16.7%
A73: UNICAJAS | B73: UNICAJAS | C73: UPA USAQUEN | D73: 01-USAQUEN | E73: 9 | F73: 1 | G73: 0 | S73: 0 | T73: 0.0% | U73: 1
A74: UNICAJAS | B74: UNICAJAS | C74: UPA ORQUIDEAS | D74: 01-USAQUEN | E74: 6 | F74: 1 | G74: 0 | S74: 0 | T74: 0.0% | U74: 1
A75: UNICAJAS | B75: UNICAJAS | C75: UPA CODITO | D75: 01-USAQUEN | E75: 5 | F75: 0 | G75: 0 | S75: 0 | T75: 0.0% | U75: 0
A76: UNICAJAS | B76: UNICAJAS | C76: CAMI VERBENAL | D76: 01-USAQUEN | E76: 6 | F76: 1 | G76: 0 | S76: 0 | T76: 0.0% | U76: 1
A77: 01-USAQUEN | B77: UNICAJAS | C77: HOSPITAL SIMON BOLIVAR | D77: 01-USAQUEN | E77: 6 | F77: 1 | G77: 1 | S77: 1 | T77: 16.7%
A78: 01-USAQUEN | B78: OTROS | C78: UPA SAN CRISTOBAL | D78: 01-USAQUEN | E78: 300 | F78: 25 | G78: 1 | S78: 1 | T78: 0.3% | U78: 24
A79: 01-USAQUEN | B79: OTROS | C79: UPA USAQUEN | D79: 01-USAQUEN | E79: 100 | F79: 8 | G79: 0 | S79: 0 | T79: 0.0% | U79: 8
A80: 01-USAQUEN | B80: OTROS | C80: UPA ORQUIDEAS | D80: 01-USAQUEN | E80: 120 | F80: 10 | G80: 1 | S80: 1 | T80: 0.8% | U80: 9
A81: 01-USAQUEN | B81: OTROS | C81: UPA CODITO | D81: 01-USAQUEN | E81: 218 | F81: 18 | G81: 4 | S81: 4 | T81: 1.8% | U81: 14
A82: 01-USAQUEN | B82: OTROS | C82: CAMI VERBENAL | D82: 01-USAQUEN | E82: 309 | F82: 26 | G82: 4 | S82: 4 | T82: 1.3% | U82: 22
A83: 01-USAQUEN | B83: OTROS | C83: HOSPITAL SIMON BOLIVAR | D83: 01-USAQUEN | E83: 480 | F83: 40 | G83: 8 | S83: 8 | T83: 1.7% | U83: 32
A84: 01-USAQUEN | B84: DEMAS EAPB | C84: UPA SAN CRISTOBAL | D84: 01-USAQUEN | E84: 0 | F84: 0 | G84: 10 | S84: 10 | T84: 0.0%
A85: 01-USAQUEN | B85: DEMAS EAPB | C85: UPA USAQUEN | D85: 01-USAQUEN | E85: 0 | F85: 0 | G85: 2 | S85: 2 | T85: 0.0%
A86: 01-USAQUEN | B86: DEMAS EAPB | C86: UPA ORQUIDEAS | D86: 01-USAQUEN | E86: 0 | F86: 0 | G86: 2 | S86: 2 | T86: 0.0%
A87: 01-USAQUEN | B87: DEMAS EAPB | C87: UPA CODITO | D87: 01-USAQUEN | E87: 0 | F87: 0 | G87: 7 | S87: 7 | T87: 0.0%
A88: 01-USAQUEN | B88: DEMAS EAPB | C88: CAMI VERBENAL | D88: 01-USAQUEN | E88: 0 | F88: 0 | G88: 4 | S88: 4 | T88: 0.0%
A89: 01-USAQUEN | B89: DEMAS EAPB | C89: HOSPITAL SIMON BOLIVAR | D89: 01-USAQUEN | E89: 0 | F89: 0 | G89: 16 | S89: 16 | T89: 0.0%
A90: MEDIMAS | B90: MEDIMAS | C90: Corvesalud S.A.S - I P S Chico | D90: 01-USAQUEN | E90: 320 | F90: 27 | G90: 5 | S90: 5 | T90: 1.6% | U90: 22
A91: FAMISANAR | B91: COLSUBSIDIO | C91: Sura PAC Santa Bárbara | D91: 01-USAQUEN | E91: 0 | F91: 0 | S91: 0 | T91: 0.0% | U91: 0
A92: CAPITAL SALUD | B92: CAPITAL SALUD | C92: UPA SAN LUIS | D92: 02-CHAPINERO | E92: 12 | F92: 1 | G92: 4 | S92: 4 | T92: 33.3%
A93: 02-CHAPINERO | B93: 02-CHAPINERO | C93: EXTRAMURAL CHAPINERO | D93: 02-CHAPINERO | E93: 0 | F93: 0 | G93: 1 | S93: 1 | T93: 0.0%
A94: COMPENSAR | B94: COMPENSAR | C94: USS CALLE 42 | D94: 02-CHAPINERO | E94: 612 | F94: 51 | G94: 29 | S94: 29 | T94: 4.7% | U94: 22
A95: COMPENSAR | B95: COMPENSAR | C95: USS CALLE 67 | D95: 02-CHAPINERO | E95: 0 | F95: 0 | G95: 0 | S95: 0 | T95: 0.0% | U95: 0
A96: COMPENSAR | B96: COMPENSAR | C96: USS CALLE 94 | D96: 02-CHAPINERO | E96: 369 | F96: 31 | G96: 35 | S96: 35 | T96: 9.5%
A97: COMPENSAR | B97: COMPENSAR | C97: VIVA 1A IPS CHAPINERO | D97: 02-CHAPINERO | E97: 73 | F97: 6 | G97: 4 | S97: 4 | T97: 5.5% | U97: 2
A98: COOMEVA | B98: COOMEVA | C98: SINERGIA UNIDAD BASICA LOURDES | D98: 02-CHAPINERO | E98: 217 | F98: 18 | G98: 9 | S98: 9 | T98: 4.1% | U98: 9
A99: FAMISANAR | B99: FAMI- CAFAM | C99: CENTRO DE ATENCION EN SALUD CAFAM CALLE 48 | D99: 02-CHAPINERO | E99: 1050 | F99: 88 | G99: 31 | S99: 31 | T99: 3.0% | U99: 57
A100: FAMISANAR | B100: FAMI- CAFAM | C100: CENTRO DE ATENCION EN SALUD CAFAM CALLE 90 | D100: 02-CHAPINERO | E100: 200 | F100: 17 | G100: 11 | S100: 11 | T100: 5.5% | U100: 6
A101: FAMISANAR | B101: FAMI- COLSB | C101: CLINICA COLSUBSIDIO EL LAGO | D101: 02-CHAPINERO | E101: 392 | F101: 33 | G101: 10 | S101: 10 | T101: 2.6% | U101: 23
A102: MILITAR | B102: MILITAR | C102: HOSPITAL MILITAR CENTRAL | D102: 02-CHAPINERO | E102: 70 | F102: 6 | G102: 10 | S102: 10 | T102: 14.3%
A103: POLICIA | B103: POLICIA | C103: POLICIA NACIONAL ESPAM CHAPINERO | D103: 02-CHAPINERO | E103: 117 | F103: 10 | G103: 4 | S103: 4 | T103: 3.4% | U103: 6
A104: NUEVA EPS | B104: NUEVA EPS | C104: IPS VIVA 1A SEDE MARLY | D104: 02-CHAPINERO | E104: 131 | F104: 11 | G104: 9 | S104: 9 | T104: 6.9% | U104: 2
A105: SANITAS | B105: SANITAS | C105: EPS SANITAS CENTRO MEDICO TEUSAQUILLO | D105: 02-CHAPINERO | E105: 579 | F105: 48 | G105: 28 | S105: 28 | T105: 4.8% | U105: 20
A106: SALUD TOTAL | B106: SALUD TOTAL | C106: VIRREY SOLIS CHAPINERO | D106: 02-CHAPINERO | E106: 337 | F106: 28 | G106: 16 | S106: 16 | T106: 4.7% | U106: 12
A107: SURA | B107: SURA | C107: PUNTO DE SALUD CHAPINERO | D107: 02-CHAPINERO | E107: 237 | F107: 20 | G107: 13 | S107: 13 | T107: 5.5% | U107: 7
A108: SURA | B108: SURA | C108: SALUD SURA | D108: 02-CHAPINERO | E108: 454 | F108: 38 | G108: 47 | S108: 47 | T108: 10.4%
A109: PARTICULAR | B109: PARTICULAR | C109: CENTRO MEDICO COLSANITAS CALLE 96 | D109: 02-CHAPINERO | E109: 24 | F109: 2 | G109: 2 | S109: 2 | T109: 8.3% | U109: 0
A110: PARTICULAR | B110: PARTICULAR | C110: CENTRO DE ESPECIALISTAS MEDICOS AXA COLPATRIA | D110: 02-CHAPINERO | E110: 0 | F110: 0 | G110: 5 | S110: 5 | T110: 0.0%
A111: PARTICULAR | B111: PARTICULAR | C111: CLINICA DE LA MUJER | D111: 02-CHAPINERO | E111: 0 | F111: 0 | G111: 46 | S111: 46 | T111: 0.0%
A112: PARTICULAR | B112: PARTICULAR | C112: VACUNARTE IPS | D112: 02-CHAPINERO | E112: 0 | F112: 0 | G112: 0 | S112: 0 | T112: 0.0% | U112: 0
A113: PARTICULAR | B113: PARTICULAR | C113: UNIMARLY | D113: 02-CHAPINERO | E113: 0 | F113: 0 | G113: 0 | S113: 0 | T113: 0.0% | U113: 0
A114: PARTICULAR | B114: PARTICULAR | C114: HOSPITAL SAN IGNACIO | D114: 02-CHAPINERO | E114: 0 | F114: 0 | G114: 13 | S114: 13 | T114: 0.0%
A115: PARTICULAR | B115: PARTICULAR | C115: PROGRAMA MADRE CANGURO HOSPITAL SAN IGNACIO | D115: 02-CHAPINERO | E115: 0 | F115: 0 | G115: 92 | S115: 92 | T115: 0.0%
A116: PARTICULAR | B116: PARTICULAR | C116: IPS AVENIR | D116: 02-CHAPINERO | E116: 0 | F116: 0 | G116: 0 | S116: 0 | T116: 0.0% | U116: 0
A117: PARTICULAR | B117: PARTICULAR | C117: IPS INMUNOLOGIA Y DIAGNOSTICO ESPECIALIZADO | D117: 02-CHAPINERO | E117: 0 | F117: 0 | G117: 0 | S117: 0 | T117: 0.0% | U117: 0
A118: PARTICULAR | B118: PARTICULAR | C118: ASOCIACION PEDIATRICA DE LOS ANDES | D118: 02-CHAPINERO | E118: 0 | F118: 0 | G118: 1 | S118: 1 | T118: 0.0%
A119: PARTICULAR | B119: PARTICULAR | C119: CRUZ ROJA SEDE ANDINO | D119: 02-CHAPINERO | E119: 0 | F119: 0 | G119: 0 | S119: 0 | T119: 0.0% | U119: 0
A120: PARTICULAR | B120: PARTICULAR | C120: CENTRO MEDICO SANTA MONICA | D120: 02-CHAPINERO | E120: 0 | F120: 0 | G120: 0 | S120: 0 | T120: 0.0% | U120: 0
A121: PEDIATRAS | B121: PEDIATRAS | C121: DR. JUAN OSCAR TAMAYO | D121: 02-CHAPINERO | E121: 0 | F121: 0 | G121: 0 | S121: 0 | T121: 0.0% | U121: 0
A122: PEDIATRAS | B122: PEDIATRAS | C122: DR. ROBERTO SUAREZ | D122: 02-CHAPINERO | E122: 0 | F122: 0 | G122: 0 | S122: 0 | T122: 0.0% | U122: 0
A123: PEDIATRAS | B123: PEDIATRAS | C123: DR. WILLIAM RICARDO CABRA | D123: 02-CHAPINERO | E123: 0 | F123: 0 | G123: 3 | S123: 3 | T123: 0.0%
A124: PEDIATRAS | B124: PEDIATRAS | C124: DR. EDGAR CASTRO | D124: 02-CHAPINERO | E124: 0 | F124: 0 | G124: 5 | S124: 5 | T124: 0.0%
A125: PEDIATRAS | B125: PEDIATRAS | C125: DR. PABLO KRAUSS | D125: 02-CHAPINERO | E125: 0 | F125: 0 | G125: 3 | S125: 3 | T125: 0.0%
A126: PEDIATRAS | B126: PEDIATRAS | C126: DR. HERNAN ROBLES | D126: 02-CHAPINERO | E126: 0 | F126: 0 | G126: 4 | S126: 4 | T126: 0.0%
A127: PEDIATRAS | B127: PEDIATRAS | C127: DR. RAFAEL GAMBOA CASABLANCA | D127: 02-CHAPINERO | E127: 0 | F127: 0 | G127: 13 | S127: 13 | T127: 0.0%
A128: PEDIATRAS | B128: PEDIATRAS | C128: DR. JAVIER MEJIA | D128: 02-CHAPINERO | E128: 0 | F128: 0 | G128: 2 | S128: 2 | T128: 0.0%
A129: PEDIATRAS | B129: PEDIATRAS | C129: DR. CARLOS CORTAZAR | D129: 02-CHAPINERO | E129: 0 | F129: 0 | G129: 0 | S129: 0 | T129: 0.0% | U129: 0
A130: PEDIATRAS | B130: PEDIATRAS | C130: DR. NELSON PARDO | D130: 02-CHAPINERO | E130: 0 | F130: 0 | G130: 2 | S130: 2 | T130: =IF(E130=0,0,+S130/E130) -> 0.0% | U130: =IF(COUNT(G130:R130)*(E130/12)-S130<0,"",COUNT(G130:R130)*(E130/12)-S130) -> 
A131: PEDIATRAS | B131: PEDIATRAS | C131: DR. ALVARO JACOME | D131: 02-CHAPINERO | E131: 0 | F131: =+E131/12 -> 0 | G131: 3 | S131: =SUM(G131:R131) -> 3 | T131: 0.0%
A132: PEDIATRAS | B132: PEDIATRAS | C132: DR. SILVIO COPO | D132: 02-CHAPINERO | E132: 0 | F132: 0 | G132: 0 | S132: 0 | T132: 0.0% | U132: 0
A133: PEDIATRAS | B133: PEDIATRAS | C133: DR. HECTOR FERNANDO MENDOZA | D133: 02-CHAPINERO | E133: 0 | F133: 0 | G133: 0 | S133: 0 | T133: 0.0% | U133: 0
A134: PEDIATRAS | B134: PEDIATRAS | C134: DR. DIMITRIOS | D134: 02-CHAPINERO | E134: 0 | F134: 0 | G134: 0 | S134: 0 | T134: 0.0% | U134: 0
A135: PEDIATRAS | B135: PEDIATRAS | C135: DR. ALVARO MARIÑO | D135: 02-CHAPINERO | E135: 0 | F135: 0 | G135: 0 | S135: 0 | T135: 0.0% | U135: 0
A136: PEDIATRAS | B136: PEDIATRAS | C136: DR. ANDRES VARGAS | D136: 02-CHAPINERO | E136: 0 | F136: 0 | G136: 2 | S136: 2 | T136: 0.0%
A137: PEDIATRAS | B137: PEDIATRAS | C137: DR. JORGE CAMILO LUNA | D137: 02-CHAPINERO | E137: 0 | F137: 0 | G137: 1 | S137: 1 | T137: 0.0%
A138: PEDIATRAS | B138: PEDIATRAS | C138: DR. BERNARDO HUERTAS | D138: 02-CHAPINERO | E138: 0 | F138: 0 | G138: 6 | S138: 6 | T138: 0.0%
A139: PEDIATRAS | B139: PEDIATRAS | C139: DR. CARLOS M CASTILLO | D139: 02-CHAPINERO | E139: 0 | F139: 0 | G139: 0 | S139: 0 | T139: 0.0% | U139: 0
A140: PEDIATRAS | B140: PEDIATRAS | C140: DR. HEINZ OTTO PFALZGRAF | D140: 02-CHAPINERO | E140: 0 | F140: 0 | G140: 0 | S140: 0 | T140: 0.0% | U140: 0
A141: PEDIATRAS | B141: PEDIATRAS | C141: DR. GONZALEZ BALLESTEROS | D141: 02-CHAPINERO | E141: 0 | F141: 0 | G141: 0 | S141: 0 | T141: 0.0% | U141: 0
A142: PEDIATRAS | B142: PEDIATRAS | C142: DR. NORBERTO SALAMANCA | D142: 02-CHAPINERO | E142: 0 | F142: 0 | G142: 0 | S142: 0 | T142: 0.0% | U142: 0
A143: PEDIATRAS | B143: PEDIATRAS | C143: DR. CAMILO ENRIQUE SOTOMAYOR | D143: 02-CHAPINERO | E143: 0 | F143: 0 | G143: 0 | S143: 0 | T143: 0.0% | U143: 0
A144: PEDIATRAS | B144: PEDIATRAS | C144: DR. SANTIAGO RUEDA SAIZ | D144: 02-CHAPINERO | E144: 0 | F144: 0 | G144: 0 | S144: 0 | T144: 0.0% | U144: 0
A145: PEDIATRAS | B145: PEDIATRAS | C145: DR. HENRY HERNANDO SANCHEZ ESCOBAR | D145: 02-CHAPINERO | E145: 0 | F145: 0 | G145: 1 | S145: 1 | T145: 0.0%
A146: PEDIATRAS | B146: PEDIATRAS | C146: DR. RUBEN DARIO TAMAYO | D146: 02-CHAPINERO | E146: 0 | F146: 0 | G146: 2 | S146: 2 | T146: 0.0%
A147: PEDIATRAS | B147: PEDIATRAS | C147: DR. JAIME MAURICIO MATALLANA | D147: 02-CHAPINERO | E147: 0 | F147: 0 | G147: 6 | S147: 6 | T147: 0.0%
A148: PEDIATRAS | B148: PEDIATRAS | C148: DR. RODRIGO GARCIA | D148: 02-CHAPINERO | E148: 0 | F148: 0 | G148: 0 | S148: 0 | T148: 0.0% | U148: 0
A149: PEDIATRAS | B149: PEDIATRAS | C149: DR. FELIPE ROBAYO | D149: 02-CHAPINERO | E149: 0 | F149: 0 | G149: 0 | S149: 0 | T149: 0.0% | U149: 0
A150: PEDIATRAS | B150: PEDIATRAS | C150: DR. RUBEN FRANCO | D150: 02-CHAPINERO | E150: 0 | F150: 0 | G150: 0 | S150: 0 | T150: 0.0% | U150: 0
A151: PEDIATRAS | B151: PEDIATRAS | C151: DR. ORLANDO RODRIGUEZ RAMIREZ | D151: 02-CHAPINERO | E151: 0 | F151: 0 | G151: 2 | S151: 2 | T151: 0.0%
A152: PEDIATRAS | B152: PEDIATRAS | C152: DR. ARTURO MORENO | D152: 02-CHAPINERO | E152: 0 | F152: 0 | G152: 0 | S152: 0 | T152: 0.0% | U152: 0
A153: PEDIATRAS | B153: PEDIATRAS | C153: DR. FRANCISCO LEAL QUEVEDO | D153: 02-CHAPINERO | E153: 0 | F153: 0 | G153: 0 | S153: 0 | T153: 0.0% | U153: 0
A154: PEDIATRAS | B154: PEDIATRAS | C154: DR. CARLOS DIAZ PUENTES | D154: 02-CHAPINERO | E154: 0 | F154: 0 | G154: 0 | S154: 0 | T154: 0.0% | U154: 0
A155: PEDIATRAS | B155: PEDIATRAS | C155: DR. PEDRO ERASMO MENDOZA | D155: 02-CHAPINERO | E155: 0 | F155: 0 | G155: 0 | S155: 0 | T155: 0.0% | U155: 0
A156: PEDIATRAS | B156: PEDIATRAS | C156: DR. DIMAS ROSAS | D156: 02-CHAPINERO | E156: 0 | F156: 0 | G156: 0 | S156: 0 | T156: 0.0% | U156: 0
A157: PEDIATRAS | B157: PEDIATRAS | C157: DR. JAVIER BRITO MORENO | D157: 02-CHAPINERO | E157: 0 | F157: 0 | G157: 0 | S157: 0 | T157: 0.0% | U157: 0
A158: PEDIATRAS | B158: PEDIATRAS | C158: DR. GUSTAVO CORTÉS | D158: 02-CHAPINERO | E158: 0 | F158: 0 | G158: 0 | S158: 0 | T158: 0.0% | U158: 0
A159: PEDIATRAS | B159: PEDIATRAS | C159: DR. CARLOS VELASQUEZ | D159: 02-CHAPINERO | E159: 0 | F159: 0 | G159: 0 | S159: 0 | T159: 0.0% | U159: 0
A160: PEDIATRAS | B160: PEDIATRAS | C160: DR. RICARDO GOMEZ | D160: 02-CHAPINERO | E160: 0 | F160: 0 | G160: 0 | S160: 0 | T160: 0.0% | U160: 0
A161: PEDIATRAS | B161: PEDIATRAS | C161: DR. SARA BERNAL | D161: 02-CHAPINERO | E161: 0 | F161: 0 | G161: 1 | S161: 1 | T161: 0.0%
A162: PEDIATRAS | B162: PEDIATRAS | C162: DRA. MARIA PATRICIA AGUALIMPIA | D162: 02-CHAPINERO | E162: 0 | F162: 0 | G162: 0 | S162: 0 | T162: 0.0% | U162: 0
A163: PEDIATRAS | B163: PEDIATRAS | C163: DRA. LUISA FERNANDA FORERO ACOSTA | D163: 02-CHAPINERO | E163: 0 | F163: 0 | G163: 0 | S163: 0 | T163: 0.0% | U163: 0
A164: PEDIATRAS | B164: PEDIATRAS | C164: DRA. MARIA CLARA CASAS PARDO | D164: 02-CHAPINERO | E164: 0 | F164: 0 | G164: 0 | S164: 0 | T164: 0.0% | U164: 0
A165: PEDIATRAS | B165: PEDIATRAS | C165: DRA. MARTHA EUGENIA RONDEROS DE FORERO | D165: 02-CHAPINERO | E165: 0 | F165: 0 | G165: 0 | S165: 0 | T165: 0.0% | U165: 0
A166: PEDIATRAS | B166: PEDIATRAS | C166: DRA. MARIA ISABEL USCHER | D166: 02-CHAPINERO | E166: 0 | F166: 0 | G166: 4 | S166: 4 | T166: 0.0%
A167: PEDIATRAS | B167: PEDIATRAS | C167: DRA. MARIA DE LOS ANGELES MUÑOZ | D167: 02-CHAPINERO | E167: 0 | F167: 0 | G167: 3 | S167: 3 | T167: 0.0%
A168: PEDIATRAS | B168: PEDIATRAS | C168: DRA. CLARA ABELLO REYES | D168: 02-CHAPINERO | E168: 0 | F168: 0 | G168: 2 | S168: 2 | T168: 0.0%
A169: PEDIATRAS | B169: PEDIATRAS | C169: DRA. PATRICIA CONTRERAS | D169: 02-CHAPINERO | E169: 0 | F169: 0 | G169: 0 | S169: 0 | T169: 0.0% | U169: 0
A170: PEDIATRAS | B170: PEDIATRAS | C170: DRA. CLAUDIA ZOPPI | D170: 02-CHAPINERO | E170: 0 | F170: 0 | G170: 0 | S170: 0 | T170: 0.0% | U170: 0
A171: PEDIATRAS | B171: PEDIATRAS | C171: DRA. MARIA DE LOS ANGELES FERNANDEZ LUQUE | D171: 02-CHAPINERO | E171: 0 | F171: 0 | G171: 0 | S171: 0 | T171: 0.0% | U171: 0
A172: PEDIATRAS | B172: PEDIATRAS | C172: DRA. RUTH CORDOBA CORDOBA | D172: 02-CHAPINERO | E172: 0 | F172: 0 | G172: 0 | S172: 0 | T172: 0.0% | U172: 0
A173: PEDIATRAS | B173: PEDIATRAS | C173: DRA. LUZ ESTELA CORTES | D173: 02-CHAPINERO | E173: 0 | F173: 0 | G173: 0 | S173: 0 | T173: 0.0% | U173: 0
A174: UNICAJAS | B174: UNICAJAS | C174: UPA SAN LUIS | D174: 02-CHAPINERO | E174: 18 | F174: 2 | G174: 0 | S174: 0 | T174: 0.0% | U174: 2
A175: 02-CHAPINERO | B175: OTROS | C175: UPA SAN LUIS | D175: 02-CHAPINERO | E175: 325 | F175: 27 | G175: 2 | S175: 2 | T175: 0.6% | U175: 25
A176: 02-CHAPINERO | B176: DEMAS EAPB | C176: UPA SAN LUIS | D176: 02-CHAPINERO | E176: 0 | F176: 0 | G176: 6 | S176: 6 | T176: 0.0%
A177: UNICAJAS | B177: UNICAJAS | C177: COMFASALUD SEDE CENTRO | D177: 03-SANTA FE | E177: 50 | F177: 4 | G177: 2 | S177: 2 | T177: 4.0% | U177: 2
A178: MEDIMAS | B178: MEDIMAS | C178: CORVESALUD TEUSAQUILLO | D178: 03-SANTA FE | E178: 193 | F178: 16 | G178: 6 | S178: 6 | T178: 3.1% | U178: 10
A179: 03-SANTA FE | B179: CAPITAL SALUD | C179: EXTRAMURAL SANTA FE | D179: 03-SANTA FE | E179: 0 | F179: 0 | G179: 7 | S179: 7 | T179: 0.0%
A180: 03-SANTA FE | B180: DEMAS EAPB | C180: EXTRAMURAL SANTA FE | D180: 03-SANTA FE | E180: 0 | F180: 0 | G180: 0 | S180: 0 | T180: 0.0% | U180: 0
A181: 03-SANTA FE | B181: OTROS | C181: EXTRAMURAL SANTA FE | D181: 03-SANTA FE | E181: 0 | F181: 0 | G181: 9 | S181: 9 | T181: 0.0%
A182: 03-SANTA FE | B182: UNICAJAS | C182: EXTRAMURAL SANTA FE | D182: 03-SANTA FE | E182: 0 | F182: 0 | G182: 0 | S182: 0 | T182: 0.0% | U182: 0
A183: 03-SANTA FE | B183: CAPITAL SALUD | C183: USS LACHES | D183: 03-SANTA FE | E183: 54 | F183: 5 | G183: 7 | S183: 7 | T183: 13.0%
A184: 03-SANTA FE | B184: DEMAS EAPB | C184: USS LACHES | D184: 03-SANTA FE | E184: 0 | F184: 0 | G184: 7 | S184: 7 | T184: 0.0%
A185: 03-SANTA FE | B185: OTROS | C185: USS LACHES | D185: 03-SANTA FE | E185: 260 | F185: 22 | G185: 4 | S185: 4 | T185: 1.5% | U185: 18
A186: 03-SANTA FE | B186: UNICAJAS | C186: USS LACHES | D186: 03-SANTA FE | E186: 17 | F186: 1 | G186: 1 | S186: 1 | T186: 5.9% | U186: 0
A187: 03-SANTA FE | B187: CAPITAL SALUD | C187: USS LAS CRUCES | D187: 03-SANTA FE | E187: 44 | F187: 4 | G187: 6 | S187: 6 | T187: 13.6%
A188: 03-SANTA FE | B188: DEMAS EAPB | C188: USS LAS CRUCES | D188: 03-SANTA FE | E188: 0 | F188: 0 | G188: 4 | S188: 4 | T188: 0.0%
A189: 03-SANTA FE | B189: OTROS | C189: USS LAS CRUCES | D189: 03-SANTA FE | E189: 211 | F189: 18 | G189: 3 | S189: 3 | T189: 1.4% | U189: 15
A190: 03-SANTA FE | B190: UNICAJAS | C190: USS LAS CRUCES | D190: 03-SANTA FE | E190: 14 | F190: 1 | G190: 1 | S190: 1 | T190: 7.1% | U190: 0
A191: 03-SANTA FE | B191: CAPITAL SALUD | C191: USS PERSEVERANCIA | D191: 03-SANTA FE | E191: 6 | F191: 1 | G191: 1 | S191: 1 | T191: 16.7%
A192: 03-SANTA FE | B192: DEMAS EAPB | C192: USS PERSEVERANCIA | D192: 03-SANTA FE | E192: 0 | F192: 0 | G192: 1 | S192: 1 | T192: 0.0%
A193: 03-SANTA FE | B193: OTROS | C193: USS PERSEVERANCIA | D193: 03-SANTA FE | E193: 30 | F193: 3 | G193: 1 | S193: 1 | T193: 3.3% | U193: 2
A194: 03-SANTA FE | B194: UNICAJAS | C194: USS PERSEVERANCIA | D194: 03-SANTA FE | E194: 2 | F194: 0 | G194: 0 | S194: 0 | T194: =IF(E194=0,0,+S194/E194) -> 0.0% | U194: =IF(COUNT(G194:R194)*(E194/12)-S194<0,"",COUNT(G194:R194)*(E194/12)-S194) -> 0
A195: PARTICULAR | B195: PARTICULAR | C195: CLINICA SAN RAFAEL | D195: 04-SAN CRISTOBAL | E195: 375 | F195: =+E195/12 -> 31 | G195: 32 | S195: =SUM(G195:R195) -> 32 | T195: 8.5%
A196: FAMISANAR | B196: FAMI- COLSB | C196: CENTRO MEDICO COLSUBSIDIO 20 DE JULIO | D196: 04-SAN CRISTOBAL | E196: 0 | F196: 0 | S196: 0 | T196: 0.0% | U196: 0
A197: 04-SAN CRISTOBAL | B197: CAPITAL SALUD | C197: EXTRAMURAL SAN CRISTOBAL | D197: 04-SAN CRISTOBAL | E197: 0 | F197: 0 | G197: 22 | S197: 22 | T197: 0.0%
A198: 04-SAN CRISTOBAL | B198: DEMAS EAPB | C198: EXTRAMURAL SAN CRISTOBAL | D198: 04-SAN CRISTOBAL | E198: 0 | F198: 0 | G198: 31 | S198: 31 | T198: 0.0%
A199: 04-SAN CRISTOBAL | B199: OTROS | C199: EXTRAMURAL SAN CRISTOBAL | D199: 04-SAN CRISTOBAL | E199: 0 | F199: 0 | G199: 15 | S199: 15 | T199: 0.0%
A200: 04-SAN CRISTOBAL | B200: UNICAJAS | C200: EXTRAMURAL SAN CRISTOBAL | D200: 04-SAN CRISTOBAL | E200: 0 | F200: 0 | G200: 3 | S200: 3 | T200: 0.0%
... 620 more rows

Sheet PENTA2
A1: EAPB | B1: EPS O ESE | C1: IPS | D1: Localidad | E1: Meta Anual Menor de 1 Año | F1: Meta Mensual | G1: Enero | H1: Febrero | I1: Marzo | J1: Abril | K1: Mayo | L1: Junio | M1: Julio | N1: Agosto | O1: Septiembre | P1: Octubre | Q1: Noviembre | R1: Diciembre | S1: Total | T1: % Cobertura | U1: Deficit
A2: CAPITAL SALUD | B2: CAPITAL SALUD | C2: UPA SAN CRISTOBAL | D2: 01-USAQUEN | E2: 124 | F2: =+E2/12 -> 10 | G2: 7 | S2: =SUM(G2:R2) -> 7 | T2: =IF(E2=0,0,+S2/E2) -> 5.6% | U2: =IF(COUNT(G2:R2)*(E2/12)-S2<0,"",COUNT(G2:R2)*(E2/12)-S2) -> 3
A3: CAPITAL SALUD | B3: CAPITAL SALUD | C3: UPA USAQUEN | D3: 01-USAQUEN | E3: 10 | F3: =+E3/12 -> 1 | G3: 0 | S3: =SUM(G3:R3) -> 0 | T3: 0.0% | U3: 1
A4: CAPITAL SALUD | B4: CAPITAL SALUD | C4: UPA ORQUIDEAS | D4: 01-USAQUEN | E4: 11 | F4: 1 | G4: 3 | S4: 3 | T4: 27.3%
A5: CAPITAL SALUD | B5: CAPITAL SALUD | C5: UPA CODITO | D5: 01-USAQUEN | E5: 107 | F5: 9 | G5: 8 | S5: 8 | T5: 7.5% | U5: 1
A6: CAPITAL SALUD | B6: CAPITAL SALUD | C6: CAMI VERBENAL | D6: 01-USAQUEN | E6: 87 | F6: 7 | G6: 8 | S6: 8 | T6: 9.2%
A7: CAPITAL SALUD | B7: CAPITAL SALUD | C7: HOSPITAL SIMON BOLIVAR | D7: 01-USAQUEN | E7: 36 | F7: 3 | G7: 9 | S7: 9 | T7: 25.0%
A8: 01-USAQUEN | B8: 01-USAQUEN | C8: EXTRAMURAL USAQUEN | D8: 01-USAQUEN | E8: 0 | F8: 0 | G8: 12 | S8: 12 | T8: 0.0%
A9: ALIANSALUD | B9: ALIANSALUD | C9: CENTRO MEDICO COLMEDICA SANTA BARBARA | D9: 01-USAQUEN | E9: 580 | F9: 48 | G9: 79 | S9: 79 | T9: 13.6%
A10: COMPENSAR | B10: COMPENSAR | C10: USS CALLE 134 | D10: 01-USAQUEN | E10: 372 | F10: 31 | G10: 17 | S10: 17 | T10: 4.6% | U10: 14
A11: COMPENSAR | B11: COMPENSAR | C11: USS CALLE 145 | D11: 01-USAQUEN | E11: 173 | F11: 14 | G11: 17 | S11: 17 | T11: 9.8%
A12: COMPENSAR | B12: COMPENSAR | C12: JAVESALUD TOBERIN | D12: 01-USAQUEN | E12: 372 | F12: 31 | G12: 3 | S12: 3 | T12: 0.8% | U12: 28
A13: COOMEVA | B13: COOMEVA | C13: SINERGIA UNIDAD INTEGRAL EN SALUD | D13: 01-USAQUEN | E13: 44 | F13: 4 | G13: 6 | S13: 6 | T13: 13.6%
A14: FAMISANAR | B14: FAMI- COLSB | C14: CENTRO MEDICO COLSUBSIDIO USAQUEN | D14: 01-USAQUEN | E14: 298 | F14: 25 | G14: 30 | S14: 30 | T14: 10.1%
A15: MILITAR | B15: MILITAR | C15: DISPENSARIO MEDICO CANTON NORTE | D15: 01-USAQUEN | E15: 205 | F15: 17 | G15: 3 | S15: 3 | T15: 1.5% | U15: 14
A16: NUEVA EPS | B16: NUEVA EPS | C16: IPS VIVA 1A SEDE TOBERIN | D16: 01-USAQUEN | E16: 147 | F16: 12 | G16: 6 | S16: 6 | T16: 4.1% | U16: 6
A17: NUEVA EPS | B17: NUEVA EPS | C17: CAFAM GRANADA HILLS | D17: 01-USAQUEN | E17: 44 | F17: 4 | G17: 6 | S17: 6 | T17: 13.6%
A18: SANITAS | B18: SANITAS | C18: UAP SANITAS TOBERIN | D18: 01-USAQUEN | E18: 511 | F18: 43 | G18: 56 | S18: 56 | T18: 11.0%
A19: SANITAS | B19: SANITAS | C19: MEDIKA IPS SANITAS UAP USAQUEN | D19: 01-USAQUEN | E19: 188 | F19: 16 | G19: 3 | S19: 3 | T19: 1.6% | U19: 13
A20: SANITAS | B20: SANITAS | C20: UAP SANTA BARBARA | D20: 01-USAQUEN | E20: 796 | F20: 66 | G20: 85 | S20: 85 | T20: 10.7%
A21: SANITAS | B21: SANITAS | C21: SANITAS BANCO DE LA REPUBLICA | D21: 01-USAQUEN | E21: 0 | F21: 0 | G21: 4 | S21: 4 | T21: 0.0%
A22: SALUD TOTAL | B22: SALUD TOTAL | C22: VIRREY SOLIS TOBERÍN | D22: 01-USAQUEN | E22: 384 | F22: 32 | G22: 21 | S22: 21 | T22: 5.5% | U22: 11
A23: SURA | B23: SURA | C23: IPS JAVESALUD SANTA BEATRIZ | D23: 01-USAQUEN | E23: 355 | F23: 30 | G23: 12 | S23: 12 | T23: 3.4% | U23: 18
A24: ECOPETROL | B24: ECOPETROL | C24: IPS CLINICOS PALATINO | D24: 01-USAQUEN | E24: 87 | F24: 7 | G24: 9 | S24: 9 | T24: 10.3%
A25: PARTICULAR | B25: PARTICULAR | C25: CLINICA PEDIATRICA COLSANITAS | D25: 01-USAQUEN | E25: 830 | F25: 69 | G25: 101 | S25: 101 | T25: 12.2%
A26: PARTICULAR | B26: PARTICULAR | C26: CENTRO MEDICO COLSANITAS LA CALLEJA | D26: 01-USAQUEN | E26: 120 | F26: 10 | G26: 23 | S26: 23 | T26: 19.2%
A27: PARTICULAR | B27: PARTICULAR | C27: CENTRO MEDICO COLSANITAS 108 | D27: 01-USAQUEN | E27: 40 | F27: 3 | G27: 4 | S27: 4 | T27: 10.0%
A28: PARTICULAR | B28: PARTICULAR | C28: CENTRO MEDICO COLSANITAS SANTA ANA | D28: 01-USAQUEN | E28: 4 | F28: 0 | G28: 2 | S28: 2 | T28: 50.0%
A29: PARTICULAR | B29: PARTICULAR | C29: FUNDACIÓN CARDIO INFANTIL | D29: 01-USAQUEN | E29: 0 | F29: 0 | G29: 11 | S29: 11 | T29: 0.0%
A30: PARTICULAR | B30: PARTICULAR | C30: ENFASO USAQUEN | D30: 01-USAQUEN | E30: 0 | F30: 0 | G30: 9 | S30: 9 | T30: 0.0%
A31: PARTICULAR | B31: PARTICULAR | C31: UNIDAD DE VACUNACIÓN INTERNACIONAL | D31: 01-USAQUEN | E31: 0 | F31: 0 | G31: 4 | S31: 4 | T31: 0.0%
A32: PARTICULAR | B32: PARTICULAR | C32: INMUNOLOGÍA Y DIAGNÓSTICO ESPECIALIZADO LTDA. | D32: 01-USAQUEN | E32: 0 | F32: 0 | G32: 0 | S32: 0 | T32: 0.0% | U32: 0
A33: PARTICULAR | B33: PARTICULAR | C33: PROTEGER HEALHT CARE | D33: 01-USAQUEN | E33: 0 | F33: 0 | G33: 1 | S33: 1 | T33: 0.0%
A34: PARTICULAR | B34: PARTICULAR | C34: FUNDACION SANTA FE DE BOGOTA | D34: 01-USAQUEN | E34: 0 | F34: 0 | G34: 0 | S34: 0 | T34: 0.0% | U34: 0
A35: PARTICULAR | B35: PARTICULAR | C35: IPS CRUZ ROJA SEDE UNICENTRO | D35: 01-USAQUEN | E35: 0 | F35: 0 | G35: 0 | S35: 0 | T35: 0.0% | U35: 0
A36: PARTICULAR | B36: PARTICULAR | C36: IPS CRUZ ROJA SAMU CALLE 145 | D36: 01-USAQUEN | E36: 0 | F36: 0 | G36: 0 | S36: 0 | T36: 0.0% | U36: 0
A37: PEDIATRAS | B37: PEDIATRAS | C37: DR. ALEJANDRO LÓPEZ | D37: 01-USAQUEN | E37: 0 | F37: 0 | G37: 2 | S37: 2 | T37: 0.0%
A38: PEDIATRAS | B38: PEDIATRAS | C38: DR. CARLOS NEFTALI TORRES | D38: 01-USAQUEN | E38: 0 | F38: 0 | G38: 6 | S38: 6 | T38: 0.0%
A39: PEDIATRAS | B39: PEDIATRAS | C39: DR. FRANCISCO NUÑEZ | D39: 01-USAQUEN | E39: 0 | F39: 0 | G39: 0 | S39: 0 | T39: 0.0% | U39: 0
A40: PEDIATRAS | B40: PEDIATRAS | C40: DR. FERNANDO GOMEZ | D40: 01-USAQUEN | E40: 0 | F40: 0 | G40: 0 | S40: 0 | T40: 0.0% | U40: 0
A41: PEDIATRAS | B41: PEDIATRAS | C41: DR. FERNANDO ZARATE MORENO | D41: 01-USAQUEN | E41: 0 | F41: 0 | G41: 0 | S41: 0 | T41: 0.0% | U41: 0
A42: PEDIATRAS | B42: PEDIATRAS | C42: DR. GONZALO GARCIA | D42: 01-USAQUEN | E42: 0 | F42: 0 | G42: 0 | S42: 0 | T42: 0.0% | U42: 0
A43: PEDIATRAS | B43: PEDIATRAS | C43: DR. GUSTAVO MORALES | D43: 01-USAQUEN | E43: 0 | F43: 0 | G43: 2 | S43: 2 | T43: 0.0%
A44: PEDIATRAS | B44: PEDIATRAS | C44: DR. JAIME OSPINA | D44: 01-USAQUEN | E44: 0 | F44: 0 | G44: 0 | S44: 0 | T44: 0.0% | U44: 0
A45: PEDIATRAS | B45: PEDIATRAS | C45: DR. JORGE URIBE | D45: 01-USAQUEN | E45: 0 | F45: 0 | G45: 0 | S45: 0 | T45: 0.0% | U45: 0
A46: PEDIATRAS | B46: PEDIATRAS | C46: DR. JUAN LUIS FIGUEROA | D46: 01-USAQUEN | E46: 0 | F46: 0 | G46: 1 | S46: 1 | T46: 0.0%
A47: PEDIATRAS | B47: PEDIATRAS | C47: DR. LUIS AUGUSTO PERNA | D47: 01-USAQUEN | E47: 0 | F47: 0 | G47: 4 | S47: 4 | T47: 0.0%
A48: PEDIATRAS | B48: PEDIATRAS | C48: DR. LIBARDO ELI TRIANA | D48: 01-USAQUEN | E48: 0 | F48: 0 | G48: 0 | S48: 0 | T48: 0.0% | U48: 0
A49: PEDIATRAS | B49: PEDIATRAS | C49: DR. OSWALDO MERCADO HOYOS | D49: 01-USAQUEN | E49: 0 | F49: 0 | G49: 2 | S49: 2 | T49: 0.0%
A50: PEDIATRAS | B50: PEDIATRAS | C50: DR. ROBERTO BENIRO | D50: 01-USAQUEN | E50: 0 | F50: 0 | G50: 0 | S50: 0 | T50: 0.0% | U50: 0
A51: PEDIATRAS | B51: PEDIATRAS | C51: DR. SERGIO ISAZA | D51: 01-USAQUEN | E51: 0 | F51: 0 | G51: 2 | S51: 2 | T51: 0.0%
A52: PEDIATRAS | B52: PEDIATRAS | C52: DR. SANTIAGO UCROS | D52: 01-USAQUEN | E52: 0 | F52: 0 | G52: 0 | S52: 0 | T52: 0.0% | U52: 0
A53: PEDIATRAS | B53: PEDIATRAS | C53: DR. GERMAN SILVA | D53: 01-USAQUEN | E53: 0 | F53: 0 | G53: 0 | S53: 0 | T53: 0.0% | U53: 0
A54: PEDIATRAS | B54: PEDIATRAS | C54: DR. DANIEL ABRIL | D54: 01-USAQUEN | E54: 0 | F54: 0 | G54: 0 | S54: 0 | T54: 0.0% | U54: 0
A55: PEDIATRAS | B55: PEDIATRAS | C55: DR. CARLOS EDUARDO OLMOS | D55: 01-USAQUEN | E55: 0 | F55: 0 | G55: 0 | S55: 0 | T55: 0.0% | U55: 0
A56: PEDIATRAS | B56: PEDIATRAS | C56: DR. EDGARDO CHATMAN | D56: 01-USAQUEN | E56: 0 | F56: 0 | G56: 0 | S56: 0 | T56: 0.0% | U56: 0
A57: PEDIATRAS | B57: PEDIATRAS | C57: DR. JORGE FLOREZ OTERO | D57: 01-USAQUEN | E57: 0 | F57: 0 | G57: 0 | S57: 0 | T57: 0.0% | U57: 0
A58: PEDIATRAS | B58: PEDIATRAS | C58: DRA. ALEJANDRA MARIA VALENCIA | D58: 01-USAQUEN | E58: 0 | F58: 0 | G58: 0 | S58: 0 | T58: 0.0% | U58: 0
A59: PEDIATRAS | B59: PEDIATRAS | C59: DRA. ANA MARIA GOYENECHE | D59: 01-USAQUEN | E59: 0 | F59: 0 | G59: 0 | S59: 0 | T59: 0.0% | U59: 0
A60: PEDIATRAS | B60: PEDIATRAS | C60: DRA. JIMENA VARELA | D60: 01-USAQUEN | E60: 0 | F60: 0 | G60: 0 | S60: 0 | T60: 0.0% | U60: 0
A61: PEDIATRAS | B61: PEDIATRAS | C61: DRA. LIA SAN MIGUEL | D61: 01-USAQUEN | E61: 0 | F61: 0 | G61: 0 | S61: 0 | T61: 0.0% | U61: 0
A62: PEDIATRAS | B62: PEDIATRAS | C62: DRA. LIBIA SEGURA | D62: 01-USAQUEN | E62: 0 | F62: 0 | G62: 1 | S62: 1 | T62: 0.0%
A63: PEDIATRAS | B63: PEDIATRAS | C63: DRA. MARÍA JOSÉ PEDRAZA | D63: 01-USAQUEN | E63: 0 | F63: 0 | G63: 0 | S63: 0 | T63: 0.0% | U63: 0
A64: PEDIATRAS | B64: PEDIATRAS | C64: DRA. MARTHA LUCIA SANCHEZ | D64: 01-USAQUEN | E64: 0 | F64: 0 | G64: 0 | S64: 0 | T64: 0.0% | U64: 0
A65: PEDIATRAS | B65: PEDIATRAS | C65: DRA. OLGA LUCÍA SÁNCHEZ | D65: 01-USAQUEN | E65: 0 | F65: 0 | G65: 0 | S65: 0 | T65: 0.0% | U65: 0
A66: PEDIATRAS | B66: PEDIATRAS | C66: DRA. SANDRA BELTRAN | D66: 01-USAQUEN | E66: 0 | F66: 0 | G66: 0 | S66: 0 | T66: =IF(E66=0,0,+S66/E66) -> 0.0% | U66: =IF(COUNT(G66:R66)*(E66/12)-S66<0,"",COUNT(G66:R66)*(E66/12)-S66) -> 0
A67: PEDIATRAS | B67: PEDIATRAS | C67: DRA. IVANA CABRERA | D67: 01-USAQUEN | E67: 0 | F67: =+E67/12 -> 0 | G67: 0 | S67: =SUM(G67:R67) -> 0 | T67: 0.0% | U67: 0
A68: PEDIATRAS | B68: PEDIATRAS | C68: DRA. NAYITA ALARCON | D68: 01-USAQUEN | E68: 0 | F68: 0 | G68: 0 | S68: 0 | T68: 0.0% | U68: 0
A69: PEDIATRAS | B69: PEDIATRAS | C69: DRA. ELIZABETH GARCIA | D69: 01-USAQUEN | E69: 0 | F69: 0 | G69: 0 | S69: 0 | T69: 0.0% | U69: 0
A70: PEDIATRAS | B70: PEDIATRAS | C70: DRA. BERTHA CALDERON DE RAMOS | D70: 01-USAQUEN | E70: 0 | F70: 0 | G70: 0 | S70: 0 | T70: 0.0% | U70: 0
A71: PEDIATRAS | B71: PEDIATRAS | C71: DRA. MIRYAM CORREA | D71: 01-USAQUEN | E71: 0 | F71: 0 | G71: 0 | S71: 0 | T71: 0.0% | U71: 0
A72: 01-USAQUEN | B72: UNICAJAS | C72: UPA SAN CRISTOBAL | D72: 01-USAQUEN | E72: 6 | F72: 1 | G72: 1 | S72: 1 | T72: 16.7%
A73: UNICAJAS | B73: UNICAJAS | C73: UPA USAQUEN | D73: 01-USAQUEN | E73: 9 | F73: 1 | G73: 0 | S73: 0 | T73: 0.0% | U73: 1
A74: UNICAJAS | B74: UNICAJAS | C74: UPA ORQUIDEAS | D74: 01-USAQUEN | E74: 6 | F74: 1 | G74: 0 | S74: 0 | T74: 0.0% | U74: 1
A75: UNICAJAS | B75: UNICAJAS | C75: UPA CODITO | D75: 01-USAQUEN | E75: 5 | F75: 0 | G75: 1 | S75: 1 | T75: 20.0%
A76: UNICAJAS | B76: UNICAJAS | C76: CAMI VERBENAL | D76: 01-USAQUEN | E76: 6 | F76: 1 | G76: 2 | S76: 2 | T76: 33.3%
A77: 01-USAQUEN | B77: UNICAJAS | C77: HOSPITAL SIMON BOLIVAR | D77: 01-USAQUEN | E77: 6 | F77: 1 | S77: 0 | T77: 0.0% | U77: 0
A78: 01-USAQUEN | B78: OTROS | C78: UPA SAN CRISTOBAL | D78: 01-USAQUEN | E78: 300 | F78: 25 | G78: 9 | S78: 9 | T78: 3.0% | U78: 16
A79: 01-USAQUEN | B79: OTROS | C79: UPA USAQUEN | D79: 01-USAQUEN | E79: 100 | F79: 8 | G79: 0 | S79: 0 | T79: 0.0% | U79: 8
A80: 01-USAQUEN | B80: OTROS | C80: UPA ORQUIDEAS | D80: 01-USAQUEN | E80: 120 | F80: 10 | G80: 5 | S80: 5 | T80: 4.2% | U80: 5
A81: 01-USAQUEN | B81: OTROS | C81: UPA CODITO | D81: 01-USAQUEN | E81: 218 | F81: 18 | G81: 4 | S81: 4 | T81: 1.8% | U81: 14
A82: 01-USAQUEN | B82: OTROS | C82: CAMI VERBENAL | D82: 01-USAQUEN | E82: 309 | F82: 26 | G82: 5 | S82: 5 | T82: 1.6% | U82: 21
A83: 01-USAQUEN | B83: OTROS | C83: HOSPITAL SIMON BOLIVAR | D83: 01-USAQUEN | E83: 480 | F83: 40 | G83: 10 | S83: 10 | T83: 2.1% | U83: 30
A84: 01-USAQUEN | B84: DEMAS EAPB | C84: UPA SAN CRISTOBAL | D84: 01-USAQUEN | F84: 0 | G84: 15 | S84: 15 | T84: 0.0%
A85: 01-USAQUEN | B85: DEMAS EAPB | C85: UPA USAQUEN | D85: 01-USAQUEN | F85: 0 | G85: 1 | S85: 1 | T85: 0.0%
A86: 01-USAQUEN | B86: DEMAS EAPB | C86: UPA ORQUIDEAS | D86: 01-USAQUEN | F86: 0 | G86: 1 | S86: 1 | T86: 0.0%
A87: 01-USAQUEN | B87: DEMAS EAPB | C87: UPA CODITO | D87: 01-USAQUEN | F87: 0 | G87: 12 | S87: 12 | T87: 0.0%
A88: 01-USAQUEN | B88: DEMAS EAPB | C88: CAMI VERBENAL | D88: 01-USAQUEN | F88: 0 | G88: 15 | S88: 15 | T88: 0.0%
A89: 01-USAQUEN | B89: DEMAS EAPB | C89: HOSPITAL SIMON BOLIVAR | D89: 01-USAQUEN | F89: 0 | G89: 20 | S89: 20 | T89: 0.0%
A90: MEDIMAS | B90: MEDIMAS | C90: Corvesalud S.A.S - I P S Chico | D90: 01-USAQUEN | E90: 320 | F90: 27 | G90: 2 | S90: 2 | T90: 0.6% | U90: 25
A91: FAMISANAR | B91: COLSUBSIDIO | C91: Sura PAC Santa Bárbara | D91: 01-USAQUEN | F91: 0 | S91: 0 | T91: 0.0% | U91: 0
A92: CAPITAL SALUD | B92: CAPITAL SALUD | C92: UPA SAN LUIS | D92: 02-CHAPINERO | E92: 12 | F92: 1 | G92: 6 | S92: 6 | T92: 50.0%
A93: 02-CHAPINERO | B93: 02-CHAPINERO | C93: EXTRAMURAL CHAPINERO | D93: 02-CHAPINERO | E93: 0 | F93: 0 | G93: 5 | S93: 5 | T93: 0.0%
A94: COMPENSAR | B94: COMPENSAR | C94: USS CALLE 42 | D94: 02-CHAPINERO | E94: 612 | F94: 51 | G94: 34 | S94: 34 | T94: 5.6% | U94: 17
A95: COMPENSAR | B95: COMPENSAR | C95: USS CALLE 67 | D95: 02-CHAPINERO | E95: 0 | F95: 0 | G95: 0 | S95: 0 | T95: 0.0% | U95: 0
A96: COMPENSAR | B96: COMPENSAR | C96: USS CALLE 94 | D96: 02-CHAPINERO | E96: 369 | F96: 31 | G96: 43 | S96: 43 | T96: 11.7%
A97: COMPENSAR | B97: COMPENSAR | C97: VIVA 1A IPS CHAPINERO | D97: 02-CHAPINERO | E97: 73 | F97: 6 | G97: 4 | S97: 4 | T97: 5.5% | U97: 2
A98: COOMEVA | B98: COOMEVA | C98: SINERGIA UNIDAD BASICA LOURDES | D98: 02-CHAPINERO | E98: 217 | F98: 18 | G98: 7 | S98: 7 | T98: 3.2% | U98: 11
A99: FAMISANAR | B99: FAMI- CAFAM | C99: CENTRO DE ATENCION EN SALUD CAFAM CALLE 48 | D99: 02-CHAPINERO | E99: 1050 | F99: 88 | G99: 31 | S99: 31 | T99: 3.0% | U99: 57
A100: FAMISANAR | B100: FAMI- CAFAM | C100: CENTRO DE ATENCION EN SALUD CAFAM CALLE 90 | D100: 02-CHAPINERO | E100: 200 | F100: 17 | G100: 14 | S100: 14 | T100: 7.0% | U100: 3
A101: FAMISANAR | B101: FAMI- COLSB | C101: CLINICA COLSUBSIDIO EL LAGO | D101: 02-CHAPINERO | E101: 392 | F101: 33 | G101: 11 | S101: 11 | T101: 2.8% | U101: 22
A102: MILITAR | B102: MILITAR | C102: HOSPITAL MILITAR CENTRAL | D102: 02-CHAPINERO | E102: 70 | F102: 6 | G102: 15 | S102: 15 | T102: 21.4%
A103: POLICIA | B103: POLICIA | C103: POLICIA NACIONAL ESPAM CHAPINERO | D103: 02-CHAPINERO | E103: 117 | F103: 10 | G103: 5 | S103: 5 | T103: 4.3% | U103: 5
A104: NUEVA EPS | B104: NUEVA EPS | C104: IPS VIVA 1A SEDE MARLY | D104: 02-CHAPINERO | E104: 131 | F104: 11 | G104: 10 | S104: 10 | T104: 7.6% | U104: 1
A105: SANITAS | B105: SANITAS | C105: EPS SANITAS CENTRO MEDICO TEUSAQUILLO | D105: 02-CHAPINERO | E105: 579 | F105: 48 | G105: 30 | S105: 30 | T105: 5.2% | U105: 18
A106: SALUD TOTAL | B106: SALUD TOTAL | C106: VIRREY SOLIS CHAPINERO | D106: 02-CHAPINERO | E106: 337 | F106: 28 | G106: 20 | S106: 20 | T106: 5.9% | U106: 8
A107: SURA | B107: SURA | C107: PUNTO DE SALUD CHAPINERO | D107: 02-CHAPINERO | E107: 237 | F107: 20 | G107: 16 | S107: 16 | T107: 6.8% | U107: 4
A108: SURA | B108: SURA | C108: SALUD SURA | D108: 02-CHAPINERO | E108: 454 | F108: 38 | G108: 50 | S108: 50 | T108: 11.0%
A109: PARTICULAR | B109: PARTICULAR | C109: CENTRO MEDICO COLSANITAS CALLE 96 | D109: 02-CHAPINERO | E109: 24 | F109: 2 | G109: 0 | S109: 0 | T109: 0.0% | U109: 2
A110: PARTICULAR | B110: PARTICULAR | C110: CENTRO DE ESPECIALISTAS MEDICOS AXA COLPATRIA | D110: 02-CHAPINERO | E110: 0 | F110: 0 | G110: 2 | S110: 2 | T110: 0.0%
A111: PARTICULAR | B111: PARTICULAR | C111: CLINICA DE LA MUJER | D111: 02-CHAPINERO | E111: 0 | F111: 0 | G111: 62 | S111: 62 | T111: 0.0%
A112: PARTICULAR | B112: PARTICULAR | C112: VACUNARTE IPS | D112: 02-CHAPINERO | E112: 0 | F112: 0 | G112: 5 | S112: 5 | T112: 0.0%
A113: PARTICULAR | B113: PARTICULAR | C113: UNIMARLY | D113: 02-CHAPINERO | E113: 0 | F113: 0 | G113: 0 | S113: 0 | T113: 0.0% | U113: 0
A114: PARTICULAR | B114: PARTICULAR | C114: HOSPITAL SAN IGNACIO | D114: 02-CHAPINERO | E114: 0 | F114: 0 | G114: 2 | S114: 2 | T114: 0.0%
A115: PARTICULAR | B115: PARTICULAR | C115: PROGRAMA MADRE CANGURO HOSPITAL SAN IGNACIO | D115: 02-CHAPINERO | E115: 0 | F115: 0 | G115: 92 | S115: 92 | T115: 0.0%
A116: PARTICULAR | B116: PARTICULAR | C116: IPS AVENIR | D116: 02-CHAPINERO | E116: 0 | F116: 0 | G116: 0 | S116: 0 | T116: 0.0% | U116: 0
A117: PARTICULAR | B117: PARTICULAR | C117: IPS INMUNOLOGIA Y DIAGNOSTICO ESPECIALIZADO | D117: 02-CHAPINERO | E117: 0 | F117: 0 | G117: 1 | S117: 1 | T117: 0.0%
A118: PARTICULAR | B118: PARTICULAR | C118: ASOCIACION PEDIATRICA DE LOS ANDES | D118: 02-CHAPINERO | E118: 0 | F118: 0 | G118: 0 | S118: 0 | T118: 0.0% | U118: 0
A119: PARTICULAR | B119: PARTICULAR | C119: CRUZ ROJA SEDE ANDINO | D119: 02-CHAPINERO | E119: 0 | F119: 0 | G119: 0 | S119: 0 | T119: 0.0% | U119: 0
A120: PARTICULAR | B120: PARTICULAR | C120: CENTRO MEDICO SANTA MONICA | D120: 02-CHAPINERO | E120: 0 | F120: 0 | S120: 0 | T120: 0.0% | U120: 0
A121: PEDIATRAS | B121: PEDIATRAS | C121: DR. JUAN OSCAR TAMAYO | D121: 02-CHAPINERO | E121: 0 | F121: 0 | G121: 1 | S121: 1 | T121: 0.0%
A122: PEDIATRAS | B122: PEDIATRAS | C122: DR. ROBERTO SUAREZ | D122: 02-CHAPINERO | E122: 0 | F122: 0 | G122: 0 | S122: 0 | T122: 0.0% | U122: 0
A123: PEDIATRAS | B123: PEDIATRAS | C123: DR. WILLIAM RICARDO CABRA | D123: 02-CHAPINERO | E123: 0 | F123: 0 | G123: 3 | S123: 3 | T123: 0.0%
A124: PEDIATRAS | B124: PEDIATRAS | C124: DR. EDGAR CASTRO | D124: 02-CHAPINERO | E124: 0 | F124: 0 | G124: 2 | S124: 2 | T124: 0.0%
A125: PEDIATRAS | B125: PEDIATRAS | C125: DR. PABLO KRAUSS | D125: 02-CHAPINERO | E125: 0 | F125: 0 | G125: 5 | S125: 5 | T125: 0.0%
A126: PEDIATRAS | B126: PEDIATRAS | C126: DR. HERNAN ROBLES | D126: 02-CHAPINERO | E126: 0 | F126: 0 | G126: 4 | S126: 4 | T126: 0.0%
A127: PEDIATRAS | B127: PEDIATRAS | C127: DR. RAFAEL GAMBOA CASABLANCA | D127: 02-CHAPINERO | E127: 0 | F127: 0 | G127: 7 | S127: 7 | T127: 0.0%
A128: PEDIATRAS | B128: PEDIATRAS | C128: DR. JAVIER MEJIA | D128: 02-CHAPINERO | E128: 0 | F128: 0 | G128: 2 | S128: 2 | T128: 0.0%
A129: PEDIATRAS | B129: PEDIATRAS | C129: DR. CARLOS CORTAZAR | D129: 02-CHAPINERO | E129: 0 | F129: 0 | G129: 0 | S129: 0 | T129: 0.0% | U129: 0
A130: PEDIATRAS | B130: PEDIATRAS | C130: DR. NELSON PARDO | D130: 02-CHAPINERO | E130: 0 | F130: 0 | G130: 2 | S130: 2 | T130: =IF(E130=0,0,+S130/E130) -> 0.0% | U130: =IF(COUNT(G130:R130)*(E130/12)-S130<0,"",COUNT(G130:R130)*(E130/12)-S130) -> 
A131: PEDIATRAS | B131: PEDIATRAS | C131: DR. ALVARO JACOME | D131: 02-CHAPINERO | E131: 0 | F131: =+E131/12 -> 0 | G131: 0 | S131: =SUM(G131:R131) -> 0 | T131: 0.0% | U131: 0
A132: PEDIATRAS | B132: PEDIATRAS | C132: DR. SILVIO COPO | D132: 02-CHAPINERO | E132: 0 | F132: 0 | G132: 0 | S132: 0 | T132: 0.0% | U132: 0
A133: PEDIATRAS | B133: PEDIATRAS | C133: DR. HECTOR FERNANDO MENDOZA | D133: 02-CHAPINERO | E133: 0 | F133: 0 | G133: 1 | S133: 1 | T133: 0.0%
A134: PEDIATRAS | B134: PEDIATRAS | C134: DR. DIMITRIOS | D134: 02-CHAPINERO | E134: 0 | F134: 0 | G134: 1 | S134: 1 | T134: 0.0%
A135: PEDIATRAS | B135: PEDIATRAS | C135: DR. ALVARO MARIÑO | D135: 02-CHAPINERO | E135: 0 | F135: 0 | G135: 0 | S135: 0 | T135: 0.0% | U135: 0
A136: PEDIATRAS | B136: PEDIATRAS | C136: DR. ANDRES VARGAS | D136: 02-CHAPINERO | E136: 0 | F136: 0 | G136: 1 | S136: 1 | T136: 0.0%
A137: PEDIATRAS | B137: PEDIATRAS | C137: DR. JORGE CAMILO LUNA | D137: 02-CHAPINERO | E137: 0 | F137: 0 | G137: 0 | S137: 0 | T137: 0.0% | U137: 0
A138: PEDIATRAS | B138: PEDIATRAS | C138: DR. BERNARDO HUERTAS | D138: 02-CHAPINERO | E138: 0 | F138: 0 | G138: 13 | S138: 13 | T138: 0.0%
A139: PEDIATRAS | B139: PEDIATRAS | C139: DR. CARLOS M CASTILLO | D139: 02-CHAPINERO | E139: 0 | F139: 0 | G139: 0 | S139: 0 | T139: 0.0% | U139: 0
A140: PEDIATRAS | B140: PEDIATRAS | C140: DR. HEINZ OTTO PFALZGRAF | D140: 02-CHAPINERO | E140: 0 | F140: 0 | G140: 0 | S140: 0 | T140: 0.0% | U140: 0
A141: PEDIATRAS | B141: PEDIATRAS | C141: DR. GONZALEZ BALLESTEROS | D141: 02-CHAPINERO | E141: 0 | F141: 0 | G141: 1 | S141: 1 | T141: 0.0%
A142: PEDIATRAS | B142: PEDIATRAS | C142: DR. NORBERTO SALAMANCA | D142: 02-CHAPINERO | E142: 0 | F142: 0 | G142: 0 | S142: 0 | T142: 0.0% | U142: 0
A143: PEDIATRAS | B143: PEDIATRAS | C143: DR. CAMILO ENRIQUE SOTOMAYOR | D143: 02-CHAPINERO | E143: 0 | F143: 0 | G143: 2 | S143: 2 | T143: 0.0%
A144: PEDIATRAS | B144: PEDIATRAS | C144: DR. SANTIAGO RUEDA SAIZ | D144: 02-CHAPINERO | E144: 0 | F144: 0 | G144: 0 | S144: 0 | T144: 0.0% | U144: 0
A145: PEDIATRAS | B145: PEDIATRAS | C145: DR. HENRY HERNANDO SANCHEZ ESCOBAR | D145: 02-CHAPINERO | E145: 0 | F145: 0 | G145: 0 | S145: 0 | T145: 0.0% | U145: 0
A146: PEDIATRAS | B146: PEDIATRAS | C146: DR. RUBEN DARIO TAMAYO | D146: 02-CHAPINERO | E146: 0 | F146: 0 | G146: 1 | S146: 1 | T146: 0.0%
A147: PEDIATRAS | B147: PEDIATRAS | C147: DR. JAIME MAURICIO MATALLANA | D147: 02-CHAPINERO | E147: 0 | F147: 0 | G147: 2 | S147: 2 | T147: 0.0%
A148: PEDIATRAS | B148: PEDIATRAS | C148: DR. RODRIGO GARCIA | D148: 02-CHAPINERO | E148: 0 | F148: 0 | G148: 0 | S148: 0 | T148: 0.0% | U148: 0
A149: PEDIATRAS | B149: PEDIATRAS | C149: DR. FELIPE ROBAYO | D149: 02-CHAPINERO | E149: 0 | F149: 0 | G149: 0 | S149: 0 | T149: 0.0% | U149: 0
A150: PEDIATRAS | B150: PEDIATRAS | C150: DR. RUBEN FRANCO | D150: 02-CHAPINERO | E150: 0 | F150: 0 | G150: 0 | S150: 0 | T150: 0.0% | U150: 0
A151: PEDIATRAS | B151: PEDIATRAS | C151: DR. ORLANDO RODRIGUEZ RAMIREZ | D151: 02-CHAPINERO | E151: 0 | F151: 0 | G151: 0 | S151: 0 | T151: 0.0% | U151: 0
A152: PEDIATRAS | B152: PEDIATRAS | C152: DR. ARTURO MORENO | D152: 02-CHAPINERO | E152: 0 | F152: 0 | G152: 0 | S152: 0 | T152: 0.0% | U152: 0
A153: PEDIATRAS | B153: PEDIATRAS | C153: DR. FRANCISCO LEAL QUEVEDO | D153: 02-CHAPINERO | E153: 0 | F153: 0 | G153: 0 | S153: 0 | T153: 0.0% | U153: 0
A154: PEDIATRAS | B154: PEDIATRAS | C154: DR. CARLOS DIAZ PUENTES | D154: 02-CHAPINERO | E154: 0 | F154: 0 | G154: 0 | S154: 0 | T154: 0.0% | U154: 0
A155: PEDIATRAS | B155: PEDIATRAS | C155: DR. PEDRO ERASMO MENDOZA | D155: 02-CHAPINERO | E155: 0 | F155: 0 | G155: 0 | S155: 0 | T155: 0.0% | U155: 0
A156: PEDIATRAS | B156: PEDIATRAS | C156: DR. DIMAS ROSAS | D156: 02-CHAPINERO | E156: 0 | F156: 0 | G156: 0 | S156: 0 | T156: 0.0% | U156: 0
A157: PEDIATRAS | B157: PEDIATRAS | C157: DR. JAVIER BRITO MORENO | D157: 02-CHAPINERO | E157: 0 | F157: 0 | G157: 0 | S157: 0 | T157: 0.0% | U157: 0
A158: PEDIATRAS | B158: PEDIATRAS | C158: DR. GUSTAVO CORTÉS | D158: 02-CHAPINERO | E158: 0 | F158: 0 | G158: 0 | S158: 0 | T158: 0.0% | U158: 0
A159: PEDIATRAS | B159: PEDIATRAS | C159: DR. CARLOS VELASQUEZ | D159: 02-CHAPINERO | E159: 0 | F159: 0 | G159: 0 | S159: 0 | T159: 0.0% | U159: 0
A160: PEDIATRAS | B160: PEDIATRAS | C160: DR. RICARDO GOMEZ | D160: 02-CHAPINERO | E160: 0 | F160: 0 | G160: 0 | S160: 0 | T160: 0.0% | U160: 0
A161: PEDIATRAS | B161: PEDIATRAS | C161: DR. SARA BERNAL | D161: 02-CHAPINERO | E161: 0 | F161: 0 | G161: 2 | S161: 2 | T161: 0.0%
A162: PEDIATRAS | B162: PEDIATRAS | C162: DRA. MARIA PATRICIA AGUALIMPIA | D162: 02-CHAPINERO | E162: 0 | F162: 0 | G162: 0 | S162: 0 | T162: 0.0% | U162: 0
A163: PEDIATRAS | B163: PEDIATRAS | C163: DRA. LUISA FERNANDA FORERO ACOSTA | D163: 02-CHAPINERO | E163: 0 | F163: 0 | G163: 0 | S163: 0 | T163: 0.0% | U163: 0
A164: PEDIATRAS | B164: PEDIATRAS | C164: DRA. MARIA CLARA CASAS PARDO | D164: 02-CHAPINERO | E164: 0 | F164: 0 | G164: 0 | S164: 0 | T164: 0.0% | U164: 0
A165: PEDIATRAS | B165: PEDIATRAS | C165: DRA. MARTHA EUGENIA RONDEROS DE FORERO | D165: 02-CHAPINERO | E165: 0 | F165: 0 | G165: 0 | S165: 0 | T165: 0.0% | U165: 0
A166: PEDIATRAS | B166: PEDIATRAS | C166: DRA. MARIA ISABEL USCHER | D166: 02-CHAPINERO | E166: 0 | F166: 0 | G166: 1 | S166: 1 | T166: 0.0%
A167: PEDIATRAS | B167: PEDIATRAS | C167: DRA. MARIA DE LOS ANGELES MUÑOZ | D167: 02-CHAPINERO | E167: 0 | F167: 0 | G167: 1 | S167: 1 | T167: 0.0%
A168: PEDIATRAS | B168: PEDIATRAS | C168: DRA. CLARA ABELLO REYES | D168: 02-CHAPINERO | E168: 0 | F168: 0 | S168: 0 | T168: 0.0% | U168: 0
A169: PEDIATRAS | B169: PEDIATRAS | C169: DRA. PATRICIA CONTRERAS | D169: 02-CHAPINERO | E169: 0 | F169: 0 | S169: 0 | T169: 0.0% | U169: 0
A170: PEDIATRAS | B170: PEDIATRAS | C170: DRA. CLAUDIA ZOPPI | D170: 02-CHAPINERO | E170: 0 | F170: 0 | G170: 0 | S170: 0 | T170: 0.0% | U170: 0
A171: PEDIATRAS | B171: PEDIATRAS | C171: DRA. MARIA DE LOS ANGELES FERNANDEZ LUQUE | D171: 02-CHAPINERO | E171: 0 | F171: 0 | G171: 0 | S171: 0 | T171: 0.0% | U171: 0
A172: PEDIATRAS | B172: PEDIATRAS | C172: DRA. RUTH CORDOBA CORDOBA | D172: 02-CHAPINERO | E172: 0 | F172: 0 | G172: 0 | S172: 0 | T172: 0.0% | U172: 0
A173: PEDIATRAS | B173: PEDIATRAS | C173: DRA. LUZ ESTELA CORTES | D173: 02-CHAPINERO | E173: 0 | F173: 0 | G173: 0 | S173: 0 | T173: 0.0% | U173: 0
A174: UNICAJAS | B174: UNICAJAS | C174: UPA SAN LUIS | D174: 02-CHAPINERO | E174: 18 | F174: 2 | G174: 1 | S174: 1 | T174: 5.6% | U174: 1
A175: 02-CHAPINERO | B175: OTROS | C175: UPA SAN LUIS | D175: 02-CHAPINERO | E175: 325 | F175: 27 | G175: 0 | S175: 0 | T175: 0.0% | U175: 27
A176: 02-CHAPINERO | B176: DEMAS EAPB | C176: UPA SAN LUIS | D176: 02-CHAPINERO | F176: 0 | G176: 7 | S176: 7 | T176: 0.0%
A177: UNICAJAS | B177: UNICAJAS | C177: COMFASALUD SEDE CENTRO | D177: 03-SANTA FE | E177: 50 | F177: 4 | G177: 4 | S177: 4 | T177: 8.0% | U177: 0
A178: MEDIMAS | B178: MEDIMAS | C178: CORVESALUD TEUSAQUILLO | D178: 03-SANTA FE | E178: 193 | F178: 16 | G178: 6 | S178: 6 | T178: 3.1% | U178: 10
A179: 03-SANTA FE | B179: CAPITAL SALUD | C179: EXTRAMURAL SANTA FE | D179: 03-SANTA FE | E179: 0 | F179: 0 | G179: 2 | S179: 2 | T179: 0.0%
A180: 03-SANTA FE | B180: DEMAS EAPB | C180: EXTRAMURAL SANTA FE | D180: 03-SANTA FE | E180: 0 | F180: 0 | G180: 6 | S180: 6 | T180: 0.0%
A181: 03-SANTA FE | B181: OTROS | C181: EXTRAMURAL SANTA FE | D181: 03-SANTA FE | E181: 0 | F181: 0 | G181: 16 | S181: 16 | T181: 0.0%
A182: 03-SANTA FE | B182: UNICAJAS | C182: EXTRAMURAL SANTA FE | D182: 03-SANTA FE | E182: 0 | F182: 0 | G182: 0 | S182: 0 | T182: 0.0% | U182: 0
A183: 03-SANTA FE | B183: CAPITAL SALUD | C183: USS LACHES | D183: 03-SANTA FE | E183: 54 | F183: 5 | G183: 9 | S183: 9 | T183: 16.7%
A184: 03-SANTA FE | B184: DEMAS EAPB | C184: USS LACHES | D184: 03-SANTA FE | E184: 0 | F184: 0 | G184: 12 | S184: 12 | T184: 0.0%
A185: 03-SANTA FE | B185: OTROS | C185: USS LACHES | D185: 03-SANTA FE | E185: 260 | F185: 22 | G185: 6 | S185: 6 | T185: 2.3% | U185: 16
A186: 03-SANTA FE | B186: UNICAJAS | C186: USS LACHES | D186: 03-SANTA FE | E186: 17 | F186: 1 | G186: 0 | S186: 0 | T186: 0.0% | U186: 1
A187: 03-SANTA FE | B187: CAPITAL SALUD | C187: USS LAS CRUCES | D187: 03-SANTA FE | E187: 44 | F187: 4 | G187: 7 | S187: 7 | T187: 15.9%
A188: 03-SANTA FE | B188: DEMAS EAPB | C188: USS LAS CRUCES | D188: 03-SANTA FE | E188: 0 | F188: 0 | G188: 6 | S188: 6 | T188: 0.0%
A189: 03-SANTA FE | B189: OTROS | C189: USS LAS CRUCES | D189: 03-SANTA FE | E189: 211 | F189: 18 | G189: 5 | S189: 5 | T189: 2.4% | U189: 13
A190: 03-SANTA FE | B190: UNICAJAS | C190: USS LAS CRUCES | D190: 03-SANTA FE | E190: 14 | F190: 1 | G190: 7 | S190: 7 | T190: 50.0%
A191: 03-SANTA FE | B191: CAPITAL SALUD | C191: USS PERSEVERANCIA | D191: 03-SANTA FE | E191: 6 | F191: 1 | G191: 2 | S191: 2 | T191: 33.3%
A192: 03-SANTA FE | B192: DEMAS EAPB | C192: USS PERSEVERANCIA | D192: 03-SANTA FE | E192: 0 | F192: 0 | G192: 0 | S192: 0 | T192: 0.0% | U192: 0
A193: 03-SANTA FE | B193: OTROS | C193: USS PERSEVERANCIA | D193: 03-SANTA FE | E193: 30 | F193: 3 | G193: 2 | S193: 2 | T193: 6.7% | U193: 1
A194: 03-SANTA FE | B194: UNICAJAS | C194: USS PERSEVERANCIA | D194: 03-SANTA FE | E194: 2 | F194: 0 | G194: 0 | S194: 0 | T194: =IF(E194=0,0,+S194/E194) -> 0.0% | U194: =IF(COUNT(G194:R194)*(E194/12)-S194<0,"",COUNT(G194:R194)*(E194/12)-S194) -> 0
A195: PARTICULAR | B195: PARTICULAR | C195: CLINICA SAN RAFAEL | D195: 04-SAN CRISTOBAL | E195: 375 | F195: =+E195/12 -> 31 | G195: 35 | S195: =SUM(G195:R195) -> 35 | T195: 9.3%
A196: FAMISANAR | B196: FAMI- COLSB | C196: CENTRO MEDICO COLSUBSIDIO 20 DE JULIO | D196: 04-SAN CRISTOBAL | F196: 0 | S196: 0 | T196: 0.0% | U196: 0
A197: 04-SAN CRISTOBAL | B197: CAPITAL SALUD | C197: EXTRAMURAL SAN CRISTOBAL | D197: 04-SAN CRISTOBAL | E197: 0 | F197: 0 | G197: 28 | S197: 28 | T197: 0.0%
A198: 04-SAN CRISTOBAL | B198: DEMAS EAPB | C198: EXTRAMURAL SAN CRISTOBAL | D198: 04-SAN CRISTOBAL | E198: 0 | F198: 0 | G198: 37 | S198: 37 | T198: 0.0%
A199: 04-SAN CRISTOBAL | B199: OTROS | C199: EXTRAMURAL SAN CRISTOBAL | D199: 04-SAN CRISTOBAL | E199: 0 | F199: 0 | G199: 12 | S199: 12 | T199: 0.0%
A200: 04-SAN CRISTOBAL | B200: UNICAJAS | C200: EXTRAMURAL SAN CRISTOBAL | D200: 04-SAN CRISTOBAL | E200: 0 | F200: 0 | G200: 0 | S200: 0 | T200: 0.0% | U200: 0
... 620 more rows

Sheet PENTA3
A1: EAPB | B1: EPS O ESE | C1: IPS | D1: Localidad | E1: Meta Anual Menor de 1 Año | F1: Meta Mensual | G1: Enero | H1: Febrero | I1: Marzo | J1: Abril | K1: Mayo | L1: Junio | M1: Julio | N1: Agosto | O1: Septiembre | P1: Octubre | Q1: Noviembre | R1: Diciembre | S1: Total | T1: % Cobertura | U1: Deficit
A2: CAPITAL SALUD | B2: CAPITAL SALUD | C2: UPA SAN CRISTOBAL | D2: 01-USAQUEN | E2: 124 | F2: =+E2/12 -> 10 | G2: 6 | S2: =SUM(G2:R2) -> 6 | T2: =IF(E2=0,0,+S2/E2) -> 4.8% | U2: =IF(COUNT(G2:R2)*(E2/12)-S2<0,"",COUNT(G2:R2)*(E2/12)-S2) -> 4
A3: CAPITAL SALUD | B3: CAPITAL SALUD | C3: UPA USAQUEN | D3: 01-USAQUEN | E3: 10 | F3: =+E3/12 -> 1 | G3: 0 | S3: =SUM(G3:R3) -> 0 | T3: 0.0% | U3: 1
A4: CAPITAL SALUD | B4: CAPITAL SALUD | C4: UPA ORQUIDEAS | D4: 01-USAQUEN | E4: 11 | F4: 1 | G4: 0 | S4: 0 | T4: 0.0% | U4: 1
A5: CAPITAL SALUD | B5: CAPITAL SALUD | C5: UPA CODITO | D5: 01-USAQUEN | E5: 107 | F5: 9 | G5: 7 | S5: 7 | T5: 6.5% | U5: 2
A6: CAPITAL SALUD | B6: CAPITAL SALUD | C6: CAMI VERBENAL | D6: 01-USAQUEN | E6: 87 | F6: 7 | G6: 7 | S6: 7 | T6: 8.0% | U6: 0
A7: CAPITAL SALUD | B7: CAPITAL SALUD | C7: HOSPITAL SIMON BOLIVAR | D7: 01-USAQUEN | E7: 36 | F7: 3 | G7: 10 | S7: 10 | T7: 27.8%
A8: 01-USAQUEN | B8: 01-USAQUEN | C8: EXTRAMURAL USAQUEN | D8: 01-USAQUEN | E8: 0 | F8: 0 | G8: 21 | S8: 21 | T8: 0.0%
A9: ALIANSALUD | B9: ALIANSALUD | C9: CENTRO MEDICO COLMEDICA SANTA BARBARA | D9: 01-USAQUEN | E9: 580 | F9: 48 | G9: 71 | S9: 71 | T9: 12.2%
A10: COMPENSAR | B10: COMPENSAR | C10: USS CALLE 134 | D10: 01-USAQUEN | E10: 372 | F10: 31 | G10: 20 | S10: 20 | T10: 5.4% | U10: 11
A11: COMPENSAR | B11: COMPENSAR | C11: USS CALLE 145 | D11: 01-USAQUEN | E11: 173 | F11: 14 | G11: 22 | S11: 22 | T11: 12.7%
A12: COMPENSAR | B12: COMPENSAR | C12: JAVESALUD TOBERIN | D12: 01-USAQUEN | E12: 372 | F12: 31 | G12: 0 | S12: 0 | T12: 0.0% | U12: 31
A13: COOMEVA | B13: COOMEVA | C13: SINERGIA UNIDAD INTEGRAL EN SALUD | D13: 01-USAQUEN | E13: 44 | F13: 4 | G13: 12 | S13: 12 | T13: 27.3%
A14: FAMISANAR | B14: FAMI- COLSB | C14: CENTRO MEDICO COLSUBSIDIO USAQUEN | D14: 01-USAQUEN | E14: 298 | F14: 25 | G14: 26 | S14: 26 | T14: 8.7%
A15: MILITAR | B15: MILITAR | C15: DISPENSARIO MEDICO CANTON NORTE | D15: 01-USAQUEN | E15: 205 | F15: 17 | G15: 8 | S15: 8 | T15: 3.9% | U15: 9
A16: NUEVA EPS | B16: NUEVA EPS | C16: IPS VIVA 1A SEDE TOBERIN | D16: 01-USAQUEN | E16: 147 | F16: 12 | G16: 11 | S16: 11 | T16: 7.5% | U16: 1
A17: NUEVA EPS | B17: NUEVA EPS | C17: CAFAM GRANADA HILLS | D17: 01-USAQUEN | E17: 44 | F17: 4 | G17: 0 | S17: 0 | T17: 0.0% | U17: 4
A18: SANITAS | B18: SANITAS | C18: UAP SANITAS TOBERIN | D18: 01-USAQUEN | E18: 511 | F18: 43 | G18: 33 | S18: 33 | T18: 6.5% | U18: 10
A19: SANITAS | B19: SANITAS | C19: MEDIKA IPS SANITAS UAP USAQUEN | D19: 01-USAQUEN | E19: 188 | F19: 16 | G19: 1 | S19: 1 | T19: 0.5% | U19: 15
A20: SANITAS | B20: SANITAS | C20: UAP SANTA BARBARA | D20: 01-USAQUEN | E20: 796 | F20: 66 | G20: 77 | S20: 77 | T20: 9.7%
A21: SANITAS | B21: SANITAS | C21: SANITAS BANCO DE LA REPUBLICA | D21: 01-USAQUEN | E21: 0 | F21: 0 | G21: 1 | S21: 1 | T21: 0.0%
A22: SALUD TOTAL | B22: SALUD TOTAL | C22: VIRREY SOLIS TOBERÍN | D22: 01-USAQUEN | E22: 384 | F22: 32 | G22: 18 | S22: 18 | T22: 4.7% | U22: 14
A23: SURA | B23: SURA | C23: IPS JAVESALUD SANTA BEATRIZ | D23: 01-USAQUEN | E23: 355 | F23: 30 | G23: 10 | S23: 10 | T23: 2.8% | U23: 20
A24: ECOPETROL | B24: ECOPETROL | C24: IPS CLINICOS PALATINO | D24: 01-USAQUEN | E24: 87 | F24: 7 | G24: 4 | S24: 4 | T24: 4.6% | U24: 3
A25: PARTICULAR | B25: PARTICULAR | C25: CLINICA PEDIATRICA COLSANITAS | D25: 01-USAQUEN | E25: 830 | F25: 69 | G25: 88 | S25: 88 | T25: 10.6%
A26: PARTICULAR | B26: PARTICULAR | C26: CENTRO MEDICO COLSANITAS LA CALLEJA | D26: 01-USAQUEN | E26: 120 | F26: 10 | G26: 10 | S26: 10 | T26: 8.3% | U26: 0
A27: PARTICULAR | B27: PARTICULAR | C27: CENTRO MEDICO COLSANITAS 108 | D27: 01-USAQUEN | E27: 40 | F27: 3 | G27: 3 | S27: 3 | T27: 7.5% | U27: 0
A28: PARTICULAR | B28: PARTICULAR | C28: CENTRO MEDICO COLSANITAS SANTA ANA | D28: 01-USAQUEN | E28: 4 | F28: 0 | G28: 2 | S28: 2 | T28: 50.0%
A29: PARTICULAR | B29: PARTICULAR | C29: FUNDACIÓN CARDIO INFANTIL | D29: 01-USAQUEN | E29: 0 | F29: 0 | G29: 10 | S29: 10 | T29: 0.0%
A30: PARTICULAR | B30: PARTICULAR | C30: ENFASO USAQUEN | D30: 01-USAQUEN | E30: 0 | F30: 0 | G30: 9 | S30: 9 | T30: 0.0%
A31: PARTICULAR | B31: PARTICULAR | C31: UNIDAD DE VACUNACIÓN INTERNACIONAL | D31: 01-USAQUEN | E31: 0 | F31: 0 | G31: 5 | S31: 5 | T31: 0.0%
A32: PARTICULAR | B32: PARTICULAR | C32: INMUNOLOGÍA Y DIAGNÓSTICO ESPECIALIZADO LTDA. | D32: 01-USAQUEN | E32: 0 | F32: 0 | G32: 1 | S32: 1 | T32: 0.0%
A33: PARTICULAR | B33: PARTICULAR | C33: PROTEGER HEALHT CARE | D33: 01-USAQUEN | E33: 0 | F33: 0 | G33: 1 | S33: 1 | T33: 0.0%
A34: PARTICULAR | B34: PARTICULAR | C34: FUNDACION SANTA FE DE BOGOTA | D34: 01-USAQUEN | E34: 0 | F34: 0 | G34: 0 | S34: 0 | T34: 0.0% | U34: 0
A35: PARTICULAR | B35: PARTICULAR | C35: IPS CRUZ ROJA SEDE UNICENTRO | D35: 01-USAQUEN | E35: 0 | F35: 0 | G35: 0 | S35: 0 | T35: 0.0% | U35: 0
A36: PARTICULAR | B36: PARTICULAR | C36: IPS CRUZ ROJA SAMU CALLE 145 | D36: 01-USAQUEN | E36: 0 | F36: 0 | G36: 0 | S36: 0 | T36: 0.0% | U36: 0
A37: PEDIATRAS | B37: PEDIATRAS | C37: DR. ALEJANDRO LÓPEZ | D37: 01-USAQUEN | E37: 0 | F37: 0 | G37: 4 | S37: 4 | T37: 0.0%
A38: PEDIATRAS | B38: PEDIATRAS | C38: DR. CARLOS NEFTALI TORRES | D38: 01-USAQUEN | E38: 0 | F38: 0 | G38: 5 | S38: 5 | T38: 0.0%
A39: PEDIATRAS | B39: PEDIATRAS | C39: DR. FRANCISCO NUÑEZ | D39: 01-USAQUEN | E39: 0 | F39: 0 | G39: 0 | S39: 0 | T39: 0.0% | U39: 0
A40: PEDIATRAS | B40: PEDIATRAS | C40: DR. FERNANDO GOMEZ | D40: 01-USAQUEN | E40: 0 | F40: 0 | G40: 0 | S40: 0 | T40: 0.0% | U40: 0
A41: PEDIATRAS | B41: PEDIATRAS | C41: DR. FERNANDO ZARATE MORENO | D41: 01-USAQUEN | E41: 0 | F41: 0 | G41: 0 | S41: 0 | T41: 0.0% | U41: 0
A42: PEDIATRAS | B42: PEDIATRAS | C42: DR. GONZALO GARCIA | D42: 01-USAQUEN | E42: 0 | F42: 0 | G42: 1 | S42: 1 | T42: 0.0%
A43: PEDIATRAS | B43: PEDIATRAS | C43: DR. GUSTAVO MORALES | D43: 01-USAQUEN | E43: 0 | F43: 0 | G43: 2 | S43: 2 | T43: 0.0%
A44: PEDIATRAS | B44: PEDIATRAS | C44: DR. JAIME OSPINA | D44: 01-USAQUEN | E44: 0 | F44: 0 | G44: 6 | S44: 6 | T44: 0.0%
A45: PEDIATRAS | B45: PEDIATRAS | C45: DR. JORGE URIBE | D45: 01-USAQUEN | E45: 0 | F45: 0 | G45: 0 | S45: 0 | T45: 0.0% | U45: 0
A46: PEDIATRAS | B46: PEDIATRAS | C46: DR. JUAN LUIS FIGUEROA | D46: 01-USAQUEN | E46: 0 | F46: 0 | G46: 1 | S46: 1 | T46: 0.0%
A47: PEDIATRAS | B47: PEDIATRAS | C47: DR. LUIS AUGUSTO PERNA | D47: 01-USAQUEN | E47: 0 | F47: 0 | G47: 6 | S47: 6 | T47: 0.0%
A48: PEDIATRAS | B48: PEDIATRAS | C48: DR. LIBARDO ELI TRIANA | D48: 01-USAQUEN | E48: 0 | F48: 0 | G48: 0 | S48: 0 | T48: 0.0% | U48: 0
A49: PEDIATRAS | B49: PEDIATRAS | C49: DR. OSWALDO MERCADO HOYOS | D49: 01-USAQUEN | E49: 0 | F49: 0 | G49: 0 | S49: 0 | T49: 0.0% | U49: 0
A50: PEDIATRAS | B50: PEDIATRAS | C50: DR. ROBERTO BENIRO | D50: 01-USAQUEN | E50: 0 | F50: 0 | G50: 0 | S50: 0 | T50: 0.0% | U50: 0
A51: PEDIATRAS | B51: PEDIATRAS | C51: DR. SERGIO ISAZA | D51: 01-USAQUEN | E51: 0 | F51: 0 | G51: 0 | S51: 0 | T51: 0.0% | U51: 0
A52: PEDIATRAS | B52: PEDIATRAS | C52: DR. SANTIAGO UCROS | D52: 01-USAQUEN | E52: 0 | F52: 0 | G52: 0 | S52: 0 | T52: 0.0% | U52: 0
A53: PEDIATRAS | B53: PEDIATRAS | C53: DR. GERMAN SILVA | D53: 01-USAQUEN | E53: 0 | F53: 0 | G53: 0 | S53: 0 | T53: 0.0% | U53: 0
A54: PEDIATRAS | B54: PEDIATRAS | C54: DR. DANIEL ABRIL | D54: 01-USAQUEN | E54: 0 | F54: 0 | G54: 0 | S54: 0 | T54: 0.0% | U54: 0
A55: PEDIATRAS | B55: PEDIATRAS | C55: DR. CARLOS EDUARDO OLMOS | D55: 01-USAQUEN | E55: 0 | F55: 0 | G55: 0 | S55: 0 | T55: 0.0% | U55: 0
A56: PEDIATRAS | B56: PEDIATRAS | C56: DR. EDGARDO CHATMAN | D56: 01-USAQUEN | E56: 0 | F56: 0 | G56: 0 | S56: 0 | T56: 0.0% | U56: 0
A57: PEDIATRAS | B57: PEDIATRAS | C57: DR. JORGE FLOREZ OTERO | D57: 01-USAQUEN | E57: 0 | F57: 0 | G57: 0 | S57: 0 | T57: 0.0% | U57: 0
A58: PEDIATRAS | B58: PEDIATRAS | C58: DRA. ALEJANDRA MARIA VALENCIA | D58: 01-USAQUEN | E58: 0 | F58: 0 | G58: 0 | S58: 0 | T58: 0.0% | U58: 0
A59: PEDIATRAS | B59: PEDIATRAS | C59: DRA. ANA MARIA GOYENECHE | D59: 01-USAQUEN | E59: 0 | F59: 0 | G59: 0 | S59: 0 | T59: 0.0% | U59: 0
A60: PEDIATRAS | B60: PEDIATRAS | C60: DRA. JIMENA VARELA | D60: 01-USAQUEN | E60: 0 | F60: 0 | G60: 1 | S60: 1 | T60: 0.0%
A61: PEDIATRAS | B61: PEDIATRAS | C61: DRA. LIA SAN MIGUEL | D61: 01-USAQUEN | E61: 0 | F61: 0 | G61: 0 | S61: 0 | T61: 0.0% | U61: 0
A62: PEDIATRAS | B62: PEDIATRAS | C62: DRA. LIBIA SEGURA | D62: 01-USAQUEN | E62: 0 | F62: 0 | G62: 0 | S62: 0 | T62: 0.0% | U62: 0
A63: PEDIATRAS | B63: PEDIATRAS | C63: DRA. MARÍA JOSÉ PEDRAZA | D63: 01-USAQUEN | E63: 0 | F63: 0 | G63: 0 | S63: 0 | T63: 0.0% | U63: 0
A64: PEDIATRAS | B64: PEDIATRAS | C64: DRA. MARTHA LUCIA SANCHEZ | D64: 01-USAQUEN | E64: 0 | F64: 0 | G64: 0 | S64: 0 | T64: 0.0% | U64: 0
A65: PEDIATRAS | B65: PEDIATRAS | C65: DRA. OLGA LUCÍA SÁNCHEZ | D65: 01-USAQUEN | E65: 0 | F65: 0 | G65: 0 | S65: 0 | T65: 0.0% | U65: 0
A66: PEDIATRAS | B66: PEDIATRAS | C66: DRA. SANDRA BELTRAN | D66: 01-USAQUEN | E66: 0 | F66: 0 | G66: 0 | S66: 0 | T66: =IF(E66=0,0,+S66/E66) -> 0.0% | U66: =IF(COUNT(G66:R66)*(E66/12)-S66<0,"",COUNT(G66:R66)*(E66/12)-S66) -> 0
A67: PEDIATRAS | B67: PEDIATRAS | C67: DRA. IVANA CABRERA | D67: 01-USAQUEN | E67: 0 | F67: =+E67/12 -> 0 | G67: 0 | S67: =SUM(G67:R67) -> 0 | T67: 0.0% | U67: 0
A68: PEDIATRAS | B68: PEDIATRAS | C68: DRA. NAYITA ALARCON | D68: 01-USAQUEN | E68: 0 | F68: 0 | G68: 0 | S68: 0 | T68: 0.0% | U68: 0
A69: PEDIATRAS | B69: PEDIATRAS | C69: DRA. ELIZABETH GARCIA | D69: 01-USAQUEN | E69: 0 | F69: 0 | G69: 0 | S69: 0 | T69: 0.0% | U69: 0
A70: PEDIATRAS | B70: PEDIATRAS | C70: DRA. BERTHA CALDERON DE RAMOS | D70: 01-USAQUEN | E70: 0 | F70: 0 | G70: 0 | S70: 0 | T70: 0.0% | U70: 0
A71: PEDIATRAS | B71: PEDIATRAS | C71: DRA. MIRYAM CORREA | D71: 01-USAQUEN | E71: 0 | F71: 0 | G71: 0 | S71: 0 | T71: 0.0% | U71: 0
A72: 01-USAQUEN | B72: UNICAJAS | C72: UPA SAN CRISTOBAL | D72: 01-USAQUEN | E72: 6 | F72: 1 | G72: 0 | S72: 0 | T72: 0.0% | U72: 1
A73: UNICAJAS | B73: UNICAJAS | C73: UPA USAQUEN | D73: 01-USAQUEN | E73: 9 | F73: 1 | G73: 0 | S73: 0 | T73: 0.0% | U73: 1
A74: UNICAJAS | B74: UNICAJAS | C74: UPA ORQUIDEAS | D74: 01-USAQUEN | E74: 6 | F74: 1 | G74: 0 | S74: 0 | T74: 0.0% | U74: 1
A75: UNICAJAS | B75: UNICAJAS | C75: UPA CODITO | D75: 01-USAQUEN | E75: 5 | F75: 0 | G75: 1 | S75: 1 | T75: 20.0%
A76: UNICAJAS | B76: UNICAJAS | C76: CAMI VERBENAL | D76: 01-USAQUEN | E76: 6 | F76: 1 | G76: 2 | S76: 2 | T76: 33.3%
A77: 01-USAQUEN | B77: UNICAJAS | C77: HOSPITAL SIMON BOLIVAR | D77: 01-USAQUEN | E77: 6 | F77: 1 | G77: 1 | S77: 1 | T77: 16.7%
A78: 01-USAQUEN | B78: OTROS | C78: UPA SAN CRISTOBAL | D78: 01-USAQUEN | E78: 300 | F78: 25 | G78: 5 | S78: 5 | T78: 1.7% | U78: 20
A79: 01-USAQUEN | B79: OTROS | C79: UPA USAQUEN | D79: 01-USAQUEN | E79: 100 | F79: 8 | G79: 0 | S79: 0 | T79: 0.0% | U79: 8
A80: 01-USAQUEN | B80: OTROS | C80: UPA ORQUIDEAS | D80: 01-USAQUEN | E80: 120 | F80: 10 | G80: 0 | S80: 0 | T80: 0.0% | U80: 10
A81: 01-USAQUEN | B81: OTROS | C81: UPA CODITO | D81: 01-USAQUEN | E81: 218 | F81: 18 | G81: 4 | S81: 4 | T81: 1.8% | U81: 14
A82: 01-USAQUEN | B82: OTROS | C82: CAMI VERBENAL | D82: 01-USAQUEN | E82: 309 | F82: 26 | G82: 5 | S82: 5 | T82: 1.6% | U82: 21
A83: 01-USAQUEN | B83: OTROS | C83: HOSPITAL SIMON BOLIVAR | D83: 01-USAQUEN | E83: 480 | F83: 40 | G83: 5 | S83: 5 | T83: 1.0% | U83: 35
A84: 01-USAQUEN | B84: DEMAS EAPB | C84: UPA SAN CRISTOBAL | D84: 01-USAQUEN | F84: 0 | G84: 8 | S84: 8 | T84: 0.0%
A85: 01-USAQUEN | B85: DEMAS EAPB | C85: UPA USAQUEN | D85: 01-USAQUEN | F85: 0 | G85: 1 | S85: 1 | T85: 0.0%
A86: 01-USAQUEN | B86: DEMAS EAPB | C86: UPA ORQUIDEAS | D86: 01-USAQUEN | F86: 0 | G86: 2 | S86: 2 | T86: 0.0%
A87: 01-USAQUEN | B87: DEMAS EAPB | C87: UPA CODITO | D87: 01-USAQUEN | F87: 0 | G87: 11 | S87: 11 | T87: 0.0%
A88: 01-USAQUEN | B88: DEMAS EAPB | C88: CAMI VERBENAL | D88: 01-USAQUEN | F88: 0 | G88: 26 | S88: 26 | T88: 0.0%
A89: 01-USAQUEN | B89: DEMAS EAPB | C89: HOSPITAL SIMON BOLIVAR | D89: 01-USAQUEN | F89: 0 | G89: 15 | S89: 15 | T89: 0.0%
A90: MEDIMAS | B90: MEDIMAS | C90: Corvesalud S.A.S - I P S Chico | D90: 01-USAQUEN | E90: 320 | F90: 27 | G90: 3 | S90: 3 | T90: 0.9% | U90: 24
A91: FAMISANAR | B91: COLSUBSIDIO | C91: Sura PAC Santa Bárbara | D91: 01-USAQUEN | F91: 0 | S91: 0 | T91: 0.0% | U91: 0
A92: CAPITAL SALUD | B92: CAPITAL SALUD | C92: UPA SAN LUIS | D92: 02-CHAPINERO | E92: 12 | F92: 1 | G92: 2 | S92: 2 | T92: 16.7%
A93: 02-CHAPINERO | B93: 02-CHAPINERO | C93: EXTRAMURAL CHAPINERO | D93: 02-CHAPINERO | E93: 0 | F93: 0 | G93: 0 | S93: 0 | T93: 0.0% | U93: 0
A94: COMPENSAR | B94: COMPENSAR | C94: USS CALLE 42 | D94: 02-CHAPINERO | E94: 612 | F94: 51 | G94: 29 | S94: 29 | T94: 4.7% | U94: 22
A95: COMPENSAR | B95: COMPENSAR | C95: USS CALLE 67 | D95: 02-CHAPINERO | E95: 0 | F95: 0 | G95: 0 | S95: 0 | T95: 0.0% | U95: 0
A96: COMPENSAR | B96: COMPENSAR | C96: USS CALLE 94 | D96: 02-CHAPINERO | E96: 369 | F96: 31 | G96: 57 | S96: 57 | T96: 15.4%
A97: COMPENSAR | B97: COMPENSAR | C97: VIVA 1A IPS CHAPINERO | D97: 02-CHAPINERO | E97: 73 | F97: 6 | G97: 1 | S97: 1 | T97: 1.4% | U97: 5
A98: COOMEVA | B98: COOMEVA | C98: SINERGIA UNIDAD BASICA LOURDES | D98: 02-CHAPINERO | E98: 217 | F98: 18 | G98: 7 | S98: 7 | T98: 3.2% | U98: 11
A99: FAMISANAR | B99: FAMI- CAFAM | C99: CENTRO DE ATENCION EN SALUD CAFAM CALLE 48 | D99: 02-CHAPINERO | E99: 1050 | F99: 88 | G99: 23 | S99: 23 | T99: 2.2% | U99: 65
A100: FAMISANAR | B100: FAMI- CAFAM | C100: CENTRO DE ATENCION EN SALUD CAFAM CALLE 90 | D100: 02-CHAPINERO | E100: 200 | F100: 17 | G100: 16 | S100: 16 | T100: 8.0% | U100: 1
A101: FAMISANAR | B101: FAMI- COLSB | C101: CLINICA COLSUBSIDIO EL LAGO | D101: 02-CHAPINERO | E101: 392 | F101: 33 | G101: 4 | S101: 4 | T101: 1.0% | U101: 29
A102: MILITAR | B102: MILITAR | C102: HOSPITAL MILITAR CENTRAL | D102: 02-CHAPINERO | E102: 70 | F102: 6 | G102: 6 | S102: 6 | T102: 8.6%
A103: POLICIA | B103: POLICIA | C103: POLICIA NACIONAL ESPAM CHAPINERO | D103: 02-CHAPINERO | E103: 117 | F103: 10 | G103: 1 | S103: 1 | T103: 0.9% | U103: 9
A104: NUEVA EPS | B104: NUEVA EPS | C104: IPS VIVA 1A SEDE MARLY | D104: 02-CHAPINERO | E104: 131 | F104: 11 | G104: 2 | S104: 2 | T104: 1.5% | U104: 9
A105: SANITAS | B105: SANITAS | C105: EPS SANITAS CENTRO MEDICO TEUSAQUILLO | D105: 02-CHAPINERO | E105: 579 | F105: 48 | G105: 20 | S105: 20 | T105: 3.5% | U105: 28
A106: SALUD TOTAL | B106: SALUD TOTAL | C106: VIRREY SOLIS CHAPINERO | D106: 02-CHAPINERO | E106: 337 | F106: 28 | G106: 13 | S106: 13 | T106: 3.9% | U106: 15
A107: SURA | B107: SURA | C107: PUNTO DE SALUD CHAPINERO | D107: 02-CHAPINERO | E107: 237 | F107: 20 | G107: 13 | S107: 13 | T107: 5.5% | U107: 7
A108: SURA | B108: SURA | C108: SALUD SURA | D108: 02-CHAPINERO | E108: 454 | F108: 38 | G108: 52 | S108: 52 | T108: 11.5%
A109: PARTICULAR | B109: PARTICULAR | C109: CENTRO MEDICO COLSANITAS CALLE 96 | D109: 02-CHAPINERO | E109: 24 | F109: 2 | G109: 2 | S109: 2 | T109: 8.3% | U109: 0
A110: PARTICULAR | B110: PARTICULAR | C110: CENTRO DE ESPECIALISTAS MEDICOS AXA COLPATRIA | D110: 02-CHAPINERO | E110: 0 | F110: 0 | G110: 4 | S110: 4 | T110: 0.0%
A111: PARTICULAR | B111: PARTICULAR | C111: CLINICA DE LA MUJER | D111: 02-CHAPINERO | E111: 0 | F111: 0 | G111: 39 | S111: 39 | T111: 0.0%
A112: PARTICULAR | B112: PARTICULAR | C112: VACUNARTE IPS | D112: 02-CHAPINERO | E112: 0 | F112: 0 | G112: 2 | S112: 2 | T112: 0.0%
A113: PARTICULAR | B113: PARTICULAR | C113: UNIMARLY | D113: 02-CHAPINERO | E113: 0 | F113: 0 | G113: 0 | S113: 0 | T113: 0.0% | U113: 0
A114: PARTICULAR | B114: PARTICULAR | C114: HOSPITAL SAN IGNACIO | D114: 02-CHAPINERO | E114: 0 | F114: 0 | G114: 2 | S114: 2 | T114: 0.0%
A115: PARTICULAR | B115: PARTICULAR | C115: PROGRAMA MADRE CANGURO HOSPITAL SAN IGNACIO | D115: 02-CHAPINERO | E115: 0 | F115: 0 | G115: 25 | S115: 25 | T115: 0.0%
A116: PARTICULAR | B116: PARTICULAR | C116: IPS AVENIR | D116: 02-CHAPINERO | E116: 0 | F116: 0 | G116: 0 | S116: 0 | T116: 0.0% | U116: 0
A117: PARTICULAR | B117: PARTICULAR | C117: IPS INMUNOLOGIA Y DIAGNOSTICO ESPECIALIZADO | D117: 02-CHAPINERO | E117: 0 | F117: 0 | G117: 0 | S117: 0 | T117: 0.0% | U117: 0
A118: PARTICULAR | B118: PARTICULAR | C118: ASOCIACION PEDIATRICA DE LOS ANDES | D118: 02-CHAPINERO | E118: 0 | F118: 0 | G118: 1 | S118: 1 | T118: 0.0%
A119: PARTICULAR | B119: PARTICULAR | C119: CRUZ ROJA SEDE ANDINO | D119: 02-CHAPINERO | E119: 0 | F119: 0 | G119: 0 | S119: 0 | T119: 0.0% | U119: 0
A120: PARTICULAR | B120: PARTICULAR | C120: CENTRO MEDICO SANTA MONICA | D120: 02-CHAPINERO | E120: 0 | F120: 0 | S120: 0 | T120: 0.0% | U120: 0
A121: PEDIATRAS | B121: PEDIATRAS | C121: DR. JUAN OSCAR TAMAYO | D121: 02-CHAPINERO | E121: 0 | F121: 0 | G121: 0 | S121: 0 | T121: 0.0% | U121: 0
A122: PEDIATRAS | B122: PEDIATRAS | C122: DR. ROBERTO SUAREZ | D122: 02-CHAPINERO | E122: 0 | F122: 0 | G122: 0 | S122: 0 | T122: 0.0% | U122: 0
A123: PEDIATRAS | B123: PEDIATRAS | C123: DR. WILLIAM RICARDO CABRA | D123: 02-CHAPINERO | E123: 0 | F123: 0 | G123: 1 | S123: 1 | T123: 0.0%
A124: PEDIATRAS | B124: PEDIATRAS | C124: DR. EDGAR CASTRO | D124: 02-CHAPINERO | E124: 0 | F124: 0 | G124: 3 | S124: 3 | T124: 0.0%
A125: PEDIATRAS | B125: PEDIATRAS | C125: DR. PABLO KRAUSS | D125: 02-CHAPINERO | E125: 0 | F125: 0 | G125: 3 | S125: 3 | T125: 0.0%
A126: PEDIATRAS | B126: PEDIATRAS | C126: DR. HERNAN ROBLES | D126: 02-CHAPINERO | E126: 0 | F126: 0 | G126: 5 | S126: 5 | T126: 0.0%
A127: PEDIATRAS | B127: PEDIATRAS | C127: DR. RAFAEL GAMBOA CASABLANCA | D127: 02-CHAPINERO | E127: 0 | F127: 0 | G127: 2 | S127: 2 | T127: 0.0%
A128: PEDIATRAS | B128: PEDIATRAS | C128: DR. JAVIER MEJIA | D128: 02-CHAPINERO | E128: 0 | F128: 0 | G128: 3 | S128: 3 | T128: 0.0%
A129: PEDIATRAS | B129: PEDIATRAS | C129: DR. CARLOS CORTAZAR | D129: 02-CHAPINERO | E129: 0 | F129: 0 | G129: 0 | S129: 0 | T129: 0.0% | U129: 0
A130: PEDIATRAS | B130: PEDIATRAS | C130: DR. NELSON PARDO | D130: 02-CHAPINERO | E130: 0 | F130: 0 | G130: 1 | S130: 1 | T130: =IF(E130=0,0,+S130/E130) -> 0.0% | U130: =IF(COUNT(G130:R130)*(E130/12)-S130<0,"",COUNT(G130:R130)*(E130/12)-S130) -> 
A131: PEDIATRAS | B131: PEDIATRAS | C131: DR. ALVARO JACOME | D131: 02-CHAPINERO | E131: 0 | F131: =+E131/12 -> 0 | G131: 0 | S131: =SUM(G131:R131) -> 0 | T131: 0.0% | U131: 0
A132: PEDIATRAS | B132: PEDIATRAS | C132: DR. SILVIO COPO | D132: 02-CHAPINERO | E132: 0 | F132: 0 | G132: 0 | S132: 0 | T132: 0.0% | U132: 0
A133: PEDIATRAS | B133: PEDIATRAS | C133: DR. HECTOR FERNANDO MENDOZA | D133: 02-CHAPINERO | E133: 0 | F133: 0 | G133: 1 | S133: 1 | T133: 0.0%
A134: PEDIATRAS | B134: PEDIATRAS | C134: DR. DIMITRIOS | D134: 02-CHAPINERO | E134: 0 | F134: 0 | G134: 0 | S134: 0 | T134: 0.0% | U134: 0
A135: PEDIATRAS | B135: PEDIATRAS | C135: DR. ALVARO MARIÑO | D135: 02-CHAPINERO | E135: 0 | F135: 0 | G135: 0 | S135: 0 | T135: 0.0% | U135: 0
A136: PEDIATRAS | B136: PEDIATRAS | C136: DR. ANDRES VARGAS | D136: 02-CHAPINERO | E136: 0 | F136: 0 | G136: 0 | S136: 0 | T136: 0.0% | U136: 0
A137: PEDIATRAS | B137: PEDIATRAS | C137: DR. JORGE CAMILO LUNA | D137: 02-CHAPINERO | E137: 0 | F137: 0 | G137: 0 | S137: 0 | T137: 0.0% | U137: 0
A138: PEDIATRAS | B138: PEDIATRAS | C138: DR. BERNARDO HUERTAS | D138: 02-CHAPINERO | E138: 0 | F138: 0 | G138: 9 | S138: 9 | T138: 0.0%
A139: PEDIATRAS | B139: PEDIATRAS | C139: DR. CARLOS M CASTILLO | D139: 02-CHAPINERO | E139: 0 | F139: 0 | G139: 0 | S139: 0 | T139: 0.0% | U139: 0
A140: PEDIATRAS | B140: PEDIATRAS | C140: DR. HEINZ OTTO PFALZGRAF | D140: 02-CHAPINERO | E140: 0 | F140: 0 | G140: 0 | S140: 0 | T140: 0.0% | U140: 0
A141: PEDIATRAS | B141: PEDIATRAS | C141: DR. GONZALEZ BALLESTEROS | D141: 02-CHAPINERO | E141: 0 | F141: 0 | G141: 0 | S141: 0 | T141: 0.0% | U141: 0
A142: PEDIATRAS | B142: PEDIATRAS | C142: DR. NORBERTO SALAMANCA | D142: 02-CHAPINERO | E142: 0 | F142: 0 | G142: 0 | S142: 0 | T142: 0.0% | U142: 0
A143: PEDIATRAS | B143: PEDIATRAS | C143: DR. CAMILO ENRIQUE SOTOMAYOR | D143: 02-CHAPINERO | E143: 0 | F143: 0 | G143: 1 | S143: 1 | T143: 0.0%
A144: PEDIATRAS | B144: PEDIATRAS | C144: DR. SANTIAGO RUEDA SAIZ | D144: 02-CHAPINERO | E144: 0 | F144: 0 | G144: 5 | S144: 5 | T144: 0.0%
A145: PEDIATRAS | B145: PEDIATRAS | C145: DR. HENRY HERNANDO SANCHEZ ESCOBAR | D145: 02-CHAPINERO | E145: 0 | F145: 0 | G145: 1 | S145: 1 | T145: 0.0%
A146: PEDIATRAS | B146: PEDIATRAS | C146: DR. RUBEN DARIO TAMAYO | D146: 02-CHAPINERO | E146: 0 | F146: 0 | G146: 1 | S146: 1 | T146: 0.0%
A147: PEDIATRAS | B147: PEDIATRAS | C147: DR. JAIME MAURICIO MATALLANA | D147: 02-CHAPINERO | E147: 0 | F147: 0 | G147: 5 | S147: 5 | T147: 0.0%
A148: PEDIATRAS | B148: PEDIATRAS | C148: DR. RODRIGO GARCIA | D148: 02-CHAPINERO | E148: 0 | F148: 0 | G148: 0 | S148: 0 | T148: 0.0% | U148: 0
A149: PEDIATRAS | B149: PEDIATRAS | C149: DR. FELIPE ROBAYO | D149: 02-CHAPINERO | E149: 0 | F149: 0 | G149: 0 | S149: 0 | T149: 0.0% | U149: 0
A150: PEDIATRAS | B150: PEDIATRAS | C150: DR. RUBEN FRANCO | D150: 02-CHAPINERO | E150: 0 | F150: 0 | G150: 0 | S150: 0 | T150: 0.0% | U150: 0
A151: PEDIATRAS | B151: PEDIATRAS | C151: DR. ORLANDO RODRIGUEZ RAMIREZ | D151: 02-CHAPINERO | E151: 0 | F151: 0 | G151: 2 | S151: 2 | T151: 0.0%
A152: PEDIATRAS | B152: PEDIATRAS | C152: DR. ARTURO MORENO | D152: 02-CHAPINERO | E152: 0 | F152: 0 | G152: 0 | S152: 0 | T152: 0.0% | U152: 0
A153: PEDIATRAS | B153: PEDIATRAS | C153: DR. FRANCISCO LEAL QUEVEDO | D153: 02-CHAPINERO | E153: 0 | F153: 0 | G153: 0 | S153: 0 | T153: 0.0% | U153: 0
A154: PEDIATRAS | B154: PEDIATRAS | C154: DR. CARLOS DIAZ PUENTES | D154: 02-CHAPINERO | E154: 0 | F154: 0 | G154: 0 | S154: 0 | T154: 0.0% | U154: 0
A155: PEDIATRAS | B155: PEDIATRAS | C155: DR. PEDRO ERASMO MENDOZA | D155: 02-CHAPINERO | E155: 0 | F155: 0 | G155: 0 | S155: 0 | T155: 0.0% | U155: 0
A156: PEDIATRAS | B156: PEDIATRAS | C156: DR. DIMAS ROSAS | D156: 02-CHAPINERO | E156: 0 | F156: 0 | G156: 0 | S156: 0 | T156: 0.0% | U156: 0
A157: PEDIATRAS | B157: PEDIATRAS | C157: DR. JAVIER BRITO MORENO | D157: 02-CHAPINERO | E157: 0 | F157: 0 | G157: 0 | S157: 0 | T157: 0.0% | U157: 0
A158: PEDIATRAS | B158: PEDIATRAS | C158: DR. GUSTAVO CORTÉS | D158: 02-CHAPINERO | E158: 0 | F158: 0 | G158: 0 | S158: 0 | T158: 0.0% | U158: 0
A159: PEDIATRAS | B159: PEDIATRAS | C159: DR. CARLOS VELASQUEZ | D159: 02-CHAPINERO | E159: 0 | F159: 0 | G159: 0 | S159: 0 | T159: 0.0% | U159: 0
A160: PEDIATRAS | B160: PEDIATRAS | C160: DR. RICARDO GOMEZ | D160: 02-CHAPINERO | E160: 0 | F160: 0 | G160: 0 | S160: 0 | T160: 0.0% | U160: 0
A161: PEDIATRAS | B161: PEDIATRAS | C161: DR. SARA BERNAL | D161: 02-CHAPINERO | E161: 0 | F161: 0 | G161: 1 | S161: 1 | T161: 0.0%
A162: PEDIATRAS | B162: PEDIATRAS | C162: DRA. MARIA PATRICIA AGUALIMPIA | D162: 02-CHAPINERO | E162: 0 | F162: 0 | G162: 0 | S162: 0 | T162: 0.0% | U162: 0
A163: PEDIATRAS | B163: PEDIATRAS | C163: DRA. LUISA FERNANDA FORERO ACOSTA | D163: 02-CHAPINERO | E163: 0 | F163: 0 | G163: 0 | S163: 0 | T163: 0.0% | U163: 0
A164: PEDIATRAS | B164: PEDIATRAS | C164: DRA. MARIA CLARA CASAS PARDO | D164: 02-CHAPINERO | E164: 0 | F164: 0 | G164: 0 | S164: 0 | T164: 0.0% | U164: 0
A165: PEDIATRAS | B165: PEDIATRAS | C165: DRA. MARTHA EUGENIA RONDEROS DE FORERO | D165: 02-CHAPINERO | E165: 0 | F165: 0 | G165: 0 | S165: 0 | T165: 0.0% | U165: 0
A166: PEDIATRAS | B166: PEDIATRAS | C166: DRA. MARIA ISABEL USCHER | D166: 02-CHAPINERO | E166: 0 | F166: 0 | G166: 5 | S166: 5 | T166: 0.0%
A167: PEDIATRAS | B167: PEDIATRAS | C167: DRA. MARIA DE LOS ANGELES MUÑOZ | D167: 02-CHAPINERO | E167: 0 | F167: 0 | G167: 2 | S167: 2 | T167: 0.0%
A168: PEDIATRAS | B168: PEDIATRAS | C168: DRA. CLARA ABELLO REYES | D168: 02-CHAPINERO | E168: 0 | F168: 0 | G168: 1 | S168: 1 | T168: 0.0%
A169: PEDIATRAS | B169: PEDIATRAS | C169: DRA. PATRICIA CONTRERAS | D169: 02-CHAPINERO | E169: 0 | F169: 0 | G169: 1 | S169: 1 | T169: 0.0%
A170: PEDIATRAS | B170: PEDIATRAS | C170: DRA. CLAUDIA ZOPPI | D170: 02-CHAPINERO | E170: 0 | F170: 0 | G170: 0 | S170: 0 | T170: 0.0% | U170: 0
A171: PEDIATRAS | B171: PEDIATRAS | C171: DRA. MARIA DE LOS ANGELES FERNANDEZ LUQUE | D171: 02-CHAPINERO | E171: 0 | F171: 0 | G171: 0 | S171: 0 | T171: 0.0% | U171: 0
A172: PEDIATRAS | B172: PEDIATRAS | C172: DRA. RUTH CORDOBA CORDOBA | D172: 02-CHAPINERO | E172: 0 | F172: 0 | G172: 0 | S172: 0 | T172: 0.0% | U172: 0
A173: PEDIATRAS | B173: PEDIATRAS | C173: DRA. LUZ ESTELA CORTES | D173: 02-CHAPINERO | E173: 0 | F173: 0 | G173: 0 | S173: 0 | T173: 0.0% | U173: 0
A174: UNICAJAS | B174: UNICAJAS | C174: UPA SAN LUIS | D174: 02-CHAPINERO | E174: 18 | F174: 2 | G174: 0 | S174: 0 | T174: 0.0% | U174: 2
A175: 02-CHAPINERO | B175: OTROS | C175: UPA SAN LUIS | D175: 02-CHAPINERO | E175: 325 | F175: 27 | G175: 0 | S175: 0 | T175: 0.0% | U175: 27
A176: 02-CHAPINERO | B176: DEMAS EAPB | C176: UPA SAN LUIS | D176: 02-CHAPINERO | F176: 0 | G176: 5 | S176: 5 | T176: 0.0%
A177: UNICAJAS | B177: UNICAJAS | C177: COMFASALUD SEDE CENTRO | D177: 03-SANTA FE | E177: 50 | F177: 4 | G177: 5 | S177: 5 | T177: 10.0%
A178: MEDIMAS | B178: MEDIMAS | C178: CORVESALUD TEUSAQUILLO | D178: 03-SANTA FE | E178: 193 | F178: 16 | G178: 4 | S178: 4 | T178: 2.1% | U178: 12
A179: 03-SANTA FE | B179: CAPITAL SALUD | C179: EXTRAMURAL SANTA FE | D179: 03-SANTA FE | E179: 0 | F179: 0 | G179: 6 | S179: 6 | T179: 0.0%
A180: 03-SANTA FE | B180: DEMAS EAPB | C180: EXTRAMURAL SANTA FE | D180: 03-SANTA FE | E180: 0 | F180: 0 | G180: 8 | S180: 8 | T180: 0.0%
A181: 03-SANTA FE | B181: OTROS | C181: EXTRAMURAL SANTA FE | D181: 03-SANTA FE | E181: 0 | F181: 0 | G181: 4 | S181: 4 | T181: 0.0%
A182: 03-SANTA FE | B182: UNICAJAS | C182: EXTRAMURAL SANTA FE | D182: 03-SANTA FE | E182: 0 | F182: 0 | G182: 0 | S182: 0 | T182: 0.0% | U182: 0
A183: 03-SANTA FE | B183: CAPITAL SALUD | C183: USS LACHES | D183: 03-SANTA FE | E183: 54 | F183: 5 | G183: 6 | S183: 6 | T183: 11.1%
A184: 03-SANTA FE | B184: DEMAS EAPB | C184: USS LACHES | D184: 03-SANTA FE | E184: 0 | F184: 0 | G184: 9 | S184: 9 | T184: 0.0%
A185: 03-SANTA FE | B185: OTROS | C185: USS LACHES | D185: 03-SANTA FE | E185: 260 | F185: 22 | G185: 0 | S185: 0 | T185: 0.0% | U185: 22
A186: 03-SANTA FE | B186: UNICAJAS | C186: USS LACHES | D186: 03-SANTA FE | E186: 17 | F186: 1 | G186: 4 | S186: 4 | T186: 23.5%
A187: 03-SANTA FE | B187: CAPITAL SALUD | C187: USS LAS CRUCES | D187: 03-SANTA FE | E187: 44 | F187: 4 | G187: 5 | S187: 5 | T187: 11.4%
A188: 03-SANTA FE | B188: DEMAS EAPB | C188: USS LAS CRUCES | D188: 03-SANTA FE | E188: 0 | F188: 0 | G188: 4 | S188: 4 | T188: 0.0%
A189: 03-SANTA FE | B189: OTROS | C189: USS LAS CRUCES | D189: 03-SANTA FE | E189: 211 | F189: 18 | G189: 2 | S189: 2 | T189: 0.9% | U189: 16
A190: 03-SANTA FE | B190: UNICAJAS | C190: USS LAS CRUCES | D190: 03-SANTA FE | E190: 14 | F190: 1 | G190: 1 | S190: 1 | T190: 7.1% | U190: 0
A191: 03-SANTA FE | B191: CAPITAL SALUD | C191: USS PERSEVERANCIA | D191: 03-SANTA FE | E191: 6 | F191: 1 | G191: 1 | S191: 1 | T191: 16.7%
A192: 03-SANTA FE | B192: DEMAS EAPB | C192: USS PERSEVERANCIA | D192: 03-SANTA FE | E192: 0 | F192: 0 | G192: 3 | S192: 3 | T192: 0.0%
A193: 03-SANTA FE | B193: OTROS | C193: USS PERSEVERANCIA | D193: 03-SANTA FE | E193: 30 | F193: 3 | G193: 1 | S193: 1 | T193: 3.3% | U193: 2
A194: 03-SANTA FE | B194: UNICAJAS | C194: USS PERSEVERANCIA | D194: 03-SANTA FE | E194: 2 | F194: 0 | G194: 1 | S194: 1 | T194: =IF(E194=0,0,+S194/E194) -> 50.0% | U194: =IF(COUNT(G194:R194)*(E194/12)-S194<0,"",COUNT(G194:R194)*(E194/12)-S194) -> 
A195: PARTICULAR | B195: PARTICULAR | C195: CLINICA SAN RAFAEL | D195: 04-SAN CRISTOBAL | E195: 375 | F195: =+E195/12 -> 31 | G195: 19 | S195: =SUM(G195:R195) -> 19 | T195: 5.1% | U195: 12
A196: FAMISANAR | B196: FAMI- COLSB | C196: CENTRO MEDICO COLSUBSIDIO 20 DE JULIO | D196: 04-SAN CRISTOBAL | F196: 0 | S196: 0 | T196: 0.0% | U196: 0
A197: 04-SAN CRISTOBAL | B197: CAPITAL SALUD | C197: EXTRAMURAL SAN CRISTOBAL | D197: 04-SAN CRISTOBAL | E197: 0 | F197: 0 | G197: 39 | S197: 39 | T197: 0.0%
A198: 04-SAN CRISTOBAL | B198: DEMAS EAPB | C198: EXTRAMURAL SAN CRISTOBAL | D198: 04-SAN CRISTOBAL | E198: 0 | F198: 0 | G198: 73 | S198: 73 | T198: 0.0%
A199: 04-SAN CRISTOBAL | B199: OTROS | C199: EXTRAMURAL SAN CRISTOBAL | D199: 04-SAN CRISTOBAL | E199: 0 | F199: 0 | G199: 5 | S199: 5 | T199: 0.0%
A200: 04-SAN CRISTOBAL | B200: UNICAJAS | C200: EXTRAMURAL SAN CRISTOBAL | D200: 04-SAN CRISTOBAL | E200: 0 | F200: 0 | G200: 4 | S200: 4 | T200: 0.0%
... 620 more rows

Sheet ROTAVIRUS1
A1: EAPB | B1: EPS O ESE | C1: IPS | D1: Localidad | E1: Meta Anual Menor de 1 Año | F1: Meta Mensual | G1: Enero | H1: Febrero | I1: Marzo | J1: Abril | K1: Mayo | L1: Junio | M1: Julio | N1: Agosto | O1: Septiembre | P1: Octubre | Q1: Noviembre | R1: Diciembre | S1: Total | T1: % Cobertura | U1: Deficit
A2: CAPITAL SALUD | B2: CAPITAL SALUD | C2: UPA SAN CRISTOBAL | D2: 01-USAQUEN | E2: 124 | F2: =+E2/12 -> 10 | G2: 6 | S2: =SUM(G2:R2) -> 6 | T2: =IF(E2=0,0,+S2/E2) -> 4.8% | U2: =IF(COUNT(G2:R2)*(E2/12)-S2<0,"",COUNT(G2:R2)*(E2/12)-S2) -> 4
A3: CAPITAL SALUD | B3: CAPITAL SALUD | C3: UPA USAQUEN | D3: 01-USAQUEN | E3: 10 | F3: =+E3/12 -> 1 | G3: 0 | S3: =SUM(G3:R3) -> 0 | T3: 0.0% | U3: 1
A4: CAPITAL SALUD | B4: CAPITAL SALUD | C4: UPA ORQUIDEAS | D4: 01-USAQUEN | E4: 11 | F4: 1 | G4: 1 | S4: 1 | T4: 9.1%
A5: CAPITAL SALUD | B5: CAPITAL SALUD | C5: UPA CODITO | D5: 01-USAQUEN | E5: 107 | F5: 9 | G5: 7 | S5: 7 | T5: 6.5% | U5: 2
A6: CAPITAL SALUD | B6: CAPITAL SALUD | C6: CAMI VERBENAL | D6: 01-USAQUEN | E6: 87 | F6: 7 | G6: 10 | S6: 10 | T6: 11.5%
A7: CAPITAL SALUD | B7: CAPITAL SALUD | C7: HOSPITAL SIMON BOLIVAR | D7: 01-USAQUEN | E7: 36 | F7: 3 | G7: 22 | S7: 22 | T7: 61.1%
A8: 01-USAQUEN | B8: 01-USAQUEN | C8: EXTRAMURAL USAQUEN | D8: 01-USAQUEN | E8: 0 | F8: 0 | G8: 5 | S8: 5 | T8: 0.0%
A9: ALIANSALUD | B9: ALIANSALUD | C9: CENTRO MEDICO COLMEDICA SANTA BARBARA | D9: 01-USAQUEN | E9: 580 | F9: 48 | G9: 63 | S9: 63 | T9: 10.9%
A10: COMPENSAR | B10: COMPENSAR | C10: USS CALLE 134 | D10: 01-USAQUEN | E10: 372 | F10: 31 | G10: 17 | S10: 17 | T10: 4.6% | U10: 14
A11: COMPENSAR | B11: COMPENSAR | C11: USS CALLE 145 | D11: 01-USAQUEN | E11: 173 | F11: 14 | G11: 12 | S11: 12 | T11: 6.9% | U11: 2
A12: COMPENSAR | B12: COMPENSAR | C12: JAVESALUD TOBERIN | D12: 01-USAQUEN | E12: 372 | F12: 31 | G12: 6 | S12: 6 | T12: 1.6% | U12: 25
A13: COOMEVA | B13: COOMEVA | C13: SINERGIA UNIDAD INTEGRAL EN SALUD | D13: 01-USAQUEN | E13: 44 | F13: 4 | G13: 5 | S13: 5 | T13: 11.4%
A14: FAMISANAR | B14: FAMI- COLSB | C14: CENTRO MEDICO COLSUBSIDIO USAQUEN | D14: 01-USAQUEN | E14: 298 | F14: 25 | G14: 37 | S14: 37 | T14: 12.4%
A15: MILITAR | B15: MILITAR | C15: DISPENSARIO MEDICO CANTON NORTE | D15: 01-USAQUEN | E15: 205 | F15: 17 | G15: 8 | S15: 8 | T15: 3.9% | U15: 9
A16: NUEVA EPS | B16: NUEVA EPS | C16: IPS VIVA 1A SEDE TOBERIN | D16: 01-USAQUEN | E16: 147 | F16: 12 | G16: 9 | S16: 9 | T16: 6.1% | U16: 3
A17: NUEVA EPS | B17: NUEVA EPS | C17: CAFAM GRANADA HILLS | D17: 01-USAQUEN | E17: 44 | F17: 4 | G17: 2 | S17: 2 | T17: 4.5% | U17: 2
A18: SANITAS | B18: SANITAS | C18: UAP SANITAS TOBERIN | D18: 01-USAQUEN | E18: 511 | F18: 43 | G18: 25 | S18: 25 | T18: 4.9% | U18: 18
A19: SANITAS | B19: SANITAS | C19: MEDIKA IPS SANITAS UAP USAQUEN | D19: 01-USAQUEN | E19: 188 | F19: 16 | G19: 4 | S19: 4 | T19: 2.1% | U19: 12
A20: SANITAS | B20: SANITAS | C20: UAP SANTA BARBARA | D20: 01-USAQUEN | E20: 796 | F20: 66 | G20: 93 | S20: 93 | T20: 11.7%
A21: SANITAS | B21: SANITAS | C21: SANITAS BANCO DE LA REPUBLICA | D21: 01-USAQUEN | E21: 0 | F21: 0 | G21: 3 | S21: 3 | T21: 0.0%
A22: SALUD TOTAL | B22: SALUD TOTAL | C22: VIRREY SOLIS TOBERÍN | D22: 01-USAQUEN | E22: 384 | F22: 32 | G22: 24 | S22: 24 | T22: 6.3% | U22: 8
A23: SURA | B23: SURA | C23: IPS JAVESALUD SANTA BEATRIZ | D23: 01-USAQUEN | E23: 355 | F23: 30 | G23: 20 | S23: 20 | T23: 5.6% | U23: 10
A24: ECOPETROL | B24: ECOPETROL | C24: IPS CLINICOS PALATINO | D24: 01-USAQUEN | E24: 87 | F24: 7 | G24: 6 | S24: 6 | T24: 6.9% | U24: 1
A25: PARTICULAR | B25: PARTICULAR | C25: CLINICA PEDIATRICA COLSANITAS | D25: 01-USAQUEN | E25: 830 | F25: 69 | G25: 59 | S25: 59 | T25: 7.1% | U25: 10
A26: PARTICULAR | B26: PARTICULAR | C26: CENTRO MEDICO COLSANITAS LA CALLEJA | D26: 01-USAQUEN | E26: 120 | F26: 10 | G26: 5 | S26: 5 | T26: 4.2% | U26: 5
A27: PARTICULAR | B27: PARTICULAR | C27: CENTRO MEDICO COLSANITAS 108 | D27: 01-USAQUEN | E27: 40 | F27: 3 | G27: 4 | S27: 4 | T27: 10.0%
A28: PARTICULAR | B28: PARTICULAR | C28: CENTRO MEDICO COLSANITAS SANTA ANA | D28: 01-USAQUEN | E28: 4 | F28: 0 | G28: 1 | S28: 1 | T28: 25.0%
A29: PARTICULAR | B29: PARTICULAR | C29: FUNDACIÓN CARDIO INFANTIL | D29: 01-USAQUEN | E29: 0 | F29: 0 | G29: 5 | S29: 5 | T29: 0.0%
A30: PARTICULAR | B30: PARTICULAR | C30: ENFASO USAQUEN | D30: 01-USAQUEN | E30: 0 | F30: 0 | G30: 9 | S30: 9 | T30: 0.0%
A31: PARTICULAR | B31: PARTICULAR | C31: UNIDAD DE VACUNACIÓN INTERNACIONAL | D31: 01-USAQUEN | E31: 0 | F31: 0 | G31: 6 | S31: 6 | T31: 0.0%
A32: PARTICULAR | B32: PARTICULAR | C32: INMUNOLOGÍA Y DIAGNÓSTICO ESPECIALIZADO LTDA. | D32: 01-USAQUEN | E32: 0 | F32: 0 | G32: 2 | S32: 2 | T32: 0.0%
A33: PARTICULAR | B33: PARTICULAR | C33: PROTEGER HEALHT CARE | D33: 01-USAQUEN | E33: 0 | F33: 0 | G33: 1 | S33: 1 | T33: 0.0%
A34: PARTICULAR | B34: PARTICULAR | C34: FUNDACION SANTA FE DE BOGOTA | D34: 01-USAQUEN | E34: 0 | F34: 0 | G34: 0 | S34: 0 | T34: 0.0% | U34: 0
A35: PARTICULAR | B35: PARTICULAR | C35: IPS CRUZ ROJA SEDE UNICENTRO | D35: 01-USAQUEN | E35: 0 | F35: 0 | G35: 0 | S35: 0 | T35: 0.0% | U35: 0
A36: PARTICULAR | B36: PARTICULAR | C36: IPS CRUZ ROJA SAMU CALLE 145 | D36: 01-USAQUEN | E36: 0 | F36: 0 | G36: 0 | S36: 0 | T36: 0.0% | U36: 0
A37: PEDIATRAS | B37: PEDIATRAS | C37: DR. ALEJANDRO LÓPEZ | D37: 01-USAQUEN | E37: 0 | F37: 0 | G37: 0 | S37: 0 | T37: 0.0% | U37: 0
A38: PEDIATRAS | B38: PEDIATRAS | C38: DR. CARLOS NEFTALI TORRES | D38: 01-USAQUEN | E38: 0 | F38: 0 | G38: 1 | S38: 1 | T38: 0.0%
A39: PEDIATRAS | B39: PEDIATRAS | C39: DR. FRANCISCO NUÑEZ | D39: 01-USAQUEN | E39: 0 | F39: 0 | G39: 1 | S39: 1 | T39: 0.0%
A40: PEDIATRAS | B40: PEDIATRAS | C40: DR. FERNANDO GOMEZ | D40: 01-USAQUEN | E40: 0 | F40: 0 | G40: 0 | S40: 0 | T40: 0.0% | U40: 0
A41: PEDIATRAS | B41: PEDIATRAS | C41: DR. FERNANDO ZARATE MORENO | D41: 01-USAQUEN | E41: 0 | F41: 0 | G41: 1 | S41: 1 | T41: 0.0%
A42: PEDIATRAS | B42: PEDIATRAS | C42: DR. GONZALO GARCIA | D42: 01-USAQUEN | E42: 0 | F42: 0 | G42: 1 | S42: 1 | T42: 0.0%
A43: PEDIATRAS | B43: PEDIATRAS | C43: DR. GUSTAVO MORALES | D43: 01-USAQUEN | E43: 0 | F43: 0 | G43: 2 | S43: 2 | T43: 0.0%
A44: PEDIATRAS | B44: PEDIATRAS | C44: DR. JAIME OSPINA | D44: 01-USAQUEN | E44: 0 | F44: 0 | G44: 1 | S44: 1 | T44: 0.0%
A45: PEDIATRAS | B45: PEDIATRAS | C45: DR. JORGE URIBE | D45: 01-USAQUEN | E45: 0 | F45: 0 | G45: 0 | S45: 0 | T45: 0.0% | U45: 0
A46: PEDIATRAS | B46: PEDIATRAS | C46: DR. JUAN LUIS FIGUEROA | D46: 01-USAQUEN | E46: 0 | F46: 0 | G46: 2 | S46: 2 | T46: 0.0%
A47: PEDIATRAS | B47: PEDIATRAS | C47: DR. LUIS AUGUSTO PERNA | D47: 01-USAQUEN | E47: 0 | F47: 0 | G47: 4 | S47: 4 | T47: 0.0%
A48: PEDIATRAS | B48: PEDIATRAS | C48: DR. LIBARDO ELI TRIANA | D48: 01-USAQUEN | E48: 0 | F48: 0 | G48: 0 | S48: 0 | T48: 0.0% | U48: 0
A49: PEDIATRAS | B49: PEDIATRAS | C49: DR. OSWALDO MERCADO HOYOS | D49: 01-USAQUEN | E49: 0 | F49: 0 | G49: 3 | S49: 3 | T49: 0.0%
A50: PEDIATRAS | B50: PEDIATRAS | C50: DR. ROBERTO BENIRO | D50: 01-USAQUEN | E50: 0 | F50: 0 | G50: 0 | S50: 0 | T50: 0.0% | U50: 0
A51: PEDIATRAS | B51: PEDIATRAS | C51: DR. SERGIO ISAZA | D51: 01-USAQUEN | E51: 0 | F51: 0 | G51: 0 | S51: 0 | T51: 0.0% | U51: 0
A52: PEDIATRAS | B52: PEDIATRAS | C52: DR. SANTIAGO UCROS | D52: 01-USAQUEN | E52: 0 | F52: 0 | G52: 0 | S52: 0 | T52: 0.0% | U52: 0
A53: PEDIATRAS | B53: PEDIATRAS | C53: DR. GERMAN SILVA | D53: 01-USAQUEN | E53: 0 | F53: 0 | G53: 0 | S53: 0 | T53: 0.0% | U53: 0
A54: PEDIATRAS | B54: PEDIATRAS | C54: DR. DANIEL ABRIL | D54: 01-USAQUEN | E54: 0 | F54: 0 | G54: 0 | S54: 0 | T54: 0.0% | U54: 0
A55: PEDIATRAS | B55: PEDIATRAS | C55: DR. CARLOS EDUARDO OLMOS | D55: 01-USAQUEN | E55: 0 | F55: 0 | G55: 0 | S55: 0 | T55: 0.0% | U55: 0
A56: PEDIATRAS | B56: PEDIATRAS | C56: DR. EDGARDO CHATMAN | D56: 01-USAQUEN | E56: 0 | F56: 0 | G56: 0 | S56: 0 | T56: 0.0% | U56: 0
A57: PEDIATRAS | B57: PEDIATRAS | C57: DR. JORGE FLOREZ OTERO | D57: 01-USAQUEN | E57: 0 | F57: 0 | G57: 0 | S57: 0 | T57: 0.0% | U57: 0
A58: PEDIATRAS | B58: PEDIATRAS | C58: DRA. ALEJANDRA MARIA VALENCIA | D58: 01-USAQUEN | E58: 0 | F58: 0 | G58: 0 | S58: 0 | T58: 0.0% | U58: 0
A59: PEDIATRAS | B59: PEDIATRAS | C59: DRA. ANA MARIA GOYENECHE | D59: 01-USAQUEN | E59: 0 | F59: 0 | G59: 0 | S59: 0 | T59: 0.0% | U59: 0
A60: PEDIATRAS | B60: PEDIATRAS | C60: DRA. JIMENA VARELA | D60: 01-USAQUEN | E60: 0 | F60: 0 | G60: 0 | S60: 0 | T60: 0.0% | U60: 0
A61: PEDIATRAS | B61: PEDIATRAS | C61: DRA. LIA SAN MIGUEL | D61: 01-USAQUEN | E61: 0 | F61: 0 | G61: 0 | S61: 0 | T61: 0.0% | U61: 0
A62: PEDIATRAS | B62: PEDIATRAS | C62: DRA. LIBIA SEGURA | D62: 01-USAQUEN | E62: 0 | F62: 0 | G62: 0 | S62: 0 | T62: 0.0% | U62: 0
A63: PEDIATRAS | B63: PEDIATRAS | C63: DRA. MARÍA JOSÉ PEDRAZA | D63: 01-USAQUEN | E63: 0 | F63: 0 | G63: 0 | S63: 0 | T63: 0.0% | U63: 0
A64: PEDIATRAS | B64: PEDIATRAS | C64: DRA. MARTHA LUCIA SANCHEZ | D64: 01-USAQUEN | E64: 0 | F64: 0 | G64: 0 | S64: 0 | T64: 0.0% | U64: 0
A65: PEDIATRAS | B65: PEDIATRAS | C65: DRA. OLGA LUCÍA SÁNCHEZ | D65: 01-USAQUEN | E65: 0 | F65: 0 | G65: 0 | S65: 0 | T65: 0.0% | U65: 0
A66: PEDIATRAS | B66: PEDIATRAS | C66: DRA. SANDRA BELTRAN | D66: 01-USAQUEN | E66: 0 | F66: 0 | G66: 0 | S66: 0 | T66: =IF(E66=0,0,+S66/E66) -> 0.0% | U66: =IF(COUNT(G66:R66)*(E66/12)-S66<0,"",COUNT(G66:R66)*(E66/12)-S66) -> 0
A67: PEDIATRAS | B67: PEDIATRAS | C67: DRA. IVANA CABRERA | D67: 01-USAQUEN | E67: 0 | F67: =+E67/12 -> 0 | G67: 0 | S67: =SUM(G67:R67) -> 0 | T67: 0.0% | U67: 0
A68: PEDIATRAS | B68: PEDIATRAS | C68: DRA. NAYITA ALARCON | D68: 01-USAQUEN | E68: 0 | F68: 0 | G68: 0 | S68: 0 | T68: 0.0% | U68: 0
A69: PEDIATRAS | B69: PEDIATRAS | C69: DRA. ELIZABETH GARCIA | D69: 01-USAQUEN | E69: 0 | F69: 0 | G69: 0 | S69: 0 | T69: 0.0% | U69: 0
A70: PEDIATRAS | B70: PEDIATRAS | C70: DRA. BERTHA CALDERON DE RAMOS | D70: 01-USAQUEN | E70: 0 | F70: 0 | G70: 0 | S70: 0 | T70: 0.0% | U70: 0
A71: PEDIATRAS | B71: PEDIATRAS | C71: DRA. MIRYAM CORREA | D71: 01-USAQUEN | E71: 0 | F71: 0 | G71: 0 | S71: 0 | T71: 0.0% | U71: 0
A72: 01-USAQUEN | B72: UNICAJAS | C72: UPA SAN CRISTOBAL | D72: 01-USAQUEN | E72: 6 | F72: 1 | G72: 1 | S72: 1 | T72: 16.7%
A73: UNICAJAS | B73: UNICAJAS | C73: UPA USAQUEN | D73: 01-USAQUEN | E73: 9 | F73: 1 | G73: 0 | S73: 0 | T73: 0.0% | U73: 1
A74: UNICAJAS | B74: UNICAJAS | C74: UPA ORQUIDEAS | D74: 01-USAQUEN | E74: 6 | F74: 1 | G74: 0 | S74: 0 | T74: 0.0% | U74: 1
A75: UNICAJAS | B75: UNICAJAS | C75: UPA CODITO | D75: 01-USAQUEN | E75: 5 | F75: 0 | G75: 0 | S75: 0 | T75: 0.0% | U75: 0
A76: UNICAJAS | B76: UNICAJAS | C76: CAMI VERBENAL | D76: 01-USAQUEN | E76: 6 | F76: 1 | G76: 0 | S76: 0 | T76: 0.0% | U76: 1
A77: 01-USAQUEN | B77: UNICAJAS | C77: HOSPITAL SIMON BOLIVAR | D77: 01-USAQUEN | E77: 6 | F77: 1 | G77: 1 | S77: 1 | T77: 16.7%
A78: 01-USAQUEN | B78: OTROS | C78: UPA SAN CRISTOBAL | D78: 01-USAQUEN | E78: 300 | F78: 25 | G78: 0 | S78: 0 | T78: 0.0% | U78: 25
A79: 01-USAQUEN | B79: OTROS | C79: UPA USAQUEN | D79: 01-USAQUEN | E79: 100 | F79: 8 | G79: 0 | S79: 0 | T79: 0.0% | U79: 8
A80: 01-USAQUEN | B80: OTROS | C80: UPA ORQUIDEAS | D80: 01-USAQUEN | E80: 120 | F80: 10 | G80: 0 | S80: 0 | T80: 0.0% | U80: 10
A81: 01-USAQUEN | B81: OTROS | C81: UPA CODITO | D81: 01-USAQUEN | E81: 218 | F81: 18 | G81: 4 | S81: 4 | T81: 1.8% | U81: 14
A82: 01-USAQUEN | B82: OTROS | C82: CAMI VERBENAL | D82: 01-USAQUEN | E82: 309 | F82: 26 | G82: 4 | S82: 4 | T82: 1.3% | U82: 22
A83: 01-USAQUEN | B83: OTROS | C83: HOSPITAL SIMON BOLIVAR | D83: 01-USAQUEN | E83: 480 | F83: 40 | G83: 8 | S83: 8 | T83: 1.7% | U83: 32
A84: 01-USAQUEN | B84: DEMAS EAPB | C84: UPA SAN CRISTOBAL | D84: 01-USAQUEN | F84: 0 | G84: 10 | S84: 10 | T84: 0.0%
A85: 01-USAQUEN | B85: DEMAS EAPB | C85: UPA USAQUEN | D85: 01-USAQUEN | F85: 0 | G85: 3 | S85: 3 | T85: 0.0%
A86: 01-USAQUEN | B86: DEMAS EAPB | C86: UPA ORQUIDEAS | D86: 01-USAQUEN | F86: 0 | G86: 2 | S86: 2 | T86: 0.0%
A87: 01-USAQUEN | B87: DEMAS EAPB | C87: UPA CODITO | D87: 01-USAQUEN | F87: 0 | G87: 7 | S87: 7 | T87: 0.0%
A88: 01-USAQUEN | B88: DEMAS EAPB | C88: CAMI VERBENAL | D88: 01-USAQUEN | F88: 0 | G88: 3 | S88: 3 | T88: 0.0%
A89: 01-USAQUEN | B89: DEMAS EAPB | C89: HOSPITAL SIMON BOLIVAR | D89: 01-USAQUEN | F89: 0 | G89: 20 | S89: 20 | T89: 0.0%
A90: MEDIMAS | B90: MEDIMAS | C90: Corvesalud S.A.S - I P S Chico | D90: 01-USAQUEN | E90: 320 | F90: 27 | G90: 5 | S90: 5 | T90: 1.6% | U90: 22
A91: FAMISANAR | B91: COLSUBSIDIO | C91: Sura PAC Santa Bárbara | D91: 01-USAQUEN | F91: 0 | S91: 0 | T91: 0.0% | U91: 0
A92: CAPITAL SALUD | B92: CAPITAL SALUD | C92: UPA SAN LUIS | D92: 02-CHAPINERO | E92: 12 | F92: 1 | G92: 4 | S92: 4 | T92: 33.3%
A93: 02-CHAPINERO | B93: 02-CHAPINERO | C93: EXTRAMURAL CHAPINERO | D93: 02-CHAPINERO | E93: 0 | F93: 0 | G93: 1 | S93: 1 | T93: 0.0%
A94: COMPENSAR | B94: COMPENSAR | C94: USS CALLE 42 | D94: 02-CHAPINERO | E94: 612 | F94: 51 | G94: 29 | S94: 29 | T94: 4.7% | U94: 22
A95: COMPENSAR | B95: COMPENSAR | C95: USS CALLE 67 | D95: 02-CHAPINERO | E95: 0 | F95: 0 | G95: 0 | S95: 0 | T95: 0.0% | U95: 0
A96: COMPENSAR | B96: COMPENSAR | C96: USS CALLE 94 | D96: 02-CHAPINERO | E96: 369 | F96: 31 | G96: 35 | S96: 35 | T96: 9.5%
A97: COMPENSAR | B97: COMPENSAR | C97: VIVA 1A IPS CHAPINERO | D97: 02-CHAPINERO | E97: 73 | F97: 6 | G97: 4 | S97: 4 | T97: 5.5% | U97: 2
A98: COOMEVA | B98: COOMEVA | C98: SINERGIA UNIDAD BASICA LOURDES | D98: 02-CHAPINERO | E98: 217 | F98: 18 | G98: 9 | S98: 9 | T98: 4.1% | U98: 9
A99: FAMISANAR | B99: FAMI- CAFAM | C99: CENTRO DE ATENCION EN SALUD CAFAM CALLE 48 | D99: 02-CHAPINERO | E99: 1050 | F99: 88 | G99: 31 | S99: 31 | T99: 3.0% | U99: 57
A100: FAMISANAR | B100: FAMI- CAFAM | C100: CENTRO DE ATENCION EN SALUD CAFAM CALLE 90 | D100: 02-CHAPINERO | E100: 200 | F100: 17 | G100: 11 | S100: 11 | T100: 5.5% | U100: 6
A101: FAMISANAR | B101: FAMI- COLSB | C101: CLINICA COLSUBSIDIO EL LAGO | D101: 02-CHAPINERO | E101: 392 | F101: 33 | G101: 8 | S101: 8 | T101: 2.0% | U101: 25
A102: MILITAR | B102: MILITAR | C102: HOSPITAL MILITAR CENTRAL | D102: 02-CHAPINERO | E102: 70 | F102: 6 | G102: 10 | S102: 10 | T102: 14.3%
A103: POLICIA | B103: POLICIA | C103: POLICIA NACIONAL ESPAM CHAPINERO | D103: 02-CHAPINERO | E103: 117 | F103: 10 | G103: 4 | S103: 4 | T103: 3.4% | U103: 6
A104: NUEVA EPS | B104: NUEVA EPS | C104: IPS VIVA 1A SEDE MARLY | D104: 02-CHAPINERO | E104: 131 | F104: 11 | G104: 9 | S104: 9 | T104: 6.9% | U104: 2
A105: SANITAS | B105: SANITAS | C105: EPS SANITAS CENTRO MEDICO TEUSAQUILLO | D105: 02-CHAPINERO | E105: 579 | F105: 48 | G105: 28 | S105: 28 | T105: 4.8% | U105: 20
A106: SALUD TOTAL | B106: SALUD TOTAL | C106: VIRREY SOLIS CHAPINERO | D106: 02-CHAPINERO | E106: 337 | F106: 28 | G106: 16 | S106: 16 | T106: 4.7% | U106: 12
A107: SURA | B107: SURA | C107: PUNTO DE SALUD CHAPINERO | D107: 02-CHAPINERO | E107: 237 | F107: 20 | G107: 13 | S107: 13 | T107: 5.5% | U107: 7
A108: SURA | B108: SURA | C108: SALUD SURA | D108: 02-CHAPINERO | E108: 454 | F108: 38 | G108: 46 | S108: 46 | T108: 10.1%
A109: PARTICULAR | B109: PARTICULAR | C109: CENTRO MEDICO COLSANITAS CALLE 96 | D109: 02-CHAPINERO | E109: 24 | F109: 2 | G109: 2 | S109: 2 | T109: 8.3% | U109: 0
A110: PARTICULAR | B110: PARTICULAR | C110: CENTRO DE ESPECIALISTAS MEDICOS AXA COLPATRIA | D110: 02-CHAPINERO | E110: 0 | F110: 0 | G110: 5 | S110: 5 | T110: 0.0%
A111: PARTICULAR | B111: PARTICULAR | C111: CLINICA DE LA MUJER | D111: 02-CHAPINERO | E111: 0 | F111: 0 | G111: 54 | S111: 54 | T111: 0.0%
A112: PARTICULAR | B112: PARTICULAR | C112: VACUNARTE IPS | D112: 02-CHAPINERO | E112: 0 | F112: 0 | G112: 1 | S112: 1 | T112: 0.0%
A113: PARTICULAR | B113: PARTICULAR | C113: UNIMARLY | D113: 02-CHAPINERO | E113: 0 | F113: 0 | G113: 0 | S113: 0 | T113: 0.0% | U113: 0
A114: PARTICULAR | B114: PARTICULAR | C114: HOSPITAL SAN IGNACIO | D114: 02-CHAPINERO | E114: 0 | F114: 0 | G114: 9 | S114: 9 | T114: 0.0%
A115: PARTICULAR | B115: PARTICULAR | C115: PROGRAMA MADRE CANGURO HOSPITAL SAN IGNACIO | D115: 02-CHAPINERO | E115: 0 | F115: 0 | G115: 96 | S115: 96 | T115: 0.0%
A116: PARTICULAR | B116: PARTICULAR | C116: IPS AVENIR | D116: 02-CHAPINERO | E116: 0 | F116: 0 | G116: 0 | S116: 0 | T116: 0.0% | U116: 0
A117: PARTICULAR | B117: PARTICULAR | C117: IPS INMUNOLOGIA Y DIAGNOSTICO ESPECIALIZADO | D117: 02-CHAPINERO | E117: 0 | F117: 0 | G117: 0 | S117: 0 | T117: 0.0% | U117: 0
A118: PARTICULAR | B118: PARTICULAR | C118: ASOCIACION PEDIATRICA DE LOS ANDES | D118: 02-CHAPINERO | E118: 0 | F118: 0 | G118: 1 | S118: 1 | T118: 0.0%
A119: PARTICULAR | B119: PARTICULAR | C119: CRUZ ROJA SEDE ANDINO | D119: 02-CHAPINERO | E119: 0 | F119: 0 | G119: 0 | S119: 0 | T119: 0.0% | U119: 0
A120: PARTICULAR | B120: PARTICULAR | C120: CENTRO MEDICO SANTA MONICA | D120: 02-CHAPINERO | E120: 0 | F120: 0 | S120: 0 | T120: 0.0% | U120: 0
A121: PEDIATRAS | B121: PEDIATRAS | C121: DR. JUAN OSCAR TAMAYO | D121: 02-CHAPINERO | E121: 0 | F121: 0 | G121: 0 | S121: 0 | T121: 0.0% | U121: 0
A122: PEDIATRAS | B122: PEDIATRAS | C122: DR. ROBERTO SUAREZ | D122: 02-CHAPINERO | E122: 0 | F122: 0 | G122: 0 | S122: 0 | T122: 0.0% | U122: 0
A123: PEDIATRAS | B123: PEDIATRAS | C123: DR. WILLIAM RICARDO CABRA | D123: 02-CHAPINERO | E123: 0 | F123: 0 | G123: 3 | S123: 3 | T123: 0.0%
A124: PEDIATRAS | B124: PEDIATRAS | C124: DR. EDGAR CASTRO | D124: 02-CHAPINERO | E124: 0 | F124: 0 | G124: 5 | S124: 5 | T124: 0.0%
A125: PEDIATRAS | B125: PEDIATRAS | C125: DR. PABLO KRAUSS | D125: 02-CHAPINERO | E125: 0 | F125: 0 | G125: 4 | S125: 4 | T125: 0.0%
A126: PEDIATRAS | B126: PEDIATRAS | C126: DR. HERNAN ROBLES | D126: 02-CHAPINERO | E126: 0 | F126: 0 | G126: 5 | S126: 5 | T126: 0.0%
A127: PEDIATRAS | B127: PEDIATRAS | C127: DR. RAFAEL GAMBOA CASABLANCA | D127: 02-CHAPINERO | E127: 0 | F127: 0 | G127: 15 | S127: 15 | T127: 0.0%
A128: PEDIATRAS | B128: PEDIATRAS | C128: DR. JAVIER MEJIA | D128: 02-CHAPINERO | E128: 0 | F128: 0 | G128: 2 | S128: 2 | T128: 0.0%
A129: PEDIATRAS | B129: PEDIATRAS | C129: DR. CARLOS CORTAZAR | D129: 02-CHAPINERO | E129: 0 | F129: 0 | G129: 0 | S129: 0 | T129: 0.0% | U129: 0
A130: PEDIATRAS | B130: PEDIATRAS | C130: DR. NELSON PARDO | D130: 02-CHAPINERO | E130: 0 | F130: 0 | G130: 2 | S130: 2 | T130: =IF(E130=0,0,+S130/E130) -> 0.0% | U130: =IF(COUNT(G130:R130)*(E130/12)-S130<0,"",COUNT(G130:R130)*(E130/12)-S130) -> 
A131: PEDIATRAS | B131: PEDIATRAS | C131: DR. ALVARO JACOME | D131: 02-CHAPINERO | E131: 0 | F131: =+E131/12 -> 0 | G131: 2 | S131: =SUM(G131:R131) -> 2 | T131: 0.0%
A132: PEDIATRAS | B132: PEDIATRAS | C132: DR. SILVIO COPO | D132: 02-CHAPINERO | E132: 0 | F132: 0 | G132: 0 | S132: 0 | T132: 0.0% | U132: 0
A133: PEDIATRAS | B133: PEDIATRAS | C133: DR. HECTOR FERNANDO MENDOZA | D133: 02-CHAPINERO | E133: 0 | F133: 0 | G133: 0 | S133: 0 | T133: 0.0% | U133: 0
A134: PEDIATRAS | B134: PEDIATRAS | C134: DR. DIMITRIOS | D134: 02-CHAPINERO | E134: 0 | F134: 0 | G134: 0 | S134: 0 | T134: 0.0% | U134: 0
A135: PEDIATRAS | B135: PEDIATRAS | C135: DR. ALVARO MARIÑO | D135: 02-CHAPINERO | E135: 0 | F135: 0 | G135: 0 | S135: 0 | T135: 0.0% | U135: 0
A136: PEDIATRAS | B136: PEDIATRAS | C136: DR. ANDRES VARGAS | D136: 02-CHAPINERO | E136: 0 | F136: 0 | G136: 2 | S136: 2 | T136: 0.0%
A137: PEDIATRAS | B137: PEDIATRAS | C137: DR. JORGE CAMILO LUNA | D137: 02-CHAPINERO | E137: 0 | F137: 0 | G137: 1 | S137: 1 | T137: 0.0%
A138: PEDIATRAS | B138: PEDIATRAS | C138: DR. BERNARDO HUERTAS | D138: 02-CHAPINERO | E138: 0 | F138: 0 | G138: 13 | S138: 13 | T138: 0.0%
A139: PEDIATRAS | B139: PEDIATRAS | C139: DR. CARLOS M CASTILLO | D139: 02-CHAPINERO | E139: 0 | F139: 0 | G139: 0 | S139: 0 | T139: 0.0% | U139: 0
A140: PEDIATRAS | B140: PEDIATRAS | C140: DR. HEINZ OTTO PFALZGRAF | D140: 02-CHAPINERO | E140: 0 | F140: 0 | G140: 0 | S140: 0 | T140: 0.0% | U140: 0
A141: PEDIATRAS | B141: PEDIATRAS | C141: DR. GONZALEZ BALLESTEROS | D141: 02-CHAPINERO | E141: 0 | F141: 0 | G141: 0 | S141: 0 | T141: 0.0% | U141: 0
A142: PEDIATRAS | B142: PEDIATRAS | C142: DR. NORBERTO SALAMANCA | D142: 02-CHAPINERO | E142: 0 | F142: 0 | G142: 0 | S142: 0 | T142: 0.0% | U142: 0
A143: PEDIATRAS | B143: PEDIATRAS | C143: DR. CAMILO ENRIQUE SOTOMAYOR | D143: 02-CHAPINERO | E143: 0 | F143: 0 | G143: 0 | S143: 0 | T143: 0.0% | U143: 0
A144: PEDIATRAS | B144: PEDIATRAS | C144: DR. SANTIAGO RUEDA SAIZ | D144: 02-CHAPINERO | E144: 0 | F144: 0 | G144: 0 | S144: 0 | T144: 0.0% | U144: 0
A145: PEDIATRAS | B145: PEDIATRAS | C145: DR. HENRY HERNANDO SANCHEZ ESCOBAR | D145: 02-CHAPINERO | E145: 0 | F145: 0 | G145: 1 | S145: 1 | T145: 0.0%
A146: PEDIATRAS | B146: PEDIATRAS | C146: DR. RUBEN DARIO TAMAYO | D146: 02-CHAPINERO | E146: 0 | F146: 0 | G146: 2 | S146: 2 | T146: 0.0%
A147: PEDIATRAS | B147: PEDIATRAS | C147: DR. JAIME MAURICIO MATALLANA | D147: 02-CHAPINERO | E147: 0 | F147: 0 | G147: 5 | S147: 5 | T147: 0.0%
A148: PEDIATRAS | B148: PEDIATRAS | C148: DR. RODRIGO GARCIA | D148: 02-CHAPINERO | E148: 0 | F148: 0 | G148: 0 | S148: 0 | T148: 0.0% | U148: 0
A149: PEDIATRAS | B149: PEDIATRAS | C149: DR. FELIPE ROBAYO | D149: 02-CHAPINERO | E149: 0 | F149: 0 | G149: 0 | S149: 0 | T149: 0.0% | U149: 0
A150: PEDIATRAS | B150: PEDIATRAS | C150: DR. RUBEN FRANCO | D150: 02-CHAPINERO | E150: 0 | F150: 0 | G150: 0 | S150: 0 | T150: 0.0% | U150: 0
A151: PEDIATRAS | B151: PEDIATRAS | C151: DR. ORLANDO RODRIGUEZ RAMIREZ | D151: 02-CHAPINERO | E151: 0 | F151: 0 | G151: 2 | S151: 2 | T151: 0.0%
A152: PEDIATRAS | B152: PEDIATRAS | C152: DR. ARTURO MORENO | D152: 02-CHAPINERO | E152: 0 | F152: 0 | G152: 0 | S152: 0 | T152: 0.0% | U152: 0
A153: PEDIATRAS | B153: PEDIATRAS | C153: DR. FRANCISCO LEAL QUEVEDO | D153: 02-CHAPINERO | E153: 0 | F153: 0 | G153: 0 | S153: 0 | T153: 0.0% | U153: 0
A154: PEDIATRAS | B154: PEDIATRAS | C154: DR. CARLOS DIAZ PUENTES | D154: 02-CHAPINERO | E154: 0 | F154: 0 | G154: 0 | S154: 0 | T154: 0.0% | U154: 0
A155: PEDIATRAS | B155: PEDIATRAS | C155: DR. PEDRO ERASMO MENDOZA | D155: 02-CHAPINERO | E155: 0 | F155: 0 | G155: 0 | S155: 0 | T155: 0.0% | U155: 0
A156: PEDIATRAS | B156: PEDIATRAS | C156: DR. DIMAS ROSAS | D156: 02-CHAPINERO | E156: 0 | F156: 0 | G156: 0 | S156: 0 | T156: 0.0% | U156: 0
A157: PEDIATRAS | B157: PEDIATRAS | C157: DR. JAVIER BRITO MORENO | D157: 02-CHAPINERO | E157: 0 | F157: 0 | G157: 0 | S157: 0 | T157: 0.0% | U157: 0
A158: PEDIATRAS | B158: PEDIATRAS | C158: DR. GUSTAVO CORTÉS | D158: 02-CHAPINERO | E158: 0 | F158: 0 | G158: 0 | S158: 0 | T158: 0.0% | U158: 0
A159: PEDIATRAS | B159: PEDIATRAS | C159: DR. CARLOS VELASQUEZ | D159: 02-CHAPINERO | E159: 0 | F159: 0 | G159: 0 | S159: 0 | T159: 0.0% | U159: 0
A160: PEDIATRAS | B160: PEDIATRAS | C160: DR. RICARDO GOMEZ | D160: 02-CHAPINERO | E160: 0 | F160: 0 | G160: 0 | S160: 0 | T160: 0.0% | U160: 0
A161: PEDIATRAS | B161: PEDIATRAS | C161: DR. SARA BERNAL | D161: 02-CHAPINERO | E161: 0 | F161: 0 | G161: 0 | S161: 0 | T161: 0.0% | U161: 0
A162: PEDIATRAS | B162: PEDIATRAS | C162: DRA. MARIA PATRICIA AGUALIMPIA | D162: 02-CHAPINERO | E162: 0 | F162: 0 | G162: 0 | S162: 0 | T162: 0.0% | U162: 0
A163: PEDIATRAS | B163: PEDIATRAS | C163: DRA. LUISA FERNANDA FORERO ACOSTA | D163: 02-CHAPINERO | E163: 0 | F163: 0 | G163: 0 | S163: 0 | T163: 0.0% | U163: 0
A164: PEDIATRAS | B164: PEDIATRAS | C164: DRA. MARIA CLARA CASAS PARDO | D164: 02-CHAPINERO | E164: 0 | F164: 0 | G164: 0 | S164: 0 | T164: 0.0% | U164: 0
A165: PEDIATRAS | B165: PEDIATRAS | C165: DRA. MARTHA EUGENIA RONDEROS DE FORERO | D165: 02-CHAPINERO | E165: 0 | F165: 0 | G165: 0 | S165: 0 | T165: 0.0% | U165: 0
A166: PEDIATRAS | B166: PEDIATRAS | C166: DRA. MARIA ISABEL USCHER | D166: 02-CHAPINERO | E166: 0 | F166: 0 | G166: 0 | S166: 0 | T166: 0.0% | U166: 0
A167: PEDIATRAS | B167: PEDIATRAS | C167: DRA. MARIA DE LOS ANGELES MUÑOZ | D167: 02-CHAPINERO | E167: 0 | F167: 0 | G167: 3 | S167: 3 | T167: 0.0%
A168: PEDIATRAS | B168: PEDIATRAS | C168: DRA. CLARA ABELLO REYES | D168: 02-CHAPINERO | E168: 0 | F168: 0 | G168: 2 | S168: 2 | T168: 0.0%
A169: PEDIATRAS | B169: PEDIATRAS | C169: DRA. PATRICIA CONTRERAS | D169: 02-CHAPINERO | E169: 0 | F169: 0 | G169: 0 | S169: 0 | T169: 0.0% | U169: 0
A170: PEDIATRAS | B170: PEDIATRAS | C170: DRA. CLAUDIA ZOPPI | D170: 02-CHAPINERO | E170: 0 | F170: 0 | G170: 0 | S170: 0 | T170: 0.0% | U170: 0
A171: PEDIATRAS | B171: PEDIATRAS | C171: DRA. MARIA DE LOS ANGELES FERNANDEZ LUQUE | D171: 02-CHAPINERO | E171: 0 | F171: 0 | G171: 0 | S171: 0 | T171: 0.0% | U171: 0
A172: PEDIATRAS | B172: PEDIATRAS | C172: DRA. RUTH CORDOBA CORDOBA | D172: 02-CHAPINERO | E172: 0 | F172: 0 | G172: 0 | S172: 0 | T172: 0.0% | U172: 0
A173: PEDIATRAS | B173: PEDIATRAS | C173: DRA. LUZ ESTELA CORTES | D173: 02-CHAPINERO | E173: 0 | F173: 0 | G173: 0 | S173: 0 | T173: 0.0% | U173: 0
A174: UNICAJAS | B174: UNICAJAS | C174: UPA SAN LUIS | D174: 02-CHAPINERO | E174: 18 | F174: 2 | G174: 0 | S174: 0 | T174: 0.0% | U174: 2
A175: 02-CHAPINERO | B175: OTROS | C175: UPA SAN LUIS | D175: 02-CHAPINERO | E175: 325 | F175: 27 | G175: 2 | S175: 2 | T175: 0.6% | U175: 25
A176: 02-CHAPINERO | B176: DEMAS EAPB | C176: UPA SAN LUIS | D176: 02-CHAPINERO | F176: 0 | G176: 6 | S176: 6 | T176: 0.0%
A177: UNICAJAS | B177: UNICAJAS | C177: COMFASALUD SEDE CENTRO | D177: 03-SANTA FE | E177: 50 | F177: 4 | G177: 2 | S177: 2 | T177: 4.0% | U177: 2
A178: MEDIMAS | B178: MEDIMAS | C178: CORVESALUD TEUSAQUILLO | D178: 03-SANTA FE | E178: 193 | F178: 16 | G178: 6 | S178: 6 | T178: 3.1% | U178: 10
A179: 03-SANTA FE | B179: CAPITAL SALUD | C179: EXTRAMURAL SANTA FE | D179: 03-SANTA FE | E179: 0 | F179: 0 | G179: 7 | S179: 7 | T179: 0.0%
A180: 03-SANTA FE | B180: DEMAS EAPB | C180: EXTRAMURAL SANTA FE | D180: 03-SANTA FE | E180: 0 | F180: 0 | G180: 0 | S180: 0 | T180: 0.0% | U180: 0
A181: 03-SANTA FE | B181: OTROS | C181: EXTRAMURAL SANTA FE | D181: 03-SANTA FE | E181: 0 | F181: 0 | G181: 8 | S181: 8 | T181: 0.0%
A182: 03-SANTA FE | B182: UNICAJAS | C182: EXTRAMURAL SANTA FE | D182: 03-SANTA FE | E182: 0 | F182: 0 | G182: 0 | S182: 0 | T182: 0.0% | U182: 0
A183: 03-SANTA FE | B183: CAPITAL SALUD | C183: USS LACHES | D183: 03-SANTA FE | E183: 54 | F183: 5 | G183: 7 | S183: 7 | T183: 13.0%
A184: 03-SANTA FE | B184: DEMAS EAPB | C184: USS LACHES | D184: 03-SANTA FE | E184: 0 | F184: 0 | G184: 7 | S184: 7 | T184: 0.0%
A185: 03-SANTA FE | B185: OTROS | C185: USS LACHES | D185: 03-SANTA FE | E185: 260 | F185: 22 | G185: 2 | S185: 2 | T185: 0.8% | U185: 20
A186: 03-SANTA FE | B186: UNICAJAS | C186: USS LACHES | D186: 03-SANTA FE | E186: 17 | F186: 1 | G186: 1 | S186: 1 | T186: 5.9% | U186: 0
A187: 03-SANTA FE | B187: CAPITAL SALUD | C187: USS LAS CRUCES | D187: 03-SANTA FE | E187: 44 | F187: 4 | G187: 6 | S187: 6 | T187: 13.6%
A188: 03-SANTA FE | B188: DEMAS EAPB | C188: USS LAS CRUCES | D188: 03-SANTA FE | E188: 0 | F188: 0 | G188: 4 | S188: 4 | T188: 0.0%
A189: 03-SANTA FE | B189: OTROS | C189: USS LAS CRUCES | D189: 03-SANTA FE | E189: 211 | F189: 18 | G189: 2 | S189: 2 | T189: 0.9% | U189: 16
A190: 03-SANTA FE | B190: UNICAJAS | C190: USS LAS CRUCES | D190: 03-SANTA FE | E190: 14 | F190: 1 | G190: 1 | S190: 1 | T190: 7.1% | U190: 0
A191: 03-SANTA FE | B191: CAPITAL SALUD | C191: USS PERSEVERANCIA | D191: 03-SANTA FE | E191: 6 | F191: 1 | G191: 1 | S191: 1 | T191: 16.7%
A192: 03-SANTA FE | B192: DEMAS EAPB | C192: USS PERSEVERANCIA | D192: 03-SANTA FE | E192: 0 | F192: 0 | G192: 1 | S192: 1 | T192: 0.0%
A193: 03-SANTA FE | B193: OTROS | C193: USS PERSEVERANCIA | D193: 03-SANTA FE | E193: 30 | F193: 3 | G193: 1 | S193: 1 | T193: 3.3% | U193: 2
A194: 03-SANTA FE | B194: UNICAJAS | C194: USS PERSEVERANCIA | D194: 03-SANTA FE | E194: 2 | F194: 0 | G194: 0 | S194: 0 | T194: =IF(E194=0,0,+S194/E194) -> 0.0% | U194: =IF(COUNT(G194:R194)*(E194/12)-S194<0,"",COUNT(G194:R194)*(E194/12)-S194) -> 0
A195: PARTICULAR | B195: PARTICULAR | C195: CLINICA SAN RAFAEL | D195: 04-SAN CRISTOBAL | E195: 375 | F195: =+E195/12 -> 31 | G195: 31 | S195: =SUM(G195:R195) -> 31 | T195: 8.3% | U195: 0
A196: FAMISANAR | B196: FAMI- COLSB | C196: CENTRO MEDICO COLSUBSIDIO 20 DE JULIO | D196: 04-SAN CRISTOBAL | F196: 0 | S196: 0 | T196: 0.0% | U196: 0
A197: 04-SAN CRISTOBAL | B197: CAPITAL SALUD | C197: EXTRAMURAL SAN CRISTOBAL | D197: 04-SAN CRISTOBAL | E197: 0 | F197: 0 | G197: 22 | S197: 22 | T197: 0.0%
A198: 04-SAN CRISTOBAL | B198: DEMAS EAPB | C198: EXTRAMURAL SAN CRISTOBAL | D198: 04-SAN CRISTOBAL | E198: 0 | F198: 0 | G198: 31 | S198: 31 | T198: 0.0%
A199: 04-SAN CRISTOBAL | B199: OTROS | C199: EXTRAMURAL SAN CRISTOBAL | D199: 04-SAN CRISTOBAL | E199: 0 | F199: 0 | G199: 14 | S199: 14 | T199: 0.0%
A200: 04-SAN CRISTOBAL | B200: UNICAJAS | C200: EXTRAMURAL SAN CRISTOBAL | D200: 04-SAN CRISTOBAL | E200: 0 | F200: 0 | G200: 3 | S200: 3 | T200: 0.0%
... 620 more rows

Sheet ROTAVIRUS2
A1: EAPB | B1: EPS O ESE | C1: IPS | D1: Localidad | E1: Meta Anual Menor de 1 Año | F1: Meta Mensual | G1: Enero | H1: Febrero | I1: Marzo | J1: Abril | K1: Mayo | L1: Junio | M1: Julio | N1: Agosto | O1: Septiembre | P1: Octubre | Q1: Noviembre | R1: Diciembre | S1: Total | T1: % Cobertura | U1: Deficit
A2: CAPITAL SALUD | B2: CAPITAL SALUD | C2: UPA SAN CRISTOBAL | D2: 01-USAQUEN | E2: 124 | F2: =+E2/12 -> 10 | G2: 6 | S2: =SUM(G2:R2) -> 6 | T2: =IF(E2=0,0,+S2/E2) -> 4.8% | U2: =IF(COUNT(G2:R2)*(E2/12)-S2<0,"",COUNT(G2:R2)*(E2/12)-S2) -> 4
A3: CAPITAL SALUD | B3: CAPITAL SALUD | C3: UPA USAQUEN | D3: 01-USAQUEN | E3: 10 | F3: =+E3/12 -> 1 | G3: 0 | S3: =SUM(G3:R3) -> 0 | T3: 0.0% | U3: 1
A4: CAPITAL SALUD | B4: CAPITAL SALUD | C4: UPA ORQUIDEAS | D4: 01-USAQUEN | E4: 11 | F4: 1 | G4: 3 | S4: 3 | T4: 27.3%
A5: CAPITAL SALUD | B5: CAPITAL SALUD | C5: UPA CODITO | D5: 01-USAQUEN | E5: 107 | F5: 9 | G5: 8 | S5: 8 | T5: 7.5% | U5: 1
A6: CAPITAL SALUD | B6: CAPITAL SALUD | C6: CAMI VERBENAL | D6: 01-USAQUEN | E6: 87 | F6: 7 | G6: 8 | S6: 8 | T6: 9.2%
A7: CAPITAL SALUD | B7: CAPITAL SALUD | C7: HOSPITAL SIMON BOLIVAR | D7: 01-USAQUEN | E7: 36 | F7: 3 | G7: 9 | S7: 9 | T7: 25.0%
A8: 01-USAQUEN | B8: 01-USAQUEN | C8: EXTRAMURAL USAQUEN | D8: 01-USAQUEN | E8: 0 | F8: 0 | G8: 10 | S8: 10 | T8: 0.0%
A9: ALIANSALUD | B9: ALIANSALUD | C9: CENTRO MEDICO COLMEDICA SANTA BARBARA | D9: 01-USAQUEN | E9: 580 | F9: 48 | G9: 89 | S9: 89 | T9: 15.3%
A10: COMPENSAR | B10: COMPENSAR | C10: USS CALLE 134 | D10: 01-USAQUEN | E10: 372 | F10: 31 | G10: 16 | S10: 16 | T10: 4.3% | U10: 15
A11: COMPENSAR | B11: COMPENSAR | C11: USS CALLE 145 | D11: 01-USAQUEN | E11: 173 | F11: 14 | G11: 15 | S11: 15 | T11: 8.7%
A12: COMPENSAR | B12: COMPENSAR | C12: JAVESALUD TOBERIN | D12: 01-USAQUEN | E12: 372 | F12: 31 | G12: 3 | S12: 3 | T12: 0.8% | U12: 28
A13: COOMEVA | B13: COOMEVA | C13: SINERGIA UNIDAD INTEGRAL EN SALUD | D13: 01-USAQUEN | E13: 44 | F13: 4 | G13: 7 | S13: 7 | T13: 15.9%
A14: FAMISANAR | B14: FAMI- COLSB | C14: CENTRO MEDICO COLSUBSIDIO USAQUEN | D14: 01-USAQUEN | E14: 298 | F14: 25 | G14: 30 | S14: 30 | T14: 10.1%
A15: MILITAR | B15: MILITAR | C15: DISPENSARIO MEDICO CANTON NORTE | D15: 01-USAQUEN | E15: 205 | F15: 17 | G15: 3 | S15: 3 | T15: 1.5% | U15: 14
A16: NUEVA EPS | B16: NUEVA EPS | C16: IPS VIVA 1A SEDE TOBERIN | D16: 01-USAQUEN | E16: 147 | F16: 12 | G16: 6 | S16: 6 | T16: 4.1% | U16: 6
A17: NUEVA EPS | B17: NUEVA EPS | C17: CAFAM GRANADA HILLS | D17: 01-USAQUEN | E17: 44 | F17: 4 | G17: 6 | S17: 6 | T17: 13.6%
A18: SANITAS | B18: SANITAS | C18: UAP SANITAS TOBERIN | D18: 01-USAQUEN | E18: 511 | F18: 43 | G18: 56 | S18: 56 | T18: 11.0%
A19: SANITAS | B19: SANITAS | C19: MEDIKA IPS SANITAS UAP USAQUEN | D19: 01-USAQUEN | E19: 188 | F19: 16 | G19: 3 | S19: 3 | T19: 1.6% | U19: 13
A20: SANITAS | B20: SANITAS | C20: UAP SANTA BARBARA | D20: 01-USAQUEN | E20: 796 | F20: 66 | G20: 87 | S20: 87 | T20: 10.9%
A21: SANITAS | B21: SANITAS | C21: SANITAS BANCO DE LA REPUBLICA | D21: 01-USAQUEN | E21: 0 | F21: 0 | G21: 4 | S21: 4 | T21: 0.0%
A22: SALUD TOTAL | B22: SALUD TOTAL | C22: VIRREY SOLIS TOBERÍN | D22: 01-USAQUEN | E22: 384 | F22: 32 | G22: 21 | S22: 21 | T22: 5.5% | U22: 11
A23: SURA | B23: SURA | C23: IPS JAVESALUD SANTA BEATRIZ | D23: 01-USAQUEN | E23: 355 | F23: 30 | G23: 12 | S23: 12 | T23: 3.4% | U23: 18
A24: ECOPETROL | B24: ECOPETROL | C24: IPS CLINICOS PALATINO | D24: 01-USAQUEN | E24: 87 | F24: 7 | G24: 9 | S24: 9 | T24: 10.3%
A25: PARTICULAR | B25: PARTICULAR | C25: CLINICA PEDIATRICA COLSANITAS | D25: 01-USAQUEN | E25: 830 | F25: 69 | G25: 106 | S25: 106 | T25: 12.8%
A26: PARTICULAR | B26: PARTICULAR | C26: CENTRO MEDICO COLSANITAS LA CALLEJA | D26: 01-USAQUEN | E26: 120 | F26: 10 | G26: 23 | S26: 23 | T26: 19.2%
A27: PARTICULAR | B27: PARTICULAR | C27: CENTRO MEDICO COLSANITAS 108 | D27: 01-USAQUEN | E27: 40 | F27: 3 | G27: 2 | S27: 2 | T27: 5.0% | U27: 1
A28: PARTICULAR | B28: PARTICULAR | C28: CENTRO MEDICO COLSANITAS SANTA ANA | D28: 01-USAQUEN | E28: 4 | F28: 0 | G28: 1 | S28: 1 | T28: 25.0%
A29: PARTICULAR | B29: PARTICULAR | C29: FUNDACIÓN CARDIO INFANTIL | D29: 01-USAQUEN | E29: 0 | F29: 0 | G29: 8 | S29: 8 | T29: 0.0%
A30: PARTICULAR | B30: PARTICULAR | C30: ENFASO USAQUEN | D30: 01-USAQUEN | E30: 0 | F30: 0 | G30: 9 | S30: 9 | T30: 0.0%
A31: PARTICULAR | B31: PARTICULAR | C31: UNIDAD DE VACUNACIÓN INTERNACIONAL | D31: 01-USAQUEN | E31: 0 | F31: 0 | G31: 2 | S31: 2 | T31: 0.0%
A32: PARTICULAR | B32: PARTICULAR | C32: INMUNOLOGÍA Y DIAGNÓSTICO ESPECIALIZADO LTDA. | D32: 01-USAQUEN | E32: 0 | F32: 0 | G32: 0 | S32: 0 | T32: 0.0% | U32: 0
A33: PARTICULAR | B33: PARTICULAR | C33: PROTEGER HEALHT CARE | D33: 01-USAQUEN | E33: 0 | F33: 0 | G33: 0 | S33: 0 | T33: 0.0% | U33: 0
A34: PARTICULAR | B34: PARTICULAR | C34: FUNDACION SANTA FE DE BOGOTA | D34: 01-USAQUEN | E34: 0 | F34: 0 | G34: 0 | S34: 0 | T34: 0.0% | U34: 0
A35: PARTICULAR | B35: PARTICULAR | C35: IPS CRUZ ROJA SEDE UNICENTRO | D35: 01-USAQUEN | E35: 0 | F35: 0 | G35: 0 | S35: 0 | T35: 0.0% | U35: 0
A36: PARTICULAR | B36: PARTICULAR | C36: IPS CRUZ ROJA SAMU CALLE 145 | D36: 01-USAQUEN | E36: 0 | F36: 0 | G36: 0 | S36: 0 | T36: 0.0% | U36: 0
A37: PEDIATRAS | B37: PEDIATRAS | C37: DR. ALEJANDRO LÓPEZ | D37: 01-USAQUEN | E37: 0 | F37: 0 | G37: 3 | S37: 3 | T37: 0.0%
A38: PEDIATRAS | B38: PEDIATRAS | C38: DR. CARLOS NEFTALI TORRES | D38: 01-USAQUEN | E38: 0 | F38: 0 | G38: 0 | S38: 0 | T38: 0.0% | U38: 0
A39: PEDIATRAS | B39: PEDIATRAS | C39: DR. FRANCISCO NUÑEZ | D39: 01-USAQUEN | E39: 0 | F39: 0 | G39: 2 | S39: 2 | T39: 0.0%
A40: PEDIATRAS | B40: PEDIATRAS | C40: DR. FERNANDO GOMEZ | D40: 01-USAQUEN | E40: 0 | F40: 0 | G40: 0 | S40: 0 | T40: 0.0% | U40: 0
A41: PEDIATRAS | B41: PEDIATRAS | C41: DR. FERNANDO ZARATE MORENO | D41: 01-USAQUEN | E41: 0 | F41: 0 | G41: 0 | S41: 0 | T41: 0.0% | U41: 0
A42: PEDIATRAS | B42: PEDIATRAS | C42: DR. GONZALO GARCIA | D42: 01-USAQUEN | E42: 0 | F42: 0 | G42: 1 | S42: 1 | T42: 0.0%
A43: PEDIATRAS | B43: PEDIATRAS | C43: DR. GUSTAVO MORALES | D43: 01-USAQUEN | E43: 0 | F43: 0 | G43: 2 | S43: 2 | T43: 0.0%
A44: PEDIATRAS | B44: PEDIATRAS | C44: DR. JAIME OSPINA | D44: 01-USAQUEN | E44: 0 | F44: 0 | G44: 6 | S44: 6 | T44: 0.0%
A45: PEDIATRAS | B45: PEDIATRAS | C45: DR. JORGE URIBE | D45: 01-USAQUEN | E45: 0 | F45: 0 | G45: 0 | S45: 0 | T45: 0.0% | U45: 0
A46: PEDIATRAS | B46: PEDIATRAS | C46: DR. JUAN LUIS FIGUEROA | D46: 01-USAQUEN | E46: 0 | F46: 0 | G46: 2 | S46: 2 | T46: 0.0%
A47: PEDIATRAS | B47: PEDIATRAS | C47: DR. LUIS AUGUSTO PERNA | D47: 01-USAQUEN | E47: 0 | F47: 0 | G47: 1 | S47: 1 | T47: 0.0%
A48: PEDIATRAS | B48: PEDIATRAS | C48: DR. LIBARDO ELI TRIANA | D48: 01-USAQUEN | E48: 0 | F48: 0 | G48: 0 | S48: 0 | T48: 0.0% | U48: 0
A49: PEDIATRAS | B49: PEDIATRAS | C49: DR. OSWALDO MERCADO HOYOS | D49: 01-USAQUEN | E49: 0 | F49: 0 | G49: 0 | S49: 0 | T49: 0.0% | U49: 0
A50: PEDIATRAS | B50: PEDIATRAS | C50: DR. ROBERTO BENIRO | D50: 01-USAQUEN | E50: 0 | F50: 0 | G50: 0 | S50: 0 | T50: 0.0% | U50: 0
A51: PEDIATRAS | B51: PEDIATRAS | C51: DR. SERGIO ISAZA | D51: 01-USAQUEN | E51: 0 | F51: 0 | G51: 0 | S51: 0 | T51: 0.0% | U51: 0
A52: PEDIATRAS | B52: PEDIATRAS | C52: DR. SANTIAGO UCROS | D52: 01-USAQUEN | E52: 0 | F52: 0 | G52: 0 | S52: 0 | T52: 0.0% | U52: 0
A53: PEDIATRAS | B53: PEDIATRAS | C53: DR. GERMAN SILVA | D53: 01-USAQUEN | E53: 0 | F53: 0 | G53: 0 | S53: 0 | T53: 0.0% | U53: 0
A54: PEDIATRAS | B54: PEDIATRAS | C54: DR. DANIEL ABRIL | D54: 01-USAQUEN | E54: 0 | F54: 0 | G54: 0 | S54: 0 | T54: 0.0% | U54: 0
A55: PEDIATRAS | B55: PEDIATRAS | C55: DR. CARLOS EDUARDO OLMOS | D55: 01-USAQUEN | E55: 0 | F55: 0 | G55: 0 | S55: 0 | T55: 0.0% | U55: 0
A56: PEDIATRAS | B56: PEDIATRAS | C56: DR. EDGARDO CHATMAN | D56: 01-USAQUEN | E56: 0 | F56: 0 | G56: 0 | S56: 0 | T56: 0.0% | U56: 0
A57: PEDIATRAS | B57: PEDIATRAS | C57: DR. JORGE FLOREZ OTERO | D57: 01-USAQUEN | E57: 0 | F57: 0 | G57: 0 | S57: 0 | T57: 0.0% | U57: 0
A58: PEDIATRAS | B58: PEDIATRAS | C58: DRA. ALEJANDRA MARIA VALENCIA | D58: 01-USAQUEN | E58: 0 | F58: 0 | G58: 0 | S58: 0 | T58: 0.0% | U58: 0
A59: PEDIATRAS | B59: PEDIATRAS | C59: DRA. ANA MARIA GOYENECHE | D59: 01-USAQUEN | E59: 0 | F59: 0 | G59: 0 | S59: 0 | T59: 0.0% | U59: 0
A60: PEDIATRAS | B60: PEDIATRAS | C60: DRA. JIMENA VARELA | D60: 01-USAQUEN | E60: 0 | F60: 0 | G60: 1 | S60: 1 | T60: 0.0%
A61: PEDIATRAS | B61: PEDIATRAS | C61: DRA. LIA SAN MIGUEL | D61: 01-USAQUEN | E61: 0 | F61: 0 | G61: 0 | S61: 0 | T61: 0.0% | U61: 0
A62: PEDIATRAS | B62: PEDIATRAS | C62: DRA. LIBIA SEGURA | D62: 01-USAQUEN | E62: 0 | F62: 0 | G62: 0 | S62: 0 | T62: 0.0% | U62: 0
A63: PEDIATRAS | B63: PEDIATRAS | C63: DRA. MARÍA JOSÉ PEDRAZA | D63: 01-USAQUEN | E63: 0 | F63: 0 | G63: 0 | S63: 0 | T63: 0.0% | U63: 0
A64: PEDIATRAS | B64: PEDIATRAS | C64: DRA. MARTHA LUCIA SANCHEZ | D64: 01-USAQUEN | E64: 0 | F64: 0 | G64: 0 | S64: 0 | T64: 0.0% | U64: 0
A65: PEDIATRAS | B65: PEDIATRAS | C65: DRA. OLGA LUCÍA SÁNCHEZ | D65: 01-USAQUEN | E65: 0 | F65: 0 | G65: 0 | S65: 0 | T65: 0.0% | U65: 0
A66: PEDIATRAS | B66: PEDIATRAS | C66: DRA. SANDRA BELTRAN | D66: 01-USAQUEN | E66: 0 | F66: 0 | G66: 0 | S66: 0 | T66: =IF(E66=0,0,+S66/E66) -> 0.0% | U66: =IF(COUNT(G66:R66)*(E66/12)-S66<0,"",COUNT(G66:R66)*(E66/12)-S66) -> 0
A67: PEDIATRAS | B67: PEDIATRAS | C67: DRA. IVANA CABRERA | D67: 01-USAQUEN | E67: 0 | F67: =+E67/12 -> 0 | G67: 0 | S67: =SUM(G67:R67) -> 0 | T67: 0.0% | U67: 0
A68: PEDIATRAS | B68: PEDIATRAS | C68: DRA. NAYITA ALARCON | D68: 01-USAQUEN | E68: 0 | F68: 0 | G68: 0 | S68: 0 | T68: 0.0% | U68: 0
A69: PEDIATRAS | B69: PEDIATRAS | C69: DRA. ELIZABETH GARCIA | D69: 01-USAQUEN | E69: 0 | F69: 0 | G69: 0 | S69: 0 | T69: 0.0% | U69: 0
A70: PEDIATRAS | B70: PEDIATRAS | C70: DRA. BERTHA CALDERON DE RAMOS | D70: 01-USAQUEN | E70: 0 | F70: 0 | G70: 0 | S70: 0 | T70: 0.0% | U70: 0
A71: PEDIATRAS | B71: PEDIATRAS | C71: DRA. MIRYAM CORREA | D71: 01-USAQUEN | E71: 0 | F71: 0 | G71: 0 | S71: 0 | T71: 0.0% | U71: 0
A72: 01-USAQUEN | B72: UNICAJAS | C72: UPA SAN CRISTOBAL | D72: 01-USAQUEN | E72: 6 | F72: 1 | G72: 1 | S72: 1 | T72: 16.7%
A73: UNICAJAS | B73: UNICAJAS | C73: UPA USAQUEN | D73: 01-USAQUEN | E73: 9 | F73: 1 | S73: 0 | T73: 0.0% | U73: 0
A74: UNICAJAS | B74: UNICAJAS | C74: UPA ORQUIDEAS | D74: 01-USAQUEN | E74: 6 | F74: 1 | G74: 0 | S74: 0 | T74: 0.0% | U74: 1
A75: UNICAJAS | B75: UNICAJAS | C75: UPA CODITO | D75: 01-USAQUEN | E75: 5 | F75: 0 | G75: 1 | S75: 1 | T75: 20.0%
A76: UNICAJAS | B76: UNICAJAS | C76: CAMI VERBENAL | D76: 01-USAQUEN | E76: 6 | F76: 1 | G76: 2 | S76: 2 | T76: 33.3%
A77: 01-USAQUEN | B77: UNICAJAS | C77: HOSPITAL SIMON BOLIVAR | D77: 01-USAQUEN | E77: 6 | F77: 1 | G77: 0 | S77: 0 | T77: 0.0% | U77: 1
A78: 01-USAQUEN | B78: OTROS | C78: UPA SAN CRISTOBAL | D78: 01-USAQUEN | E78: 300 | F78: 25 | G78: 9 | S78: 9 | T78: 3.0% | U78: 16
A79: 01-USAQUEN | B79: OTROS | C79: UPA USAQUEN | D79: 01-USAQUEN | E79: 100 | F79: 8 | S79: 0 | T79: 0.0% | U79: 0
A80: 01-USAQUEN | B80: OTROS | C80: UPA ORQUIDEAS | D80: 01-USAQUEN | E80: 120 | F80: 10 | G80: 5 | S80: 5 | T80: 4.2% | U80: 5
A81: 01-USAQUEN | B81: OTROS | C81: UPA CODITO | D81: 01-USAQUEN | E81: 218 | F81: 18 | G81: 3 | S81: 3 | T81: 1.4% | U81: 15
A82: 01-USAQUEN | B82: OTROS | C82: CAMI VERBENAL | D82: 01-USAQUEN | E82: 309 | F82: 26 | G82: 5 | S82: 5 | T82: 1.6% | U82: 21
A83: 01-USAQUEN | B83: OTROS | C83: HOSPITAL SIMON BOLIVAR | D83: 01-USAQUEN | E83: 480 | F83: 40 | G83: 10 | S83: 10 | T83: 2.1% | U83: 30
A84: 01-USAQUEN | B84: DEMAS EAPB | C84: UPA SAN CRISTOBAL | D84: 01-USAQUEN | F84: 0 | G84: 15 | S84: 15 | T84: 0.0%
A85: 01-USAQUEN | B85: DEMAS EAPB | C85: UPA USAQUEN | D85: 01-USAQUEN | F85: 0 | G85: 7 | S85: 7 | T85: 0.0%
A86: 01-USAQUEN | B86: DEMAS EAPB | C86: UPA ORQUIDEAS | D86: 01-USAQUEN | F86: 0 | G86: 1 | S86: 1 | T86: 0.0%
A87: 01-USAQUEN | B87: DEMAS EAPB | C87: UPA CODITO | D87: 01-USAQUEN | F87: 0 | G87: 12 | S87: 12 | T87: 0.0%
A88: 01-USAQUEN | B88: DEMAS EAPB | C88: CAMI VERBENAL | D88: 01-USAQUEN | F88: 0 | G88: 13 | S88: 13 | T88: 0.0%
A89: 01-USAQUEN | B89: DEMAS EAPB | C89: HOSPITAL SIMON BOLIVAR | D89: 01-USAQUEN | F89: 0 | G89: 20 | S89: 20 | T89: 0.0%
A90: MEDIMAS | B90: MEDIMAS | C90: Corvesalud S.A.S - I P S Chico | D90: 01-USAQUEN | E90: 320 | F90: 27 | G90: 2 | S90: 2 | T90: 0.6% | U90: 25
A91: FAMISANAR | B91: COLSUBSIDIO | C91: Sura PAC Santa Bárbara | D91: 01-USAQUEN | F91: 0 | S91: 0 | T91: 0.0% | U91: 0
A92: CAPITAL SALUD | B92: CAPITAL SALUD | C92: UPA SAN LUIS | D92: 02-CHAPINERO | E92: 12 | F92: 1 | G92: 6 | S92: 6 | T92: 50.0%
A93: 02-CHAPINERO | B93: 02-CHAPINERO | C93: EXTRAMURAL CHAPINERO | D93: 02-CHAPINERO | E93: 0 | F93: 0 | G93: 4 | S93: 4 | T93: 0.0%
A94: COMPENSAR | B94: COMPENSAR | C94: USS CALLE 42 | D94: 02-CHAPINERO | E94: 612 | F94: 51 | G94: 32 | S94: 32 | T94: 5.2% | U94: 19
A95: COMPENSAR | B95: COMPENSAR | C95: USS CALLE 67 | D95: 02-CHAPINERO | E95: 0 | F95: 0 | G95: 0 | S95: 0 | T95: 0.0% | U95: 0
A96: COMPENSAR | B96: COMPENSAR | C96: USS CALLE 94 | D96: 02-CHAPINERO | E96: 369 | F96: 31 | G96: 47 | S96: 47 | T96: 12.7%
A97: COMPENSAR | B97: COMPENSAR | C97: VIVA 1A IPS CHAPINERO | D97: 02-CHAPINERO | E97: 73 | F97: 6 | G97: 4 | S97: 4 | T97: 5.5% | U97: 2
A98: COOMEVA | B98: COOMEVA | C98: SINERGIA UNIDAD BASICA LOURDES | D98: 02-CHAPINERO | E98: 217 | F98: 18 | G98: 7 | S98: 7 | T98: 3.2% | U98: 11
A99: FAMISANAR | B99: FAMI- CAFAM | C99: CENTRO DE ATENCION EN SALUD CAFAM CALLE 48 | D99: 02-CHAPINERO | E99: 1050 | F99: 88 | G99: 31 | S99: 31 | T99: 3.0% | U99: 57
A100: FAMISANAR | B100: FAMI- CAFAM | C100: CENTRO DE ATENCION EN SALUD CAFAM CALLE 90 | D100: 02-CHAPINERO | E100: 200 | F100: 17 | G100: 12 | S100: 12 | T100: 6.0% | U100: 5
A101: FAMISANAR | B101: FAMI- COLSB | C101: CLINICA COLSUBSIDIO EL LAGO | D101: 02-CHAPINERO | E101: 392 | F101: 33 | G101: 11 | S101: 11 | T101: 2.8% | U101: 22
A102: MILITAR | B102: MILITAR | C102: HOSPITAL MILITAR CENTRAL | D102: 02-CHAPINERO | E102: 70 | F102: 6 | G102: 13 | S102: 13 | T102: 18.6%
A103: POLICIA | B103: POLICIA | C103: POLICIA NACIONAL ESPAM CHAPINERO | D103: 02-CHAPINERO | E103: 117 | F103: 10 | G103: 5 | S103: 5 | T103: 4.3% | U103: 5
A104: NUEVA EPS | B104: NUEVA EPS | C104: IPS VIVA 1A SEDE MARLY | D104: 02-CHAPINERO | E104: 131 | F104: 11 | G104: 10 | S104: 10 | T104: 7.6% | U104: 1
A105: SANITAS | B105: SANITAS | C105: EPS SANITAS CENTRO MEDICO TEUSAQUILLO | D105: 02-CHAPINERO | E105: 579 | F105: 48 | G105: 29 | S105: 29 | T105: 5.0% | U105: 19
A106: SALUD TOTAL | B106: SALUD TOTAL | C106: VIRREY SOLIS CHAPINERO | D106: 02-CHAPINERO | E106: 337 | F106: 28 | G106: 19 | S106: 19 | T106: 5.6% | U106: 9
A107: SURA | B107: SURA | C107: PUNTO DE SALUD CHAPINERO | D107: 02-CHAPINERO | E107: 237 | F107: 20 | G107: 16 | S107: 16 | T107: 6.8% | U107: 4
A108: SURA | B108: SURA | C108: SALUD SURA | D108: 02-CHAPINERO | E108: 454 | F108: 38 | G108: 56 | S108: 56 | T108: 12.3%
A109: PARTICULAR | B109: PARTICULAR | C109: CENTRO MEDICO COLSANITAS CALLE 96 | D109: 02-CHAPINERO | E109: 24 | F109: 2 | G109: 3 | S109: 3 | T109: 12.5%
A110: PARTICULAR | B110: PARTICULAR | C110: CENTRO DE ESPECIALISTAS MEDICOS AXA COLPATRIA | D110: 02-CHAPINERO | E110: 0 | F110: 0 | G110: 3 | S110: 3 | T110: 0.0%
A111: PARTICULAR | B111: PARTICULAR | C111: CLINICA DE LA MUJER | D111: 02-CHAPINERO | E111: 0 | F111: 0 | G111: 72 | S111: 72 | T111: 0.0%
A112: PARTICULAR | B112: PARTICULAR | C112: VACUNARTE IPS | D112: 02-CHAPINERO | E112: 0 | F112: 0 | G112: 2 | S112: 2 | T112: 0.0%
A113: PARTICULAR | B113: PARTICULAR | C113: UNIMARLY | D113: 02-CHAPINERO | E113: 0 | F113: 0 | G113: 0 | S113: 0 | T113: 0.0% | U113: 0
A114: PARTICULAR | B114: PARTICULAR | C114: HOSPITAL SAN IGNACIO | D114: 02-CHAPINERO | E114: 0 | F114: 0 | G114: 2 | S114: 2 | T114: 0.0%
A115: PARTICULAR | B115: PARTICULAR | C115: PROGRAMA MADRE CANGURO HOSPITAL SAN IGNACIO | D115: 02-CHAPINERO | E115: 0 | F115: 0 | G115: 90 | S115: 90 | T115: 0.0%
A116: PARTICULAR | B116: PARTICULAR | C116: IPS AVENIR | D116: 02-CHAPINERO | E116: 0 | F116: 0 | G116: 0 | S116: 0 | T116: 0.0% | U116: 0
A117: PARTICULAR | B117: PARTICULAR | C117: IPS INMUNOLOGIA Y DIAGNOSTICO ESPECIALIZADO | D117: 02-CHAPINERO | E117: 0 | F117: 0 | G117: 0 | S117: 0 | T117: 0.0% | U117: 0
A118: PARTICULAR | B118: PARTICULAR | C118: ASOCIACION PEDIATRICA DE LOS ANDES | D118: 02-CHAPINERO | E118: 0 | F118: 0 | G118: 1 | S118: 1 | T118: 0.0%
A119: PARTICULAR | B119: PARTICULAR | C119: CRUZ ROJA SEDE ANDINO | D119: 02-CHAPINERO | E119: 0 | F119: 0 | G119: 0 | S119: 0 | T119: 0.0% | U119: 0
A120: PARTICULAR | B120: PARTICULAR | C120: CENTRO MEDICO SANTA MONICA | D120: 02-CHAPINERO | E120: 0 | F120: 0 | S120: 0 | T120: 0.0% | U120: 0
A121: PEDIATRAS | B121: PEDIATRAS | C121: DR. JUAN OSCAR TAMAYO | D121: 02-CHAPINERO | E121: 0 | F121: 0 | G121: 0 | S121: 0 | T121: 0.0% | U121: 0
A122: PEDIATRAS | B122: PEDIATRAS | C122: DR. ROBERTO SUAREZ | D122: 02-CHAPINERO | E122: 0 | F122: 0 | G122: 0 | S122: 0 | T122: 0.0% | U122: 0
A123: PEDIATRAS | B123: PEDIATRAS | C123: DR. WILLIAM RICARDO CABRA | D123: 02-CHAPINERO | E123: 0 | F123: 0 | G123: 1 | S123: 1 | T123: 0.0%
A124: PEDIATRAS | B124: PEDIATRAS | C124: DR. EDGAR CASTRO | D124: 02-CHAPINERO | E124: 0 | F124: 0 | G124: 7 | S124: 7 | T124: 0.0%
A125: PEDIATRAS | B125: PEDIATRAS | C125: DR. PABLO KRAUSS | D125: 02-CHAPINERO | E125: 0 | F125: 0 | G125: 6 | S125: 6 | T125: 0.0%
A126: PEDIATRAS | B126: PEDIATRAS | C126: DR. HERNAN ROBLES | D126: 02-CHAPINERO | E126: 0 | F126: 0 | G126: 4 | S126: 4 | T126: 0.0%
A127: PEDIATRAS | B127: PEDIATRAS | C127: DR. RAFAEL GAMBOA CASABLANCA | D127: 02-CHAPINERO | E127: 0 | F127: 0 | G127: 5 | S127: 5 | T127: 0.0%
A128: PEDIATRAS | B128: PEDIATRAS | C128: DR. JAVIER MEJIA | D128: 02-CHAPINERO | E128: 0 | F128: 0 | G128: 2 | S128: 2 | T128: 0.0%
A129: PEDIATRAS | B129: PEDIATRAS | C129: DR. CARLOS CORTAZAR | D129: 02-CHAPINERO | E129: 0 | F129: 0 | G129: 0 | S129: 0 | T129: 0.0% | U129: 0
A130: PEDIATRAS | B130: PEDIATRAS | C130: DR. NELSON PARDO | D130: 02-CHAPINERO | E130: 0 | F130: 0 | G130: 0 | S130: 0 | T130: =IF(E130=0,0,+S130/E130) -> 0.0% | U130: =IF(COUNT(G130:R130)*(E130/12)-S130<0,"",COUNT(G130:R130)*(E130/12)-S130) -> 0
A131: PEDIATRAS | B131: PEDIATRAS | C131: DR. ALVARO JACOME | D131: 02-CHAPINERO | E131: 0 | F131: =+E131/12 -> 0 | G131: 0 | S131: =SUM(G131:R131) -> 0 | T131: 0.0% | U131: 0
A132: PEDIATRAS | B132: PEDIATRAS | C132: DR. SILVIO COPO | D132: 02-CHAPINERO | E132: 0 | F132: 0 | G132: 0 | S132: 0 | T132: 0.0% | U132: 0
A133: PEDIATRAS | B133: PEDIATRAS | C133: DR. HECTOR FERNANDO MENDOZA | D133: 02-CHAPINERO | E133: 0 | F133: 0 | G133: 1 | S133: 1 | T133: 0.0%
A134: PEDIATRAS | B134: PEDIATRAS | C134: DR. DIMITRIOS | D134: 02-CHAPINERO | E134: 0 | F134: 0 | G134: 0 | S134: 0 | T134: 0.0% | U134: 0
A135: PEDIATRAS | B135: PEDIATRAS | C135: DR. ALVARO MARIÑO | D135: 02-CHAPINERO | E135: 0 | F135: 0 | G135: 0 | S135: 0 | T135: 0.0% | U135: 0
A136: PEDIATRAS | B136: PEDIATRAS | C136: DR. ANDRES VARGAS | D136: 02-CHAPINERO | E136: 0 | F136: 0 | G136: 1 | S136: 1 | T136: 0.0%
A137: PEDIATRAS | B137: PEDIATRAS | C137: DR. JORGE CAMILO LUNA | D137: 02-CHAPINERO | E137: 0 | F137: 0 | G137: 0 | S137: 0 | T137: 0.0% | U137: 0
A138: PEDIATRAS | B138: PEDIATRAS | C138: DR. BERNARDO HUERTAS | D138: 02-CHAPINERO | E138: 0 | F138: 0 | G138: 4 | S138: 4 | T138: 0.0%
A139: PEDIATRAS | B139: PEDIATRAS | C139: DR. CARLOS M CASTILLO | D139: 02-CHAPINERO | E139: 0 | F139: 0 | G139: 0 | S139: 0 | T139: 0.0% | U139: 0
A140: PEDIATRAS | B140: PEDIATRAS | C140: DR. HEINZ OTTO PFALZGRAF | D140: 02-CHAPINERO | E140: 0 | F140: 0 | G140: 0 | S140: 0 | T140: 0.0% | U140: 0
A141: PEDIATRAS | B141: PEDIATRAS | C141: DR. GONZALEZ BALLESTEROS | D141: 02-CHAPINERO | E141: 0 | F141: 0 | G141: 0 | S141: 0 | T141: 0.0% | U141: 0
A142: PEDIATRAS | B142: PEDIATRAS | C142: DR. NORBERTO SALAMANCA | D142: 02-CHAPINERO | E142: 0 | F142: 0 | G142: 0 | S142: 0 | T142: 0.0% | U142: 0
A143: PEDIATRAS | B143: PEDIATRAS | C143: DR. CAMILO ENRIQUE SOTOMAYOR | D143: 02-CHAPINERO | E143: 0 | F143: 0 | G143: 0 | S143: 0 | T143: 0.0% | U143: 0
A144: PEDIATRAS | B144: PEDIATRAS | C144: DR. SANTIAGO RUEDA SAIZ | D144: 02-CHAPINERO | E144: 0 | F144: 0 | G144: 5 | S144: 5 | T144: 0.0%
A145: PEDIATRAS | B145: PEDIATRAS | C145: DR. HENRY HERNANDO SANCHEZ ESCOBAR | D145: 02-CHAPINERO | E145: 0 | F145: 0 | G145: 0 | S145: 0 | T145: 0.0% | U145: 0
A146: PEDIATRAS | B146: PEDIATRAS | C146: DR. RUBEN DARIO TAMAYO | D146: 02-CHAPINERO | E146: 0 | F146: 0 | G146: 0 | S146: 0 | T146: 0.0% | U146: 0
A147: PEDIATRAS | B147: PEDIATRAS | C147: DR. JAIME MAURICIO MATALLANA | D147: 02-CHAPINERO | E147: 0 | F147: 0 | G147: 6 | S147: 6 | T147: 0.0%
A148: PEDIATRAS | B148: PEDIATRAS | C148: DR. RODRIGO GARCIA | D148: 02-CHAPINERO | E148: 0 | F148: 0 | G148: 0 | S148: 0 | T148: 0.0% | U148: 0
A149: PEDIATRAS | B149: PEDIATRAS | C149: DR. FELIPE ROBAYO | D149: 02-CHAPINERO | E149: 0 | F149: 0 | G149: 0 | S149: 0 | T149: 0.0% | U149: 0
A150: PEDIATRAS | B150: PEDIATRAS | C150: DR. RUBEN FRANCO | D150: 02-CHAPINERO | E150: 0 | F150: 0 | G150: 0 | S150: 0 | T150: 0.0% | U150: 0
A151: PEDIATRAS | B151: PEDIATRAS | C151: DR. ORLANDO RODRIGUEZ RAMIREZ | D151: 02-CHAPINERO | E151: 0 | F151: 0 | G151: 0 | S151: 0 | T151: 0.0% | U151: 0
A152: PEDIATRAS | B152: PEDIATRAS | C152: DR. ARTURO MORENO | D152: 02-CHAPINERO | E152: 0 | F152: 0 | G152: 0 | S152: 0 | T152: 0.0% | U152: 0
A153: PEDIATRAS | B153: PEDIATRAS | C153: DR. FRANCISCO LEAL QUEVEDO | D153: 02-CHAPINERO | E153: 0 | F153: 0 | G153: 0 | S153: 0 | T153: 0.0% | U153: 0
A154: PEDIATRAS | B154: PEDIATRAS | C154: DR. CARLOS DIAZ PUENTES | D154: 02-CHAPINERO | E154: 0 | F154: 0 | G154: 0 | S154: 0 | T154: 0.0% | U154: 0
A155: PEDIATRAS | B155: PEDIATRAS | C155: DR. PEDRO ERASMO MENDOZA | D155: 02-CHAPINERO | E155: 0 | F155: 0 | G155: 0 | S155: 0 | T155: 0.0% | U155: 0
A156: PEDIATRAS | B156: PEDIATRAS | C156: DR. DIMAS ROSAS | D156: 02-CHAPINERO | E156: 0 | F156: 0 | G156: 0 | S156: 0 | T156: 0.0% | U156: 0
A157: PEDIATRAS | B157: PEDIATRAS | C157: DR. JAVIER BRITO MORENO | D157: 02-CHAPINERO | E157: 0 | F157: 0 | G157: 0 | S157: 0 | T157: 0.0% | U157: 0
A158: PEDIATRAS | B158: PEDIATRAS | C158: DR. GUSTAVO CORTÉS | D158: 02-CHAPINERO | E158: 0 | F158: 0 | G158: 0 | S158: 0 | T158: 0.0% | U158: 0
A159: PEDIATRAS | B159: PEDIATRAS | C159: DR. CARLOS VELASQUEZ | D159: 02-CHAPINERO | E159: 0 | F159: 0 | G159: 0 | S159: 0 | T159: 0.0% | U159: 0
A160: PEDIATRAS | B160: PEDIATRAS | C160: DR. RICARDO GOMEZ | D160: 02-CHAPINERO | E160: 0 | F160: 0 | G160: 0 | S160: 0 | T160: 0.0% | U160: 0
A161: PEDIATRAS | B161: PEDIATRAS | C161: DR. SARA BERNAL | D161: 02-CHAPINERO | E161: 0 | F161: 0 | G161: 1 | S161: 1 | T161: 0.0%
A162: PEDIATRAS | B162: PEDIATRAS | C162: DRA. MARIA PATRICIA AGUALIMPIA | D162: 02-CHAPINERO | E162: 0 | F162: 0 | G162: 0 | S162: 0 | T162: 0.0% | U162: 0
A163: PEDIATRAS | B163: PEDIATRAS | C163: DRA. LUISA FERNANDA FORERO ACOSTA | D163: 02-CHAPINERO | E163: 0 | F163: 0 | G163: 0 | S163: 0 | T163: 0.0% | U163: 0
A164: PEDIATRAS | B164: PEDIATRAS | C164: DRA. MARIA CLARA CASAS PARDO | D164: 02-CHAPINERO | E164: 0 | F164: 0 | G164: 0 | S164: 0 | T164: 0.0% | U164: 0
A165: PEDIATRAS | B165: PEDIATRAS | C165: DRA. MARTHA EUGENIA RONDEROS DE FORERO | D165: 02-CHAPINERO | E165: 0 | F165: 0 | G165: 0 | S165: 0 | T165: 0.0% | U165: 0
A166: PEDIATRAS | B166: PEDIATRAS | C166: DRA. MARIA ISABEL USCHER | D166: 02-CHAPINERO | E166: 0 | F166: 0 | G166: 1 | S166: 1 | T166: 0.0%
A167: PEDIATRAS | B167: PEDIATRAS | C167: DRA. MARIA DE LOS ANGELES MUÑOZ | D167: 02-CHAPINERO | E167: 0 | F167: 0 | G167: 2 | S167: 2 | T167: 0.0%
A168: PEDIATRAS | B168: PEDIATRAS | C168: DRA. CLARA ABELLO REYES | D168: 02-CHAPINERO | E168: 0 | F168: 0 | G168: 1 | S168: 1 | T168: 0.0%
A169: PEDIATRAS | B169: PEDIATRAS | C169: DRA. PATRICIA CONTRERAS | D169: 02-CHAPINERO | E169: 0 | F169: 0 | G169: 3 | S169: 3 | T169: 0.0%
A170: PEDIATRAS | B170: PEDIATRAS | C170: DRA. CLAUDIA ZOPPI | D170: 02-CHAPINERO | E170: 0 | F170: 0 | G170: 0 | S170: 0 | T170: 0.0% | U170: 0
A171: PEDIATRAS | B171: PEDIATRAS | C171: DRA. MARIA DE LOS ANGELES FERNANDEZ LUQUE | D171: 02-CHAPINERO | E171: 0 | F171: 0 | G171: 0 | S171: 0 | T171: 0.0% | U171: 0
A172: PEDIATRAS | B172: PEDIATRAS | C172: DRA. RUTH CORDOBA CORDOBA | D172: 02-CHAPINERO | E172: 0 | F172: 0 | G172: 0 | S172: 0 | T172: 0.0% | U172: 0
A173: PEDIATRAS | B173: PEDIATRAS | C173: DRA. LUZ ESTELA CORTES | D173: 02-CHAPINERO | E173: 0 | F173: 0 | G173: 0 | S173: 0 | T173: 0.0% | U173: 0
A174: UNICAJAS | B174: UNICAJAS | C174: UPA SAN LUIS | D174: 02-CHAPINERO | E174: 18 | F174: 2 | G174: 1 | S174: 1 | T174: 5.6% | U174: 1
A175: 02-CHAPINERO | B175: OTROS | C175: UPA SAN LUIS | D175: 02-CHAPINERO | E175: 325 | F175: 27 | G175: 0 | S175: 0 | T175: 0.0% | U175: 27
A176: 02-CHAPINERO | B176: DEMAS EAPB | C176: UPA SAN LUIS | D176: 02-CHAPINERO | F176: 0 | G176: 6 | S176: 6 | T176: 0.0%
A177: UNICAJAS | B177: UNICAJAS | C177: COMFASALUD SEDE CENTRO | D177: 03-SANTA FE | E177: 50 | F177: 4 | G177: 4 | S177: 4 | T177: 8.0% | U177: 0
A178: MEDIMAS | B178: MEDIMAS | C178: CORVESALUD TEUSAQUILLO | D178: 03-SANTA FE | E178: 193 | F178: 16 | G178: 6 | S178: 6 | T178: 3.1% | U178: 10
A179: 03-SANTA FE | B179: CAPITAL SALUD | C179: EXTRAMURAL SANTA FE | D179: 03-SANTA FE | E179: 0 | F179: 0 | G179: 2 | S179: 2 | T179: 0.0%
A180: 03-SANTA FE | B180: DEMAS EAPB | C180: EXTRAMURAL SANTA FE | D180: 03-SANTA FE | E180: 0 | F180: 0 | G180: 6 | S180: 6 | T180: 0.0%
A181: 03-SANTA FE | B181: OTROS | C181: EXTRAMURAL SANTA FE | D181: 03-SANTA FE | E181: 0 | F181: 0 | G181: 13 | S181: 13 | T181: 0.0%
A182: 03-SANTA FE | B182: UNICAJAS | C182: EXTRAMURAL SANTA FE | D182: 03-SANTA FE | E182: 0 | F182: 0 | G182: 0 | S182: 0 | T182: 0.0% | U182: 0
A183: 03-SANTA FE | B183: CAPITAL SALUD | C183: USS LACHES | D183: 03-SANTA FE | E183: 54 | F183: 5 | G183: 9 | S183: 9 | T183: 16.7%
A184: 03-SANTA FE | B184: DEMAS EAPB | C184: USS LACHES | D184: 03-SANTA FE | E184: 0 | F184: 0 | G184: 12 | S184: 12 | T184: 0.0%
A185: 03-SANTA FE | B185: OTROS | C185: USS LACHES | D185: 03-SANTA FE | E185: 260 | F185: 22 | G185: 6 | S185: 6 | T185: 2.3% | U185: 16
A186: 03-SANTA FE | B186: UNICAJAS | C186: USS LACHES | D186: 03-SANTA FE | E186: 17 | F186: 1 | G186: 0 | S186: 0 | T186: 0.0% | U186: 1
A187: 03-SANTA FE | B187: CAPITAL SALUD | C187: USS LAS CRUCES | D187: 03-SANTA FE | E187: 44 | F187: 4 | G187: 7 | S187: 7 | T187: 15.9%
A188: 03-SANTA FE | B188: DEMAS EAPB | C188: USS LAS CRUCES | D188: 03-SANTA FE | E188: 0 | F188: 0 | G188: 6 | S188: 6 | T188: 0.0%
A189: 03-SANTA FE | B189: OTROS | C189: USS LAS CRUCES | D189: 03-SANTA FE | E189: 211 | F189: 18 | G189: 3 | S189: 3 | T189: 1.4% | U189: 15
A190: 03-SANTA FE | B190: UNICAJAS | C190: USS LAS CRUCES | D190: 03-SANTA FE | E190: 14 | F190: 1 | G190: 7 | S190: 7 | T190: 50.0%
A191: 03-SANTA FE | B191: CAPITAL SALUD | C191: USS PERSEVERANCIA | D191: 03-SANTA FE | E191: 6 | F191: 1 | G191: 2 | S191: 2 | T191: 33.3%
A192: 03-SANTA FE | B192: DEMAS EAPB | C192: USS PERSEVERANCIA | D192: 03-SANTA FE | E192: 0 | F192: 0 | G192: 0 | S192: 0 | T192: 0.0% | U192: 0
A193: 03-SANTA FE | B193: OTROS | C193: USS PERSEVERANCIA | D193: 03-SANTA FE | E193: 30 | F193: 3 | G193: 2 | S193: 2 | T193: 6.7% | U193: 1
A194: 03-SANTA FE | B194: UNICAJAS | C194: USS PERSEVERANCIA | D194: 03-SANTA FE | E194: 2 | F194: 0 | G194: 0 | S194: 0 | T194: =IF(E194=0,0,+S194/E194) -> 0.0% | U194: =IF(COUNT(G194:R194)*(E194/12)-S194<0,"",COUNT(G194:R194)*(E194/12)-S194) -> 0
A195: PARTICULAR | B195: PARTICULAR | C195: CLINICA SAN RAFAEL | D195: 04-SAN CRISTOBAL | E195: 375 | F195: =+E195/12 -> 31 | G195: 35 | S195: =SUM(G195:R195) -> 35 | T195: 9.3%
A196: FAMISANAR | B196: FAMI- COLSB | C196: CENTRO MEDICO COLSUBSIDIO 20 DE JULIO | D196: 04-SAN CRISTOBAL | F196: 0 | S196: 0 | T196: 0.0% | U196: 0
A197: 04-SAN CRISTOBAL | B197: CAPITAL SALUD | C197: EXTRAMURAL SAN CRISTOBAL | D197: 04-SAN CRISTOBAL | E197: 0 | F197: 0 | G197: 25 | S197: 25 | T197: 0.0%
A198: 04-SAN CRISTOBAL | B198: DEMAS EAPB | C198: EXTRAMURAL SAN CRISTOBAL | D198: 04-SAN CRISTOBAL | E198: 0 | F198: 0 | G198: 36 | S198: 36 | T198: 0.0%
A199: 04-SAN CRISTOBAL | B199: OTROS | C199: EXTRAMURAL SAN CRISTOBAL | D199: 04-SAN CRISTOBAL | E199: 0 | F199: 0 | G199: 11 | S199: 11 | T199: 0.0%
A200: 04-SAN CRISTOBAL | B200: UNICAJAS | C200: EXTRAMURAL SAN CRISTOBAL | D200: 04-SAN CRISTOBAL | E200: 0 | F200: 0 | G200: 0 | S200: 0 | T200: 0.0% | U200: 0
... 620 more rows

Sheet NEUMOCOCO1
A1: EAPB | B1: EPS O ESE | C1: IPS | D1: Localidad | E1: Meta Anual Menor de 1 Año | F1: Meta Mensual | G1: Enero | H1: Febrero | I1: Marzo | J1: Abril | K1: Mayo | L1: Junio | M1: Julio | N1: Agosto | O1: Septiembre | P1: Octubre | Q1: Noviembre | R1: Diciembre | S1: Total | T1: % Cobertura | U1: Deficit
A2: CAPITAL SALUD | B2: CAPITAL SALUD | C2: UPA SAN CRISTOBAL | D2: 01-USAQUEN | E2: 124 | F2: =+E2/12 -> 10 | G2: 6 | S2: =SUM(G2:R2) -> 6 | T2: =IF(E2=0,0,+S2/E2) -> 4.8% | U2: =IF(COUNT(G2:R2)*(E2/12)-S2<0,"",COUNT(G2:R2)*(E2/12)-S2) -> 4
A3: CAPITAL SALUD | B3: CAPITAL SALUD | C3: UPA USAQUEN | D3: 01-USAQUEN | E3: 10 | F3: =+E3/12 -> 1 | S3: =SUM(G3:R3) -> 0 | T3: 0.0% | U3: 0
A4: CAPITAL SALUD | B4: CAPITAL SALUD | C4: UPA ORQUIDEAS | D4: 01-USAQUEN | E4: 11 | F4: 1 | G4: 1 | S4: 1 | T4: 9.1%
A5: CAPITAL SALUD | B5: CAPITAL SALUD | C5: UPA CODITO | D5: 01-USAQUEN | E5: 107 | F5: 9 | G5: 7 | S5: 7 | T5: 6.5% | U5: 2
A6: CAPITAL SALUD | B6: CAPITAL SALUD | C6: CAMI VERBENAL | D6: 01-USAQUEN | E6: 87 | F6: 7 | G6: 11 | S6: 11 | T6: 12.6%
A7: CAPITAL SALUD | B7: CAPITAL SALUD | C7: HOSPITAL SIMON BOLIVAR | D7: 01-USAQUEN | E7: 36 | F7: 3 | G7: 22 | S7: 22 | T7: 61.1%
A8: 01-USAQUEN | B8: 01-USAQUEN | C8: EXTRAMURAL USAQUEN | D8: 01-USAQUEN | E8: 0 | F8: 0 | G8: 6 | S8: 6 | T8: 0.0%
A9: ALIANSALUD | B9: ALIANSALUD | C9: CENTRO MEDICO COLMEDICA SANTA BARBARA | D9: 01-USAQUEN | E9: 580 | F9: 48 | G9: 63 | S9: 63 | T9: 10.9%
A10: COMPENSAR | B10: COMPENSAR | C10: USS CALLE 134 | D10: 01-USAQUEN | E10: 372 | F10: 31 | G10: 17 | S10: 17 | T10: 4.6% | U10: 14
A11: COMPENSAR | B11: COMPENSAR | C11: USS CALLE 145 | D11: 01-USAQUEN | E11: 173 | F11: 14 | G11: 13 | S11: 13 | T11: 7.5% | U11: 1
A12: COMPENSAR | B12: COMPENSAR | C12: JAVESALUD TOBERIN | D12: 01-USAQUEN | E12: 372 | F12: 31 | G12: 6 | S12: 6 | T12: 1.6% | U12: 25
A13: COOMEVA | B13: COOMEVA | C13: SINERGIA UNIDAD INTEGRAL EN SALUD | D13: 01-USAQUEN | E13: 44 | F13: 4 | G13: 5 | S13: 5 | T13: 11.4%
A14: FAMISANAR | B14: FAMI- COLSB | C14: CENTRO MEDICO COLSUBSIDIO USAQUEN | D14: 01-USAQUEN | E14: 298 | F14: 25 | G14: 38 | S14: 38 | T14: 12.8%
A15: MILITAR | B15: MILITAR | C15: DISPENSARIO MEDICO CANTON NORTE | D15: 01-USAQUEN | E15: 205 | F15: 17 | G15: 8 | S15: 8 | T15: 3.9% | U15: 9
A16: NUEVA EPS | B16: NUEVA EPS | C16: IPS VIVA 1A SEDE TOBERIN | D16: 01-USAQUEN | E16: 147 | F16: 12 | G16: 9 | S16: 9 | T16: 6.1% | U16: 3
A17: NUEVA EPS | B17: NUEVA EPS | C17: CAFAM GRANADA HILLS | D17: 01-USAQUEN | E17: 44 | F17: 4 | G17: 2 | S17: 2 | T17: 4.5% | U17: 2
A18: SANITAS | B18: SANITAS | C18: UAP SANITAS TOBERIN | D18: 01-USAQUEN | E18: 511 | F18: 43 | G18: 27 | S18: 27 | T18: 5.3% | U18: 16
A19: SANITAS | B19: SANITAS | C19: MEDIKA IPS SANITAS UAP USAQUEN | D19: 01-USAQUEN | E19: 188 | F19: 16 | G19: 4 | S19: 4 | T19: 2.1% | U19: 12
A20: SANITAS | B20: SANITAS | C20: UAP SANTA BARBARA | D20: 01-USAQUEN | E20: 796 | F20: 66 | G20: 92 | S20: 92 | T20: 11.6%
A21: SANITAS | B21: SANITAS | C21: SANITAS BANCO DE LA REPUBLICA | D21: 01-USAQUEN | E21: 0 | F21: 0 | G21: 3 | S21: 3 | T21: 0.0%
A22: SALUD TOTAL | B22: SALUD TOTAL | C22: VIRREY SOLIS TOBERÍN | D22: 01-USAQUEN | E22: 384 | F22: 32 | G22: 24 | S22: 24 | T22: 6.3% | U22: 8
A23: SURA | B23: SURA | C23: IPS JAVESALUD SANTA BEATRIZ | D23: 01-USAQUEN | E23: 355 | F23: 30 | G23: 20 | S23: 20 | T23: 5.6% | U23: 10
A24: ECOPETROL | B24: ECOPETROL | C24: IPS CLINICOS PALATINO | D24: 01-USAQUEN | E24: 87 | F24: 7 | G24: 6 | S24: 6 | T24: 6.9% | U24: 1
A25: PARTICULAR | B25: PARTICULAR | C25: CLINICA PEDIATRICA COLSANITAS | D25: 01-USAQUEN | E25: 830 | F25: 69 | G25: 58 | S25: 58 | T25: 7.0% | U25: 11
A26: PARTICULAR | B26: PARTICULAR | C26: CENTRO MEDICO COLSANITAS LA CALLEJA | D26: 01-USAQUEN | E26: 120 | F26: 10 | G26: 5 | S26: 5 | T26: 4.2% | U26: 5
A27: PARTICULAR | B27: PARTICULAR | C27: CENTRO MEDICO COLSANITAS 108 | D27: 01-USAQUEN | E27: 40 | F27: 3 | G27: 4 | S27: 4 | T27: 10.0%
A28: PARTICULAR | B28: PARTICULAR | C28: CENTRO MEDICO COLSANITAS SANTA ANA | D28: 01-USAQUEN | E28: 4 | F28: 0 | G28: 1 | S28: 1 | T28: 25.0%
A29: PARTICULAR | B29: PARTICULAR | C29: FUNDACIÓN CARDIO INFANTIL | D29: 01-USAQUEN | E29: 0 | F29: 0 | G29: 8 | S29: 8 | T29: 0.0%
A30: PARTICULAR | B30: PARTICULAR | C30: ENFASO USAQUEN | D30: 01-USAQUEN | E30: 0 | F30: 0 | G30: 9 | S30: 9 | T30: 0.0%
A31: PARTICULAR | B31: PARTICULAR | C31: UNIDAD DE VACUNACIÓN INTERNACIONAL | D31: 01-USAQUEN | E31: 0 | F31: 0 | G31: 6 | S31: 6 | T31: 0.0%
A32: PARTICULAR | B32: PARTICULAR | C32: INMUNOLOGÍA Y DIAGNÓSTICO ESPECIALIZADO LTDA. | D32: 01-USAQUEN | E32: 0 | F32: 0 | G32: 2 | S32: 2 | T32: 0.0%
A33: PARTICULAR | B33: PARTICULAR | C33: PROTEGER HEALHT CARE | D33: 01-USAQUEN | E33: 0 | F33: 0 | G33: 2 | S33: 2 | T33: 0.0%
A34: PARTICULAR | B34: PARTICULAR | C34: FUNDACION SANTA FE DE BOGOTA | D34: 01-USAQUEN | E34: 0 | F34: 0 | G34: 4 | S34: 4 | T34: 0.0%
A35: PARTICULAR | B35: PARTICULAR | C35: IPS CRUZ ROJA SEDE UNICENTRO | D35: 01-USAQUEN | E35: 0 | F35: 0 | G35: 0 | S35: 0 | T35: 0.0% | U35: 0
A36: PARTICULAR | B36: PARTICULAR | C36: IPS CRUZ ROJA SAMU CALLE 145 | D36: 01-USAQUEN | E36: 0 | F36: 0 | G36: 0 | S36: 0 | T36: 0.0% | U36: 0
A37: PEDIATRAS | B37: PEDIATRAS | C37: DR. ALEJANDRO LÓPEZ | D37: 01-USAQUEN | E37: 0 | F37: 0 | G37: 0 | S37: 0 | T37: 0.0% | U37: 0
A38: PEDIATRAS | B38: PEDIATRAS | C38: DR. CARLOS NEFTALI TORRES | D38: 01-USAQUEN | E38: 0 | F38: 0 | G38: 1 | S38: 1 | T38: 0.0%
A39: PEDIATRAS | B39: PEDIATRAS | C39: DR. FRANCISCO NUÑEZ | D39: 01-USAQUEN | E39: 0 | F39: 0 | G39: 1 | S39: 1 | T39: 0.0%
A40: PEDIATRAS | B40: PEDIATRAS | C40: DR. FERNANDO GOMEZ | D40: 01-USAQUEN | E40: 0 | F40: 0 | G40: 0 | S40: 0 | T40: 0.0% | U40: 0
A41: PEDIATRAS | B41: PEDIATRAS | C41: DR. FERNANDO ZARATE MORENO | D41: 01-USAQUEN | E41: 0 | F41: 0 | G41: 1 | S41: 1 | T41: 0.0%
A42: PEDIATRAS | B42: PEDIATRAS | C42: DR. GONZALO GARCIA | D42: 01-USAQUEN | E42: 0 | F42: 0 | G42: 1 | S42: 1 | T42: 0.0%
A43: PEDIATRAS | B43: PEDIATRAS | C43: DR. GUSTAVO MORALES | D43: 01-USAQUEN | E43: 0 | F43: 0 | G43: 2 | S43: 2 | T43: 0.0%
A44: PEDIATRAS | B44: PEDIATRAS | C44: DR. JAIME OSPINA | D44: 01-USAQUEN | E44: 0 | F44: 0 | G44: 1 | S44: 1 | T44: 0.0%
A45: PEDIATRAS | B45: PEDIATRAS | C45: DR. JORGE URIBE | D45: 01-USAQUEN | E45: 0 | F45: 0 | G45: 0 | S45: 0 | T45: 0.0% | U45: 0
A46: PEDIATRAS | B46: PEDIATRAS | C46: DR. JUAN LUIS FIGUEROA | D46: 01-USAQUEN | E46: 0 | F46: 0 | G46: 2 | S46: 2 | T46: 0.0%
A47: PEDIATRAS | B47: PEDIATRAS | C47: DR. LUIS AUGUSTO PERNA | D47: 01-USAQUEN | E47: 0 | F47: 0 | G47: 4 | S47: 4 | T47: 0.0%
A48: PEDIATRAS | B48: PEDIATRAS | C48: DR. LIBARDO ELI TRIANA | D48: 01-USAQUEN | E48: 0 | F48: 0 | G48: 0 | S48: 0 | T48: 0.0% | U48: 0
A49: PEDIATRAS | B49: PEDIATRAS | C49: DR. OSWALDO MERCADO HOYOS | D49: 01-USAQUEN | E49: 0 | F49: 0 | G49: 2 | S49: 2 | T49: 0.0%
A50: PEDIATRAS | B50: PEDIATRAS | C50: DR. ROBERTO BENIRO | D50: 01-USAQUEN | E50: 0 | F50: 0 | G50: 0 | S50: 0 | T50: 0.0% | U50: 0
A51: PEDIATRAS | B51: PEDIATRAS | C51: DR. SERGIO ISAZA | D51: 01-USAQUEN | E51: 0 | F51: 0 | G51: 1 | S51: 1 | T51: 0.0%
A52: PEDIATRAS | B52: PEDIATRAS | C52: DR. SANTIAGO UCROS | D52: 01-USAQUEN | E52: 0 | F52: 0 | G52: 0 | S52: 0 | T52: 0.0% | U52: 0
A53: PEDIATRAS | B53: PEDIATRAS | C53: DR. GERMAN SILVA | D53: 01-USAQUEN | E53: 0 | F53: 0 | G53: 0 | S53: 0 | T53: 0.0% | U53: 0
A54: PEDIATRAS | B54: PEDIATRAS | C54: DR. DANIEL ABRIL | D54: 01-USAQUEN | E54: 0 | F54: 0 | G54: 0 | S54: 0 | T54: 0.0% | U54: 0
A55: PEDIATRAS | B55: PEDIATRAS | C55: DR. CARLOS EDUARDO OLMOS | D55: 01-USAQUEN | E55: 0 | F55: 0 | G55: 0 | S55: 0 | T55: 0.0% | U55: 0
A56: PEDIATRAS | B56: PEDIATRAS | C56: DR. EDGARDO CHATMAN | D56: 01-USAQUEN | E56: 0 | F56: 0 | G56: 0 | S56: 0 | T56: 0.0% | U56: 0
A57: PEDIATRAS | B57: PEDIATRAS | C57: DR. JORGE FLOREZ OTERO | D57: 01-USAQUEN | E57: 0 | F57: 0 | G57: 0 | S57: 0 | T57: 0.0% | U57: 0
A58: PEDIATRAS | B58: PEDIATRAS | C58: DRA. ALEJANDRA MARIA VALENCIA | D58: 01-USAQUEN | E58: 0 | F58: 0 | G58: 0 | S58: 0 | T58: 0.0% | U58: 0
A59: PEDIATRAS | B59: PEDIATRAS | C59: DRA. ANA MARIA GOYENECHE | D59: 01-USAQUEN | E59: 0 | F59: 0 | G59: 0 | S59: 0 | T59: 0.0% | U59: 0
A60: PEDIATRAS | B60: PEDIATRAS | C60: DRA. JIMENA VARELA | D60: 01-USAQUEN | E60: 0 | F60: 0 | G60: 0 | S60: 0 | T60: 0.0% | U60: 0
A61: PEDIATRAS | B61: PEDIATRAS | C61: DRA. LIA SAN MIGUEL | D61: 01-USAQUEN | E61: 0 | F61: 0 | G61: 0 | S61: 0 | T61: 0.0% | U61: 0
A62: PEDIATRAS | B62: PEDIATRAS | C62: DRA. LIBIA SEGURA | D62: 01-USAQUEN | E62: 0 | F62: 0 | G62: 0 | S62: 0 | T62: 0.0% | U62: 0
A63: PEDIATRAS | B63: PEDIATRAS | C63: DRA. MARÍA JOSÉ PEDRAZA | D63: 01-USAQUEN | E63: 0 | F63: 0 | G63: 0 | S63: 0 | T63: 0.0% | U63: 0
A64: PEDIATRAS | B64: PEDIATRAS | C64: DRA. MARTHA LUCIA SANCHEZ | D64: 01-USAQUEN | E64: 0 | F64: 0 | G64: 0 | S64: 0 | T64: 0.0% | U64: 0
A65: PEDIATRAS | B65: PEDIATRAS | C65: DRA. OLGA LUCÍA SÁNCHEZ | D65: 01-USAQUEN | E65: 0 | F65: 0 | G65: 0 | S65: 0 | T65: 0.0% | U65: 0
A66: PEDIATRAS | B66: PEDIATRAS | C66: DRA. SANDRA BELTRAN | D66: 01-USAQUEN | E66: 0 | F66: 0 | G66: 0 | S66: 0 | T66: =IF(E66=0,0,+S66/E66) -> 0.0% | U66: =IF(COUNT(G66:R66)*(E66/12)-S66<0,"",COUNT(G66:R66)*(E66/12)-S66) -> 0
A67: PEDIATRAS | B67: PEDIATRAS | C67: DRA. IVANA CABRERA | D67: 01-USAQUEN | E67: 0 | F67: =+E67/12 -> 0 | G67: 0 | S67: =SUM(G67:R67) -> 0 | T67: 0.0% | U67: 0
A68: PEDIATRAS | B68: PEDIATRAS | C68: DRA. NAYITA ALARCON | D68: 01-USAQUEN | E68: 0 | F68: 0 | G68: 0 | S68: 0 | T68: 0.0% | U68: 0
A69: PEDIATRAS | B69: PEDIATRAS | C69: DRA. ELIZABETH GARCIA | D69: 01-USAQUEN | E69: 0 | F69: 0 | G69: 0 | S69: 0 | T69: 0.0% | U69: 0
A70: PEDIATRAS | B70: PEDIATRAS | C70: DRA. BERTHA CALDERON DE RAMOS | D70: 01-USAQUEN | E70: 0 | F70: 0 | G70: 0 | S70: 0 | T70: 0.0% | U70: 0
A71: PEDIATRAS | B71: PEDIATRAS | C71: DRA. MIRYAM CORREA | D71: 01-USAQUEN | E71: 0 | F71: 0 | G71: 0 | S71: 0 | T71: 0.0% | U71: 0
A72: 01-USAQUEN | B72: UNICAJAS | C72: UPA SAN CRISTOBAL | D72: 01-USAQUEN | E72: 6 | F72: 1 | G72: 1 | S72: 1 | T72: 16.7%
A73: UNICAJAS | B73: UNICAJAS | C73: UPA USAQUEN | D73: 01-USAQUEN | E73: 9 | F73: 1 | S73: 0 | T73: 0.0% | U73: 0
A74: UNICAJAS | B74: UNICAJAS | C74: UPA ORQUIDEAS | D74: 01-USAQUEN | E74: 6 | F74: 1 | G74: 0 | S74: 0 | T74: 0.0% | U74: 1
A75: UNICAJAS | B75: UNICAJAS | C75: UPA CODITO | D75: 01-USAQUEN | E75: 5 | F75: 0 | G75: 0 | S75: 0 | T75: 0.0% | U75: 0
A76: UNICAJAS | B76: UNICAJAS | C76: CAMI VERBENAL | D76: 01-USAQUEN | E76: 6 | F76: 1 | G76: 0 | S76: 0 | T76: 0.0% | U76: 1
A77: 01-USAQUEN | B77: UNICAJAS | C77: HOSPITAL SIMON BOLIVAR | D77: 01-USAQUEN | E77: 6 | F77: 1 | G77: 1 | S77: 1 | T77: 16.7%
A78: 01-USAQUEN | B78: OTROS | C78: UPA SAN CRISTOBAL | D78: 01-USAQUEN | E78: 300 | F78: 25 | G78: 1 | S78: 1 | T78: 0.3% | U78: 24
A79: 01-USAQUEN | B79: OTROS | C79: UPA USAQUEN | D79: 01-USAQUEN | E79: 100 | F79: 8 | S79: 0 | T79: 0.0% | U79: 0
A80: 01-USAQUEN | B80: OTROS | C80: UPA ORQUIDEAS | D80: 01-USAQUEN | E80: 120 | F80: 10 | G80: 2 | S80: 2 | T80: 1.7% | U80: 8
A81: 01-USAQUEN | B81: OTROS | C81: UPA CODITO | D81: 01-USAQUEN | E81: 218 | F81: 18 | G81: 4 | S81: 4 | T81: 1.8% | U81: 14
A82: 01-USAQUEN | B82: OTROS | C82: CAMI VERBENAL | D82: 01-USAQUEN | E82: 309 | F82: 26 | G82: 4 | S82: 4 | T82: 1.3% | U82: 22
A83: 01-USAQUEN | B83: OTROS | C83: HOSPITAL SIMON BOLIVAR | D83: 01-USAQUEN | E83: 480 | F83: 40 | G83: 9 | S83: 9 | T83: 1.9% | U83: 31
A84: 01-USAQUEN | B84: DEMAS EAPB | C84: UPA SAN CRISTOBAL | D84: 01-USAQUEN | F84: 0 | G84: 11 | S84: 11 | T84: 0.0%
A85: 01-USAQUEN | B85: DEMAS EAPB | C85: UPA USAQUEN | D85: 01-USAQUEN | F85: 0 | G85: 2 | S85: 2 | T85: 0.0%
A86: 01-USAQUEN | B86: DEMAS EAPB | C86: UPA ORQUIDEAS | D86: 01-USAQUEN | F86: 0 | G86: 2 | S86: 2 | T86: 0.0%
A87: 01-USAQUEN | B87: DEMAS EAPB | C87: UPA CODITO | D87: 01-USAQUEN | F87: 0 | G87: 7 | S87: 7 | T87: 0.0%
A88: 01-USAQUEN | B88: DEMAS EAPB | C88: CAMI VERBENAL | D88: 01-USAQUEN | F88: 0 | G88: 4 | S88: 4 | T88: 0.0%
A89: 01-USAQUEN | B89: DEMAS EAPB | C89: HOSPITAL SIMON BOLIVAR | D89: 01-USAQUEN | F89: 0 | G89: 17 | S89: 17 | T89: 0.0%
A90: MEDIMAS | B90: MEDIMAS | C90: Corvesalud S.A.S - I P S Chico | D90: 01-USAQUEN | E90: 320 | F90: 27 | G90: 5 | S90: 5 | T90: 1.6% | U90: 22
A91: FAMISANAR | B91: COLSUBSIDIO | C91: Sura PAC Santa Bárbara | D91: 01-USAQUEN | F91: 0 | S91: 0 | T91: 0.0% | U91: 0
A92: CAPITAL SALUD | B92: CAPITAL SALUD | C92: UPA SAN LUIS | D92: 02-CHAPINERO | E92: 12 | F92: 1 | G92: 4 | S92: 4 | T92: 33.3%
A93: 02-CHAPINERO | B93: 02-CHAPINERO | C93: EXTRAMURAL CHAPINERO | D93: 02-CHAPINERO | E93: 0 | F93: 0 | G93: 2 | S93: 2 | T93: 0.0%
A94: COMPENSAR | B94: COMPENSAR | C94: USS CALLE 42 | D94: 02-CHAPINERO | E94: 612 | F94: 51 | G94: 29 | S94: 29 | T94: 4.7% | U94: 22
A95: COMPENSAR | B95: COMPENSAR | C95: USS CALLE 67 | D95: 02-CHAPINERO | E95: 0 | F95: 0 | G95: 0 | S95: 0 | T95: 0.0% | U95: 0
A96: COMPENSAR | B96: COMPENSAR | C96: USS CALLE 94 | D96: 02-CHAPINERO | E96: 369 | F96: 31 | G96: 35 | S96: 35 | T96: 9.5%
A97: COMPENSAR | B97: COMPENSAR | C97: VIVA 1A IPS CHAPINERO | D97: 02-CHAPINERO | E97: 73 | F97: 6 | G97: 4 | S97: 4 | T97: 5.5% | U97: 2
A98: COOMEVA | B98: COOMEVA | C98: SINERGIA UNIDAD BASICA LOURDES | D98: 02-CHAPINERO | E98: 217 | F98: 18 | G98: 9 | S98: 9 | T98: 4.1% | U98: 9
A99: FAMISANAR | B99: FAMI- CAFAM | C99: CENTRO DE ATENCION EN SALUD CAFAM CALLE 48 | D99: 02-CHAPINERO | E99: 1050 | F99: 88 | G99: 32 | S99: 32 | T99: 3.0% | U99: 56
A100: FAMISANAR | B100: FAMI- CAFAM | C100: CENTRO DE ATENCION EN SALUD CAFAM CALLE 90 | D100: 02-CHAPINERO | E100: 200 | F100: 17 | G100: 13 | S100: 13 | T100: 6.5% | U100: 4
A101: FAMISANAR | B101: FAMI- COLSB | C101: CLINICA COLSUBSIDIO EL LAGO | D101: 02-CHAPINERO | E101: 392 | F101: 33 | G101: 10 | S101: 10 | T101: 2.6% | U101: 23
A102: MILITAR | B102: MILITAR | C102: HOSPITAL MILITAR CENTRAL | D102: 02-CHAPINERO | E102: 70 | F102: 6 | G102: 10 | S102: 10 | T102: 14.3%
A103: POLICIA | B103: POLICIA | C103: POLICIA NACIONAL ESPAM CHAPINERO | D103: 02-CHAPINERO | E103: 117 | F103: 10 | G103: 4 | S103: 4 | T103: 3.4% | U103: 6
A104: NUEVA EPS | B104: NUEVA EPS | C104: IPS VIVA 1A SEDE MARLY | D104: 02-CHAPINERO | E104: 131 | F104: 11 | G104: 10 | S104: 10 | T104: 7.6% | U104: 1
A105: SANITAS | B105: SANITAS | C105: EPS SANITAS CENTRO MEDICO TEUSAQUILLO | D105: 02-CHAPINERO | E105: 579 | F105: 48 | G105: 28 | S105: 28 | T105: 4.8% | U105: 20
A106: SALUD TOTAL | B106: SALUD TOTAL | C106: VIRREY SOLIS CHAPINERO | D106: 02-CHAPINERO | E106: 337 | F106: 28 | G106: 17 | S106: 17 | T106: 5.0% | U106: 11
A107: SURA | B107: SURA | C107: PUNTO DE SALUD CHAPINERO | D107: 02-CHAPINERO | E107: 237 | F107: 20 | G107: 14 | S107: 14 | T107: 5.9% | U107: 6
A108: SURA | B108: SURA | C108: SALUD SURA | D108: 02-CHAPINERO | E108: 454 | F108: 38 | G108: 46 | S108: 46 | T108: 10.1%
A109: PARTICULAR | B109: PARTICULAR | C109: CENTRO MEDICO COLSANITAS CALLE 96 | D109: 02-CHAPINERO | E109: 24 | F109: 2 | G109: 2 | S109: 2 | T109: 8.3% | U109: 0
A110: PARTICULAR | B110: PARTICULAR | C110: CENTRO DE ESPECIALISTAS MEDICOS AXA COLPATRIA | D110: 02-CHAPINERO | E110: 0 | F110: 0 | G110: 5 | S110: 5 | T110: 0.0%
A111: PARTICULAR | B111: PARTICULAR | C111: CLINICA DE LA MUJER | D111: 02-CHAPINERO | E111: 0 | F111: 0 | G111: 49 | S111: 49 | T111: 0.0%
A112: PARTICULAR | B112: PARTICULAR | C112: VACUNARTE IPS | D112: 02-CHAPINERO | E112: 0 | F112: 0 | G112: 0 | S112: 0 | T112: 0.0% | U112: 0
A113: PARTICULAR | B113: PARTICULAR | C113: UNIMARLY | D113: 02-CHAPINERO | E113: 0 | F113: 0 | G113: 0 | S113: 0 | T113: 0.0% | U113: 0
A114: PARTICULAR | B114: PARTICULAR | C114: HOSPITAL SAN IGNACIO | D114: 02-CHAPINERO | E114: 0 | F114: 0 | G114: 13 | S114: 13 | T114: 0.0%
A115: PARTICULAR | B115: PARTICULAR | C115: PROGRAMA MADRE CANGURO HOSPITAL SAN IGNACIO | D115: 02-CHAPINERO | E115: 0 | F115: 0 | G115: 92 | S115: 92 | T115: 0.0%
A116: PARTICULAR | B116: PARTICULAR | C116: IPS AVENIR | D116: 02-CHAPINERO | E116: 0 | F116: 0 | G116: 0 | S116: 0 | T116: 0.0% | U116: 0
A117: PARTICULAR | B117: PARTICULAR | C117: IPS INMUNOLOGIA Y DIAGNOSTICO ESPECIALIZADO | D117: 02-CHAPINERO | E117: 0 | F117: 0 | G117: 0 | S117: 0 | T117: 0.0% | U117: 0
A118: PARTICULAR | B118: PARTICULAR | C118: ASOCIACION PEDIATRICA DE LOS ANDES | D118: 02-CHAPINERO | E118: 0 | F118: 0 | G118: 1 | S118: 1 | T118: 0.0%
A119: PARTICULAR | B119: PARTICULAR | C119: CRUZ ROJA SEDE ANDINO | D119: 02-CHAPINERO | E119: 0 | F119: 0 | G119: 0 | S119: 0 | T119: 0.0% | U119: 0
A120: PARTICULAR | B120: PARTICULAR | C120: CENTRO MEDICO SANTA MONICA | D120: 02-CHAPINERO | E120: 0 | F120: 0 | S120: 0 | T120: 0.0% | U120: 0
A121: PEDIATRAS | B121: PEDIATRAS | C121: DR. JUAN OSCAR TAMAYO | D121: 02-CHAPINERO | E121: 0 | F121: 0 | G121: 2 | S121: 2 | T121: 0.0%
A122: PEDIATRAS | B122: PEDIATRAS | C122: DR. ROBERTO SUAREZ | D122: 02-CHAPINERO | E122: 0 | F122: 0 | G122: 0 | S122: 0 | T122: 0.0% | U122: 0
A123: PEDIATRAS | B123: PEDIATRAS | C123: DR. WILLIAM RICARDO CABRA | D123: 02-CHAPINERO | E123: 0 | F123: 0 | G123: 3 | S123: 3 | T123: 0.0%
A124: PEDIATRAS | B124: PEDIATRAS | C124: DR. EDGAR CASTRO | D124: 02-CHAPINERO | E124: 0 | F124: 0 | G124: 5 | S124: 5 | T124: 0.0%
A125: PEDIATRAS | B125: PEDIATRAS | C125: DR. PABLO KRAUSS | D125: 02-CHAPINERO | E125: 0 | F125: 0 | G125: 1 | S125: 1 | T125: 0.0%
A126: PEDIATRAS | B126: PEDIATRAS | C126: DR. HERNAN ROBLES | D126: 02-CHAPINERO | E126: 0 | F126: 0 | G126: 4 | S126: 4 | T126: 0.0%
A127: PEDIATRAS | B127: PEDIATRAS | C127: DR. RAFAEL GAMBOA CASABLANCA | D127: 02-CHAPINERO | E127: 0 | F127: 0 | G127: 0 | S127: 0 | T127: 0.0% | U127: 0
A128: PEDIATRAS | B128: PEDIATRAS | C128: DR. JAVIER MEJIA | D128: 02-CHAPINERO | E128: 0 | F128: 0 | G128: 2 | S128: 2 | T128: 0.0%
A129: PEDIATRAS | B129: PEDIATRAS | C129: DR. CARLOS CORTAZAR | D129: 02-CHAPINERO | E129: 0 | F129: 0 | G129: 0 | S129: 0 | T129: 0.0% | U129: 0
A130: PEDIATRAS | B130: PEDIATRAS | C130: DR. NELSON PARDO | D130: 02-CHAPINERO | E130: 0 | F130: 0 | G130: 2 | S130: 2 | T130: =IF(E130=0,0,+S130/E130) -> 0.0% | U130: =IF(COUNT(G130:R130)*(E130/12)-S130<0,"",COUNT(G130:R130)*(E130/12)-S130) -> 
A131: PEDIATRAS | B131: PEDIATRAS | C131: DR. ALVARO JACOME | D131: 02-CHAPINERO | E131: 0 | F131: =+E131/12 -> 0 | G131: 2 | S131: =SUM(G131:R131) -> 2 | T131: 0.0%
A132: PEDIATRAS | B132: PEDIATRAS | C132: DR. SILVIO COPO | D132: 02-CHAPINERO | E132: 0 | F132: 0 | G132: 0 | S132: 0 | T132: 0.0% | U132: 0
A133: PEDIATRAS | B133: PEDIATRAS | C133: DR. HECTOR FERNANDO MENDOZA | D133: 02-CHAPINERO | E133: 0 | F133: 0 | G133: 0 | S133: 0 | T133: 0.0% | U133: 0
A134: PEDIATRAS | B134: PEDIATRAS | C134: DR. DIMITRIOS | D134: 02-CHAPINERO | E134: 0 | F134: 0 | G134: 1 | S134: 1 | T134: 0.0%
A135: PEDIATRAS | B135: PEDIATRAS | C135: DR. ALVARO MARIÑO | D135: 02-CHAPINERO | E135: 0 | F135: 0 | G135: 0 | S135: 0 | T135: 0.0% | U135: 0
A136: PEDIATRAS | B136: PEDIATRAS | C136: DR. ANDRES VARGAS | D136: 02-CHAPINERO | E136: 0 | F136: 0 | G136: 2 | S136: 2 | T136: 0.0%
A137: PEDIATRAS | B137: PEDIATRAS | C137: DR. JORGE CAMILO LUNA | D137: 02-CHAPINERO | E137: 0 | F137: 0 | G137: 1 | S137: 1 | T137: 0.0%
A138: PEDIATRAS | B138: PEDIATRAS | C138: DR. BERNARDO HUERTAS | D138: 02-CHAPINERO | E138: 0 | F138: 0 | G138: 6 | S138: 6 | T138: 0.0%
A139: PEDIATRAS | B139: PEDIATRAS | C139: DR. CARLOS M CASTILLO | D139: 02-CHAPINERO | E139: 0 | F139: 0 | G139: 0 | S139: 0 | T139: 0.0% | U139: 0
A140: PEDIATRAS | B140: PEDIATRAS | C140: DR. HEINZ OTTO PFALZGRAF | D140: 02-CHAPINERO | E140: 0 | F140: 0 | G140: 0 | S140: 0 | T140: 0.0% | U140: 0
A141: PEDIATRAS | B141: PEDIATRAS | C141: DR. GONZALEZ BALLESTEROS | D141: 02-CHAPINERO | E141: 0 | F141: 0 | G141: 0 | S141: 0 | T141: 0.0% | U141: 0
A142: PEDIATRAS | B142: PEDIATRAS | C142: DR. NORBERTO SALAMANCA | D142: 02-CHAPINERO | E142: 0 | F142: 0 | G142: 0 | S142: 0 | T142: 0.0% | U142: 0
A143: PEDIATRAS | B143: PEDIATRAS | C143: DR. CAMILO ENRIQUE SOTOMAYOR | D143: 02-CHAPINERO | E143: 0 | F143: 0 | G143: 0 | S143: 0 | T143: 0.0% | U143: 0
A144: PEDIATRAS | B144: PEDIATRAS | C144: DR. SANTIAGO RUEDA SAIZ | D144: 02-CHAPINERO | E144: 0 | F144: 0 | G144: 2 | S144: 2 | T144: 0.0%
A145: PEDIATRAS | B145: PEDIATRAS | C145: DR. HENRY HERNANDO SANCHEZ ESCOBAR | D145: 02-CHAPINERO | E145: 0 | F145: 0 | G145: 1 | S145: 1 | T145: 0.0%
A146: PEDIATRAS | B146: PEDIATRAS | C146: DR. RUBEN DARIO TAMAYO | D146: 02-CHAPINERO | E146: 0 | F146: 0 | G146: 2 | S146: 2 | T146: 0.0%
A147: PEDIATRAS | B147: PEDIATRAS | C147: DR. JAIME MAURICIO MATALLANA | D147: 02-CHAPINERO | E147: 0 | F147: 0 | G147: 5 | S147: 5 | T147: 0.0%
A148: PEDIATRAS | B148: PEDIATRAS | C148: DR. RODRIGO GARCIA | D148: 02-CHAPINERO | E148: 0 | F148: 0 | G148: 0 | S148: 0 | T148: 0.0% | U148: 0
A149: PEDIATRAS | B149: PEDIATRAS | C149: DR. FELIPE ROBAYO | D149: 02-CHAPINERO | E149: 0 | F149: 0 | G149: 0 | S149: 0 | T149: 0.0% | U149: 0
A150: PEDIATRAS | B150: PEDIATRAS | C150: DR. RUBEN FRANCO | D150: 02-CHAPINERO | E150: 0 | F150: 0 | G150: 0 | S150: 0 | T150: 0.0% | U150: 0
A151: PEDIATRAS | B151: PEDIATRAS | C151: DR. ORLANDO RODRIGUEZ RAMIREZ | D151: 02-CHAPINERO | E151: 0 | F151: 0 | G151: 2 | S151: 2 | T151: 0.0%
A152: PEDIATRAS | B152: PEDIATRAS | C152: DR. ARTURO MORENO | D152: 02-CHAPINERO | E152: 0 | F152: 0 | G152: 0 | S152: 0 | T152: 0.0% | U152: 0
A153: PEDIATRAS | B153: PEDIATRAS | C153: DR. FRANCISCO LEAL QUEVEDO | D153: 02-CHAPINERO | E153: 0 | F153: 0 | G153: 0 | S153: 0 | T153: 0.0% | U153: 0
A154: PEDIATRAS | B154: PEDIATRAS | C154: DR. CARLOS DIAZ PUENTES | D154: 02-CHAPINERO | E154: 0 | F154: 0 | G154: 0 | S154: 0 | T154: 0.0% | U154: 0
A155: PEDIATRAS | B155: PEDIATRAS | C155: DR. PEDRO ERASMO MENDOZA | D155: 02-CHAPINERO | E155: 0 | F155: 0 | G155: 0 | S155: 0 | T155: 0.0% | U155: 0
A156: PEDIATRAS | B156: PEDIATRAS | C156: DR. DIMAS ROSAS | D156: 02-CHAPINERO | E156: 0 | F156: 0 | G156: 0 | S156: 0 | T156: 0.0% | U156: 0
A157: PEDIATRAS | B157: PEDIATRAS | C157: DR. JAVIER BRITO MORENO | D157: 02-CHAPINERO | E157: 0 | F157: 0 | G157: 0 | S157: 0 | T157: 0.0% | U157: 0
A158: PEDIATRAS | B158: PEDIATRAS | C158: DR. GUSTAVO CORTÉS | D158: 02-CHAPINERO | E158: 0 | F158: 0 | G158: 0 | S158: 0 | T158: 0.0% | U158: 0
A159: PEDIATRAS | B159: PEDIATRAS | C159: DR. CARLOS VELASQUEZ | D159: 02-CHAPINERO | E159: 0 | F159: 0 | G159: 0 | S159: 0 | T159: 0.0% | U159: 0
A160: PEDIATRAS | B160: PEDIATRAS | C160: DR. RICARDO GOMEZ | D160: 02-CHAPINERO | E160: 0 | F160: 0 | G160: 0 | S160: 0 | T160: 0.0% | U160: 0
A161: PEDIATRAS | B161: PEDIATRAS | C161: DR. SARA BERNAL | D161: 02-CHAPINERO | E161: 0 | F161: 0 | G161: 1 | S161: 1 | T161: 0.0%
A162: PEDIATRAS | B162: PEDIATRAS | C162: DRA. MARIA PATRICIA AGUALIMPIA | D162: 02-CHAPINERO | E162: 0 | F162: 0 | G162: 0 | S162: 0 | T162: 0.0% | U162: 0
A163: PEDIATRAS | B163: PEDIATRAS | C163: DRA. LUISA FERNANDA FORERO ACOSTA | D163: 02-CHAPINERO | E163: 0 | F163: 0 | G163: 0 | S163: 0 | T163: 0.0% | U163: 0
A164: PEDIATRAS | B164: PEDIATRAS | C164: DRA. MARIA CLARA CASAS PARDO | D164: 02-CHAPINERO | E164: 0 | F164: 0 | G164: 0 | S164: 0 | T164: 0.0% | U164: 0
A165: PEDIATRAS | B165: PEDIATRAS | C165: DRA. MARTHA EUGENIA RONDEROS DE FORERO | D165: 02-CHAPINERO | E165: 0 | F165: 0 | G165: 0 | S165: 0 | T165: 0.0% | U165: 0
A166: PEDIATRAS | B166: PEDIATRAS | C166: DRA. MARIA ISABEL USCHER | D166: 02-CHAPINERO | E166: 0 | F166: 0 | G166: 4 | S166: 4 | T166: 0.0%
A167: PEDIATRAS | B167: PEDIATRAS | C167: DRA. MARIA DE LOS ANGELES MUÑOZ | D167: 02-CHAPINERO | E167: 0 | F167: 0 | G167: 3 | S167: 3 | T167: 0.0%
A168: PEDIATRAS | B168: PEDIATRAS | C168: DRA. CLARA ABELLO REYES | D168: 02-CHAPINERO | E168: 0 | F168: 0 | G168: 2 | S168: 2 | T168: 0.0%
A169: PEDIATRAS | B169: PEDIATRAS | C169: DRA. PATRICIA CONTRERAS | D169: 02-CHAPINERO | E169: 0 | F169: 0 | G169: 0 | S169: 0 | T169: 0.0% | U169: 0
A170: PEDIATRAS | B170: PEDIATRAS | C170: DRA. CLAUDIA ZOPPI | D170: 02-CHAPINERO | E170: 0 | F170: 0 | G170: 0 | S170: 0 | T170: 0.0% | U170: 0
A171: PEDIATRAS | B171: PEDIATRAS | C171: DRA. MARIA DE LOS ANGELES FERNANDEZ LUQUE | D171: 02-CHAPINERO | E171: 0 | F171: 0 | G171: 0 | S171: 0 | T171: 0.0% | U171: 0
A172: PEDIATRAS | B172: PEDIATRAS | C172: DRA. RUTH CORDOBA CORDOBA | D172: 02-CHAPINERO | E172: 0 | F172: 0 | G172: 0 | S172: 0 | T172: 0.0% | U172: 0
A173: PEDIATRAS | B173: PEDIATRAS | C173: DRA. LUZ ESTELA CORTES | D173: 02-CHAPINERO | E173: 0 | F173: 0 | G173: 0 | S173: 0 | T173: 0.0% | U173: 0
A174: UNICAJAS | B174: UNICAJAS | C174: UPA SAN LUIS | D174: 02-CHAPINERO | E174: 18 | F174: 2 | G174: 0 | S174: 0 | T174: 0.0% | U174: 2
A175: 02-CHAPINERO | B175: OTROS | C175: UPA SAN LUIS | D175: 02-CHAPINERO | E175: 325 | F175: 27 | G175: 2 | S175: 2 | T175: 0.6% | U175: 25
A176: 02-CHAPINERO | B176: DEMAS EAPB | C176: UPA SAN LUIS | D176: 02-CHAPINERO | F176: 0 | G176: 6 | S176: 6 | T176: 0.0%
A177: UNICAJAS | B177: UNICAJAS | C177: COMFASALUD SEDE CENTRO | D177: 03-SANTA FE | E177: 50 | F177: 4 | G177: 2 | S177: 2 | T177: 4.0% | U177: 2
A178: MEDIMAS | B178: MEDIMAS | C178: CORVESALUD TEUSAQUILLO | D178: 03-SANTA FE | E178: 193 | F178: 16 | G178: 6 | S178: 6 | T178: 3.1% | U178: 10
A179: 03-SANTA FE | B179: CAPITAL SALUD | C179: EXTRAMURAL SANTA FE | D179: 03-SANTA FE | E179: 0 | F179: 0 | G179: 7 | S179: 7 | T179: 0.0%
A180: 03-SANTA FE | B180: DEMAS EAPB | C180: EXTRAMURAL SANTA FE | D180: 03-SANTA FE | E180: 0 | F180: 0 | G180: 0 | S180: 0 | T180: 0.0% | U180: 0
A181: 03-SANTA FE | B181: OTROS | C181: EXTRAMURAL SANTA FE | D181: 03-SANTA FE | E181: 0 | F181: 0 | G181: 11 | S181: 11 | T181: 0.0%
A182: 03-SANTA FE | B182: UNICAJAS | C182: EXTRAMURAL SANTA FE | D182: 03-SANTA FE | E182: 0 | F182: 0 | G182: 0 | S182: 0 | T182: 0.0% | U182: 0
A183: 03-SANTA FE | B183: CAPITAL SALUD | C183: USS LACHES | D183: 03-SANTA FE | E183: 54 | F183: 5 | G183: 7 | S183: 7 | T183: 13.0%
A184: 03-SANTA FE | B184: DEMAS EAPB | C184: USS LACHES | D184: 03-SANTA FE | E184: 0 | F184: 0 | G184: 7 | S184: 7 | T184: 0.0%
A185: 03-SANTA FE | B185: OTROS | C185: USS LACHES | D185: 03-SANTA FE | E185: 260 | F185: 22 | G185: 4 | S185: 4 | T185: 1.5% | U185: 18
A186: 03-SANTA FE | B186: UNICAJAS | C186: USS LACHES | D186: 03-SANTA FE | E186: 17 | F186: 1 | G186: 1 | S186: 1 | T186: 5.9% | U186: 0
A187: 03-SANTA FE | B187: CAPITAL SALUD | C187: USS LAS CRUCES | D187: 03-SANTA FE | E187: 44 | F187: 4 | G187: 6 | S187: 6 | T187: 13.6%
A188: 03-SANTA FE | B188: DEMAS EAPB | C188: USS LAS CRUCES | D188: 03-SANTA FE | E188: 0 | F188: 0 | G188: 4 | S188: 4 | T188: 0.0%
A189: 03-SANTA FE | B189: OTROS | C189: USS LAS CRUCES | D189: 03-SANTA FE | E189: 211 | F189: 18 | G189: 5 | S189: 5 | T189: 2.4% | U189: 13
A190: 03-SANTA FE | B190: UNICAJAS | C190: USS LAS CRUCES | D190: 03-SANTA FE | E190: 14 | F190: 1 | G190: 1 | S190: 1 | T190: 7.1% | U190: 0
A191: 03-SANTA FE | B191: CAPITAL SALUD | C191: USS PERSEVERANCIA | D191: 03-SANTA FE | E191: 6 | F191: 1 | G191: 1 | S191: 1 | T191: 16.7%
A192: 03-SANTA FE | B192: DEMAS EAPB | C192: USS PERSEVERANCIA | D192: 03-SANTA FE | E192: 0 | F192: 0 | G192: 1 | S192: 1 | T192: 0.0%
A193: 03-SANTA FE | B193: OTROS | C193: USS PERSEVERANCIA | D193: 03-SANTA FE | E193: 30 | F193: 3 | G193: 2 | S193: 2 | T193: 6.7% | U193: 1
A194: 03-SANTA FE | B194: UNICAJAS | C194: USS PERSEVERANCIA | D194: 03-SANTA FE | E194: 2 | F194: 0 | G194: 0 | S194: 0 | T194: =IF(E194=0,0,+S194/E194) -> 0.0% | U194: =IF(COUNT(G194:R194)*(E194/12)-S194<0,"",COUNT(G194:R194)*(E194/12)-S194) -> 0
A195: PARTICULAR | B195: PARTICULAR | C195: CLINICA SAN RAFAEL | D195: 04-SAN CRISTOBAL | E195: 375 | F195: =+E195/12 -> 31 | G195: 32 | S195: =SUM(G195:R195) -> 32 | T195: 8.5%
A196: FAMISANAR | B196: FAMI- COLSB | C196: CENTRO MEDICO COLSUBSIDIO 20 DE JULIO | D196: 04-SAN CRISTOBAL | F196: 0 | S196: 0 | T196: 0.0% | U196: 0
A197: 04-SAN CRISTOBAL | B197: CAPITAL SALUD | C197: EXTRAMURAL SAN CRISTOBAL | D197: 04-SAN CRISTOBAL | E197: 0 | F197: 0 | G197: 22 | S197: 22 | T197: 0.0%
A198: 04-SAN CRISTOBAL | B198: DEMAS EAPB | C198: EXTRAMURAL SAN CRISTOBAL | D198: 04-SAN CRISTOBAL | E198: 0 | F198: 0 | G198: 31 | S198: 31 | T198: 0.0%
A199: 04-SAN CRISTOBAL | B199: OTROS | C199: EXTRAMURAL SAN CRISTOBAL | D199: 04-SAN CRISTOBAL | E199: 0 | F199: 0 | G199: 17 | S199: 17 | T199: 0.0%
A200: 04-SAN CRISTOBAL | B200: UNICAJAS | C200: EXTRAMURAL SAN CRISTOBAL | D200: 04-SAN CRISTOBAL | E200: 0 | F200: 0 | G200: 3 | S200: 3 | T200: 0.0%
... 620 more rows

Sheet NEUMOCOCO2
A1: EAPB | B1: EPS O ESE | C1: IPS | D1: Localidad | E1: Meta Anual Menor de 1 Año | F1: Meta Mensual | G1: Enero | H1: Febrero | I1: Marzo | J1: Abril | K1: Mayo | L1: Junio | M1: Julio | N1: Agosto | O1: Septiembre | P1: Octubre | Q1: Noviembre | R1: Diciembre | S1: Total | T1: % Cobertura | U1: Deficit
A2: CAPITAL SALUD | B2: CAPITAL SALUD | C2: UPA SAN CRISTOBAL | D2: 01-USAQUEN | E2: 124 | F2: =+E2/12 -> 10 | G2: 7 | S2: =SUM(G2:R2) -> 7 | T2: =IF(E2=0,0,+S2/E2) -> 5.6% | U2: =IF(COUNT(G2:R2)*(E2/12)-S2<0,"",COUNT(G2:R2)*(E2/12)-S2) -> 3
A3: CAPITAL SALUD | B3: CAPITAL SALUD | C3: UPA USAQUEN | D3: 01-USAQUEN | E3: 10 | F3: =+E3/12 -> 1 | S3: =SUM(G3:R3) -> 0 | T3: 0.0% | U3: 0
A4: CAPITAL SALUD | B4: CAPITAL SALUD | C4: UPA ORQUIDEAS | D4: 01-USAQUEN | E4: 11 | F4: 1 | G4: 3 | S4: 3 | T4: 27.3%
A5: CAPITAL SALUD | B5: CAPITAL SALUD | C5: UPA CODITO | D5: 01-USAQUEN | E5: 107 | F5: 9 | G5: 8 | S5: 8 | T5: 7.5% | U5: 1
A6: CAPITAL SALUD | B6: CAPITAL SALUD | C6: CAMI VERBENAL | D6: 01-USAQUEN | E6: 87 | F6: 7 | G6: 8 | S6: 8 | T6: 9.2%
A7: CAPITAL SALUD | B7: CAPITAL SALUD | C7: HOSPITAL SIMON BOLIVAR | D7: 01-USAQUEN | E7: 36 | F7: 3 | G7: 9 | S7: 9 | T7: 25.0%
A8: 01-USAQUEN | B8: 01-USAQUEN | C8: EXTRAMURAL USAQUEN | D8: 01-USAQUEN | E8: 0 | F8: 0 | G8: 13 | S8: 13 | T8: 0.0%
A9: ALIANSALUD | B9: ALIANSALUD | C9: CENTRO MEDICO COLMEDICA SANTA BARBARA | D9: 01-USAQUEN | E9: 580 | F9: 48 | G9: 79 | S9: 79 | T9: 13.6%
A10: COMPENSAR | B10: COMPENSAR | C10: USS CALLE 134 | D10: 01-USAQUEN | E10: 372 | F10: 31 | G10: 16 | S10: 16 | T10: 4.3% | U10: 15
A11: COMPENSAR | B11: COMPENSAR | C11: USS CALLE 145 | D11: 01-USAQUEN | E11: 173 | F11: 14 | G11: 16 | S11: 16 | T11: 9.2%
A12: COMPENSAR | B12: COMPENSAR | C12: JAVESALUD TOBERIN | D12: 01-USAQUEN | E12: 372 | F12: 31 | G12: 3 | S12: 3 | T12: 0.8% | U12: 28
A13: COOMEVA | B13: COOMEVA | C13: SINERGIA UNIDAD INTEGRAL EN SALUD | D13: 01-USAQUEN | E13: 44 | F13: 4 | G13: 6 | S13: 6 | T13: 13.6%
A14: FAMISANAR | B14: FAMI- COLSB | C14: CENTRO MEDICO COLSUBSIDIO USAQUEN | D14: 01-USAQUEN | E14: 298 | F14: 25 | G14: 30 | S14: 30 | T14: 10.1%
A15: MILITAR | B15: MILITAR | C15: DISPENSARIO MEDICO CANTON NORTE | D15: 01-USAQUEN | E15: 205 | F15: 17 | G15: 3 | S15: 3 | T15: 1.5% | U15: 14
A16: NUEVA EPS | B16: NUEVA EPS | C16: IPS VIVA 1A SEDE TOBERIN | D16: 01-USAQUEN | E16: 147 | F16: 12 | G16: 6 | S16: 6 | T16: 4.1% | U16: 6
A17: NUEVA EPS | B17: NUEVA EPS | C17: CAFAM GRANADA HILLS | D17: 01-USAQUEN | E17: 44 | F17: 4 | G17: 6 | S17: 6 | T17: 13.6%
A18: SANITAS | B18: SANITAS | C18: UAP SANITAS TOBERIN | D18: 01-USAQUEN | E18: 511 | F18: 43 | G18: 55 | S18: 55 | T18: 10.8%
A19: SANITAS | B19: SANITAS | C19: MEDIKA IPS SANITAS UAP USAQUEN | D19: 01-USAQUEN | E19: 188 | F19: 16 | G19: 3 | S19: 3 | T19: 1.6% | U19: 13
A20: SANITAS | B20: SANITAS | C20: UAP SANTA BARBARA | D20: 01-USAQUEN | E20: 796 | F20: 66 | G20: 86 | S20: 86 | T20: 10.8%
A21: SANITAS | B21: SANITAS | C21: SANITAS BANCO DE LA REPUBLICA | D21: 01-USAQUEN | E21: 0 | F21: 0 | G21: 4 | S21: 4 | T21: 0.0%
A22: SALUD TOTAL | B22: SALUD TOTAL | C22: VIRREY SOLIS TOBERÍN | D22: 01-USAQUEN | E22: 384 | F22: 32 | G22: 21 | S22: 21 | T22: 5.5% | U22: 11
A23: SURA | B23: SURA | C23: IPS JAVESALUD SANTA BEATRIZ | D23: 01-USAQUEN | E23: 355 | F23: 30 | G23: 12 | S23: 12 | T23: 3.4% | U23: 18
A24: ECOPETROL | B24: ECOPETROL | C24: IPS CLINICOS PALATINO | D24: 01-USAQUEN | E24: 87 | F24: 7 | G24: 9 | S24: 9 | T24: 10.3%
A25: PARTICULAR | B25: PARTICULAR | C25: CLINICA PEDIATRICA COLSANITAS | D25: 01-USAQUEN | E25: 830 | F25: 69 | G25: 100 | S25: 100 | T25: 12.0%
A26: PARTICULAR | B26: PARTICULAR | C26: CENTRO MEDICO COLSANITAS LA CALLEJA | D26: 01-USAQUEN | E26: 120 | F26: 10 | G26: 23 | S26: 23 | T26: 19.2%
A27: PARTICULAR | B27: PARTICULAR | C27: CENTRO MEDICO COLSANITAS 108 | D27: 01-USAQUEN | E27: 40 | F27: 3 | G27: 4 | S27: 4 | T27: 10.0%
A28: PARTICULAR | B28: PARTICULAR | C28: CENTRO MEDICO COLSANITAS SANTA ANA | D28: 01-USAQUEN | E28: 4 | F28: 0 | G28: 2 | S28: 2 | T28: 50.0%
A29: PARTICULAR | B29: PARTICULAR | C29: FUNDACIÓN CARDIO INFANTIL | D29: 01-USAQUEN | E29: 0 | F29: 0 | G29: 11 | S29: 11 | T29: 0.0%
A30: PARTICULAR | B30: PARTICULAR | C30: ENFASO USAQUEN | D30: 01-USAQUEN | E30: 0 | F30: 0 | G30: 9 | S30: 9 | T30: 0.0%
A31: PARTICULAR | B31: PARTICULAR | C31: UNIDAD DE VACUNACIÓN INTERNACIONAL | D31: 01-USAQUEN | E31: 0 | F31: 0 | G31: 4 | S31: 4 | T31: 0.0%
A32: PARTICULAR | B32: PARTICULAR | C32: INMUNOLOGÍA Y DIAGNÓSTICO ESPECIALIZADO LTDA. | D32: 01-USAQUEN | E32: 0 | F32: 0 | G32: 0 | S32: 0 | T32: 0.0% | U32: 0
A33: PARTICULAR | B33: PARTICULAR | C33: PROTEGER HEALHT CARE | D33: 01-USAQUEN | E33: 0 | F33: 0 | G33: 1 | S33: 1 | T33: 0.0%
A34: PARTICULAR | B34: PARTICULAR | C34: FUNDACION SANTA FE DE BOGOTA | D34: 01-USAQUEN | E34: 0 | F34: 0 | G34: 0 | S34: 0 | T34: 0.0% | U34: 0
A35: PARTICULAR | B35: PARTICULAR | C35: IPS CRUZ ROJA SEDE UNICENTRO | D35: 01-USAQUEN | E35: 0 | F35: 0 | G35: 0 | S35: 0 | T35: 0.0% | U35: 0
A36: PARTICULAR | B36: PARTICULAR | C36: IPS CRUZ ROJA SAMU CALLE 145 | D36: 01-USAQUEN | E36: 0 | F36: 0 | G36: 0 | S36: 0 | T36: 0.0% | U36: 0
A37: PEDIATRAS | B37: PEDIATRAS | C37: DR. ALEJANDRO LÓPEZ | D37: 01-USAQUEN | E37: 0 | F37: 0 | G37: 2 | S37: 2 | T37: 0.0%
A38: PEDIATRAS | B38: PEDIATRAS | C38: DR. CARLOS NEFTALI TORRES | D38: 01-USAQUEN | E38: 0 | F38: 0 | G38: 8 | S38: 8 | T38: 0.0%
A39: PEDIATRAS | B39: PEDIATRAS | C39: DR. FRANCISCO NUÑEZ | D39: 01-USAQUEN | E39: 0 | F39: 0 | G39: 2 | S39: 2 | T39: 0.0%
A40: PEDIATRAS | B40: PEDIATRAS | C40: DR. FERNANDO GOMEZ | D40: 01-USAQUEN | E40: 0 | F40: 0 | G40: 0 | S40: 0 | T40: 0.0% | U40: 0
A41: PEDIATRAS | B41: PEDIATRAS | C41: DR. FERNANDO ZARATE MORENO | D41: 01-USAQUEN | E41: 0 | F41: 0 | G41: 0 | S41: 0 | T41: 0.0% | U41: 0
A42: PEDIATRAS | B42: PEDIATRAS | C42: DR. GONZALO GARCIA | D42: 01-USAQUEN | E42: 0 | F42: 0 | G42: 0 | S42: 0 | T42: 0.0% | U42: 0
A43: PEDIATRAS | B43: PEDIATRAS | C43: DR. GUSTAVO MORALES | D43: 01-USAQUEN | E43: 0 | F43: 0 | G43: 2 | S43: 2 | T43: 0.0%
A44: PEDIATRAS | B44: PEDIATRAS | C44: DR. JAIME OSPINA | D44: 01-USAQUEN | E44: 0 | F44: 0 | G44: 0 | S44: 0 | T44: 0.0% | U44: 0
A45: PEDIATRAS | B45: PEDIATRAS | C45: DR. JORGE URIBE | D45: 01-USAQUEN | E45: 0 | F45: 0 | G45: 0 | S45: 0 | T45: 0.0% | U45: 0
A46: PEDIATRAS | B46: PEDIATRAS | C46: DR. JUAN LUIS FIGUEROA | D46: 01-USAQUEN | E46: 0 | F46: 0 | G46: 1 | S46: 1 | T46: 0.0%
A47: PEDIATRAS | B47: PEDIATRAS | C47: DR. LUIS AUGUSTO PERNA | D47: 01-USAQUEN | E47: 0 | F47: 0 | G47: 4 | S47: 4 | T47: 0.0%
A48: PEDIATRAS | B48: PEDIATRAS | C48: DR. LIBARDO ELI TRIANA | D48: 01-USAQUEN | E48: 0 | F48: 0 | G48: 0 | S48: 0 | T48: 0.0% | U48: 0
A49: PEDIATRAS | B49: PEDIATRAS | C49: DR. OSWALDO MERCADO HOYOS | D49: 01-USAQUEN | E49: 0 | F49: 0 | G49: 2 | S49: 2 | T49: 0.0%
A50: PEDIATRAS | B50: PEDIATRAS | C50: DR. ROBERTO BENIRO | D50: 01-USAQUEN | E50: 0 | F50: 0 | G50: 0 | S50: 0 | T50: 0.0% | U50: 0
A51: PEDIATRAS | B51: PEDIATRAS | C51: DR. SERGIO ISAZA | D51: 01-USAQUEN | E51: 0 | F51: 0 | G51: 0 | S51: 0 | T51: 0.0% | U51: 0
A52: PEDIATRAS | B52: PEDIATRAS | C52: DR. SANTIAGO UCROS | D52: 01-USAQUEN | E52: 0 | F52: 0 | G52: 0 | S52: 0 | T52: 0.0% | U52: 0
A53: PEDIATRAS | B53: PEDIATRAS | C53: DR. GERMAN SILVA | D53: 01-USAQUEN | E53: 0 | F53: 0 | G53: 0 | S53: 0 | T53: 0.0% | U53: 0
A54: PEDIATRAS | B54: PEDIATRAS | C54: DR. DANIEL ABRIL | D54: 01-USAQUEN | E54: 0 | F54: 0 | G54: 0 | S54: 0 | T54: 0.0% | U54: 0
A55: PEDIATRAS | B55: PEDIATRAS | C55: DR. CARLOS EDUARDO OLMOS | D55: 01-USAQUEN | E55: 0 | F55: 0 | G55: 0 | S55: 0 | T55: 0.0% | U55: 0
A56: PEDIATRAS | B56: PEDIATRAS | C56: DR. EDGARDO CHATMAN | D56: 01-USAQUEN | E56: 0 | F56: 0 | G56: 0 | S56: 0 | T56: 0.0% | U56: 0
A57: PEDIATRAS | B57: PEDIATRAS | C57: DR. JORGE FLOREZ OTERO | D57: 01-USAQUEN | E57: 0 | F57: 0 | G57: 0 | S57: 0 | T57: 0.0% | U57: 0
A58: PEDIATRAS | B58: PEDIATRAS | C58: DRA. ALEJANDRA MARIA VALENCIA | D58: 01-USAQUEN | E58: 0 | F58: 0 | G58: 0 | S58: 0 | T58: 0.0% | U58: 0
A59: PEDIATRAS | B59: PEDIATRAS | C59: DRA. ANA MARIA GOYENECHE | D59: 01-USAQUEN | E59: 0 | F59: 0 | G59: 0 | S59: 0 | T59: 0.0% | U59: 0
A60: PEDIATRAS | B60: PEDIATRAS | C60: DRA. JIMENA VARELA | D60: 01-USAQUEN | E60: 0 | F60: 0 | G60: 0 | S60: 0 | T60: 0.0% | U60: 0
A61: PEDIATRAS | B61: PEDIATRAS | C61: DRA. LIA SAN MIGUEL | D61: 01-USAQUEN | E61: 0 | F61: 0 | G61: 0 | S61: 0 | T61: 0.0% | U61: 0
A62: PEDIATRAS | B62: PEDIATRAS | C62: DRA. LIBIA SEGURA | D62: 01-USAQUEN | E62: 0 | F62: 0 | G62: 0 | S62: 0 | T62: 0.0% | U62: 0
A63: PEDIATRAS | B63: PEDIATRAS | C63: DRA. MARÍA JOSÉ PEDRAZA | D63: 01-USAQUEN | E63: 0 | F63: 0 | G63: 0 | S63: 0 | T63: 0.0% | U63: 0
A64: PEDIATRAS | B64: PEDIATRAS | C64: DRA. MARTHA LUCIA SANCHEZ | D64: 01-USAQUEN | E64: 0 | F64: 0 | G64: 0 | S64: 0 | T64: 0.0% | U64: 0
A65: PEDIATRAS | B65: PEDIATRAS | C65: DRA. OLGA LUCÍA SÁNCHEZ | D65: 01-USAQUEN | E65: 0 | F65: 0 | G65: 0 | S65: 0 | T65: 0.0% | U65: 0
A66: PEDIATRAS | B66: PEDIATRAS | C66: DRA. SANDRA BELTRAN | D66: 01-USAQUEN | E66: 0 | F66: 0 | G66: 1 | S66: 1 | T66: =IF(E66=0,0,+S66/E66) -> 0.0% | U66: =IF(COUNT(G66:R66)*(E66/12)-S66<0,"",COUNT(G66:R66)*(E66/12)-S66) -> 
A67: PEDIATRAS | B67: PEDIATRAS | C67: DRA. IVANA CABRERA | D67: 01-USAQUEN | E67: 0 | F67: =+E67/12 -> 0 | G67: 0 | S67: =SUM(G67:R67) -> 0 | T67: 0.0% | U67: 0
A68: PEDIATRAS | B68: PEDIATRAS | C68: DRA. NAYITA ALARCON | D68: 01-USAQUEN | E68: 0 | F68: 0 | G68: 0 | S68: 0 | T68: 0.0% | U68: 0
A69: PEDIATRAS | B69: PEDIATRAS | C69: DRA. ELIZABETH GARCIA | D69: 01-USAQUEN | E69: 0 | F69: 0 | G69: 0 | S69: 0 | T69: 0.0% | U69: 0
A70: PEDIATRAS | B70: PEDIATRAS | C70: DRA. BERTHA CALDERON DE RAMOS | D70: 01-USAQUEN | E70: 0 | F70: 0 | G70: 0 | S70: 0 | T70: 0.0% | U70: 0
A71: PEDIATRAS | B71: PEDIATRAS | C71: DRA. MIRYAM CORREA | D71: 01-USAQUEN | E71: 0 | F71: 0 | G71: 0 | S71: 0 | T71: 0.0% | U71: 0
A72: 01-USAQUEN | B72: UNICAJAS | C72: UPA SAN CRISTOBAL | D72: 01-USAQUEN | E72: 6 | F72: 1 | G72: 1 | S72: 1 | T72: 16.7%
A73: UNICAJAS | B73: UNICAJAS | C73: UPA USAQUEN | D73: 01-USAQUEN | E73: 9 | F73: 1 | S73: 0 | T73: 0.0% | U73: 0
A74: UNICAJAS | B74: UNICAJAS | C74: UPA ORQUIDEAS | D74: 01-USAQUEN | E74: 6 | F74: 1 | G74: 0 | S74: 0 | T74: 0.0% | U74: 1
A75: UNICAJAS | B75: UNICAJAS | C75: UPA CODITO | D75: 01-USAQUEN | E75: 5 | F75: 0 | G75: 1 | S75: 1 | T75: 20.0%
A76: UNICAJAS | B76: UNICAJAS | C76: CAMI VERBENAL | D76: 01-USAQUEN | E76: 6 | F76: 1 | G76: 2 | S76: 2 | T76: 33.3%
A77: 01-USAQUEN | B77: UNICAJAS | C77: HOSPITAL SIMON BOLIVAR | D77: 01-USAQUEN | E77: 6 | F77: 1 | G77: 1 | S77: 1 | T77: 16.7%
A78: 01-USAQUEN | B78: OTROS | C78: UPA SAN CRISTOBAL | D78: 01-USAQUEN | E78: 300 | F78: 25 | G78: 10 | S78: 10 | T78: 3.3% | U78: 15
A79: 01-USAQUEN | B79: OTROS | C79: UPA USAQUEN | D79: 01-USAQUEN | E79: 100 | F79: 8 | S79: 0 | T79: 0.0% | U79: 0
A80: 01-USAQUEN | B80: OTROS | C80: UPA ORQUIDEAS | D80: 01-USAQUEN | E80: 120 | F80: 10 | G80: 4 | S80: 4 | T80: 3.3% | U80: 6
A81: 01-USAQUEN | B81: OTROS | C81: UPA CODITO | D81: 01-USAQUEN | E81: 218 | F81: 18 | G81: 4 | S81: 4 | T81: 1.8% | U81: 14
A82: 01-USAQUEN | B82: OTROS | C82: CAMI VERBENAL | D82: 01-USAQUEN | E82: 309 | F82: 26 | G82: 5 | S82: 5 | T82: 1.6% | U82: 21
A83: 01-USAQUEN | B83: OTROS | C83: HOSPITAL SIMON BOLIVAR | D83: 01-USAQUEN | E83: 480 | F83: 40 | G83: 12 | S83: 12 | T83: 2.5% | U83: 28
A84: 01-USAQUEN | B84: DEMAS EAPB | C84: UPA SAN CRISTOBAL | D84: 01-USAQUEN | F84: 0 | G84: 15 | S84: 15 | T84: 0.0%
A85: 01-USAQUEN | B85: DEMAS EAPB | C85: UPA USAQUEN | D85: 01-USAQUEN | F85: 0 | G85: 1 | S85: 1 | T85: 0.0%
A86: 01-USAQUEN | B86: DEMAS EAPB | C86: UPA ORQUIDEAS | D86: 01-USAQUEN | F86: 0 | G86: 1 | S86: 1 | T86: 0.0%
A87: 01-USAQUEN | B87: DEMAS EAPB | C87: UPA CODITO | D87: 01-USAQUEN | F87: 0 | G87: 12 | S87: 12 | T87: 0.0%
A88: 01-USAQUEN | B88: DEMAS EAPB | C88: CAMI VERBENAL | D88: 01-USAQUEN | F88: 0 | G88: 16 | S88: 16 | T88: 0.0%
A89: 01-USAQUEN | B89: DEMAS EAPB | C89: HOSPITAL SIMON BOLIVAR | D89: 01-USAQUEN | F89: 0 | G89: 21 | S89: 21 | T89: 0.0%
A90: MEDIMAS | B90: MEDIMAS | C90: Corvesalud S.A.S - I P S Chico | D90: 01-USAQUEN | E90: 320 | F90: 27 | G90: 2 | S90: 2 | T90: 0.6% | U90: 25
A91: FAMISANAR | B91: COLSUBSIDIO | C91: Sura PAC Santa Bárbara | D91: 01-USAQUEN | F91: 0 | S91: 0 | T91: 0.0% | U91: 0
A92: CAPITAL SALUD | B92: CAPITAL SALUD | C92: UPA SAN LUIS | D92: 02-CHAPINERO | E92: 12 | F92: 1 | G92: 6 | S92: 6 | T92: 50.0%
A93: 02-CHAPINERO | B93: 02-CHAPINERO | C93: EXTRAMURAL CHAPINERO | D93: 02-CHAPINERO | E93: 0 | F93: 0 | G93: 5 | S93: 5 | T93: 0.0%
A94: COMPENSAR | B94: COMPENSAR | C94: USS CALLE 42 | D94: 02-CHAPINERO | E94: 612 | F94: 51 | G94: 37 | S94: 37 | T94: 6.0% | U94: 14
A95: COMPENSAR | B95: COMPENSAR | C95: USS CALLE 67 | D95: 02-CHAPINERO | E95: 0 | F95: 0 | G95: 0 | S95: 0 | T95: 0.0% | U95: 0
A96: COMPENSAR | B96: COMPENSAR | C96: USS CALLE 94 | D96: 02-CHAPINERO | E96: 369 | F96: 31 | G96: 44 | S96: 44 | T96: 11.9%
A97: COMPENSAR | B97: COMPENSAR | C97: VIVA 1A IPS CHAPINERO | D97: 02-CHAPINERO | E97: 73 | F97: 6 | G97: 4 | S97: 4 | T97: 5.5% | U97: 2
A98: COOMEVA | B98: COOMEVA | C98: SINERGIA UNIDAD BASICA LOURDES | D98: 02-CHAPINERO | E98: 217 | F98: 18 | G98: 7 | S98: 7 | T98: 3.2% | U98: 11
A99: FAMISANAR | B99: FAMI- CAFAM | C99: CENTRO DE ATENCION EN SALUD CAFAM CALLE 48 | D99: 02-CHAPINERO | E99: 1050 | F99: 88 | G99: 31 | S99: 31 | T99: 3.0% | U99: 57
A100: FAMISANAR | B100: FAMI- CAFAM | C100: CENTRO DE ATENCION EN SALUD CAFAM CALLE 90 | D100: 02-CHAPINERO | E100: 200 | F100: 17 | G100: 12 | S100: 12 | T100: 6.0% | U100: 5
A101: FAMISANAR | B101: FAMI- COLSB | C101: CLINICA COLSUBSIDIO EL LAGO | D101: 02-CHAPINERO | E101: 392 | F101: 33 | G101: 11 | S101: 11 | T101: 2.8% | U101: 22
A102: MILITAR | B102: MILITAR | C102: HOSPITAL MILITAR CENTRAL | D102: 02-CHAPINERO | E102: 70 | F102: 6 | G102: 15 | S102: 15 | T102: 21.4%
A103: POLICIA | B103: POLICIA | C103: POLICIA NACIONAL ESPAM CHAPINERO | D103: 02-CHAPINERO | E103: 117 | F103: 10 | G103: 5 | S103: 5 | T103: 4.3% | U103: 5
A104: NUEVA EPS | B104: NUEVA EPS | C104: IPS VIVA 1A SEDE MARLY | D104: 02-CHAPINERO | E104: 131 | F104: 11 | G104: 10 | S104: 10 | T104: 7.6% | U104: 1
A105: SANITAS | B105: SANITAS | C105: EPS SANITAS CENTRO MEDICO TEUSAQUILLO | D105: 02-CHAPINERO | E105: 579 | F105: 48 | G105: 30 | S105: 30 | T105: 5.2% | U105: 18
A106: SALUD TOTAL | B106: SALUD TOTAL | C106: VIRREY SOLIS CHAPINERO | D106: 02-CHAPINERO | E106: 337 | F106: 28 | G106: 19 | S106: 19 | T106: 5.6% | U106: 9
A107: SURA | B107: SURA | C107: PUNTO DE SALUD CHAPINERO | D107: 02-CHAPINERO | E107: 237 | F107: 20 | G107: 16 | S107: 16 | T107: 6.8% | U107: 4
A108: SURA | B108: SURA | C108: SALUD SURA | D108: 02-CHAPINERO | E108: 454 | F108: 38 | G108: 50 | S108: 50 | T108: 11.0%
A109: PARTICULAR | B109: PARTICULAR | C109: CENTRO MEDICO COLSANITAS CALLE 96 | D109: 02-CHAPINERO | E109: 24 | F109: 2 | G109: 0 | S109: 0 | T109: 0.0% | U109: 2
A110: PARTICULAR | B110: PARTICULAR | C110: CENTRO DE ESPECIALISTAS MEDICOS AXA COLPATRIA | D110: 02-CHAPINERO | E110: 0 | F110: 0 | G110: 2 | S110: 2 | T110: 0.0%
A111: PARTICULAR | B111: PARTICULAR | C111: CLINICA DE LA MUJER | D111: 02-CHAPINERO | E111: 0 | F111: 0 | G111: 62 | S111: 62 | T111: 0.0%
A112: PARTICULAR | B112: PARTICULAR | C112: VACUNARTE IPS | D112: 02-CHAPINERO | E112: 0 | F112: 0 | G112: 5 | S112: 5 | T112: 0.0%
A113: PARTICULAR | B113: PARTICULAR | C113: UNIMARLY | D113: 02-CHAPINERO | E113: 0 | F113: 0 | G113: 0 | S113: 0 | T113: 0.0% | U113: 0
A114: PARTICULAR | B114: PARTICULAR | C114: HOSPITAL SAN IGNACIO | D114: 02-CHAPINERO | E114: 0 | F114: 0 | G114: 2 | S114: 2 | T114: 0.0%
A115: PARTICULAR | B115: PARTICULAR | C115: PROGRAMA MADRE CANGURO HOSPITAL SAN IGNACIO | D115: 02-CHAPINERO | E115: 0 | F115: 0 | G115: 91 | S115: 91 | T115: 0.0%
A116: PARTICULAR | B116: PARTICULAR | C116: IPS AVENIR | D116: 02-CHAPINERO | E116: 0 | F116: 0 | G116: 0 | S116: 0 | T116: 0.0% | U116: 0
A117: PARTICULAR | B117: PARTICULAR | C117: IPS INMUNOLOGIA Y DIAGNOSTICO ESPECIALIZADO | D117: 02-CHAPINERO | E117: 0 | F117: 0 | G117: 0 | S117: 0 | T117: 0.0% | U117: 0
A118: PARTICULAR | B118: PARTICULAR | C118: ASOCIACION PEDIATRICA DE LOS ANDES | D118: 02-CHAPINERO | E118: 0 | F118: 0 | G118: 0 | S118: 0 | T118: 0.0% | U118: 0
A119: PARTICULAR | B119: PARTICULAR | C119: CRUZ ROJA SEDE ANDINO | D119: 02-CHAPINERO | E119: 0 | F119: 0 | G119: 0 | S119: 0 | T119: 0.0% | U119: 0
A120: PARTICULAR | B120: PARTICULAR | C120: CENTRO MEDICO SANTA MONICA | D120: 02-CHAPINERO | E120: 0 | F120: 0 | S120: 0 | T120: 0.0% | U120: 0
A121: PEDIATRAS | B121: PEDIATRAS | C121: DR. JUAN OSCAR TAMAYO | D121: 02-CHAPINERO | E121: 0 | F121: 0 | G121: 2 | S121: 2 | T121: 0.0%
A122: PEDIATRAS | B122: PEDIATRAS | C122: DR. ROBERTO SUAREZ | D122: 02-CHAPINERO | E122: 0 | F122: 0 | G122: 0 | S122: 0 | T122: 0.0% | U122: 0
A123: PEDIATRAS | B123: PEDIATRAS | C123: DR. WILLIAM RICARDO CABRA | D123: 02-CHAPINERO | E123: 0 | F123: 0 | G123: 2 | S123: 2 | T123: 0.0%
A124: PEDIATRAS | B124: PEDIATRAS | C124: DR. EDGAR CASTRO | D124: 02-CHAPINERO | E124: 0 | F124: 0 | G124: 2 | S124: 2 | T124: 0.0%
A125: PEDIATRAS | B125: PEDIATRAS | C125: DR. PABLO KRAUSS | D125: 02-CHAPINERO | E125: 0 | F125: 0 | G125: 3 | S125: 3 | T125: 0.0%
A126: PEDIATRAS | B126: PEDIATRAS | C126: DR. HERNAN ROBLES | D126: 02-CHAPINERO | E126: 0 | F126: 0 | G126: 4 | S126: 4 | T126: 0.0%
A127: PEDIATRAS | B127: PEDIATRAS | C127: DR. RAFAEL GAMBOA CASABLANCA | D127: 02-CHAPINERO | E127: 0 | F127: 0 | G127: 12 | S127: 12 | T127: 0.0%
A128: PEDIATRAS | B128: PEDIATRAS | C128: DR. JAVIER MEJIA | D128: 02-CHAPINERO | E128: 0 | F128: 0 | G128: 2 | S128: 2 | T128: 0.0%
A129: PEDIATRAS | B129: PEDIATRAS | C129: DR. CARLOS CORTAZAR | D129: 02-CHAPINERO | E129: 0 | F129: 0 | G129: 0 | S129: 0 | T129: 0.0% | U129: 0
A130: PEDIATRAS | B130: PEDIATRAS | C130: DR. NELSON PARDO | D130: 02-CHAPINERO | E130: 0 | F130: 0 | G130: 2 | S130: 2 | T130: =IF(E130=0,0,+S130/E130) -> 0.0% | U130: =IF(COUNT(G130:R130)*(E130/12)-S130<0,"",COUNT(G130:R130)*(E130/12)-S130) -> 
A131: PEDIATRAS | B131: PEDIATRAS | C131: DR. ALVARO JACOME | D131: 02-CHAPINERO | E131: 0 | F131: =+E131/12 -> 0 | G131: 1 | S131: =SUM(G131:R131) -> 1 | T131: 0.0%
A132: PEDIATRAS | B132: PEDIATRAS | C132: DR. SILVIO COPO | D132: 02-CHAPINERO | E132: 0 | F132: 0 | G132: 0 | S132: 0 | T132: 0.0% | U132: 0
A133: PEDIATRAS | B133: PEDIATRAS | C133: DR. HECTOR FERNANDO MENDOZA | D133: 02-CHAPINERO | E133: 0 | F133: 0 | G133: 1 | S133: 1 | T133: 0.0%
A134: PEDIATRAS | B134: PEDIATRAS | C134: DR. DIMITRIOS | D134: 02-CHAPINERO | E134: 0 | F134: 0 | G134: 1 | S134: 1 | T134: 0.0%
A135: PEDIATRAS | B135: PEDIATRAS | C135: DR. ALVARO MARIÑO | D135: 02-CHAPINERO | E135: 0 | F135: 0 | G135: 0 | S135: 0 | T135: 0.0% | U135: 0
A136: PEDIATRAS | B136: PEDIATRAS | C136: DR. ANDRES VARGAS | D136: 02-CHAPINERO | E136: 0 | F136: 0 | G136: 1 | S136: 1 | T136: 0.0%
A137: PEDIATRAS | B137: PEDIATRAS | C137: DR. JORGE CAMILO LUNA | D137: 02-CHAPINERO | E137: 0 | F137: 0 | G137: 0 | S137: 0 | T137: 0.0% | U137: 0
A138: PEDIATRAS | B138: PEDIATRAS | C138: DR. BERNARDO HUERTAS | D138: 02-CHAPINERO | E138: 0 | F138: 0 | G138: 13 | S138: 13 | T138: 0.0%
A139: PEDIATRAS | B139: PEDIATRAS | C139: DR. CARLOS M CASTILLO | D139: 02-CHAPINERO | E139: 0 | F139: 0 | G139: 0 | S139: 0 | T139: 0.0% | U139: 0
A140: PEDIATRAS | B140: PEDIATRAS | C140: DR. HEINZ OTTO PFALZGRAF | D140: 02-CHAPINERO | E140: 0 | F140: 0 | G140: 0 | S140: 0 | T140: 0.0% | U140: 0
A141: PEDIATRAS | B141: PEDIATRAS | C141: DR. GONZALEZ BALLESTEROS | D141: 02-CHAPINERO | E141: 0 | F141: 0 | G141: 0 | S141: 0 | T141: 0.0% | U141: 0
A142: PEDIATRAS | B142: PEDIATRAS | C142: DR. NORBERTO SALAMANCA | D142: 02-CHAPINERO | E142: 0 | F142: 0 | G142: 0 | S142: 0 | T142: 0.0% | U142: 0
A143: PEDIATRAS | B143: PEDIATRAS | C143: DR. CAMILO ENRIQUE SOTOMAYOR | D143: 02-CHAPINERO | E143: 0 | F143: 0 | G143: 2 | S143: 2 | T143: 0.0%
A144: PEDIATRAS | B144: PEDIATRAS | C144: DR. SANTIAGO RUEDA SAIZ | D144: 02-CHAPINERO | E144: 0 | F144: 0 | G144: 1 | S144: 1 | T144: 0.0%
A145: PEDIATRAS | B145: PEDIATRAS | C145: DR. HENRY HERNANDO SANCHEZ ESCOBAR | D145: 02-CHAPINERO | E145: 0 | F145: 0 | G145: 0 | S145: 0 | T145: 0.0% | U145: 0
A146: PEDIATRAS | B146: PEDIATRAS | C146: DR. RUBEN DARIO TAMAYO | D146: 02-CHAPINERO | E146: 0 | F146: 0 | G146: 1 | S146: 1 | T146: 0.0%
A147: PEDIATRAS | B147: PEDIATRAS | C147: DR. JAIME MAURICIO MATALLANA | D147: 02-CHAPINERO | E147: 0 | F147: 0 | G147: 2 | S147: 2 | T147: 0.0%
A148: PEDIATRAS | B148: PEDIATRAS | C148: DR. RODRIGO GARCIA | D148: 02-CHAPINERO | E148: 0 | F148: 0 | G148: 0 | S148: 0 | T148: 0.0% | U148: 0
A149: PEDIATRAS | B149: PEDIATRAS | C149: DR. FELIPE ROBAYO | D149: 02-CHAPINERO | E149: 0 | F149: 0 | G149: 0 | S149: 0 | T149: 0.0% | U149: 0
A150: PEDIATRAS | B150: PEDIATRAS | C150: DR. RUBEN FRANCO | D150: 02-CHAPINERO | E150: 0 | F150: 0 | G150: 0 | S150: 0 | T150: 0.0% | U150: 0
A151: PEDIATRAS | B151: PEDIATRAS | C151: DR. ORLANDO RODRIGUEZ RAMIREZ | D151: 02-CHAPINERO | E151: 0 | F151: 0 | G151: 0 | S151: 0 | T151: 0.0% | U151: 0
A152: PEDIATRAS | B152: PEDIATRAS | C152: DR. ARTURO MORENO | D152: 02-CHAPINERO | E152: 0 | F152: 0 | G152: 0 | S152: 0 | T152: 0.0% | U152: 0
A153: PEDIATRAS | B153: PEDIATRAS | C153: DR. FRANCISCO LEAL QUEVEDO | D153: 02-CHAPINERO | E153: 0 | F153: 0 | G153: 0 | S153: 0 | T153: 0.0% | U153: 0
A154: PEDIATRAS | B154: PEDIATRAS | C154: DR. CARLOS DIAZ PUENTES | D154: 02-CHAPINERO | E154: 0 | F154: 0 | G154: 0 | S154: 0 | T154: 0.0% | U154: 0
A155: PEDIATRAS | B155: PEDIATRAS | C155: DR. PEDRO ERASMO MENDOZA | D155: 02-CHAPINERO | E155: 0 | F155: 0 | G155: 0 | S155: 0 | T155: 0.0% | U155: 0
A156: PEDIATRAS | B156: PEDIATRAS | C156: DR. DIMAS ROSAS | D156: 02-CHAPINERO | E156: 0 | F156: 0 | G156: 0 | S156: 0 | T156: 0.0% | U156: 0
A157: PEDIATRAS | B157: PEDIATRAS | C157: DR. JAVIER BRITO MORENO | D157: 02-CHAPINERO | E157: 0 | F157: 0 | G157: 0 | S157: 0 | T157: 0.0% | U157: 0
A158: PEDIATRAS | B158: PEDIATRAS | C158: DR. GUSTAVO CORTÉS | D158: 02-CHAPINERO | E158: 0 | F158: 0 | G158: 0 | S158: 0 | T158: 0.0% | U158: 0
A159: PEDIATRAS | B159: PEDIATRAS | C159: DR. CARLOS VELASQUEZ | D159: 02-CHAPINERO | E159: 0 | F159: 0 | G159: 0 | S159: 0 | T159: 0.0% | U159: 0
A160: PEDIATRAS | B160: PEDIATRAS | C160: DR. RICARDO GOMEZ | D160: 02-CHAPINERO | E160: 0 | F160: 0 | G160: 0 | S160: 0 | T160: 0.0% | U160: 0
A161: PEDIATRAS | B161: PEDIATRAS | C161: DR. SARA BERNAL | D161: 02-CHAPINERO | E161: 0 | F161: 0 | G161: 2 | S161: 2 | T161: 0.0%
A162: PEDIATRAS | B162: PEDIATRAS | C162: DRA. MARIA PATRICIA AGUALIMPIA | D162: 02-CHAPINERO | E162: 0 | F162: 0 | G162: 0 | S162: 0 | T162: 0.0% | U162: 0
A163: PEDIATRAS | B163: PEDIATRAS | C163: DRA. LUISA FERNANDA FORERO ACOSTA | D163: 02-CHAPINERO | E163: 0 | F163: 0 | G163: 0 | S163: 0 | T163: 0.0% | U163: 0
A164: PEDIATRAS | B164: PEDIATRAS | C164: DRA. MARIA CLARA CASAS PARDO | D164: 02-CHAPINERO | E164: 0 | F164: 0 | G164: 0 | S164: 0 | T164: 0.0% | U164: 0
A165: PEDIATRAS | B165: PEDIATRAS | C165: DRA. MARTHA EUGENIA RONDEROS DE FORERO | D165: 02-CHAPINERO | E165: 0 | F165: 0 | G165: 0 | S165: 0 | T165: 0.0% | U165: 0
A166: PEDIATRAS | B166: PEDIATRAS | C166: DRA. MARIA ISABEL USCHER | D166: 02-CHAPINERO | E166: 0 | F166: 0 | G166: 1 | S166: 1 | T166: 0.0%
A167: PEDIATRAS | B167: PEDIATRAS | C167: DRA. MARIA DE LOS ANGELES MUÑOZ | D167: 02-CHAPINERO | E167: 0 | F167: 0 | G167: 1 | S167: 1 | T167: 0.0%
A168: PEDIATRAS | B168: PEDIATRAS | C168: DRA. CLARA ABELLO REYES | D168: 02-CHAPINERO | E168: 0 | F168: 0 | G168: 0 | S168: 0 | T168: 0.0% | U168: 0
A169: PEDIATRAS | B169: PEDIATRAS | C169: DRA. PATRICIA CONTRERAS | D169: 02-CHAPINERO | E169: 0 | F169: 0 | G169: 1 | S169: 1 | T169: 0.0%
A170: PEDIATRAS | B170: PEDIATRAS | C170: DRA. CLAUDIA ZOPPI | D170: 02-CHAPINERO | E170: 0 | F170: 0 | G170: 0 | S170: 0 | T170: 0.0% | U170: 0
A171: PEDIATRAS | B171: PEDIATRAS | C171: DRA. MARIA DE LOS ANGELES FERNANDEZ LUQUE | D171: 02-CHAPINERO | E171: 0 | F171: 0 | G171: 0 | S171: 0 | T171: 0.0% | U171: 0
A172: PEDIATRAS | B172: PEDIATRAS | C172: DRA. RUTH CORDOBA CORDOBA | D172: 02-CHAPINERO | E172: 0 | F172: 0 | G172: 0 | S172: 0 | T172: 0.0% | U172: 0
A173: PEDIATRAS | B173: PEDIATRAS | C173: DRA. LUZ ESTELA CORTES | D173: 02-CHAPINERO | E173: 0 | F173: 0 | G173: 0 | S173: 0 | T173: 0.0% | U173: 0
A174: UNICAJAS | B174: UNICAJAS | C174: UPA SAN LUIS | D174: 02-CHAPINERO | E174: 18 | F174: 2 | G174: 1 | S174: 1 | T174: 5.6% | U174: 1
A175: 02-CHAPINERO | B175: OTROS | C175: UPA SAN LUIS | D175: 02-CHAPINERO | E175: 325 | F175: 27 | G175: 0 | S175: 0 | T175: 0.0% | U175: 27
A176: 02-CHAPINERO | B176: DEMAS EAPB | C176: UPA SAN LUIS | D176: 02-CHAPINERO | F176: 0 | G176: 6 | S176: 6 | T176: 0.0%
A177: UNICAJAS | B177: UNICAJAS | C177: COMFASALUD SEDE CENTRO | D177: 03-SANTA FE | E177: 50 | F177: 4 | G177: 4 | S177: 4 | T177: 8.0% | U177: 0
A178: MEDIMAS | B178: MEDIMAS | C178: CORVESALUD TEUSAQUILLO | D178: 03-SANTA FE | E178: 193 | F178: 16 | G178: 6 | S178: 6 | T178: 3.1% | U178: 10
A179: 03-SANTA FE | B179: CAPITAL SALUD | C179: EXTRAMURAL SANTA FE | D179: 03-SANTA FE | E179: 0 | F179: 0 | G179: 2 | S179: 2 | T179: 0.0%
A180: 03-SANTA FE | B180: DEMAS EAPB | C180: EXTRAMURAL SANTA FE | D180: 03-SANTA FE | E180: 0 | F180: 0 | G180: 6 | S180: 6 | T180: 0.0%
A181: 03-SANTA FE | B181: OTROS | C181: EXTRAMURAL SANTA FE | D181: 03-SANTA FE | E181: 0 | F181: 0 | G181: 15 | S181: 15 | T181: 0.0%
A182: 03-SANTA FE | B182: UNICAJAS | C182: EXTRAMURAL SANTA FE | D182: 03-SANTA FE | E182: 0 | F182: 0 | G182: 0 | S182: 0 | T182: 0.0% | U182: 0
A183: 03-SANTA FE | B183: CAPITAL SALUD | C183: USS LACHES | D183: 03-SANTA FE | E183: 54 | F183: 5 | G183: 9 | S183: 9 | T183: 16.7%
A184: 03-SANTA FE | B184: DEMAS EAPB | C184: USS LACHES | D184: 03-SANTA FE | E184: 0 | F184: 0 | G184: 12 | S184: 12 | T184: 0.0%
A185: 03-SANTA FE | B185: OTROS | C185: USS LACHES | D185: 03-SANTA FE | E185: 260 | F185: 22 | G185: 7 | S185: 7 | T185: 2.7% | U185: 15
A186: 03-SANTA FE | B186: UNICAJAS | C186: USS LACHES | D186: 03-SANTA FE | E186: 17 | F186: 1 | G186: 0 | S186: 0 | T186: 0.0% | U186: 1
A187: 03-SANTA FE | B187: CAPITAL SALUD | C187: USS LAS CRUCES | D187: 03-SANTA FE | E187: 44 | F187: 4 | G187: 7 | S187: 7 | T187: 15.9%
A188: 03-SANTA FE | B188: DEMAS EAPB | C188: USS LAS CRUCES | D188: 03-SANTA FE | E188: 0 | F188: 0 | G188: 6 | S188: 6 | T188: 0.0%
A189: 03-SANTA FE | B189: OTROS | C189: USS LAS CRUCES | D189: 03-SANTA FE | E189: 211 | F189: 18 | G189: 4 | S189: 4 | T189: 1.9% | U189: 14
A190: 03-SANTA FE | B190: UNICAJAS | C190: USS LAS CRUCES | D190: 03-SANTA FE | E190: 14 | F190: 1 | G190: 7 | S190: 7 | T190: 50.0%
A191: 03-SANTA FE | B191: CAPITAL SALUD | C191: USS PERSEVERANCIA | D191: 03-SANTA FE | E191: 6 | F191: 1 | G191: 2 | S191: 2 | T191: 33.3%
A192: 03-SANTA FE | B192: DEMAS EAPB | C192: USS PERSEVERANCIA | D192: 03-SANTA FE | E192: 0 | F192: 0 | G192: 0 | S192: 0 | T192: 0.0% | U192: 0
A193: 03-SANTA FE | B193: OTROS | C193: USS PERSEVERANCIA | D193: 03-SANTA FE | E193: 30 | F193: 3 | G193: 2 | S193: 2 | T193: 6.7% | U193: 1
A194: 03-SANTA FE | B194: UNICAJAS | C194: USS PERSEVERANCIA | D194: 03-SANTA FE | E194: 2 | F194: 0 | G194: 0 | S194: 0 | T194: =IF(E194=0,0,+S194/E194) -> 0.0% | U194: =IF(COUNT(G194:R194)*(E194/12)-S194<0,"",COUNT(G194:R194)*(E194/12)-S194) -> 0
A195: PARTICULAR | B195: PARTICULAR | C195: CLINICA SAN RAFAEL | D195: 04-SAN CRISTOBAL | E195: 375 | F195: =+E195/12 -> 31 | G195: 36 | S195: =SUM(G195:R195) -> 36 | T195: 9.6%
A196: FAMISANAR | B196: FAMI- COLSB | C196: CENTRO MEDICO COLSUBSIDIO 20 DE JULIO | D196: 04-SAN CRISTOBAL | F196: 0 | S196: 0 | T196: 0.0% | U196: 0
A197: 04-SAN CRISTOBAL | B197: CAPITAL SALUD | C197: EXTRAMURAL SAN CRISTOBAL | D197: 04-SAN CRISTOBAL | E197: 0 | F197: 0 | G197: 27 | S197: 27 | T197: 0.0%
A198: 04-SAN CRISTOBAL | B198: DEMAS EAPB | C198: EXTRAMURAL SAN CRISTOBAL | D198: 04-SAN CRISTOBAL | E198: 0 | F198: 0 | G198: 37 | S198: 37 | T198: 0.0%
A199: 04-SAN CRISTOBAL | B199: OTROS | C199: EXTRAMURAL SAN CRISTOBAL | D199: 04-SAN CRISTOBAL | E199: 0 | F199: 0 | G199: 12 | S199: 12 | T199: 0.0%
A200: 04-SAN CRISTOBAL | B200: UNICAJAS | C200: EXTRAMURAL SAN CRISTOBAL | D200: 04-SAN CRISTOBAL | E200: 0 | F200: 0 | G200: 0 | S200: 0 | T200: 0.0% | U200: 0
... 620 more rows

Sheet TRIPLEVIRAL
A1: EAPB | B1: EPS O ESE | C1: IPS | D1: Localidad | E1: Meta Anual de 1 Año | F1: Meta Mensual | G1: Enero | H1: Febrero | I1: Marzo | J1: Abril | K1: Mayo | L1: Junio | M1: Julio | N1: Agosto | O1: Septiembre | P1: Octubre | Q1: Noviembre | R1: Diciembre | S1: Total | T1: % Cobertura | U1: Deficit
A2: CAPITAL SALUD | B2: CAPITAL SALUD | C2: UPA SAN CRISTOBAL | D2: 01-USAQUEN | E2: 100 | F2: =E2/12 -> 8 | G2: 4 | S2: =SUM(G2:R2) -> 4 | T2: =IF(E2=0,0,+S2/E2) -> 4.0% | U2: =IF(COUNT(G2:R2)*(E2/12)-S2<0,"",COUNT(G2:R2)*(E2/12)-S2) -> 4
A3: CAPITAL SALUD | B3: CAPITAL SALUD | C3: UPA USAQUEN | D3: 01-USAQUEN | E3: 14 | F3: 1 | G3: 0 | S3: =SUM(G3:R3) -> 0 | T3: 0.0% | U3: 1
A4: CAPITAL SALUD | B4: CAPITAL SALUD | C4: UPA ORQUIDEAS | D4: 01-USAQUEN | E4: 6 | F4: 1 | G4: 5 | S4: 5 | T4: 83.3%
A5: CAPITAL SALUD | B5: CAPITAL SALUD | C5: UPA CODITO | D5: 01-USAQUEN | E5: 115 | F5: 10 | G5: 3 | S5: 3 | T5: 2.6% | U5: 7
A6: CAPITAL SALUD | B6: CAPITAL SALUD | C6: CAMI VERBENAL | D6: 01-USAQUEN | E6: 106 | F6: 9 | G6: 7 | S6: 7 | T6: 6.6% | U6: 2
A7: CAPITAL SALUD | B7: CAPITAL SALUD | C7: HOSPITAL SIMON BOLIVAR | D7: 01-USAQUEN | E7: 15 | F7: 1 | G7: 12 | S7: 12 | T7: 80.0%
A8: 01-USAQUEN | B8: 01-USAQUEN | C8: EXTRAMURAL USAQUEN | D8: 01-USAQUEN | F8: 0 | G8: 44 | S8: 44 | T8: 0.0%
A9: ALIANSALUD | B9: ALIANSALUD | C9: CENTRO MEDICO COLMEDICA SANTA BARBARA | D9: 01-USAQUEN | E9: 794 | F9: 66 | G9: 58 | S9: 58 | T9: 7.3% | U9: 8
A10: COMPENSAR | B10: COMPENSAR | C10: USS CALLE 134 | D10: 01-USAQUEN | E10: 328 | F10: 27 | G10: 15 | S10: 15 | T10: 4.6% | U10: 12
A11: COMPENSAR | B11: COMPENSAR | C11: USS CALLE 145 | D11: 01-USAQUEN | E11: 252 | F11: 21 | G11: 36 | S11: 36 | T11: 14.3%
A12: COMPENSAR | B12: COMPENSAR | C12: JAVESALUD TOBERIN | D12: 01-USAQUEN | E12: 396 | F12: 33 | G12: 3 | S12: 3 | T12: 0.8% | U12: 30
A13: COOMEVA | B13: COOMEVA | C13: SINERGIA UNIDAD INTEGRAL EN SALUD | D13: 01-USAQUEN | E13: 63 | F13: 5 | G13: 13 | S13: 13 | T13: 20.6%
A14: FAMISANAR | B14: FAMI- COLSB | C14: CENTRO MEDICO COLSUBSIDIO USAQUEN | D14: 01-USAQUEN | E14: 315 | F14: 26 | G14: 28 | S14: 28 | T14: 8.9%
A15: MILITAR | B15: MILITAR | C15: DISPENSARIO MEDICO CANTON NORTE | D15: 01-USAQUEN | E15: 287 | F15: 24 | G15: 10 | S15: 10 | T15: 3.5% | U15: 14
A16: NUEVA EPS | B16: NUEVA EPS | C16: IPS VIVA 1A SEDE TOBERIN | D16: 01-USAQUEN | E16: 130 | F16: 11 | G16: 13 | S16: 13 | T16: 10.0%
A17: NUEVA EPS | B17: NUEVA EPS | C17: CAFAM GRANADA HILLS | D17: 01-USAQUEN | E17: 58 | F17: 5 | G17: 6 | S17: 6 | T17: 10.3%
A18: SANITAS | B18: SANITAS | C18: UAP SANITAS TOBERIN | D18: 01-USAQUEN | E18: 629 | F18: 52 | G18: 31 | S18: 31 | T18: 4.9% | U18: 21
A19: SANITAS | B19: SANITAS | C19: MEDIKA IPS SANITAS UAP USAQUEN | D19: 01-USAQUEN | E19: 183 | F19: 15 | G19: 1 | S19: 1 | T19: 0.5% | U19: 14
A20: SANITAS | B20: SANITAS | C20: UAP SANTA BARBARA | D20: 01-USAQUEN | E20: 884 | F20: 74 | G20: 75 | S20: 75 | T20: 8.5%
A21: SANITAS | B21: SANITAS | C21: SANITAS BANCO DE LA REPUBLICA | D21: 01-USAQUEN | E21: 0 | F21: 0 | G21: 1 | S21: 1 | T21: 0.0%
A22: SALUD TOTAL | B22: SALUD TOTAL | C22: VIRREY SOLIS TOBERÍN | D22: 01-USAQUEN | E22: 418 | F22: 35 | G22: 19 | S22: 19 | T22: 4.5% | U22: 16
A23: SURA | B23: SURA | C23: IPS JAVESALUD SANTA BEATRIZ | D23: 01-USAQUEN | E23: 366 | F23: 31 | G23: 15 | S23: 15 | T23: 4.1% | U23: 16
A24: ECOPETROL | B24: ECOPETROL | C24: IPS CLINICOS PALATINO | D24: 01-USAQUEN | E24: 93 | F24: 8 | G24: 5 | S24: 5 | T24: 5.4% | U24: 3
A25: PARTICULAR | B25: PARTICULAR | C25: CLINICA PEDIATRICA COLSANITAS | D25: 01-USAQUEN | E25: 675 | F25: 56 | G25: 84 | S25: 84 | T25: 12.4%
A26: PARTICULAR | B26: PARTICULAR | C26: CENTRO MEDICO COLSANITAS LA CALLEJA | D26: 01-USAQUEN | E26: 130 | F26: 11 | G26: 18 | S26: 18 | T26: 13.8%
A27: PARTICULAR | B27: PARTICULAR | C27: CENTRO MEDICO COLSANITAS 108 | D27: 01-USAQUEN | E27: 26 | F27: 2 | G27: 5 | S27: 5 | T27: 19.2%
A28: PARTICULAR | B28: PARTICULAR | C28: CENTRO MEDICO COLSANITAS SANTA ANA | D28: 01-USAQUEN | E28: 4 | F28: 0 | G28: 0 | S28: 0 | T28: 0.0% | U28: 0
A29: PARTICULAR | B29: PARTICULAR | C29: FUNDACIÓN CARDIO INFANTIL | D29: 01-USAQUEN | E29: 0 | F29: 0 | G29: 17 | S29: 17 | T29: 0.0%
A30: PARTICULAR | B30: PARTICULAR | C30: ENFASO USAQUEN | D30: 01-USAQUEN | E30: 0 | F30: 0 | G30: 5 | S30: 5 | T30: 0.0%
A31: PARTICULAR | B31: PARTICULAR | C31: UNIDAD DE VACUNACIÓN INTERNACIONAL | D31: 01-USAQUEN | E31: 0 | F31: 0 | G31: 5 | S31: 5 | T31: 0.0%
A32: PARTICULAR | B32: PARTICULAR | C32: INMUNOLOGÍA Y DIAGNÓSTICO ESPECIALIZADO LTDA. | D32: 01-USAQUEN | E32: 0 | F32: 0 | G32: 1 | S32: 1 | T32: 0.0%
A33: PARTICULAR | B33: PARTICULAR | C33: PROTEGER HEALHT CARE | D33: 01-USAQUEN | E33: 0 | F33: 0 | G33: 0 | S33: 0 | T33: 0.0% | U33: 0
A34: PARTICULAR | B34: PARTICULAR | C34: FUNDACION SANTA FE DE BOGOTA | D34: 01-USAQUEN | E34: 0 | F34: 0 | G34: 0 | S34: 0 | T34: 0.0% | U34: 0
A35: PARTICULAR | B35: PARTICULAR | C35: IPS CRUZ ROJA SEDE UNICENTRO | D35: 01-USAQUEN | E35: 0 | F35: 0 | G35: 0 | S35: 0 | T35: 0.0% | U35: 0
A36: PARTICULAR | B36: PARTICULAR | C36: IPS CRUZ ROJA SAMU CALLE 145 | D36: 01-USAQUEN | E36: 0 | F36: 0 | G36: 0 | S36: 0 | T36: 0.0% | U36: 0
A37: PEDIATRAS | B37: PEDIATRAS | C37: DR. ALEJANDRO LÓPEZ | D37: 01-USAQUEN | E37: 0 | F37: 0 | G37: 0 | S37: 0 | T37: 0.0% | U37: 0
A38: PEDIATRAS | B38: PEDIATRAS | C38: DR. CARLOS NEFTALI TORRES | D38: 01-USAQUEN | E38: 0 | F38: 0 | G38: 3 | S38: 3 | T38: 0.0%
A39: PEDIATRAS | B39: PEDIATRAS | C39: DR. FRANCISCO NUÑEZ | D39: 01-USAQUEN | E39: 0 | F39: 0 | G39: 0 | S39: 0 | T39: 0.0% | U39: 0
A40: PEDIATRAS | B40: PEDIATRAS | C40: DR. FERNANDO GOMEZ | D40: 01-USAQUEN | E40: 0 | F40: 0 | G40: 0 | S40: 0 | T40: 0.0% | U40: 0
A41: PEDIATRAS | B41: PEDIATRAS | C41: DR. FERNANDO ZARATE MORENO | D41: 01-USAQUEN | E41: 0 | F41: 0 | G41: 1 | S41: 1 | T41: 0.0%
A42: PEDIATRAS | B42: PEDIATRAS | C42: DR. GONZALO GARCIA | D42: 01-USAQUEN | E42: 0 | F42: 0 | G42: 3 | S42: 3 | T42: 0.0%
A43: PEDIATRAS | B43: PEDIATRAS | C43: DR. GUSTAVO MORALES | D43: 01-USAQUEN | E43: 0 | F43: 0 | G43: 3 | S43: 3 | T43: 0.0%
A44: PEDIATRAS | B44: PEDIATRAS | C44: DR. JAIME OSPINA | D44: 01-USAQUEN | E44: 0 | F44: 0 | G44: 1 | S44: 1 | T44: 0.0%
A45: PEDIATRAS | B45: PEDIATRAS | C45: DR. JORGE URIBE | D45: 01-USAQUEN | E45: 0 | F45: 0 | G45: 0 | S45: 0 | T45: 0.0% | U45: 0
A46: PEDIATRAS | B46: PEDIATRAS | C46: DR. JUAN LUIS FIGUEROA | D46: 01-USAQUEN | E46: 0 | F46: 0 | G46: 1 | S46: 1 | T46: 0.0%
A47: PEDIATRAS | B47: PEDIATRAS | C47: DR. LUIS AUGUSTO PERNA | D47: 01-USAQUEN | E47: 0 | F47: 0 | G47: 2 | S47: 2 | T47: 0.0%
A48: PEDIATRAS | B48: PEDIATRAS | C48: DR. LIBARDO ELI TRIANA | D48: 01-USAQUEN | E48: 0 | F48: 0 | G48: 0 | S48: 0 | T48: 0.0% | U48: 0
A49: PEDIATRAS | B49: PEDIATRAS | C49: DR. OSWALDO MERCADO HOYOS | D49: 01-USAQUEN | E49: 0 | F49: 0 | G49: 1 | S49: 1 | T49: 0.0%
A50: PEDIATRAS | B50: PEDIATRAS | C50: DR. ROBERTO BENIRO | D50: 01-USAQUEN | E50: 0 | F50: 0 | G50: 0 | S50: 0 | T50: 0.0% | U50: 0
A51: PEDIATRAS | B51: PEDIATRAS | C51: DR. SERGIO ISAZA | D51: 01-USAQUEN | E51: 0 | F51: 0 | G51: 0 | S51: 0 | T51: 0.0% | U51: 0
A52: PEDIATRAS | B52: PEDIATRAS | C52: DR. SANTIAGO UCROS | D52: 01-USAQUEN | E52: 0 | F52: 0 | G52: 0 | S52: 0 | T52: 0.0% | U52: 0
A53: PEDIATRAS | B53: PEDIATRAS | C53: DR. GERMAN SILVA | D53: 01-USAQUEN | E53: 0 | F53: 0 | G53: 0 | S53: 0 | T53: 0.0% | U53: 0
A54: PEDIATRAS | B54: PEDIATRAS | C54: DR. DANIEL ABRIL | D54: 01-USAQUEN | E54: 0 | F54: 0 | G54: 0 | S54: 0 | T54: 0.0% | U54: 0
A55: PEDIATRAS | B55: PEDIATRAS | C55: DR. CARLOS EDUARDO OLMOS | D55: 01-USAQUEN | E55: 0 | F55: 0 | G55: 0 | S55: 0 | T55: 0.0% | U55: 0
A56: PEDIATRAS | B56: PEDIATRAS | C56: DR. EDGARDO CHATMAN | D56: 01-USAQUEN | E56: 0 | F56: 0 | G56: 0 | S56: 0 | T56: 0.0% | U56: 0
A57: PEDIATRAS | B57: PEDIATRAS | C57: DR. JORGE FLOREZ OTERO | D57: 01-USAQUEN | E57: 0 | F57: 0 | G57: 0 | S57: 0 | T57: 0.0% | U57: 0
A58: PEDIATRAS | B58: PEDIATRAS | C58: DRA. ALEJANDRA MARIA VALENCIA | D58: 01-USAQUEN | E58: 0 | F58: 0 | G58: 0 | S58: 0 | T58: 0.0% | U58: 0
A59: PEDIATRAS | B59: PEDIATRAS | C59: DRA. ANA MARIA GOYENECHE | D59: 01-USAQUEN | E59: 0 | F59: 0 | G59: 0 | S59: 0 | T59: 0.0% | U59: 0
A60: PEDIATRAS | B60: PEDIATRAS | C60: DRA. JIMENA VARELA | D60: 01-USAQUEN | E60: 0 | F60: 0 | G60: 0 | S60: 0 | T60: 0.0% | U60: 0
A61: PEDIATRAS | B61: PEDIATRAS | C61: DRA. LIA SAN MIGUEL | D61: 01-USAQUEN | E61: 0 | F61: 0 | G61: 0 | S61: 0 | T61: 0.0% | U61: 0
A62: PEDIATRAS | B62: PEDIATRAS | C62: DRA. LIBIA SEGURA | D62: 01-USAQUEN | E62: 0 | F62: 0 | G62: 0 | S62: 0 | T62: 0.0% | U62: 0
A63: PEDIATRAS | B63: PEDIATRAS | C63: DRA. MARÍA JOSÉ PEDRAZA | D63: 01-USAQUEN | E63: 0 | F63: 0 | G63: 0 | S63: 0 | T63: 0.0% | U63: 0
A64: PEDIATRAS | B64: PEDIATRAS | C64: DRA. MARTHA LUCIA SANCHEZ | D64: 01-USAQUEN | E64: 0 | F64: 0 | G64: 0 | S64: 0 | T64: 0.0% | U64: 0
A65: PEDIATRAS | B65: PEDIATRAS | C65: DRA. OLGA LUCÍA SÁNCHEZ | D65: 01-USAQUEN | E65: 0 | F65: 0 | G65: 0 | S65: 0 | T65: 0.0% | U65: 0
A66: PEDIATRAS | B66: PEDIATRAS | C66: DRA. SANDRA BELTRAN | D66: 01-USAQUEN | E66: 0 | F66: 0 | G66: 0 | S66: 0 | T66: =IF(E66=0,0,+S66/E66) -> 0.0% | U66: =IF(COUNT(G66:R66)*(E66/12)-S66<0,"",COUNT(G66:R66)*(E66/12)-S66) -> 0
A67: PEDIATRAS | B67: PEDIATRAS | C67: DRA. IVANA CABRERA | D67: 01-USAQUEN | E67: 0 | F67: 0 | G67: 0 | S67: =SUM(G67:R67) -> 0 | T67: 0.0% | U67: 0
A68: PEDIATRAS | B68: PEDIATRAS | C68: DRA. NAYITA ALARCON | D68: 01-USAQUEN | E68: 0 | F68: =E68/12 -> 0 | G68: 0 | S68: 0 | T68: 0.0% | U68: 0
A69: PEDIATRAS | B69: PEDIATRAS | C69: DRA. ELIZABETH GARCIA | D69: 01-USAQUEN | E69: 0 | F69: 0 | G69: 0 | S69: 0 | T69: 0.0% | U69: 0
A70: PEDIATRAS | B70: PEDIATRAS | C70: DRA. BERTHA CALDERON DE RAMOS | D70: 01-USAQUEN | E70: 0 | F70: 0 | G70: 0 | S70: 0 | T70: 0.0% | U70: 0
A71: PEDIATRAS | B71: PEDIATRAS | C71: DRA. MIRYAM CORREA | D71: 01-USAQUEN | E71: 0 | F71: 0 | G71: 0 | S71: 0 | T71: 0.0% | U71: 0
A72: 01-USAQUEN | B72: UNICAJAS | C72: UPA SAN CRISTOBAL | D72: 01-USAQUEN | E72: 6 | F72: 1 | G72: 2 | S72: 2 | T72: 33.3%
A73: UNICAJAS | B73: UNICAJAS | C73: UPA USAQUEN | D73: 01-USAQUEN | E73: 6 | F73: 1 | G73: 0 | S73: 0 | T73: 0.0% | U73: 1
A74: UNICAJAS | B74: UNICAJAS | C74: UPA ORQUIDEAS | D74: 01-USAQUEN | E74: 6 | F74: 1 | S74: 0 | T74: 0.0% | U74: 0
A75: UNICAJAS | B75: UNICAJAS | C75: UPA CODITO | D75: 01-USAQUEN | E75: 6 | F75: 1 | S75: 0 | T75: 0.0% | U75: 0
A76: UNICAJAS | B76: UNICAJAS | C76: CAMI VERBENAL | D76: 01-USAQUEN | E76: 6 | F76: 1 | G76: 1 | S76: 1 | T76: 16.7%
A77: 01-USAQUEN | B77: UNICAJAS | C77: HOSPITAL SIMON BOLIVAR | D77: 01-USAQUEN | E77: 6 | F77: 1 | G77: 3 | S77: 3 | T77: 50.0%
A78: 01-USAQUEN | B78: OTROS | C78: UPA SAN CRISTOBAL | D78: 01-USAQUEN | E78: 205 | F78: 17 | G78: 7 | S78: 7 | T78: 3.4% | U78: 10
A79: 01-USAQUEN | B79: OTROS | C79: UPA USAQUEN | D79: 01-USAQUEN | E79: 95 | F79: 8 | G79: 0 | S79: 0 | T79: 0.0% | U79: 8
A80: 01-USAQUEN | B80: OTROS | C80: UPA ORQUIDEAS | D80: 01-USAQUEN | E80: 100 | F80: 8 | G80: 5 | S80: 5 | T80: 5.0% | U80: 3
A81: 01-USAQUEN | B81: OTROS | C81: UPA CODITO | D81: 01-USAQUEN | E81: 140 | F81: 12 | G81: 7 | S81: 7 | T81: 5.0% | U81: 5
A82: 01-USAQUEN | B82: OTROS | C82: CAMI VERBENAL | D82: 01-USAQUEN | E82: 290 | F82: 24 | G82: 4 | S82: 4 | T82: 1.4% | U82: 20
A83: 01-USAQUEN | B83: OTROS | C83: HOSPITAL SIMON BOLIVAR | D83: 01-USAQUEN | E83: 501 | F83: 42 | G83: 19 | S83: 19 | T83: 3.8% | U83: 23
A84: 01-USAQUEN | B84: DEMAS EAPB | C84: UPA SAN CRISTOBAL | D84: 01-USAQUEN | F84: 0 | G84: 17 | S84: 17 | T84: 0.0%
A85: 01-USAQUEN | B85: DEMAS EAPB | C85: UPA USAQUEN | D85: 01-USAQUEN | F85: 0 | G85: 3 | S85: 3 | T85: 0.0%
A86: 01-USAQUEN | B86: DEMAS EAPB | C86: UPA ORQUIDEAS | D86: 01-USAQUEN | F86: 0 | G86: 3 | S86: 3 | T86: 0.0%
A87: 01-USAQUEN | B87: DEMAS EAPB | C87: UPA CODITO | D87: 01-USAQUEN | F87: 0 | G87: 15 | S87: 15 | T87: 0.0%
A88: 01-USAQUEN | B88: DEMAS EAPB | C88: CAMI VERBENAL | D88: 01-USAQUEN | F88: 0 | G88: 20 | S88: 20 | T88: 0.0%
A89: 01-USAQUEN | B89: DEMAS EAPB | C89: HOSPITAL SIMON BOLIVAR | D89: 01-USAQUEN | F89: 0 | G89: 26 | S89: 26 | T89: 0.0%
A90: MEDIMAS | B90: MEDIMAS | C90: Corvesalud S.A.S - I P S Chico | D90: 01-USAQUEN | E90: 165 | F90: 14 | G90: 0 | S90: 0 | T90: 0.0% | U90: 14
A91: FAMISANAR | B91: COLSUBSIDIO | C91: Sura PAC Santa Bárbara | D91: 01-USAQUEN | F91: 0 | S91: 0 | T91: 0.0% | U91: 0
A92: CAPITAL SALUD | B92: CAPITAL SALUD | C92: UPA SAN LUIS - CAPITAL SALUD | D92: 02-CHAPINERO | E92: 10 | F92: 1 | G92: 3 | S92: 3 | T92: 30.0%
A93: 02-CHAPINERO | B93: 02-CHAPINERO | C93: EXTRAMURAL CHAPINERO | D93: 02-CHAPINERO | E93: 0 | F93: 0 | G93: 9 | S93: 9 | T93: 0.0%
A94: COMPENSAR | B94: COMPENSAR | C94: USS CALLE 42 | D94: 02-CHAPINERO | E94: 796 | F94: 66 | G94: 32 | S94: 32 | T94: 4.0% | U94: 34
A95: COMPENSAR | B95: COMPENSAR | C95: USS CALLE 67 | D95: 02-CHAPINERO | F95: 0 | G95: 0 | S95: 0 | T95: 0.0% | U95: 0
A96: COMPENSAR | B96: COMPENSAR | C96: USS CALLE 94 | D96: 02-CHAPINERO | E96: 604 | F96: 50 | G96: 75 | S96: 75 | T96: 12.4%
A97: COMPENSAR | B97: COMPENSAR | C97: VIVA 1A IPS CHAPINERO | D97: 02-CHAPINERO | E97: 116 | F97: 10 | G97: 4 | S97: 4 | T97: 3.4% | U97: 6
A98: COOMEVA | B98: COOMEVA | C98: SINERGIA UNIDAD BASICA LOURDES | D98: 02-CHAPINERO | E98: 226 | F98: 19 | G98: 4 | S98: 4 | T98: 1.8% | U98: 15
A99: FAMISANAR | B99: FAMI- CAFAM | C99: CENTRO DE ATENCION EN SALUD CAFAM CALLE 48 | D99: 02-CHAPINERO | E99: 1150 | F99: 96 | G99: 16 | S99: 16 | T99: 1.4% | U99: 80
A100: FAMISANAR | B100: FAMI- CAFAM | C100: CENTRO DE ATENCION EN SALUD CAFAM CALLE 90 | D100: 02-CHAPINERO | E100: 230 | F100: 19 | G100: 27 | S100: 27 | T100: 11.7%
A101: FAMISANAR | B101: FAMI- COLSB | C101: CLINICA COLSUBSIDIO EL LAGO | D101: 02-CHAPINERO | E101: 391 | F101: 33 | G101: 8 | S101: 8 | T101: 2.0% | U101: 25
A102: MILITAR | B102: MILITAR | C102: HOSPITAL MILITAR CENTRAL | D102: 02-CHAPINERO | E102: 60 | F102: 5 | G102: 10 | S102: 10 | T102: 16.7%
A103: POLICIA | B103: POLICIA | C103: POLICIA NACIONAL ESPAM CHAPINERO | D103: 02-CHAPINERO | E103: 106 | F103: 9 | G103: 8 | S103: 8 | T103: 7.5% | U103: 1
A104: NUEVA EPS | B104: NUEVA EPS | C104: IPS VIVA 1A SEDE MARLY | D104: 02-CHAPINERO | E104: 141 | F104: 12 | G104: 9 | S104: 9 | T104: 6.4% | U104: 3
A105: SANITAS | B105: SANITAS | C105: EPS SANITAS CENTRO MEDICO TEUSAQUILLO | D105: 02-CHAPINERO | E105: 561 | F105: 47 | G105: 27 | S105: 27 | T105: 4.8% | U105: 20
A106: SALUD TOTAL | B106: SALUD TOTAL | C106: VIRREY SOLIS CHAPINERO | D106: 02-CHAPINERO | E106: 346 | F106: 29 | G106: 12 | S106: 12 | T106: 3.5% | U106: 17
A107: SURA | B107: SURA | C107: PUNTO DE SALUD CHAPINERO | D107: 02-CHAPINERO | E107: 221 | F107: 18 | G107: 26 | S107: 26 | T107: 11.8%
A108: SURA | B108: SURA | C108: SALUD SURA | D108: 02-CHAPINERO | E108: 593 | F108: 49 | G108: 39 | S108: 39 | T108: 6.6% | U108: 10
A109: PARTICULAR | B109: PARTICULAR | C109: CENTRO MEDICO COLSANITAS CALLE 96 | D109: 02-CHAPINERO | E109: 22 | F109: 2 | G109: 0 | S109: 0 | T109: 0.0% | U109: 2
A110: PARTICULAR | B110: PARTICULAR | C110: CENTRO DE ESPECIALISTAS MEDICOS AXA COLPATRIA | D110: 02-CHAPINERO | E110: 0 | F110: 0 | G110: 2 | S110: 2 | T110: 0.0%
A111: PARTICULAR | B111: PARTICULAR | C111: CLINICA DE LA MUJER | D111: 02-CHAPINERO | E111: 0 | F111: 0 | G111: 40 | S111: 40 | T111: 0.0%
A112: PARTICULAR | B112: PARTICULAR | C112: VACUNARTE IPS | D112: 02-CHAPINERO | E112: 0 | F112: 0 | G112: 3 | S112: 3 | T112: 0.0%
A113: PARTICULAR | B113: PARTICULAR | C113: UNIMARLY | D113: 02-CHAPINERO | E113: 0 | F113: 0 | G113: 0 | S113: 0 | T113: 0.0% | U113: 0
A114: PARTICULAR | B114: PARTICULAR | C114: HOSPITAL SAN IGNACIO | D114: 02-CHAPINERO | E114: 0 | F114: 0 | G114: 7 | S114: 7 | T114: 0.0%
A115: PARTICULAR | B115: PARTICULAR | C115: PROGRAMA MADRE CANGURO HOSPITAL SAN IGNACIO | D115: 02-CHAPINERO | E115: 0 | F115: 0 | G115: 15 | S115: 15 | T115: 0.0%
A116: PARTICULAR | B116: PARTICULAR | C116: IPS AVENIR | D116: 02-CHAPINERO | E116: 0 | F116: 0 | G116: 0 | S116: 0 | T116: 0.0% | U116: 0
A117: PARTICULAR | B117: PARTICULAR | C117: IPS INMUNOLOGIA Y DIAGNOSTICO ESPECIALIZADO | D117: 02-CHAPINERO | E117: 0 | F117: 0 | G117: 1 | S117: 1 | T117: 0.0%
A118: PARTICULAR | B118: PARTICULAR | C118: ASOCIACION PEDIATRICA DE LOS ANDES | D118: 02-CHAPINERO | E118: 0 | F118: 0 | G118: 0 | S118: 0 | T118: 0.0% | U118: 0
A119: PARTICULAR | B119: PARTICULAR | C119: CRUZ ROJA SEDE ANDINO | D119: 02-CHAPINERO | E119: 0 | F119: 0 | G119: 0 | S119: 0 | T119: 0.0% | U119: 0
A120: PARTICULAR | B120: PARTICULAR | C120: CENTRO MEDICO SANTA MONICA | D120: 02-CHAPINERO | E120: 0 | F120: 0 | S120: 0 | T120: 0.0% | U120: 0
A121: PEDIATRAS | B121: PEDIATRAS | C121: DR. JUAN OSCAR TAMAYO | D121: 02-CHAPINERO | E121: 0 | F121: 0 | G121: 0 | S121: 0 | T121: 0.0% | U121: 0
A122: PEDIATRAS | B122: PEDIATRAS | C122: DR. ROBERTO SUAREZ | D122: 02-CHAPINERO | E122: 0 | F122: 0 | G122: 0 | S122: 0 | T122: 0.0% | U122: 0
A123: PEDIATRAS | B123: PEDIATRAS | C123: DR. WILLIAM RICARDO CABRA | D123: 02-CHAPINERO | E123: 0 | F123: 0 | G123: 4 | S123: 4 | T123: 0.0%
A124: PEDIATRAS | B124: PEDIATRAS | C124: DR. EDGAR CASTRO | D124: 02-CHAPINERO | E124: 0 | F124: 0 | G124: 5 | S124: 5 | T124: 0.0%
A125: PEDIATRAS | B125: PEDIATRAS | C125: DR. PABLO KRAUSS | D125: 02-CHAPINERO | E125: 0 | F125: 0 | G125: 3 | S125: 3 | T125: 0.0%
A126: PEDIATRAS | B126: PEDIATRAS | C126: DR. HERNAN ROBLES | D126: 02-CHAPINERO | E126: 0 | F126: 0 | G126: 7 | S126: 7 | T126: 0.0%
A127: PEDIATRAS | B127: PEDIATRAS | C127: DR. RAFAEL GAMBOA CASABLANCA | D127: 02-CHAPINERO | E127: 0 | F127: 0 | G127: 4 | S127: 4 | T127: 0.0%
A128: PEDIATRAS | B128: PEDIATRAS | C128: DR. JAVIER MEJIA | D128: 02-CHAPINERO | E128: 0 | F128: 0 | G128: 1 | S128: 1 | T128: 0.0%
A129: PEDIATRAS | B129: PEDIATRAS | C129: DR. CARLOS CORTAZAR | D129: 02-CHAPINERO | E129: 0 | F129: 0 | G129: 0 | S129: 0 | T129: 0.0% | U129: 0
A130: PEDIATRAS | B130: PEDIATRAS | C130: DR. NELSON PARDO | D130: 02-CHAPINERO | E130: 0 | F130: 0 | G130: 0 | S130: 0 | T130: =IF(E130=0,0,+S130/E130) -> 0.0% | U130: =IF(COUNT(G130:R130)*(E130/12)-S130<0,"",COUNT(G130:R130)*(E130/12)-S130) -> 0
A131: PEDIATRAS | B131: PEDIATRAS | C131: DR. ALVARO JACOME | D131: 02-CHAPINERO | E131: 0 | F131: 0 | G131: 0 | S131: =SUM(G131:R131) -> 0 | T131: 0.0% | U131: 0
A132: PEDIATRAS | B132: PEDIATRAS | C132: DR. SILVIO COPO | D132: 02-CHAPINERO | E132: 0 | F132: =E132/12 -> 0 | G132: 0 | S132: 0 | T132: 0.0% | U132: 0
A133: PEDIATRAS | B133: PEDIATRAS | C133: DR. HECTOR FERNANDO MENDOZA | D133: 02-CHAPINERO | E133: 0 | F133: 0 | G133: 2 | S133: 2 | T133: 0.0%
A134: PEDIATRAS | B134: PEDIATRAS | C134: DR. DIMITRIOS | D134: 02-CHAPINERO | E134: 0 | F134: 0 | G134: 0 | S134: 0 | T134: 0.0% | U134: 0
A135: PEDIATRAS | B135: PEDIATRAS | C135: DR. ALVARO MARIÑO | D135: 02-CHAPINERO | E135: 0 | F135: 0 | G135: 0 | S135: 0 | T135: 0.0% | U135: 0
A136: PEDIATRAS | B136: PEDIATRAS | C136: DR. ANDRES VARGAS | D136: 02-CHAPINERO | E136: 0 | F136: 0 | G136: 2 | S136: 2 | T136: 0.0%
A137: PEDIATRAS | B137: PEDIATRAS | C137: DR. JORGE CAMILO LUNA | D137: 02-CHAPINERO | E137: 0 | F137: 0 | G137: 0 | S137: 0 | T137: 0.0% | U137: 0
A138: PEDIATRAS | B138: PEDIATRAS | C138: DR. BERNARDO HUERTAS | D138: 02-CHAPINERO | E138: 0 | F138: 0 | G138: 11 | S138: 11 | T138: 0.0%
A139: PEDIATRAS | B139: PEDIATRAS | C139: DR. CARLOS M CASTILLO | D139: 02-CHAPINERO | E139: 0 | F139: 0 | G139: 0 | S139: 0 | T139: 0.0% | U139: 0
A140: PEDIATRAS | B140: PEDIATRAS | C140: DR. HEINZ OTTO PFALZGRAF | D140: 02-CHAPINERO | E140: 0 | F140: 0 | G140: 0 | S140: 0 | T140: 0.0% | U140: 0
A141: PEDIATRAS | B141: PEDIATRAS | C141: DR. GONZALEZ BALLESTEROS | D141: 02-CHAPINERO | E141: 0 | F141: 0 | G141: 0 | S141: 0 | T141: 0.0% | U141: 0
A142: PEDIATRAS | B142: PEDIATRAS | C142: DR. NORBERTO SALAMANCA | D142: 02-CHAPINERO | E142: 0 | F142: 0 | G142: 2 | S142: 2 | T142: 0.0%
A143: PEDIATRAS | B143: PEDIATRAS | C143: DR. CAMILO ENRIQUE SOTOMAYOR | D143: 02-CHAPINERO | E143: 0 | F143: 0 | G143: 1 | S143: 1 | T143: 0.0%
A144: PEDIATRAS | B144: PEDIATRAS | C144: DR. SANTIAGO RUEDA SAIZ | D144: 02-CHAPINERO | E144: 0 | F144: 0 | G144: 0 | S144: 0 | T144: 0.0% | U144: 0
A145: PEDIATRAS | B145: PEDIATRAS | C145: DR. HENRY HERNANDO SANCHEZ ESCOBAR | D145: 02-CHAPINERO | E145: 0 | F145: 0 | G145: 1 | S145: 1 | T145: 0.0%
A146: PEDIATRAS | B146: PEDIATRAS | C146: DR. RUBEN DARIO TAMAYO | D146: 02-CHAPINERO | E146: 0 | F146: 0 | G146: 0 | S146: 0 | T146: 0.0% | U146: 0
A147: PEDIATRAS | B147: PEDIATRAS | C147: DR. JAIME MAURICIO MATALLANA | D147: 02-CHAPINERO | E147: 0 | F147: 0 | G147: 2 | S147: 2 | T147: 0.0%
A148: PEDIATRAS | B148: PEDIATRAS | C148: DR. RODRIGO GARCIA | D148: 02-CHAPINERO | E148: 0 | F148: 0 | G148: 0 | S148: 0 | T148: 0.0% | U148: 0
A149: PEDIATRAS | B149: PEDIATRAS | C149: DR. FELIPE ROBAYO | D149: 02-CHAPINERO | E149: 0 | F149: 0 | G149: 0 | S149: 0 | T149: 0.0% | U149: 0
A150: PEDIATRAS | B150: PEDIATRAS | C150: DR. RUBEN FRANCO | D150: 02-CHAPINERO | E150: 0 | F150: 0 | G150: 0 | S150: 0 | T150: 0.0% | U150: 0
A151: PEDIATRAS | B151: PEDIATRAS | C151: DR. ORLANDO RODRIGUEZ RAMIREZ | D151: 02-CHAPINERO | E151: 0 | F151: 0 | G151: 6 | S151: 6 | T151: 0.0%
A152: PEDIATRAS | B152: PEDIATRAS | C152: DR. ARTURO MORENO | D152: 02-CHAPINERO | E152: 0 | F152: 0 | G152: 0 | S152: 0 | T152: 0.0% | U152: 0
A153: PEDIATRAS | B153: PEDIATRAS | C153: DR. FRANCISCO LEAL QUEVEDO | D153: 02-CHAPINERO | E153: 0 | F153: 0 | G153: 0 | S153: 0 | T153: 0.0% | U153: 0
A154: PEDIATRAS | B154: PEDIATRAS | C154: DR. CARLOS DIAZ PUENTES | D154: 02-CHAPINERO | E154: 0 | F154: 0 | G154: 0 | S154: 0 | T154: 0.0% | U154: 0
A155: PEDIATRAS | B155: PEDIATRAS | C155: DR. PEDRO ERASMO MENDOZA | D155: 02-CHAPINERO | E155: 0 | F155: 0 | G155: 0 | S155: 0 | T155: 0.0% | U155: 0
A156: PEDIATRAS | B156: PEDIATRAS | C156: DR. DIMAS ROSAS | D156: 02-CHAPINERO | E156: 0 | F156: 0 | G156: 0 | S156: 0 | T156: 0.0% | U156: 0
A157: PEDIATRAS | B157: PEDIATRAS | C157: DR. JAVIER BRITO MORENO | D157: 02-CHAPINERO | E157: 0 | F157: 0 | G157: 0 | S157: 0 | T157: 0.0% | U157: 0
A158: PEDIATRAS | B158: PEDIATRAS | C158: DR. GUSTAVO CORTÉS | D158: 02-CHAPINERO | E158: 0 | F158: 0 | G158: 0 | S158: 0 | T158: 0.0% | U158: 0
A159: PEDIATRAS | B159: PEDIATRAS | C159: DR. CARLOS VELASQUEZ | D159: 02-CHAPINERO | E159: 0 | F159: 0 | G159: 0 | S159: 0 | T159: 0.0% | U159: 0
A160: PEDIATRAS | B160: PEDIATRAS | C160: DR. RICARDO GOMEZ | D160: 02-CHAPINERO | E160: 0 | F160: 0 | G160: 0 | S160: 0 | T160: 0.0% | U160: 0
A161: PEDIATRAS | B161: PEDIATRAS | C161: DR. SARA BERNAL | D161: 02-CHAPINERO | E161: 0 | F161: 0 | G161: 0 | S161: 0 | T161: 0.0% | U161: 0
A162: PEDIATRAS | B162: PEDIATRAS | C162: DRA. MARIA PATRICIA AGUALIMPIA | D162: 02-CHAPINERO | E162: 0 | F162: 0 | G162: 0 | S162: 0 | T162: 0.0% | U162: 0
A163: PEDIATRAS | B163: PEDIATRAS | C163: DRA. LUISA FERNANDA FORERO ACOSTA | D163: 02-CHAPINERO | E163: 0 | F163: 0 | G163: 0 | S163: 0 | T163: 0.0% | U163: 0
A164: PEDIATRAS | B164: PEDIATRAS | C164: DRA. MARIA CLARA CASAS PARDO | D164: 02-CHAPINERO | E164: 0 | F164: 0 | G164: 0 | S164: 0 | T164: 0.0% | U164: 0
A165: PEDIATRAS | B165: PEDIATRAS | C165: DRA. MARTHA EUGENIA RONDEROS DE FORERO | D165: 02-CHAPINERO | E165: 0 | F165: 0 | G165: 0 | S165: 0 | T165: 0.0% | U165: 0
A166: PEDIATRAS | B166: PEDIATRAS | C166: DRA. MARIA ISABEL USCHER | D166: 02-CHAPINERO | E166: 0 | F166: 0 | G166: 1 | S166: 1 | T166: 0.0%
A167: PEDIATRAS | B167: PEDIATRAS | C167: DRA. MARIA DE LOS ANGELES MUÑOZ | D167: 02-CHAPINERO | E167: 0 | F167: 0 | G167: 0 | S167: 0 | T167: 0.0% | U167: 0
A168: PEDIATRAS | B168: PEDIATRAS | C168: DRA. CLARA ABELLO REYES | D168: 02-CHAPINERO | E168: 0 | F168: 0 | G168: 0 | S168: 0 | T168: 0.0% | U168: 0
A169: PEDIATRAS | B169: PEDIATRAS | C169: DRA. PATRICIA CONTRERAS | D169: 02-CHAPINERO | E169: 0 | F169: 0 | G169: 0 | S169: 0 | T169: 0.0% | U169: 0
A170: PEDIATRAS | B170: PEDIATRAS | C170: DRA. CLAUDIA ZOPPI | D170: 02-CHAPINERO | E170: 0 | F170: 0 | G170: 0 | S170: 0 | T170: 0.0% | U170: 0
A171: PEDIATRAS | B171: PEDIATRAS | C171: DRA. MARIA DE LOS ANGELES FERNANDEZ LUQUE | D171: 02-CHAPINERO | E171: 0 | F171: 0 | G171: 0 | S171: 0 | T171: 0.0% | U171: 0
A172: PEDIATRAS | B172: PEDIATRAS | C172: DRA. RUTH CORDOBA CORDOBA | D172: 02-CHAPINERO | E172: 0 | F172: 0 | G172: 0 | S172: 0 | T172: 0.0% | U172: 0
A173: PEDIATRAS | B173: PEDIATRAS | C173: DRA. LUZ ESTELA CORTES | D173: 02-CHAPINERO | E173: 0 | F173: 0 | G173: 0 | S173: 0 | T173: 0.0% | U173: 0
A174: UNICAJAS | B174: UNICAJAS | C174: UPA SAN LUIS | D174: 02-CHAPINERO | E174: 6 | F174: 1 | G174: 0 | S174: 0 | T174: 0.0% | U174: 1
A175: 02-CHAPINERO | B175: OTROS | C175: UPA SAN LUIS | D175: 02-CHAPINERO | E175: 958 | F175: 80 | G175: 6 | S175: 6 | T175: 0.6% | U175: 74
A176: 02-CHAPINERO | B176: DEMAS EAPB | C176: UPA SAN LUIS | D176: 02-CHAPINERO | F176: 0 | G176: 9 | S176: 9 | T176: 0.0%
A177: UNICAJAS | B177: UNICAJAS | C177: COMFASALUD SEDE CENTRO | D177: 03-SANTA FE | E177: 93 | F177: 8 | G177: 2 | S177: 2 | T177: 2.2% | U177: 6
A178: MEDIMAS | B178: MEDIMAS | C178: CORVESALUD TEUSAQUILLO | D178: 03-SANTA FE | E178: 283 | F178: 24 | G178: 4 | S178: 4 | T178: 1.4% | U178: 20
A179: 03-SANTA FE | B179: CAPITAL SALUD | C179: EXTRAMURAL SANTA FE | D179: 03-SANTA FE | E179: 0 | F179: 0 | G179: 7 | S179: 7 | T179: 0.0%
A180: 03-SANTA FE | B180: DEMAS EAPB | C180: EXTRAMURAL SANTA FE | D180: 03-SANTA FE | E180: 0 | F180: 0 | G180: 13 | S180: 13 | T180: 0.0%
A181: 03-SANTA FE | B181: OTROS | C181: EXTRAMURAL SANTA FE | D181: 03-SANTA FE | E181: 0 | F181: 0 | G181: 15 | S181: 15 | T181: 0.0%
A182: 03-SANTA FE | B182: UNICAJAS | C182: EXTRAMURAL SANTA FE | D182: 03-SANTA FE | E182: 0 | F182: 0 | G182: 2 | S182: 2 | T182: 0.0%
A183: 03-SANTA FE | B183: CAPITAL SALUD | C183: USS LACHES | D183: 03-SANTA FE | E183: 179 | F183: 15 | G183: 7 | S183: 7 | T183: 3.9% | U183: 8
A184: 03-SANTA FE | B184: DEMAS EAPB | C184: USS LACHES | D184: 03-SANTA FE | E184: 0 | F184: 0 | G184: 15 | S184: 15 | T184: 0.0%
A185: 03-SANTA FE | B185: OTROS | C185: USS LACHES | D185: 03-SANTA FE | E185: 82 | F185: 7 | G185: 2 | S185: 2 | T185: 2.4% | U185: 5
A186: 03-SANTA FE | B186: UNICAJAS | C186: USS LACHES | D186: 03-SANTA FE | E186: 42 | F186: 4 | G186: 4 | S186: 4 | T186: 9.5%
A187: 03-SANTA FE | B187: CAPITAL SALUD | C187: USS LAS CRUCES | D187: 03-SANTA FE | E187: 156 | F187: 13 | G187: 4 | S187: 4 | T187: 2.6% | U187: 9
A188: 03-SANTA FE | B188: DEMAS EAPB | C188: USS LAS CRUCES | D188: 03-SANTA FE | E188: 0 | F188: 0 | G188: 8 | S188: 8 | T188: 0.0%
A189: 03-SANTA FE | B189: OTROS | C189: USS LAS CRUCES | D189: 03-SANTA FE | E189: 71 | F189: 6 | G189: 3 | S189: 3 | T189: 4.2% | U189: 3
A190: 03-SANTA FE | B190: UNICAJAS | C190: USS LAS CRUCES | D190: 03-SANTA FE | E190: 36 | F190: 3 | G190: 1 | S190: 1 | T190: 2.8% | U190: 2
A191: 03-SANTA FE | B191: CAPITAL SALUD | C191: USS PERSEVERANCIA | D191: 03-SANTA FE | E191: 30 | F191: 3 | G191: 2 | S191: 2 | T191: 6.7% | U191: 1
A192: 03-SANTA FE | B192: DEMAS EAPB | C192: USS PERSEVERANCIA | D192: 03-SANTA FE | E192: 0 | F192: 0 | G192: 2 | S192: 2 | T192: 0.0%
A193: 03-SANTA FE | B193: OTROS | C193: USS PERSEVERANCIA | D193: 03-SANTA FE | E193: 14 | F193: 1 | G193: 4 | S193: 4 | T193: 28.6%
A194: 03-SANTA FE | B194: UNICAJAS | C194: USS PERSEVERANCIA | D194: 03-SANTA FE | E194: 7 | F194: 1 | G194: 0 | S194: 0 | T194: =IF(E194=0,0,+S194/E194) -> 0.0% | U194: =IF(COUNT(G194:R194)*(E194/12)-S194<0,"",COUNT(G194:R194)*(E194/12)-S194) -> 1
A195: PARTICULAR | B195: PARTICULAR | C195: CLINICA SAN RAFAEL | D195: 04-SAN CRISTOBAL | E195: 266 | F195: 22 | G195: 22 | S195: =SUM(G195:R195) -> 22 | T195: 8.3% | U195: 0
A196: FAMISANAR | B196: FAMI- COLSB | C196: CENTRO MEDICO COLSUBSIDIO 20 DE JULIO | D196: 04-SAN CRISTOBAL | F196: =E196/12 -> 0 | S196: 0 | T196: 0.0% | U196: 0
A197: 04-SAN CRISTOBAL | B197: CAPITAL SALUD | C197: EXTRAMURAL SAN CRISTOBAL | D197: 04-SAN CRISTOBAL | E197: 0 | F197: 0 | G197: 31 | S197: 31 | T197: 0.0%
A198: 04-SAN CRISTOBAL | B198: DEMAS EAPB | C198: EXTRAMURAL SAN CRISTOBAL | D198: 04-SAN CRISTOBAL | E198: 0 | F198: 0 | G198: 66 | S198: 66 | T198: 0.0%
A199: 04-SAN CRISTOBAL | B199: OTROS | C199: EXTRAMURAL SAN CRISTOBAL | D199: 04-SAN CRISTOBAL | E199: 0 | F199: 0 | G199: 9 | S199: 9 | T199: 0.0%
A200: 04-SAN CRISTOBAL | B200: UNICAJAS | C200: EXTRAMURAL SAN CRISTOBAL | D200: 04-SAN CRISTOBAL | E200: 0 | F200: 0 | G200: 7 | S200: 7 | T200: 0.0%
... 620 more rows

Sheet VARICELA
A1: EAPB | B1: EPS O ESE | C1: IPS | D1: Localidad | E1: Meta Anual de 1 Año | F1: Meta Mensual | G1: Enero | H1: Febrero | I1: Marzo | J1: Abril | K1: Mayo | L1: Junio | M1: Julio | N1: Agosto | O1: Septiembre | P1: Octubre | Q1: Noviembre | R1: Diciembre | S1: Total | T1: % Cobertura | U1: Deficit
A2: CAPITAL SALUD | B2: CAPITAL SALUD | C2: UPA SAN CRISTOBAL | D2: 01-USAQUEN | E2: 100 | F2: =E2/12 -> 8 | G2: 4 | S2: =SUM(G2:R2) -> 4 | T2: =IF(E2=0,0,+S2/E2) -> 4.0% | U2: =IF(COUNT(G2:R2)*(E2/12)-S2<0,"",COUNT(G2:R2)*(E2/12)-S2) -> 4
A3: CAPITAL SALUD | B3: CAPITAL SALUD | C3: UPA USAQUEN | D3: 01-USAQUEN | E3: 14 | F3: 1 | G3: 0 | S3: =SUM(G3:R3) -> 0 | T3: 0.0% | U3: 1
A4: CAPITAL SALUD | B4: CAPITAL SALUD | C4: UPA ORQUIDEAS | D4: 01-USAQUEN | E4: 6 | F4: 1 | G4: 5 | S4: 5 | T4: 83.3%
A5: CAPITAL SALUD | B5: CAPITAL SALUD | C5: UPA CODITO | D5: 01-USAQUEN | E5: 115 | F5: 10 | G5: 3 | S5: 3 | T5: 2.6% | U5: 7
A6: CAPITAL SALUD | B6: CAPITAL SALUD | C6: CAMI VERBENAL | D6: 01-USAQUEN | E6: 106 | F6: 9 | G6: 7 | S6: 7 | T6: 6.6% | U6: 2
A7: CAPITAL SALUD | B7: CAPITAL SALUD | C7: HOSPITAL SIMON BOLIVAR | D7: 01-USAQUEN | E7: 15 | F7: 1 | G7: 12 | S7: 12 | T7: 80.0%
A8: 01-USAQUEN | B8: 01-USAQUEN | C8: EXTRAMURAL USAQUEN | D8: 01-USAQUEN | F8: 0 | G8: 45 | S8: 45 | T8: 0.0%
A9: ALIANSALUD | B9: ALIANSALUD | C9: CENTRO MEDICO COLMEDICA SANTA BARBARA | D9: 01-USAQUEN | E9: 794 | F9: 66 | G9: 58 | S9: 58 | T9: 7.3% | U9: 8
A10: COMPENSAR | B10: COMPENSAR | C10: USS CALLE 134 | D10: 01-USAQUEN | E10: 328 | F10: 27 | G10: 15 | S10: 15 | T10: 4.6% | U10: 12
A11: COMPENSAR | B11: COMPENSAR | C11: USS CALLE 145 | D11: 01-USAQUEN | E11: 252 | F11: 21 | G11: 37 | S11: 37 | T11: 14.7%
A12: COMPENSAR | B12: COMPENSAR | C12: JAVESALUD TOBERIN | D12: 01-USAQUEN | E12: 396 | F12: 33 | G12: 3 | S12: 3 | T12: 0.8% | U12: 30
A13: COOMEVA | B13: COOMEVA | C13: SINERGIA UNIDAD INTEGRAL EN SALUD | D13: 01-USAQUEN | E13: 63 | F13: 5 | G13: 13 | S13: 13 | T13: 20.6%
A14: FAMISANAR | B14: FAMI- COLSB | C14: CENTRO MEDICO COLSUBSIDIO USAQUEN | D14: 01-USAQUEN | E14: 315 | F14: 26 | G14: 28 | S14: 28 | T14: 8.9%
A15: MILITAR | B15: MILITAR | C15: DISPENSARIO MEDICO CANTON NORTE | D15: 01-USAQUEN | E15: 287 | F15: 24 | G15: 9 | S15: 9 | T15: 3.1% | U15: 15
A16: NUEVA EPS | B16: NUEVA EPS | C16: IPS VIVA 1A SEDE TOBERIN | D16: 01-USAQUEN | E16: 130 | F16: 11 | G16: 13 | S16: 13 | T16: 10.0%
A17: NUEVA EPS | B17: NUEVA EPS | C17: CAFAM GRANADA HILLS | D17: 01-USAQUEN | E17: 58 | F17: 5 | G17: 6 | S17: 6 | T17: 10.3%
A18: SANITAS | B18: SANITAS | C18: UAP SANITAS TOBERIN | D18: 01-USAQUEN | E18: 629 | F18: 52 | G18: 31 | S18: 31 | T18: 4.9% | U18: 21
A19: SANITAS | B19: SANITAS | C19: MEDIKA IPS SANITAS UAP USAQUEN | D19: 01-USAQUEN | E19: 183 | F19: 15 | G19: 1 | S19: 1 | T19: 0.5% | U19: 14
A20: SANITAS | B20: SANITAS | C20: UAP SANTA BARBARA | D20: 01-USAQUEN | E20: 884 | F20: 74 | G20: 77 | S20: 77 | T20: 8.7%
A21: SANITAS | B21: SANITAS | C21: SANITAS BANCO DE LA REPUBLICA | D21: 01-USAQUEN | E21: 0 | F21: 0 | G21: 1 | S21: 1 | T21: 0.0%
A22: SALUD TOTAL | B22: SALUD TOTAL | C22: VIRREY SOLIS TOBERÍN | D22: 01-USAQUEN | E22: 418 | F22: 35 | G22: 19 | S22: 19 | T22: 4.5% | U22: 16
A23: SURA | B23: SURA | C23: IPS JAVESALUD SANTA BEATRIZ | D23: 01-USAQUEN | E23: 366 | F23: 31 | G23: 15 | S23: 15 | T23: 4.1% | U23: 16
A24: ECOPETROL | B24: ECOPETROL | C24: IPS CLINICOS PALATINO | D24: 01-USAQUEN | E24: 93 | F24: 8 | G24: 5 | S24: 5 | T24: 5.4% | U24: 3
A25: PARTICULAR | B25: PARTICULAR | C25: CLINICA PEDIATRICA COLSANITAS | D25: 01-USAQUEN | E25: 675 | F25: 56 | G25: 85 | S25: 85 | T25: 12.6%
A26: PARTICULAR | B26: PARTICULAR | C26: CENTRO MEDICO COLSANITAS LA CALLEJA | D26: 01-USAQUEN | E26: 130 | F26: 11 | G26: 19 | S26: 19 | T26: 14.6%
A27: PARTICULAR | B27: PARTICULAR | C27: CENTRO MEDICO COLSANITAS 108 | D27: 01-USAQUEN | E27: 26 | F27: 2 | G27: 5 | S27: 5 | T27: 19.2%
A28: PARTICULAR | B28: PARTICULAR | C28: CENTRO MEDICO COLSANITAS SANTA ANA | D28: 01-USAQUEN | E28: 4 | F28: 0 | G28: 0 | S28: 0 | T28: 0.0% | U28: 0
A29: PARTICULAR | B29: PARTICULAR | C29: FUNDACIÓN CARDIO INFANTIL | D29: 01-USAQUEN | E29: 0 | F29: 0 | G29: 17 | S29: 17 | T29: 0.0%
A30: PARTICULAR | B30: PARTICULAR | C30: ENFASO USAQUEN | D30: 01-USAQUEN | E30: 0 | F30: 0 | G30: 5 | S30: 5 | T30: 0.0%
A31: PARTICULAR | B31: PARTICULAR | C31: UNIDAD DE VACUNACIÓN INTERNACIONAL | D31: 01-USAQUEN | E31: 0 | F31: 0 | G31: 5 | S31: 5 | T31: 0.0%
A32: PARTICULAR | B32: PARTICULAR | C32: INMUNOLOGÍA Y DIAGNÓSTICO ESPECIALIZADO LTDA. | D32: 01-USAQUEN | E32: 0 | F32: 0 | G32: 1 | S32: 1 | T32: 0.0%
A33: PARTICULAR | B33: PARTICULAR | C33: PROTEGER HEALHT CARE | D33: 01-USAQUEN | E33: 0 | F33: 0 | G33: 0 | S33: 0 | T33: 0.0% | U33: 0
A34: PARTICULAR | B34: PARTICULAR | C34: FUNDACION SANTA FE DE BOGOTA | D34: 01-USAQUEN | E34: 0 | F34: 0 | G34: 0 | S34: 0 | T34: 0.0% | U34: 0
A35: PARTICULAR | B35: PARTICULAR | C35: IPS CRUZ ROJA SEDE UNICENTRO | D35: 01-USAQUEN | E35: 0 | F35: 0 | G35: 0 | S35: 0 | T35: 0.0% | U35: 0
A36: PARTICULAR | B36: PARTICULAR | C36: IPS CRUZ ROJA SAMU CALLE 145 | D36: 01-USAQUEN | E36: 0 | F36: 0 | G36: 0 | S36: 0 | T36: 0.0% | U36: 0
A37: PEDIATRAS | B37: PEDIATRAS | C37: DR. ALEJANDRO LÓPEZ | D37: 01-USAQUEN | E37: 0 | F37: 0 | G37: 0 | S37: 0 | T37: 0.0% | U37: 0
A38: PEDIATRAS | B38: PEDIATRAS | C38: DR. CARLOS NEFTALI TORRES | D38: 01-USAQUEN | E38: 0 | F38: 0 | G38: 3 | S38: 3 | T38: 0.0%
A39: PEDIATRAS | B39: PEDIATRAS | C39: DR. FRANCISCO NUÑEZ | D39: 01-USAQUEN | E39: 0 | F39: 0 | G39: 0 | S39: 0 | T39: 0.0% | U39: 0
A40: PEDIATRAS | B40: PEDIATRAS | C40: DR. FERNANDO GOMEZ | D40: 01-USAQUEN | E40: 0 | F40: 0 | G40: 0 | S40: 0 | T40: 0.0% | U40: 0
A41: PEDIATRAS | B41: PEDIATRAS | C41: DR. FERNANDO ZARATE MORENO | D41: 01-USAQUEN | E41: 0 | F41: 0 | G41: 1 | S41: 1 | T41: 0.0%
A42: PEDIATRAS | B42: PEDIATRAS | C42: DR. GONZALO GARCIA | D42: 01-USAQUEN | E42: 0 | F42: 0 | G42: 3 | S42: 3 | T42: 0.0%
A43: PEDIATRAS | B43: PEDIATRAS | C43: DR. GUSTAVO MORALES | D43: 01-USAQUEN | E43: 0 | F43: 0 | G43: 2 | S43: 2 | T43: 0.0%
A44: PEDIATRAS | B44: PEDIATRAS | C44: DR. JAIME OSPINA | D44: 01-USAQUEN | E44: 0 | F44: 0 | G44: 1 | S44: 1 | T44: 0.0%
A45: PEDIATRAS | B45: PEDIATRAS | C45: DR. JORGE URIBE | D45: 01-USAQUEN | E45: 0 | F45: 0 | G45: 0 | S45: 0 | T45: 0.0% | U45: 0
A46: PEDIATRAS | B46: PEDIATRAS | C46: DR. JUAN LUIS FIGUEROA | D46: 01-USAQUEN | E46: 0 | F46: 0 | G46: 1 | S46: 1 | T46: 0.0%
A47: PEDIATRAS | B47: PEDIATRAS | C47: DR. LUIS AUGUSTO PERNA | D47: 01-USAQUEN | E47: 0 | F47: 0 | G47: 2 | S47: 2 | T47: 0.0%
A48: PEDIATRAS | B48: PEDIATRAS | C48: DR. LIBARDO ELI TRIANA | D48: 01-USAQUEN | E48: 0 | F48: 0 | G48: 0 | S48: 0 | T48: 0.0% | U48: 0
A49: PEDIATRAS | B49: PEDIATRAS | C49: DR. OSWALDO MERCADO HOYOS | D49: 01-USAQUEN | E49: 0 | F49: 0 | G49: 1 | S49: 1 | T49: 0.0%
A50: PEDIATRAS | B50: PEDIATRAS | C50: DR. ROBERTO BENIRO | D50: 01-USAQUEN | E50: 0 | F50: 0 | G50: 0 | S50: 0 | T50: 0.0% | U50: 0
A51: PEDIATRAS | B51: PEDIATRAS | C51: DR. SERGIO ISAZA | D51: 01-USAQUEN | E51: 0 | F51: 0 | G51: 1 | S51: 1 | T51: 0.0%
A52: PEDIATRAS | B52: PEDIATRAS | C52: DR. SANTIAGO UCROS | D52: 01-USAQUEN | E52: 0 | F52: 0 | G52: 0 | S52: 0 | T52: 0.0% | U52: 0
A53: PEDIATRAS | B53: PEDIATRAS | C53: DR. GERMAN SILVA | D53: 01-USAQUEN | E53: 0 | F53: 0 | G53: 0 | S53: 0 | T53: 0.0% | U53: 0
A54: PEDIATRAS | B54: PEDIATRAS | C54: DR. DANIEL ABRIL | D54: 01-USAQUEN | E54: 0 | F54: 0 | G54: 0 | S54: 0 | T54: 0.0% | U54: 0
A55: PEDIATRAS | B55: PEDIATRAS | C55: DR. CARLOS EDUARDO OLMOS | D55: 01-USAQUEN | E55: 0 | F55: 0 | G55: 0 | S55: 0 | T55: 0.0% | U55: 0
A56: PEDIATRAS | B56: PEDIATRAS | C56: DR. EDGARDO CHATMAN | D56: 01-USAQUEN | E56: 0 | F56: 0 | G56: 0 | S56: 0 | T56: 0.0% | U56: 0
A57: PEDIATRAS | B57: PEDIATRAS | C57: DR. JORGE FLOREZ OTERO | D57: 01-USAQUEN | E57: 0 | F57: 0 | G57: 0 | S57: 0 | T57: 0.0% | U57: 0
A58: PEDIATRAS | B58: PEDIATRAS | C58: DRA. ALEJANDRA MARIA VALENCIA | D58: 01-USAQUEN | E58: 0 | F58: 0 | G58: 0 | S58: 0 | T58: 0.0% | U58: 0
A59: PEDIATRAS | B59: PEDIATRAS | C59: DRA. ANA MARIA GOYENECHE | D59: 01-USAQUEN | E59: 0 | F59: 0 | G59: 0 | S59: 0 | T59: 0.0% | U59: 0
A60: PEDIATRAS | B60: PEDIATRAS | C60: DRA. JIMENA VARELA | D60: 01-USAQUEN | E60: 0 | F60: 0 | G60: 0 | S60: 0 | T60: 0.0% | U60: 0
A61: PEDIATRAS | B61: PEDIATRAS | C61: DRA. LIA SAN MIGUEL | D61: 01-USAQUEN | E61: 0 | F61: 0 | G61: 0 | S61: 0 | T61: 0.0% | U61: 0
A62: PEDIATRAS | B62: PEDIATRAS | C62: DRA. LIBIA SEGURA | D62: 01-USAQUEN | E62: 0 | F62: 0 | G62: 0 | S62: 0 | T62: 0.0% | U62: 0
A63: PEDIATRAS | B63: PEDIATRAS | C63: DRA. MARÍA JOSÉ PEDRAZA | D63: 01-USAQUEN | E63: 0 | F63: 0 | G63: 0 | S63: 0 | T63: 0.0% | U63: 0
A64: PEDIATRAS | B64: PEDIATRAS | C64: DRA. MARTHA LUCIA SANCHEZ | D64: 01-USAQUEN | E64: 0 | F64: 0 | G64: 0 | S64: 0 | T64: 0.0% | U64: 0
A65: PEDIATRAS | B65: PEDIATRAS | C65: DRA. OLGA LUCÍA SÁNCHEZ | D65: 01-USAQUEN | E65: 0 | F65: 0 | G65: 0 | S65: 0 | T65: 0.0% | U65: 0
A66: PEDIATRAS | B66: PEDIATRAS | C66: DRA. SANDRA BELTRAN | D66: 01-USAQUEN | E66: 0 | F66: 0 | G66: 0 | S66: 0 | T66: =IF(E66=0,0,+S66/E66) -> 0.0% | U66: =IF(COUNT(G66:R66)*(E66/12)-S66<0,"",COUNT(G66:R66)*(E66/12)-S66) -> 0
A67: PEDIATRAS | B67: PEDIATRAS | C67: DRA. IVANA CABRERA | D67: 01-USAQUEN | E67: 0 | F67: 0 | G67: 0 | S67: =SUM(G67:R67) -> 0 | T67: 0.0% | U67: 0
A68: PEDIATRAS | B68: PEDIATRAS | C68: DRA. NAYITA ALARCON | D68: 01-USAQUEN | E68: 0 | F68: =E68/12 -> 0 | G68: 0 | S68: 0 | T68: 0.0% | U68: 0
A69: PEDIATRAS | B69: PEDIATRAS | C69: DRA. ELIZABETH GARCIA | D69: 01-USAQUEN | E69: 0 | F69: 0 | G69: 0 | S69: 0 | T69: 0.0% | U69: 0
A70: PEDIATRAS | B70: PEDIATRAS | C70: DRA. BERTHA CALDERON DE RAMOS | D70: 01-USAQUEN | E70: 0 | F70: 0 | G70: 0 | S70: 0 | T70: 0.0% | U70: 0
A71: PEDIATRAS | B71: PEDIATRAS | C71: DRA. MIRYAM CORREA | D71: 01-USAQUEN | E71: 0 | F71: 0 | G71: 0 | S71: 0 | T71: 0.0% | U71: 0
A72: 01-USAQUEN | B72: UNICAJAS | C72: UPA SAN CRISTOBAL | D72: 01-USAQUEN | E72: 6 | F72: 1 | G72: 2 | S72: 2 | T72: 33.3%
A73: UNICAJAS | B73: UNICAJAS | C73: UPA USAQUEN | D73: 01-USAQUEN | E73: 6 | F73: 1 | G73: 0 | S73: 0 | T73: 0.0% | U73: 1
A74: UNICAJAS | B74: UNICAJAS | C74: UPA ORQUIDEAS | D74: 01-USAQUEN | E74: 6 | F74: 1 | G74: 0 | S74: 0 | T74: 0.0% | U74: 1
A75: UNICAJAS | B75: UNICAJAS | C75: UPA CODITO | D75: 01-USAQUEN | E75: 6 | F75: 1 | S75: 0 | T75: 0.0% | U75: 0
A76: UNICAJAS | B76: UNICAJAS | C76: CAMI VERBENAL | D76: 01-USAQUEN | E76: 6 | F76: 1 | G76: 1 | S76: 1 | T76: 16.7%
A77: 01-USAQUEN | B77: UNICAJAS | C77: HOSPITAL SIMON BOLIVAR | D77: 01-USAQUEN | E77: 6 | F77: 1 | G77: 3 | S77: 3 | T77: 50.0%
A78: 01-USAQUEN | B78: OTROS | C78: UPA SAN CRISTOBAL | D78: 01-USAQUEN | E78: 205 | F78: 17 | G78: 9 | S78: 9 | T78: 4.4% | U78: 8
A79: 01-USAQUEN | B79: OTROS | C79: UPA USAQUEN | D79: 01-USAQUEN | E79: 95 | F79: 8 | G79: 0 | S79: 0 | T79: 0.0% | U79: 8
A80: 01-USAQUEN | B80: OTROS | C80: UPA ORQUIDEAS | D80: 01-USAQUEN | E80: 100 | F80: 8 | G80: 5 | S80: 5 | T80: 5.0% | U80: 3
A81: 01-USAQUEN | B81: OTROS | C81: UPA CODITO | D81: 01-USAQUEN | E81: 140 | F81: 12 | G81: 7 | S81: 7 | T81: 5.0% | U81: 5
A82: 01-USAQUEN | B82: OTROS | C82: CAMI VERBENAL | D82: 01-USAQUEN | E82: 290 | F82: 24 | G82: 4 | S82: 4 | T82: 1.4% | U82: 20
A83: 01-USAQUEN | B83: OTROS | C83: HOSPITAL SIMON BOLIVAR | D83: 01-USAQUEN | E83: 501 | F83: 42 | G83: 20 | S83: 20 | T83: 4.0% | U83: 22
A84: 01-USAQUEN | B84: DEMAS EAPB | C84: UPA SAN CRISTOBAL | D84: 01-USAQUEN | F84: 0 | G84: 17 | S84: 17 | T84: 0.0%
A85: 01-USAQUEN | B85: DEMAS EAPB | C85: UPA USAQUEN | D85: 01-USAQUEN | F85: 0 | G85: 3 | S85: 3 | T85: 0.0%
A86: 01-USAQUEN | B86: DEMAS EAPB | C86: UPA ORQUIDEAS | D86: 01-USAQUEN | F86: 0 | G86: 3 | S86: 3 | T86: 0.0%
A87: 01-USAQUEN | B87: DEMAS EAPB | C87: UPA CODITO | D87: 01-USAQUEN | F87: 0 | G87: 16 | S87: 16 | T87: 0.0%
A88: 01-USAQUEN | B88: DEMAS EAPB | C88: CAMI VERBENAL | D88: 01-USAQUEN | F88: 0 | G88: 22 | S88: 22 | T88: 0.0%
A89: 01-USAQUEN | B89: DEMAS EAPB | C89: HOSPITAL SIMON BOLIVAR | D89: 01-USAQUEN | F89: 0 | G89: 28 | S89: 28 | T89: 0.0%
A90: MEDIMAS | B90: MEDIMAS | C90: Corvesalud S.A.S - I P S Chico | D90: 01-USAQUEN | E90: 165 | F90: 14 | G90: 0 | S90: 0 | T90: 0.0% | U90: 14
A91: FAMISANAR | B91: COLSUBSIDIO | C91: Sura PAC Santa Bárbara | D91: 01-USAQUEN | F91: 0 | S91: 0 | T91: 0.0% | U91: 0
A92: CAPITAL SALUD | B92: CAPITAL SALUD | C92: UPA SAN LUIS | D92: 02-CHAPINERO | E92: 10 | F92: 1 | G92: 3 | S92: 3 | T92: 30.0%
A93: 02-CHAPINERO | B93: 02-CHAPINERO | C93: EXTRAMURAL CHAPINERO | D93: 02-CHAPINERO | E93: 0 | F93: 0 | G93: 10 | S93: 10 | T93: 0.0%
A94: COMPENSAR | B94: COMPENSAR | C94: USS CALLE 42 | D94: 02-CHAPINERO | E94: 796 | F94: 66 | G94: 32 | S94: 32 | T94: 4.0% | U94: 34
A95: COMPENSAR | B95: COMPENSAR | C95: USS CALLE 67 | D95: 02-CHAPINERO | F95: 0 | G95: 0 | S95: 0 | T95: 0.0% | U95: 0
A96: COMPENSAR | B96: COMPENSAR | C96: USS CALLE 94 | D96: 02-CHAPINERO | E96: 604 | F96: 50 | G96: 74 | S96: 74 | T96: 12.3%
A97: COMPENSAR | B97: COMPENSAR | C97: VIVA 1A IPS CHAPINERO | D97: 02-CHAPINERO | E97: 116 | F97: 10 | G97: 4 | S97: 4 | T97: 3.4% | U97: 6
A98: COOMEVA | B98: COOMEVA | C98: SINERGIA UNIDAD BASICA LOURDES | D98: 02-CHAPINERO | E98: 226 | F98: 19 | G98: 4 | S98: 4 | T98: 1.8% | U98: 15
A99: FAMISANAR | B99: FAMI- CAFAM | C99: CENTRO DE ATENCION EN SALUD CAFAM CALLE 48 | D99: 02-CHAPINERO | E99: 1150 | F99: 96 | G99: 17 | S99: 17 | T99: 1.5% | U99: 79
A100: FAMISANAR | B100: FAMI- CAFAM | C100: CENTRO DE ATENCION EN SALUD CAFAM CALLE 90 | D100: 02-CHAPINERO | E100: 230 | F100: 19 | G100: 26 | S100: 26 | T100: 11.3%
A101: FAMISANAR | B101: FAMI- COLSB | C101: CLINICA COLSUBSIDIO EL LAGO | D101: 02-CHAPINERO | E101: 391 | F101: 33 | G101: 8 | S101: 8 | T101: 2.0% | U101: 25
A102: MILITAR | B102: MILITAR | C102: HOSPITAL MILITAR CENTRAL | D102: 02-CHAPINERO | E102: 60 | F102: 5 | G102: 11 | S102: 11 | T102: 18.3%
A103: POLICIA | B103: POLICIA | C103: POLICIA NACIONAL ESPAM CHAPINERO | D103: 02-CHAPINERO | E103: 106 | F103: 9 | G103: 8 | S103: 8 | T103: 7.5% | U103: 1
A104: NUEVA EPS | B104: NUEVA EPS | C104: IPS VIVA 1A SEDE MARLY | D104: 02-CHAPINERO | E104: 141 | F104: 12 | G104: 9 | S104: 9 | T104: 6.4% | U104: 3
A105: SANITAS | B105: SANITAS | C105: EPS SANITAS CENTRO MEDICO TEUSAQUILLO | D105: 02-CHAPINERO | E105: 561 | F105: 47 | G105: 27 | S105: 27 | T105: 4.8% | U105: 20
A106: SALUD TOTAL | B106: SALUD TOTAL | C106: VIRREY SOLIS CHAPINERO | D106: 02-CHAPINERO | E106: 346 | F106: 29 | G106: 12 | S106: 12 | T106: 3.5% | U106: 17
A107: SURA | B107: SURA | C107: PUNTO DE SALUD CHAPINERO | D107: 02-CHAPINERO | E107: 221 | F107: 18 | G107: 26 | S107: 26 | T107: 11.8%
A108: SURA | B108: SURA | C108: SALUD SURA | D108: 02-CHAPINERO | E108: 593 | F108: 49 | G108: 41 | S108: 41 | T108: 6.9% | U108: 8
A109: PARTICULAR | B109: PARTICULAR | C109: CENTRO MEDICO COLSANITAS CALLE 96 | D109: 02-CHAPINERO | E109: 22 | F109: 2 | G109: 0 | S109: 0 | T109: 0.0% | U109: 2
A110: PARTICULAR | B110: PARTICULAR | C110: CENTRO DE ESPECIALISTAS MEDICOS AXA COLPATRIA | D110: 02-CHAPINERO | E110: 0 | F110: 0 | G110: 2 | S110: 2 | T110: 0.0%
A111: PARTICULAR | B111: PARTICULAR | C111: CLINICA DE LA MUJER | D111: 02-CHAPINERO | E111: 0 | F111: 0 | G111: 42 | S111: 42 | T111: 0.0%
A112: PARTICULAR | B112: PARTICULAR | C112: VACUNARTE IPS | D112: 02-CHAPINERO | E112: 0 | F112: 0 | G112: 3 | S112: 3 | T112: 0.0%
A113: PARTICULAR | B113: PARTICULAR | C113: UNIMARLY | D113: 02-CHAPINERO | E113: 0 | F113: 0 | G113: 0 | S113: 0 | T113: 0.0% | U113: 0
A114: PARTICULAR | B114: PARTICULAR | C114: HOSPITAL SAN IGNACIO | D114: 02-CHAPINERO | E114: 0 | F114: 0 | G114: 8 | S114: 8 | T114: 0.0%
A115: PARTICULAR | B115: PARTICULAR | C115: PROGRAMA MADRE CANGURO HOSPITAL SAN IGNACIO | D115: 02-CHAPINERO | E115: 0 | F115: 0 | G115: 15 | S115: 15 | T115: 0.0%
A116: PARTICULAR | B116: PARTICULAR | C116: IPS AVENIR | D116: 02-CHAPINERO | E116: 0 | F116: 0 | G116: 0 | S116: 0 | T116: 0.0% | U116: 0
A117: PARTICULAR | B117: PARTICULAR | C117: IPS INMUNOLOGIA Y DIAGNOSTICO ESPECIALIZADO | D117: 02-CHAPINERO | E117: 0 | F117: 0 | G117: 0 | S117: 0 | T117: 0.0% | U117: 0
A118: PARTICULAR | B118: PARTICULAR | C118: ASOCIACION PEDIATRICA DE LOS ANDES | D118: 02-CHAPINERO | E118: 0 | F118: 0 | G118: 0 | S118: 0 | T118: 0.0% | U118: 0
A119: PARTICULAR | B119: PARTICULAR | C119: CRUZ ROJA SEDE ANDINO | D119: 02-CHAPINERO | E119: 0 | F119: 0 | G119: 0 | S119: 0 | T119: 0.0% | U119: 0
A120: PARTICULAR | B120: PARTICULAR | C120: CENTRO MEDICO SANTA MONICA | D120: 02-CHAPINERO | E120: 0 | F120: 0 | S120: 0 | T120: 0.0% | U120: 0
A121: PEDIATRAS | B121: PEDIATRAS | C121: DR. JUAN OSCAR TAMAYO | D121: 02-CHAPINERO | E121: 0 | F121: 0 | G121: 0 | S121: 0 | T121: 0.0% | U121: 0
A122: PEDIATRAS | B122: PEDIATRAS | C122: DR. ROBERTO SUAREZ | D122: 02-CHAPINERO | E122: 0 | F122: 0 | G122: 0 | S122: 0 | T122: 0.0% | U122: 0
A123: PEDIATRAS | B123: PEDIATRAS | C123: DR. WILLIAM RICARDO CABRA | D123: 02-CHAPINERO | E123: 0 | F123: 0 | G123: 2 | S123: 2 | T123: 0.0%
A124: PEDIATRAS | B124: PEDIATRAS | C124: DR. EDGAR CASTRO | D124: 02-CHAPINERO | E124: 0 | F124: 0 | G124: 6 | S124: 6 | T124: 0.0%
A125: PEDIATRAS | B125: PEDIATRAS | C125: DR. PABLO KRAUSS | D125: 02-CHAPINERO | E125: 0 | F125: 0 | G125: 3 | S125: 3 | T125: 0.0%
A126: PEDIATRAS | B126: PEDIATRAS | C126: DR. HERNAN ROBLES | D126: 02-CHAPINERO | E126: 0 | F126: 0 | G126: 7 | S126: 7 | T126: 0.0%
A127: PEDIATRAS | B127: PEDIATRAS | C127: DR. RAFAEL GAMBOA CASABLANCA | D127: 02-CHAPINERO | E127: 0 | F127: 0 | G127: 3 | S127: 3 | T127: 0.0%
A128: PEDIATRAS | B128: PEDIATRAS | C128: DR. JAVIER MEJIA | D128: 02-CHAPINERO | E128: 0 | F128: 0 | G128: 1 | S128: 1 | T128: 0.0%
A129: PEDIATRAS | B129: PEDIATRAS | C129: DR. CARLOS CORTAZAR | D129: 02-CHAPINERO | E129: 0 | F129: 0 | G129: 0 | S129: 0 | T129: 0.0% | U129: 0
A130: PEDIATRAS | B130: PEDIATRAS | C130: DR. NELSON PARDO | D130: 02-CHAPINERO | E130: 0 | F130: 0 | G130: 0 | S130: 0 | T130: =IF(E130=0,0,+S130/E130) -> 0.0% | U130: =IF(COUNT(G130:R130)*(E130/12)-S130<0,"",COUNT(G130:R130)*(E130/12)-S130) -> 0
A131: PEDIATRAS | B131: PEDIATRAS | C131: DR. ALVARO JACOME | D131: 02-CHAPINERO | E131: 0 | F131: 0 | G131: 0 | S131: =SUM(G131:R131) -> 0 | T131: 0.0% | U131: 0
A132: PEDIATRAS | B132: PEDIATRAS | C132: DR. SILVIO COPO | D132: 02-CHAPINERO | E132: 0 | F132: =E132/12 -> 0 | G132: 0 | S132: 0 | T132: 0.0% | U132: 0
A133: PEDIATRAS | B133: PEDIATRAS | C133: DR. HECTOR FERNANDO MENDOZA | D133: 02-CHAPINERO | E133: 0 | F133: 0 | G133: 1 | S133: 1 | T133: 0.0%
A134: PEDIATRAS | B134: PEDIATRAS | C134: DR. DIMITRIOS | D134: 02-CHAPINERO | E134: 0 | F134: 0 | G134: 0 | S134: 0 | T134: 0.0% | U134: 0
A135: PEDIATRAS | B135: PEDIATRAS | C135: DR. ALVARO MARIÑO | D135: 02-CHAPINERO | E135: 0 | F135: 0 | G135: 0 | S135: 0 | T135: 0.0% | U135: 0
A136: PEDIATRAS | B136: PEDIATRAS | C136: DR. ANDRES VARGAS | D136: 02-CHAPINERO | E136: 0 | F136: 0 | G136: 2 | S136: 2 | T136: 0.0%
A137: PEDIATRAS | B137: PEDIATRAS | C137: DR. JORGE CAMILO LUNA | D137: 02-CHAPINERO | E137: 0 | F137: 0 | G137: 0 | S137: 0 | T137: 0.0% | U137: 0
A138: PEDIATRAS | B138: PEDIATRAS | C138: DR. BERNARDO HUERTAS | D138: 02-CHAPINERO | E138: 0 | F138: 0 | G138: 12 | S138: 12 | T138: 0.0%
A139: PEDIATRAS | B139: PEDIATRAS | C139: DR. CARLOS M CASTILLO | D139: 02-CHAPINERO | E139: 0 | F139: 0 | G139: 0 | S139: 0 | T139: 0.0% | U139: 0
A140: PEDIATRAS | B140: PEDIATRAS | C140: DR. HEINZ OTTO PFALZGRAF | D140: 02-CHAPINERO | E140: 0 | F140: 0 | G140: 0 | S140: 0 | T140: 0.0% | U140: 0
A141: PEDIATRAS | B141: PEDIATRAS | C141: DR. GONZALEZ BALLESTEROS | D141: 02-CHAPINERO | E141: 0 | F141: 0 | G141: 0 | S141: 0 | T141: 0.0% | U141: 0
A142: PEDIATRAS | B142: PEDIATRAS | C142: DR. NORBERTO SALAMANCA | D142: 02-CHAPINERO | E142: 0 | F142: 0 | G142: 2 | S142: 2 | T142: 0.0%
A143: PEDIATRAS | B143: PEDIATRAS | C143: DR. CAMILO ENRIQUE SOTOMAYOR | D143: 02-CHAPINERO | E143: 0 | F143: 0 | G143: 1 | S143: 1 | T143: 0.0%
A144: PEDIATRAS | B144: PEDIATRAS | C144: DR. SANTIAGO RUEDA SAIZ | D144: 02-CHAPINERO | E144: 0 | F144: 0 | G144: 0 | S144: 0 | T144: 0.0% | U144: 0
A145: PEDIATRAS | B145: PEDIATRAS | C145: DR. HENRY HERNANDO SANCHEZ ESCOBAR | D145: 02-CHAPINERO | E145: 0 | F145: 0 | G145: 0 | S145: 0 | T145: 0.0% | U145: 0
A146: PEDIATRAS | B146: PEDIATRAS | C146: DR. RUBEN DARIO TAMAYO | D146: 02-CHAPINERO | E146: 0 | F146: 0 | G146: 2 | S146: 2 | T146: 0.0%
A147: PEDIATRAS | B147: PEDIATRAS | C147: DR. JAIME MAURICIO MATALLANA | D147: 02-CHAPINERO | E147: 0 | F147: 0 | G147: 1 | S147: 1 | T147: 0.0%
A148: PEDIATRAS | B148: PEDIATRAS | C148: DR. RODRIGO GARCIA | D148: 02-CHAPINERO | E148: 0 | F148: 0 | G148: 0 | S148: 0 | T148: 0.0% | U148: 0
A149: PEDIATRAS | B149: PEDIATRAS | C149: DR. FELIPE ROBAYO | D149: 02-CHAPINERO | E149: 0 | F149: 0 | G149: 0 | S149: 0 | T149: 0.0% | U149: 0
A150: PEDIATRAS | B150: PEDIATRAS | C150: DR. RUBEN FRANCO | D150: 02-CHAPINERO | E150: 0 | F150: 0 | G150: 0 | S150: 0 | T150: 0.0% | U150: 0
A151: PEDIATRAS | B151: PEDIATRAS | C151: DR. ORLANDO RODRIGUEZ RAMIREZ | D151: 02-CHAPINERO | E151: 0 | F151: 0 | G151: 7 | S151: 7 | T151: 0.0%
A152: PEDIATRAS | B152: PEDIATRAS | C152: DR. ARTURO MORENO | D152: 02-CHAPINERO | E152: 0 | F152: 0 | G152: 0 | S152: 0 | T152: 0.0% | U152: 0
A153: PEDIATRAS | B153: PEDIATRAS | C153: DR. FRANCISCO LEAL QUEVEDO | D153: 02-CHAPINERO | E153: 0 | F153: 0 | G153: 0 | S153: 0 | T153: 0.0% | U153: 0
A154: PEDIATRAS | B154: PEDIATRAS | C154: DR. CARLOS DIAZ PUENTES | D154: 02-CHAPINERO | E154: 0 | F154: 0 | G154: 0 | S154: 0 | T154: 0.0% | U154: 0
A155: PEDIATRAS | B155: PEDIATRAS | C155: DR. PEDRO ERASMO MENDOZA | D155: 02-CHAPINERO | E155: 0 | F155: 0 | G155: 0 | S155: 0 | T155: 0.0% | U155: 0
A156: PEDIATRAS | B156: PEDIATRAS | C156: DR. DIMAS ROSAS | D156: 02-CHAPINERO | E156: 0 | F156: 0 | G156: 0 | S156: 0 | T156: 0.0% | U156: 0
A157: PEDIATRAS | B157: PEDIATRAS | C157: DR. JAVIER BRITO MORENO | D157: 02-CHAPINERO | E157: 0 | F157: 0 | G157: 0 | S157: 0 | T157: 0.0% | U157: 0
A158: PEDIATRAS | B158: PEDIATRAS | C158: DR. GUSTAVO CORTÉS | D158: 02-CHAPINERO | E158: 0 | F158: 0 | G158: 0 | S158: 0 | T158: 0.0% | U158: 0
A159: PEDIATRAS | B159: PEDIATRAS | C159: DR. CARLOS VELASQUEZ | D159: 02-CHAPINERO | E159: 0 | F159: 0 | G159: 0 | S159: 0 | T159: 0.0% | U159: 0
A160: PEDIATRAS | B160: PEDIATRAS | C160: DR. RICARDO GOMEZ | D160: 02-CHAPINERO | E160: 0 | F160: 0 | G160: 0 | S160: 0 | T160: 0.0% | U160: 0
A161: PEDIATRAS | B161: PEDIATRAS | C161: DR. SARA BERNAL | D161: 02-CHAPINERO | E161: 0 | F161: 0 | G161: 0 | S161: 0 | T161: 0.0% | U161: 0
A162: PEDIATRAS | B162: PEDIATRAS | C162: DRA. MARIA PATRICIA AGUALIMPIA | D162: 02-CHAPINERO | E162: 0 | F162: 0 | G162: 0 | S162: 0 | T162: 0.0% | U162: 0
A163: PEDIATRAS | B163: PEDIATRAS | C163: DRA. LUISA FERNANDA FORERO ACOSTA | D163: 02-CHAPINERO | E163: 0 | F163: 0 | G163: 0 | S163: 0 | T163: 0.0% | U163: 0
A164: PEDIATRAS | B164: PEDIATRAS | C164: DRA. MARIA CLARA CASAS PARDO | D164: 02-CHAPINERO | E164: 0 | F164: 0 | G164: 0 | S164: 0 | T164: 0.0% | U164: 0
A165: PEDIATRAS | B165: PEDIATRAS | C165: DRA. MARTHA EUGENIA RONDEROS DE FORERO | D165: 02-CHAPINERO | E165: 0 | F165: 0 | G165: 0 | S165: 0 | T165: 0.0% | U165: 0
A166: PEDIATRAS | B166: PEDIATRAS | C166: DRA. MARIA ISABEL USCHER | D166: 02-CHAPINERO | E166: 0 | F166: 0 | G166: 1 | S166: 1 | T166: 0.0%
A167: PEDIATRAS | B167: PEDIATRAS | C167: DRA. MARIA DE LOS ANGELES MUÑOZ | D167: 02-CHAPINERO | E167: 0 | F167: 0 | G167: 0 | S167: 0 | T167: 0.0% | U167: 0
A168: PEDIATRAS | B168: PEDIATRAS | C168: DRA. CLARA ABELLO REYES | D168: 02-CHAPINERO | E168: 0 | F168: 0 | G168: 0 | S168: 0 | T168: 0.0% | U168: 0
A169: PEDIATRAS | B169: PEDIATRAS | C169: DRA. PATRICIA CONTRERAS | D169: 02-CHAPINERO | E169: 0 | F169: 0 | G169: 0 | S169: 0 | T169: 0.0% | U169: 0
A170: PEDIATRAS | B170: PEDIATRAS | C170: DRA. CLAUDIA ZOPPI | D170: 02-CHAPINERO | E170: 0 | F170: 0 | G170: 0 | S170: 0 | T170: 0.0% | U170: 0
A171: PEDIATRAS | B171: PEDIATRAS | C171: DRA. MARIA DE LOS ANGELES FERNANDEZ LUQUE | D171: 02-CHAPINERO | E171: 0 | F171: 0 | G171: 0 | S171: 0 | T171: 0.0% | U171: 0
A172: PEDIATRAS | B172: PEDIATRAS | C172: DRA. RUTH CORDOBA CORDOBA | D172: 02-CHAPINERO | E172: 0 | F172: 0 | G172: 0 | S172: 0 | T172: 0.0% | U172: 0
A173: PEDIATRAS | B173: PEDIATRAS | C173: DRA. LUZ ESTELA CORTES | D173: 02-CHAPINERO | E173: 0 | F173: 0 | G173: 0 | S173: 0 | T173: 0.0% | U173: 0
A174: UNICAJAS | B174: UNICAJAS | C174: UPA SAN LUIS | D174: 02-CHAPINERO | E174: 6 | F174: 1 | G174: 0 | S174: 0 | T174: 0.0% | U174: 1
A175: 02-CHAPINERO | B175: OTROS | C175: UPA SAN LUIS | D175: 02-CHAPINERO | E175: 958 | F175: 80 | G175: 6 | S175: 6 | T175: 0.6% | U175: 74
A176: 02-CHAPINERO | B176: DEMAS EAPB | C176: UPA SAN LUIS | D176: 02-CHAPINERO | F176: 0 | G176: 9 | S176: 9 | T176: 0.0%
A177: UNICAJAS | B177: UNICAJAS | C177: COMFASALUD SEDE CENTRO | D177: 03-SANTA FE | E177: 93 | F177: 8 | G177: 2 | S177: 2 | T177: 2.2% | U177: 6
A178: MEDIMAS | B178: MEDIMAS | C178: CORVESALUD TEUSAQUILLO | D178: 03-SANTA FE | E178: 283 | F178: 24 | G178: 4 | S178: 4 | T178: 1.4% | U178: 20
A179: 03-SANTA FE | B179: CAPITAL SALUD | C179: EXTRAMURAL SANTA FE | D179: 03-SANTA FE | E179: 0 | F179: 0 | G179: 7 | S179: 7 | T179: 0.0%
A180: 03-SANTA FE | B180: DEMAS EAPB | C180: EXTRAMURAL SANTA FE | D180: 03-SANTA FE | E180: 0 | F180: 0 | G180: 13 | S180: 13 | T180: 0.0%
A181: 03-SANTA FE | B181: OTROS | C181: EXTRAMURAL SANTA FE | D181: 03-SANTA FE | E181: 0 | F181: 0 | G181: 16 | S181: 16 | T181: 0.0%
A182: 03-SANTA FE | B182: UNICAJAS | C182: EXTRAMURAL SANTA FE | D182: 03-SANTA FE | E182: 0 | F182: 0 | G182: 2 | S182: 2 | T182: 0.0%
A183: 03-SANTA FE | B183: CAPITAL SALUD | C183: USS LACHES | D183: 03-SANTA FE | E183: 179 | F183: 15 | G183: 7 | S183: 7 | T183: 3.9% | U183: 8
A184: 03-SANTA FE | B184: DEMAS EAPB | C184: USS LACHES | D184: 03-SANTA FE | E184: 0 | F184: 0 | G184: 16 | S184: 16 | T184: 0.0%
A185: 03-SANTA FE | B185: OTROS | C185: USS LACHES | D185: 03-SANTA FE | E185: 82 | F185: 7 | G185: 3 | S185: 3 | T185: 3.7% | U185: 4
A186: 03-SANTA FE | B186: UNICAJAS | C186: USS LACHES | D186: 03-SANTA FE | E186: 42 | F186: 4 | G186: 4 | S186: 4 | T186: 9.5%
A187: 03-SANTA FE | B187: CAPITAL SALUD | C187: USS LAS CRUCES | D187: 03-SANTA FE | E187: 156 | F187: 13 | G187: 4 | S187: 4 | T187: 2.6% | U187: 9
A188: 03-SANTA FE | B188: DEMAS EAPB | C188: USS LAS CRUCES | D188: 03-SANTA FE | E188: 0 | F188: 0 | G188: 8 | S188: 8 | T188: 0.0%
A189: 03-SANTA FE | B189: OTROS | C189: USS LAS CRUCES | D189: 03-SANTA FE | E189: 71 | F189: 6 | G189: 4 | S189: 4 | T189: 5.6% | U189: 2
A190: 03-SANTA FE | B190: UNICAJAS | C190: USS LAS CRUCES | D190: 03-SANTA FE | E190: 36 | F190: 3 | G190: 1 | S190: 1 | T190: 2.8% | U190: 2
A191: 03-SANTA FE | B191: CAPITAL SALUD | C191: USS PERSEVERANCIA | D191: 03-SANTA FE | E191: 30 | F191: 3 | G191: 2 | S191: 2 | T191: 6.7% | U191: 1
A192: 03-SANTA FE | B192: DEMAS EAPB | C192: USS PERSEVERANCIA | D192: 03-SANTA FE | E192: 0 | F192: 0 | G192: 2 | S192: 2 | T192: 0.0%
A193: 03-SANTA FE | B193: OTROS | C193: USS PERSEVERANCIA | D193: 03-SANTA FE | E193: 14 | F193: 1 | G193: 5 | S193: 5 | T193: 35.7%
A194: 03-SANTA FE | B194: UNICAJAS | C194: USS PERSEVERANCIA | D194: 03-SANTA FE | E194: 7 | F194: 1 | G194: 0 | S194: 0 | T194: =IF(E194=0,0,+S194/E194) -> 0.0% | U194: =IF(COUNT(G194:R194)*(E194/12)-S194<0,"",COUNT(G194:R194)*(E194/12)-S194) -> 1
A195: PARTICULAR | B195: PARTICULAR | C195: CLINICA SAN RAFAEL | D195: 04-SAN CRISTOBAL | E195: 266 | F195: 22 | G195: 20 | S195: =SUM(G195:R195) -> 20 | T195: 7.5% | U195: 2
A196: FAMISANAR | B196: FAMI- COLSB | C196: CENTRO MEDICO COLSUBSIDIO 20 DE JULIO | D196: 04-SAN CRISTOBAL | F196: =E196/12 -> 0 | S196: 0 | T196: 0.0% | U196: 0
A197: 04-SAN CRISTOBAL | B197: CAPITAL SALUD | C197: EXTRAMURAL SAN CRISTOBAL | D197: 04-SAN CRISTOBAL | E197: 0 | F197: 0 | G197: 31 | S197: 31 | T197: 0.0%
A198: 04-SAN CRISTOBAL | B198: DEMAS EAPB | C198: EXTRAMURAL SAN CRISTOBAL | D198: 04-SAN CRISTOBAL | E198: 0 | F198: 0 | G198: 66 | S198: 66 | T198: 0.0%
A199: 04-SAN CRISTOBAL | B199: OTROS | C199: EXTRAMURAL SAN CRISTOBAL | D199: 04-SAN CRISTOBAL | E199: 0 | F199: 0 | G199: 15 | S199: 15 | T199: 0.0%
A200: 04-SAN CRISTOBAL | B200: UNICAJAS | C200: EXTRAMURAL SAN CRISTOBAL | D200: 04-SAN CRISTOBAL | E200: 0 | F200: 0 | G200: 7 | S200: 7 | T200: 0.0%
... 620 more rows

Sheet HEPATITIS.A
A1: EAPB | B1: EPS O ESE | C1: IPS | D1: Localidad | E1: Meta Anual de 1 Año | F1: Meta Mensual | G1: Enero | H1: Febrero | I1: Marzo | J1: Abril | K1: Mayo | L1: Junio | M1: Julio | N1: Agosto | O1: Septiembre | P1: Octubre | Q1: Noviembre | R1: Diciembre | S1: Total | T1: % Cobertura | U1: Deficit
A2: CAPITAL SALUD | B2: CAPITAL SALUD | C2: UPA SAN CRISTOBAL | D2: 01-USAQUEN | E2: 100 | F2: =E2/12 -> 8 | G2: 4 | S2: =SUM(G2:R2) -> 4 | T2: =IF(E2=0,0,+S2/E2) -> 4.0% | U2: =IF(COUNT(G2:R2)*(E2/12)-S2<0,"",COUNT(G2:R2)*(E2/12)-S2) -> 4
A3: CAPITAL SALUD | B3: CAPITAL SALUD | C3: UPA USAQUEN | D3: 01-USAQUEN | E3: 14 | F3: 1 | G3: 0 | S3: =SUM(G3:R3) -> 0 | T3: 0.0% | U3: 1
A4: CAPITAL SALUD | B4: CAPITAL SALUD | C4: UPA ORQUIDEAS | D4: 01-USAQUEN | E4: 6 | F4: 1 | G4: 5 | S4: 5 | T4: 83.3%
A5: CAPITAL SALUD | B5: CAPITAL SALUD | C5: UPA CODITO | D5: 01-USAQUEN | E5: 115 | F5: 10 | G5: 3 | S5: 3 | T5: 2.6% | U5: 7
A6: CAPITAL SALUD | B6: CAPITAL SALUD | C6: CAMI VERBENAL | D6: 01-USAQUEN | E6: 106 | F6: 9 | G6: 7 | S6: 7 | T6: 6.6% | U6: 2
A7: CAPITAL SALUD | B7: CAPITAL SALUD | C7: HOSPITAL SIMON BOLIVAR | D7: 01-USAQUEN | E7: 15 | F7: 1 | G7: 12 | S7: 12 | T7: 80.0%
A8: 01-USAQUEN | B8: 01-USAQUEN | C8: EXTRAMURAL USAQUEN | D8: 01-USAQUEN | F8: 0 | G8: 45 | S8: 45 | T8: 0.0%
A9: ALIANSALUD | B9: ALIANSALUD | C9: CENTRO MEDICO COLMEDICA SANTA BARBARA | D9: 01-USAQUEN | E9: 794 | F9: 66 | G9: 66 | S9: 66 | T9: 8.3% | U9: 0
A10: COMPENSAR | B10: COMPENSAR | C10: USS CALLE 134 | D10: 01-USAQUEN | E10: 328 | F10: 27 | G10: 15 | S10: 15 | T10: 4.6% | U10: 12
A11: COMPENSAR | B11: COMPENSAR | C11: USS CALLE 145 | D11: 01-USAQUEN | E11: 252 | F11: 21 | G11: 37 | S11: 37 | T11: 14.7%
A12: COMPENSAR | B12: COMPENSAR | C12: JAVESALUD TOBERIN | D12: 01-USAQUEN | E12: 396 | F12: 33 | G12: 3 | S12: 3 | T12: 0.8% | U12: 30
A13: COOMEVA | B13: COOMEVA | C13: SINERGIA UNIDAD INTEGRAL EN SALUD | D13: 01-USAQUEN | E13: 63 | F13: 5 | G13: 13 | S13: 13 | T13: 20.6%
A14: FAMISANAR | B14: FAMI- COLSB | C14: CENTRO MEDICO COLSUBSIDIO USAQUEN | D14: 01-USAQUEN | E14: 315 | F14: 26 | G14: 28 | S14: 28 | T14: 8.9%
A15: MILITAR | B15: MILITAR | C15: DISPENSARIO MEDICO CANTON NORTE | D15: 01-USAQUEN | E15: 287 | F15: 24 | G15: 10 | S15: 10 | T15: 3.5% | U15: 14
A16: NUEVA EPS | B16: NUEVA EPS | C16: IPS VIVA 1A SEDE TOBERIN | D16: 01-USAQUEN | E16: 130 | F16: 11 | G16: 13 | S16: 13 | T16: 10.0%
A17: NUEVA EPS | B17: NUEVA EPS | C17: CAFAM GRANADA HILLS | D17: 01-USAQUEN | E17: 58 | F17: 5 | G17: 6 | S17: 6 | T17: 10.3%
A18: SANITAS | B18: SANITAS | C18: UAP SANITAS TOBERIN | D18: 01-USAQUEN | E18: 629 | F18: 52 | G18: 31 | S18: 31 | T18: 4.9% | U18: 21
A19: SANITAS | B19: SANITAS | C19: MEDIKA IPS SANITAS UAP USAQUEN | D19: 01-USAQUEN | E19: 183 | F19: 15 | G19: 1 | S19: 1 | T19: 0.5% | U19: 14
A20: SANITAS | B20: SANITAS | C20: UAP SANTA BARBARA | D20: 01-USAQUEN | E20: 884 | F20: 74 | G20: 79 | S20: 79 | T20: 8.9%
A21: SANITAS | B21: SANITAS | C21: SANITAS BANCO DE LA REPUBLICA | D21: 01-USAQUEN | E21: 0 | F21: 0 | G21: 1 | S21: 1 | T21: 0.0%
A22: SALUD TOTAL | B22: SALUD TOTAL | C22: VIRREY SOLIS TOBERÍN | D22: 01-USAQUEN | E22: 418 | F22: 35 | G22: 19 | S22: 19 | T22: 4.5% | U22: 16
A23: SURA | B23: SURA | C23: IPS JAVESALUD SANTA BEATRIZ | D23: 01-USAQUEN | E23: 366 | F23: 31 | G23: 15 | S23: 15 | T23: 4.1% | U23: 16
A24: ECOPETROL | B24: ECOPETROL | C24: IPS CLINICOS PALATINO | D24: 01-USAQUEN | E24: 93 | F24: 8 | G24: 5 | S24: 5 | T24: 5.4% | U24: 3
A25: PARTICULAR | B25: PARTICULAR | C25: CLINICA PEDIATRICA COLSANITAS | D25: 01-USAQUEN | E25: 675 | F25: 56 | G25: 79 | S25: 79 | T25: 11.7%
A26: PARTICULAR | B26: PARTICULAR | C26: CENTRO MEDICO COLSANITAS LA CALLEJA | D26: 01-USAQUEN | E26: 130 | F26: 11 | G26: 18 | S26: 18 | T26: 13.8%
A27: PARTICULAR | B27: PARTICULAR | C27: CENTRO MEDICO COLSANITAS 108 | D27: 01-USAQUEN | E27: 26 | F27: 2 | G27: 4 | S27: 4 | T27: 15.4%
A28: PARTICULAR | B28: PARTICULAR | C28: CENTRO MEDICO COLSANITAS SANTA ANA | D28: 01-USAQUEN | E28: 4 | F28: 0 | G28: 0 | S28: 0 | T28: 0.0% | U28: 0
A29: PARTICULAR | B29: PARTICULAR | C29: FUNDACIÓN CARDIO INFANTIL | D29: 01-USAQUEN | E29: 0 | F29: 0 | G29: 17 | S29: 17 | T29: 0.0%
A30: PARTICULAR | B30: PARTICULAR | C30: ENFASO USAQUEN | D30: 01-USAQUEN | E30: 0 | F30: 0 | G30: 6 | S30: 6 | T30: 0.0%
A31: PARTICULAR | B31: PARTICULAR | C31: UNIDAD DE VACUNACIÓN INTERNACIONAL | D31: 01-USAQUEN | E31: 0 | F31: 0 | G31: 3 | S31: 3 | T31: 0.0%
A32: PARTICULAR | B32: PARTICULAR | C32: INMUNOLOGÍA Y DIAGNÓSTICO ESPECIALIZADO LTDA. | D32: 01-USAQUEN | E32: 0 | F32: 0 | G32: 2 | S32: 2 | T32: 0.0%
A33: PARTICULAR | B33: PARTICULAR | C33: PROTEGER HEALHT CARE | D33: 01-USAQUEN | E33: 0 | F33: 0 | G33: 0 | S33: 0 | T33: 0.0% | U33: 0
A34: PARTICULAR | B34: PARTICULAR | C34: FUNDACION SANTA FE DE BOGOTA | D34: 01-USAQUEN | E34: 0 | F34: 0 | G34: 0 | S34: 0 | T34: 0.0% | U34: 0
A35: PARTICULAR | B35: PARTICULAR | C35: IPS CRUZ ROJA SEDE UNICENTRO | D35: 01-USAQUEN | E35: 0 | F35: 0 | G35: 0 | S35: 0 | T35: 0.0% | U35: 0
A36: PARTICULAR | B36: PARTICULAR | C36: IPS CRUZ ROJA SAMU CALLE 145 | D36: 01-USAQUEN | E36: 0 | F36: 0 | G36: 0 | S36: 0 | T36: 0.0% | U36: 0
A37: PEDIATRAS | B37: PEDIATRAS | C37: DR. ALEJANDRO LÓPEZ | D37: 01-USAQUEN | E37: 0 | F37: 0 | G37: 0 | S37: 0 | T37: 0.0% | U37: 0
A38: PEDIATRAS | B38: PEDIATRAS | C38: DR. CARLOS NEFTALI TORRES | D38: 01-USAQUEN | E38: 0 | F38: 0 | G38: 5 | S38: 5 | T38: 0.0%
A39: PEDIATRAS | B39: PEDIATRAS | C39: DR. FRANCISCO NUÑEZ | D39: 01-USAQUEN | E39: 0 | F39: 0 | G39: 0 | S39: 0 | T39: 0.0% | U39: 0
A40: PEDIATRAS | B40: PEDIATRAS | C40: DR. FERNANDO GOMEZ | D40: 01-USAQUEN | E40: 0 | F40: 0 | G40: 0 | S40: 0 | T40: 0.0% | U40: 0
A41: PEDIATRAS | B41: PEDIATRAS | C41: DR. FERNANDO ZARATE MORENO | D41: 01-USAQUEN | E41: 0 | F41: 0 | G41: 2 | S41: 2 | T41: 0.0%
A42: PEDIATRAS | B42: PEDIATRAS | C42: DR. GONZALO GARCIA | D42: 01-USAQUEN | E42: 0 | F42: 0 | G42: 2 | S42: 2 | T42: 0.0%
A43: PEDIATRAS | B43: PEDIATRAS | C43: DR. GUSTAVO MORALES | D43: 01-USAQUEN | E43: 0 | F43: 0 | G43: 1 | S43: 1 | T43: 0.0%
A44: PEDIATRAS | B44: PEDIATRAS | C44: DR. JAIME OSPINA | D44: 01-USAQUEN | E44: 0 | F44: 0 | G44: 1 | S44: 1 | T44: 0.0%
A45: PEDIATRAS | B45: PEDIATRAS | C45: DR. JORGE URIBE | D45: 01-USAQUEN | E45: 0 | F45: 0 | G45: 0 | S45: 0 | T45: 0.0% | U45: 0
A46: PEDIATRAS | B46: PEDIATRAS | C46: DR. JUAN LUIS FIGUEROA | D46: 01-USAQUEN | E46: 0 | F46: 0 | G46: 1 | S46: 1 | T46: 0.0%
A47: PEDIATRAS | B47: PEDIATRAS | C47: DR. LUIS AUGUSTO PERNA | D47: 01-USAQUEN | E47: 0 | F47: 0 | G47: 2 | S47: 2 | T47: 0.0%
A48: PEDIATRAS | B48: PEDIATRAS | C48: DR. LIBARDO ELI TRIANA | D48: 01-USAQUEN | E48: 0 | F48: 0 | G48: 0 | S48: 0 | T48: 0.0% | U48: 0
A49: PEDIATRAS | B49: PEDIATRAS | C49: DR. OSWALDO MERCADO HOYOS | D49: 01-USAQUEN | E49: 0 | F49: 0 | G49: 1 | S49: 1 | T49: 0.0%
A50: PEDIATRAS | B50: PEDIATRAS | C50: DR. ROBERTO BENIRO | D50: 01-USAQUEN | E50: 0 | F50: 0 | G50: 0 | S50: 0 | T50: 0.0% | U50: 0
A51: PEDIATRAS | B51: PEDIATRAS | C51: DR. SERGIO ISAZA | D51: 01-USAQUEN | E51: 0 | F51: 0 | G51: 0 | S51: 0 | T51: 0.0% | U51: 0
